Workbook

Sheet INTRO
B2: Joint request for selected PC medicines v.4.1 (Loa)
B4: As part of global efforts to accelerate expansion of preventive chemotherapy (PC) for control and elimination of lymphatic filariasis, schistosomiasis and soil-transmitted helminthiases, the World Health Organization (WHO) facilitates the supply of albendazole 400 mg tablets (GSK) to national lymphatic filariasis elimination programmes and national soil-transmitted helminth control programmes; diethylcarbamazine citrate 100 mg tablets (Eisai) to national lymphatic filariasis elimination programmes; mebendazole 500 mg tablets (J&J) for national soil-transmitted helminth control programmes; and praziquantel 600 mg tablets (Merck KGaA) for school-age children to national schistosomiasis control programmes. WHO also collaborates to supply ivermectin 3 mg tablets (Merck) for onchocerciasis and lymphatic filariasis donation programmes. This Excel-based tool is designed to assist countries in quantifying the number of tablets of relevant PC medicines required to reach the planned target population and districts for the year of request. Output of the tool is a joint request for PC medicines, which can be printed, signed and submitted to WHO to request these medicines.
B6: Structure of the application (worksheets):
B8: INTRO | C8: This worksheet includes guides on how to complete the joint request for selected PC medicines and information about the status of PC for endemic diseases in the country.
B9: COUNTRY_INFO | C9: This worksheet includes information about administrative structure of the country, population by age group, status of endemicity for each disease, population requiring PC and planned interventions.
B10: DEC, ALB_MBD, PZQ and IVM | C10: These worksheets include information about endemic districts targeted for treatment with specified PC medicines, treatment plan, and number of tablets required and requested.
B11: SUMMARY | C11: This worksheet includes summary of number of tablets requested, information about stock, and date for submission of requested medicines. Before generating the report (run macros) please select the medicine for which the report is needed. Follow the same rule to see the number of people to be treated for the specific disease. This worksheet should be printed and submitted as a joint request for selected PC medicines (see the instruction for submission in the SUMMARY worksheet).
B13: Instruction for data entry
B15: Most of the cells in the above-mentioned worksheets include formula that are calculated automatically according to the treatment policy recommended by WHO for each disease. See the link https://www.who.int/publications/i/item/9789241599993.
B17: Please enter your data into the cells according to their colour code:
C19: White - cell is not protected. Please enter the value of the requested indicator.
C21: Yellow - cell is protected and includes name of indicator. No data entry required.
C23: Orange - cell is not protected and includes a drop-down menu. Please select the value from the drop-down list.
C26: Green - cell is not protected and includes formula. Please change the value only if your data are different from those that are calculated automatically.
C29: Blue - cell is protected and includes formula. No data entry required.
B31: Country data
B33: COUNTRY | E33: Cameroun | G33: CM | H33: CMR
E34: 5
B35: Year for request of the medicine | E35: 2024
B37: Is country endemic for lymphatic filariasis (LF)? | E37: Endemic
B39: Is country endemic for onchocerciasis (ONCHO)? | E39: Endemic
B41: Is country endemic for soil-transmitted helminthiases (STH)? | E41: Endemic
B43: Is country endemic for schistosomiasis (SCH)? | E43: Endemic
B45: How many administrative units in the country? | E45: 200
B47: If demographical data at the second administrative level are not available by age group, please enter the proportion (%) of population by age group in the country. If data are available, please leave these cells blank.
B48: 1-4 years age | C48: Preschool-age children (PreSAC) | E48: 0.1264
B49: 5-14 years age | C49: School-age children (SAC) | E49: 0.2645
B50: 15 years + | C50: Adults | E50: 0.5757
B51: 15-49 years | C51: Women of reproductive age (WRA) | E51: 0.037

Sheet COUNTRY_INFO
A1: COUNTRY INFORMATION
A2: Administrative structure, population by age group, status of endemicity and planned interventions
A4: TOTAL | D4: =SUBTOTAL(9,D$10:D$1010) -> 29151460.34 | E4: =SUBTOTAL(9,E$10:E$1010) -> 5371568.878 | F4: 7710565 | G4: 16782501 | M4: =SUBTOTAL(9,M$10:M$1010) -> 64165 | N4: 13411170.21 | O4: 3575007.994 | P4: 5213175 | Q4: 729250 | R4: 9517432.994 | S4: 2650466 | T4: 4205031 | U4: 9152499 | V4: 16007996
A6: Country administrative structure | D6: Population | H6: Endemicity | M6: Population requiring PC | W6: Number of treatment rounds planned for the year | AA6: Epidemiological surveys planned for the year
A7: Country | B7: Province/State | C7: District | D7: Total | E7: PreSAC | F7: SAC | G7: Adults | H7: LF | I7: Oncho | J7: STH | K7: SCH | L7: Loa | M7: LF | N7: ONCHO | O7: STH | S7: SCH | W7: LF | X7: Oncho | Y7: STH | Z7: SCH | AA7: LF | AB7: Oncho | AC7: STH | AD7: SCH
O8: PreSAC | P8: SAC | Q8: WRA | R8: TOTAL | S8: PreSAC | T8: SAC | U8: Adults | V8: TOTAL | AH8: IU_ID | AI8: IU_NAME | AJ8: Paent_ID_ID | AK8: Parent_Name
AE9: x | AF9: x | AG9: x | AH9: x | AI9: x | AJ9: x | AK9: x | AL9: x | AM9: x | AN9: x | AO9: x
A10: =IF(INTRO!$E$33<>0,INTRO!$E$33, " ") -> Cameroun | B10: Adamaoua | C10: Bankim | D10: 127866 | E10: 29488.266 | F10: =IF(INTRO!$E$49="","",ROUND($D10*INTRO!$E$49,0)) -> 33821 | G10: =IF(INTRO!$E$50="","",ROUND($D10*INTRO!$E$50,0)) -> 73612 | H10: 99 | I10: 1 | J10: 3 | K10: 2 | L10: 1 | M10: =IF(INTRO!$E$37="Endemic",IF($H10>0,IF($H10=4,"Unknown",IF($H10=99,"Stopped",$D10)),0),"Not required") -> Stopped | N10: =IF(INTRO!$E$39="Endemic", IF($I10>0, IF($I10=4,"Unknown",IF($I10=99,"Stopped",$D10)), 0),"Not required") -> 127866 | O10: =IF(INTRO!$E$41="Endemic", IF($J10>1, IF($J10=4, "Unknown", IF($J10=99, "Surveillance", E10)), 0),"Not required") -> 29488.266 | P10: =IF(INTRO!$E$41="Endemic", IF($J10>1, IF($J10=4, "Unknown", IF($J10=99, "Surveillance", F10)), 0),"Not required") -> 33821 | Q10: =IF(INTRO!$E$41="Endemic", IF($J10>1, IF($J10=4, "Unknown", IF($J10=99, "Surveillance", ROUND(D10*INTRO!$E$51,0))), 0),"Not required") -> 4731 | R10: =IF(INTRO!$E$41="Endemic", IF($J10>1, IF($J10=4, "Unknown", IF($J10=99, "Surveillance", SUM($O10:$Q10))), 0),"Not required") -> 68040.266 | S10: =IF(INTRO!$E$43="Endemic", IF($K10>1, IF($K10=4, "Unknown", IF($K10=99, "Surveillance", ROUND(E10*0.75,0))), 0),"Not required") -> 22116 | T10: =IF(INTRO!$E$43="Endemic", IF($K10>1, IF($K10=4, "Unknown", IF($K10=99, "Surveillance", F10)), 0),"Not required") -> 33821 | U10: =IF(INTRO!$E$43="Endemic", IF($K10>1, IF($K10=4, "Unknown", IF($K10=99, "Surveillance", G10)), 0),"Not required") -> 73612 | V10: =IF(INTRO!$E$43="Endemic", IF($K10>1, IF($K10=4, "Unknown", IF($K10=99, "Surveillance", SUM($S10:$U10))), 0),"Not required") -> 129549 | W10: 0 | X10: 1 | Y10: 1 | Z10: 1 | AH10: 7420 | AI10: BANKIM
A11: =IF(INTRO!$E$33<>0,INTRO!$E$33, " ") -> Cameroun | B11: Adamaoua | C11: Banyo | D11: 176351 | E11: 96423.48 | F11: =IF(INTRO!$E$49="","",ROUND($D11*INTRO!$E$49,0)) -> 46645 | G11: =IF(INTRO!$E$50="","",ROUND($D11*INTRO!$E$50,0)) -> 101525 | H11: 99 | I11: 1 | J11: 2 | K11: 3 | L11: 1 | M11: =IF(INTRO!$E$37="Endemic",IF($H11>0,IF($H11=4,"Unknown",IF($H11=99,"Stopped",$D11)),0),"Not required") -> Stopped | N11: =IF(INTRO!$E$39="Endemic", IF($I11>0, IF($I11=4,"Unknown",IF($I11=99,"Stopped",$D11)), 0),"Not required") -> 176351 | O11: =IF(INTRO!$E$41="Endemic", IF($J11>1, IF($J11=4, "Unknown", IF($J11=99, "Surveillance", E11)), 0),"Not required") -> 96423.48 | P11: =IF(INTRO!$E$41="Endemic", IF($J11>1, IF($J11=4, "Unknown", IF($J11=99, "Surveillance", F11)), 0),"Not required") -> 46645 | Q11: =IF(INTRO!$E$41="Endemic", IF($J11>1, IF($J11=4, "Unknown", IF($J11=99, "Surveillance", ROUND(D11*INTRO!$E$51,0))), 0),"Not required") -> 6525 | R11: =IF(INTRO!$E$41="Endemic", IF($J11>1, IF($J11=4, "Unknown", IF($J11=99, "Surveillance", SUM($O11:$Q11))), 0),"Not required") -> 149593.48 | S11: =IF(INTRO!$E$43="Endemic", IF($K11>1, IF($K11=4, "Unknown", IF($K11=99, "Surveillance", ROUND(E11*0.75,0))), 0),"Not required") -> 72318 | T11: =IF(INTRO!$E$43="Endemic", IF($K11>1, IF($K11=4, "Unknown", IF($K11=99, "Surveillance", F11)), 0),"Not required") -> 46645 | U11: =IF(INTRO!$E$43="Endemic", IF($K11>1, IF($K11=4, "Unknown", IF($K11=99, "Surveillance", G11)), 0),"Not required") -> 101525 | V11: =IF(INTRO!$E$43="Endemic", IF($K11>1, IF($K11=4, "Unknown", IF($K11=99, "Surveillance", SUM($S11:$U11))), 0),"Not required") -> 220488 | W11: 0 | X11: 1 | Y11: 1 | Z11: 1 | AH11: 7421 | AI11: BANYO
A12: =IF(INTRO!$E$33<>0,INTRO!$E$33, " ") -> Cameroun | B12: Adamaoua | C12: Belel | D12: 22321.37263 | E12: 17308.94617 | F12: =IF(INTRO!$E$49="","",ROUND($D12*INTRO!$E$49,0)) -> 5904 | G12: =IF(INTRO!$E$50="","",ROUND($D12*INTRO!$E$50,0)) -> 12850 | H12: 99 | I12: 1 | J12: 3 | K12: 3 | L12: 1 | M12: =IF(INTRO!$E$37="Endemic",IF($H12>0,IF($H12=4,"Unknown",IF($H12=99,"Stopped",$D12)),0),"Not required") -> Stopped | N12: =IF(INTRO!$E$39="Endemic", IF($I12>0, IF($I12=4,"Unknown",IF($I12=99,"Stopped",$D12)), 0),"Not required") -> 22321.37263 | O12: =IF(INTRO!$E$41="Endemic", IF($J12>1, IF($J12=4, "Unknown", IF($J12=99, "Surveillance", E12)), 0),"Not required") -> 17308.94617 | P12: =IF(INTRO!$E$41="Endemic", IF($J12>1, IF($J12=4, "Unknown", IF($J12=99, "Surveillance", F12)), 0),"Not required") -> 5904 | Q12: =IF(INTRO!$E$41="Endemic", IF($J12>1, IF($J12=4, "Unknown", IF($J12=99, "Surveillance", ROUND(D12*INTRO!$E$51,0))), 0),"Not required") -> 826 | R12: =IF(INTRO!$E$41="Endemic", IF($J12>1, IF($J12=4, "Unknown", IF($J12=99, "Surveillance", SUM($O12:$Q12))), 0),"Not required") -> 24038.94617 | S12: =IF(INTRO!$E$43="Endemic", IF($K12>1, IF($K12=4, "Unknown", IF($K12=99, "Surveillance", ROUND(E12*0.75,0))), 0),"Not required") -> 12982 | T12: =IF(INTRO!$E$43="Endemic", IF($K12>1, IF($K12=4, "Unknown", IF($K12=99, "Surveillance", F12)), 0),"Not required") -> 5904 | U12: =IF(INTRO!$E$43="Endemic", IF($K12>1, IF($K12=4, "Unknown", IF($K12=99, "Surveillance", G12)), 0),"Not required") -> 12850 | V12: =IF(INTRO!$E$43="Endemic", IF($K12>1, IF($K12=4, "Unknown", IF($K12=99, "Surveillance", SUM($S12:$U12))), 0),"Not required") -> 31736 | W12: 0 | X12: 1 | Y12: 1 | Z12: 1 | AH12: 7617 | AI12: Belel | AJ12: 7425 | AK12: NGAOUNDERE RURAL
A13: =IF(INTRO!$E$33<>0,INTRO!$E$33, " ") -> Cameroun | B13: Adamaoua | C13: Dang | D13: 95139 | E13: 22153.392 | F13: =IF(INTRO!$E$49="","",ROUND($D13*INTRO!$E$49,0)) -> 25164 | G13: =IF(INTRO!$E$50="","",ROUND($D13*INTRO!$E$50,0)) -> 54772 | H13: 99 | I13: 1 | J13: 3 | K13: 3 | L13: 1 | M13: =IF(INTRO!$E$37="Endemic",IF($H13>0,IF($H13=4,"Unknown",IF($H13=99,"Stopped",$D13)),0),"Not required") -> Stopped | N13: =IF(INTRO!$E$39="Endemic", IF($I13>0, IF($I13=4,"Unknown",IF($I13=99,"Stopped",$D13)), 0),"Not required") -> 95139 | O13: =IF(INTRO!$E$41="Endemic", IF($J13>1, IF($J13=4, "Unknown", IF($J13=99, "Surveillance", E13)), 0),"Not required") -> 22153.392 | P13: =IF(INTRO!$E$41="Endemic", IF($J13>1, IF($J13=4, "Unknown", IF($J13=99, "Surveillance", F13)), 0),"Not required") -> 25164 | Q13: =IF(INTRO!$E$41="Endemic", IF($J13>1, IF($J13=4, "Unknown", IF($J13=99, "Surveillance", ROUND(D13*INTRO!$E$51,0))), 0),"Not required") -> 3520 | R13: =IF(INTRO!$E$41="Endemic", IF($J13>1, IF($J13=4, "Unknown", IF($J13=99, "Surveillance", SUM($O13:$Q13))), 0),"Not required") -> 50837.392 | S13: =IF(INTRO!$E$43="Endemic", IF($K13>1, IF($K13=4, "Unknown", IF($K13=99, "Surveillance", ROUND(E13*0.75,0))), 0),"Not required") -> 16615 | T13: =IF(INTRO!$E$43="Endemic", IF($K13>1, IF($K13=4, "Unknown", IF($K13=99, "Surveillance", F13)), 0),"Not required") -> 25164 | U13: =IF(INTRO!$E$43="Endemic", IF($K13>1, IF($K13=4, "Unknown", IF($K13=99, "Surveillance", G13)), 0),"Not required") -> 54772 | V13: =IF(INTRO!$E$43="Endemic", IF($K13>1, IF($K13=4, "Unknown", IF($K13=99, "Surveillance", SUM($S13:$U13))), 0),"Not required") -> 96551 | W13: 0 | X13: 1 | Y13: 1 | Z13: 1 | AH13: 7613 | AI13: Dang
A14: =IF(INTRO!$E$33<>0,INTRO!$E$33, " ") -> Cameroun | B14: Adamaoua | C14: Djohong | D14: 87766 | E14: 46792.782 | F14: =IF(INTRO!$E$49="","",ROUND($D14*INTRO!$E$49,0)) -> 23214 | G14: =IF(INTRO!$E$50="","",ROUND($D14*INTRO!$E$50,0)) -> 50527 | H14: 0 | I14: 1 | J14: 3 | K14: 2 | L14: 1 | M14: =IF(INTRO!$E$37="Endemic",IF($H14>0,IF($H14=4,"Unknown",IF($H14=99,"Stopped",$D14)),0),"Not required") -> 0 | N14: =IF(INTRO!$E$39="Endemic", IF($I14>0, IF($I14=4,"Unknown",IF($I14=99,"Stopped",$D14)), 0),"Not required") -> 87766 | O14: =IF(INTRO!$E$41="Endemic", IF($J14>1, IF($J14=4, "Unknown", IF($J14=99, "Surveillance", E14)), 0),"Not required") -> 46792.782 | P14: =IF(INTRO!$E$41="Endemic", IF($J14>1, IF($J14=4, "Unknown", IF($J14=99, "Surveillance", F14)), 0),"Not required") -> 23214 | Q14: =IF(INTRO!$E$41="Endemic", IF($J14>1, IF($J14=4, "Unknown", IF($J14=99, "Surveillance", ROUND(D14*INTRO!$E$51,0))), 0),"Not required") -> 3247 | R14: =IF(INTRO!$E$41="Endemic", IF($J14>1, IF($J14=4, "Unknown", IF($J14=99, "Surveillance", SUM($O14:$Q14))), 0),"Not required") -> 73253.782 | S14: =IF(INTRO!$E$43="Endemic", IF($K14>1, IF($K14=4, "Unknown", IF($K14=99, "Surveillance", ROUND(E14*0.75,0))), 0),"Not required") -> 35095 | T14: =IF(INTRO!$E$43="Endemic", IF($K14>1, IF($K14=4, "Unknown", IF($K14=99, "Surveillance", F14)), 0),"Not required") -> 23214 | U14: =IF(INTRO!$E$43="Endemic", IF($K14>1, IF($K14=4, "Unknown", IF($K14=99, "Surveillance", G14)), 0),"Not required") -> 50527 | V14: =IF(INTRO!$E$43="Endemic", IF($K14>1, IF($K14=4, "Unknown", IF($K14=99, "Surveillance", SUM($S14:$U14))), 0),"Not required") -> 108836 | W14: 0 | X14: 1 | Y14: 1 | Z14: 1 | AH14: 7422 | AI14: DJOHONG
A15: =IF(INTRO!$E$33<>0,INTRO!$E$33, " ") -> Cameroun | B15: Adamaoua | C15: Meiganga | D15: 183125 | E15: 42764.706 | F15: =IF(INTRO!$E$49="","",ROUND($D15*INTRO!$E$49,0)) -> 48437 | G15: =IF(INTRO!$E$50="","",ROUND($D15*INTRO!$E$50,0)) -> 105425 | H15: 99 | I15: 1 | J15: 3 | K15: 2 | L15: 1 | M15: =IF(INTRO!$E$37="Endemic",IF($H15>0,IF($H15=4,"Unknown",IF($H15=99,"Stopped",$D15)),0),"Not required") -> Stopped | N15: =IF(INTRO!$E$39="Endemic", IF($I15>0, IF($I15=4,"Unknown",IF($I15=99,"Stopped",$D15)), 0),"Not required") -> 183125 | O15: =IF(INTRO!$E$41="Endemic", IF($J15>1, IF($J15=4, "Unknown", IF($J15=99, "Surveillance", E15)), 0),"Not required") -> 42764.706 | P15: =IF(INTRO!$E$41="Endemic", IF($J15>1, IF($J15=4, "Unknown", IF($J15=99, "Surveillance", F15)), 0),"Not required") -> 48437 | Q15: =IF(INTRO!$E$41="Endemic", IF($J15>1, IF($J15=4, "Unknown", IF($J15=99, "Surveillance", ROUND(D15*INTRO!$E$51,0))), 0),"Not required") -> 6776 | R15: =IF(INTRO!$E$41="Endemic", IF($J15>1, IF($J15=4, "Unknown", IF($J15=99, "Surveillance", SUM($O15:$Q15))), 0),"Not required") -> 97977.706 | S15: =IF(INTRO!$E$43="Endemic", IF($K15>1, IF($K15=4, "Unknown", IF($K15=99, "Surveillance", ROUND(E15*0.75,0))), 0),"Not required") -> 32074 | T15: =IF(INTRO!$E$43="Endemic", IF($K15>1, IF($K15=4, "Unknown", IF($K15=99, "Surveillance", F15)), 0),"Not required") -> 48437 | U15: =IF(INTRO!$E$43="Endemic", IF($K15>1, IF($K15=4, "Unknown", IF($K15=99, "Surveillance", G15)), 0),"Not required") -> 105425 | V15: =IF(INTRO!$E$43="Endemic", IF($K15>1, IF($K15=4, "Unknown", IF($K15=99, "Surveillance", SUM($S15:$U15))), 0),"Not required") -> 185936 | W15: 0 | X15: 1 | Y15: 1 | Z15: 1 | AA15: TAS | AH15: 7423 | AI15: MEIGANGA
A16: =IF(INTRO!$E$33<>0,INTRO!$E$33, " ") -> Cameroun | B16: Adamaoua | C16: Ngaoundal | D16: 101325 | E16: 18841.464 | F16: =IF(INTRO!$E$49="","",ROUND($D16*INTRO!$E$49,0)) -> 26800 | G16: =IF(INTRO!$E$50="","",ROUND($D16*INTRO!$E$50,0)) -> 58333 | H16: 0 | I16: 1 | J16: 3 | K16: 2 | L16: 1 | M16: =IF(INTRO!$E$37="Endemic",IF($H16>0,IF($H16=4,"Unknown",IF($H16=99,"Stopped",$D16)),0),"Not required") -> 0 | N16: =IF(INTRO!$E$39="Endemic", IF($I16>0, IF($I16=4,"Unknown",IF($I16=99,"Stopped",$D16)), 0),"Not required") -> 101325 | O16: =IF(INTRO!$E$41="Endemic", IF($J16>1, IF($J16=4, "Unknown", IF($J16=99, "Surveillance", E16)), 0),"Not required") -> 18841.464 | P16: =IF(INTRO!$E$41="Endemic", IF($J16>1, IF($J16=4, "Unknown", IF($J16=99, "Surveillance", F16)), 0),"Not required") -> 26800 | Q16: =IF(INTRO!$E$41="Endemic", IF($J16>1, IF($J16=4, "Unknown", IF($J16=99, "Surveillance", ROUND(D16*INTRO!$E$51,0))), 0),"Not required") -> 3749 | R16: =IF(INTRO!$E$41="Endemic", IF($J16>1, IF($J16=4, "Unknown", IF($J16=99, "Surveillance", SUM($O16:$Q16))), 0),"Not required") -> 49390.464 | S16: =IF(INTRO!$E$43="Endemic", IF($K16>1, IF($K16=4, "Unknown", IF($K16=99, "Surveillance", ROUND(E16*0.75,0))), 0),"Not required") -> 14131 | T16: =IF(INTRO!$E$43="Endemic", IF($K16>1, IF($K16=4, "Unknown", IF($K16=99, "Surveillance", F16)), 0),"Not required") -> 26800 | U16: =IF(INTRO!$E$43="Endemic", IF($K16>1, IF($K16=4, "Unknown", IF($K16=99, "Surveillance", G16)), 0),"Not required") -> 58333 | V16: =IF(INTRO!$E$43="Endemic", IF($K16>1, IF($K16=4, "Unknown", IF($K16=99, "Surveillance", SUM($S16:$U16))), 0),"Not required") -> 99264 | W16: 0 | X16: 1 | Y16: 1 | Z16: 1 | AH16: 7424 | AI16: NGAOUNDAL
A17: =IF(INTRO!$E$33<>0,INTRO!$E$33, " ") -> Cameroun | B17: Adamaoua | C17: Ngaoundere Rural | D17: 177775 | E17: 21255.31583 | F17: =IF(INTRO!$E$49="","",ROUND($D17*INTRO!$E$49,0)) -> 47021 | G17: =IF(INTRO!$E$50="","",ROUND($D17*INTRO!$E$50,0)) -> 102345 | H17: 99 | I17: 1 | J17: 3 | K17: 3 | L17: 1 | M17: =IF(INTRO!$E$37="Endemic",IF($H17>0,IF($H17=4,"Unknown",IF($H17=99,"Stopped",$D17)),0),"Not required") -> Stopped | N17: =IF(INTRO!$E$39="Endemic", IF($I17>0, IF($I17=4,"Unknown",IF($I17=99,"Stopped",$D17)), 0),"Not required") -> 177775 | O17: =IF(INTRO!$E$41="Endemic", IF($J17>1, IF($J17=4, "Unknown", IF($J17=99, "Surveillance", E17)), 0),"Not required") -> 21255.31583 | P17: =IF(INTRO!$E$41="Endemic", IF($J17>1, IF($J17=4, "Unknown", IF($J17=99, "Surveillance", F17)), 0),"Not required") -> 47021 | Q17: =IF(INTRO!$E$41="Endemic", IF($J17>1, IF($J17=4, "Unknown", IF($J17=99, "Surveillance", ROUND(D17*INTRO!$E$51,0))), 0),"Not required") -> 6578 | R17: =IF(INTRO!$E$41="Endemic", IF($J17>1, IF($J17=4, "Unknown", IF($J17=99, "Surveillance", SUM($O17:$Q17))), 0),"Not required") -> 74854.31583 | S17: =IF(INTRO!$E$43="Endemic", IF($K17>1, IF($K17=4, "Unknown", IF($K17=99, "Surveillance", ROUND(E17*0.75,0))), 0),"Not required") -> 15941 | T17: =IF(INTRO!$E$43="Endemic", IF($K17>1, IF($K17=4, "Unknown", IF($K17=99, "Surveillance", F17)), 0),"Not required") -> 47021 | U17: =IF(INTRO!$E$43="Endemic", IF($K17>1, IF($K17=4, "Unknown", IF($K17=99, "Surveillance", G17)), 0),"Not required") -> 102345 | V17: =IF(INTRO!$E$43="Endemic", IF($K17>1, IF($K17=4, "Unknown", IF($K17=99, "Surveillance", SUM($S17:$U17))), 0),"Not required") -> 165307 | W17: 0 | X17: 1 | Y17: 1 | Z17: 1 | AH17: 7425 | AI17: NGAOUNDERE RURAL
A18: =IF(INTRO!$E$33<>0,INTRO!$E$33, " ") -> Cameroun | B18: Adamaoua | C18: Ngaoundere Urbain | D18: 437927 | E18: 72335.052 | F18: =IF(INTRO!$E$49="","",ROUND($D18*INTRO!$E$49,0)) -> 115832 | G18: =IF(INTRO!$E$50="","",ROUND($D18*INTRO!$E$50,0)) -> 252115 | H18: 99 | I18: 1 | J18: 2 | K18: 1 | L18: 1 | M18: =IF(INTRO!$E$37="Endemic",IF($H18>0,IF($H18=4,"Unknown",IF($H18=99,"Stopped",$D18)),0),"Not required") -> Stopped | N18: =IF(INTRO!$E$39="Endemic", IF($I18>0, IF($I18=4,"Unknown",IF($I18=99,"Stopped",$D18)), 0),"Not required") -> 437927 | O18: =IF(INTRO!$E$41="Endemic", IF($J18>1, IF($J18=4, "Unknown", IF($J18=99, "Surveillance", E18)), 0),"Not required") -> 72335.052 | P18: =IF(INTRO!$E$41="Endemic", IF($J18>1, IF($J18=4, "Unknown", IF($J18=99, "Surveillance", F18)), 0),"Not required") -> 115832 | Q18: =IF(INTRO!$E$41="Endemic", IF($J18>1, IF($J18=4, "Unknown", IF($J18=99, "Surveillance", ROUND(D18*INTRO!$E$51,0))), 0),"Not required") -> 16203 | R18: =IF(INTRO!$E$41="Endemic", IF($J18>1, IF($J18=4, "Unknown", IF($J18=99, "Surveillance", SUM($O18:$Q18))), 0),"Not required") -> 204370.052 | S18: =IF(INTRO!$E$43="Endemic", IF($K18>1, IF($K18=4, "Unknown", IF($K18=99, "Surveillance", ROUND(E18*0.75,0))), 0),"Not required") -> 0 | T18: =IF(INTRO!$E$43="Endemic", IF($K18>1, IF($K18=4, "Unknown", IF($K18=99, "Surveillance", F18)), 0),"Not required") -> 0 | U18: =IF(INTRO!$E$43="Endemic", IF($K18>1, IF($K18=4, "Unknown", IF($K18=99, "Surveillance", G18)), 0),"Not required") -> 0 | V18: =IF(INTRO!$E$43="Endemic", IF($K18>1, IF($K18=4, "Unknown", IF($K18=99, "Surveillance", SUM($S18:$U18))), 0),"Not required") -> 0 | W18: 0 | X18: 1 | Y18: 1 | Z18: 0 | AA18: TAS | AH18: 7426 | AI18: NGAOUNDERE URBAIN
A19: =IF(INTRO!$E$33<>0,INTRO!$E$33, " ") -> Cameroun | B19: Adamaoua | C19: Tibati | D19: 119308 | E19: 25010.802 | F19: =IF(INTRO!$E$49="","",ROUND($D19*INTRO!$E$49,0)) -> 31557 | G19: =IF(INTRO!$E$50="","",ROUND($D19*INTRO!$E$50,0)) -> 68686 | H19: 0 | I19: 1 | J19: 3 | K19: 1 | L19: 1 | M19: =IF(INTRO!$E$37="Endemic",IF($H19>0,IF($H19=4,"Unknown",IF($H19=99,"Stopped",$D19)),0),"Not required") -> 0 | N19: =IF(INTRO!$E$39="Endemic", IF($I19>0, IF($I19=4,"Unknown",IF($I19=99,"Stopped",$D19)), 0),"Not required") -> 119308 | O19: =IF(INTRO!$E$41="Endemic", IF($J19>1, IF($J19=4, "Unknown", IF($J19=99, "Surveillance", E19)), 0),"Not required") -> 25010.802 | P19: =IF(INTRO!$E$41="Endemic", IF($J19>1, IF($J19=4, "Unknown", IF($J19=99, "Surveillance", F19)), 0),"Not required") -> 31557 | Q19: =IF(INTRO!$E$41="Endemic", IF($J19>1, IF($J19=4, "Unknown", IF($J19=99, "Surveillance", ROUND(D19*INTRO!$E$51,0))), 0),"Not required") -> 4414 | R19: =IF(INTRO!$E$41="Endemic", IF($J19>1, IF($J19=4, "Unknown", IF($J19=99, "Surveillance", SUM($O19:$Q19))), 0),"Not required") -> 60981.802 | S19: =IF(INTRO!$E$43="Endemic", IF($K19>1, IF($K19=4, "Unknown", IF($K19=99, "Surveillance", ROUND(E19*0.75,0))), 0),"Not required") -> 0 | T19: =IF(INTRO!$E$43="Endemic", IF($K19>1, IF($K19=4, "Unknown", IF($K19=99, "Surveillance", F19)), 0),"Not required") -> 0 | U19: =IF(INTRO!$E$43="Endemic", IF($K19>1, IF($K19=4, "Unknown", IF($K19=99, "Surveillance", G19)), 0),"Not required") -> 0 | V19: =IF(INTRO!$E$43="Endemic", IF($K19>1, IF($K19=4, "Unknown", IF($K19=99, "Surveillance", SUM($S19:$U19))), 0),"Not required") -> 0 | W19: 0 | X19: 1 | Y19: 1 | Z19: 0 | AH19: 7427 | AI19: TIBATI
A20: =IF(INTRO!$E$33<>0,INTRO!$E$33, " ") -> Cameroun | B20: Adamaoua | C20: Tignere | D20: 133132 | E20: 33919.56 | F20: =IF(INTRO!$E$49="","",ROUND($D20*INTRO!$E$49,0)) -> 35213 | G20: =IF(INTRO!$E$50="","",ROUND($D20*INTRO!$E$50,0)) -> 76644 | H20: 99 | I20: 1 | J20: 3 | K20: 3 | L20: 0 | M20: =IF(INTRO!$E$37="Endemic",IF($H20>0,IF($H20=4,"Unknown",IF($H20=99,"Stopped",$D20)),0),"Not required") -> Stopped | N20: =IF(INTRO!$E$39="Endemic", IF($I20>0, IF($I20=4,"Unknown",IF($I20=99,"Stopped",$D20)), 0),"Not required") -> 133132 | O20: =IF(INTRO!$E$41="Endemic", IF($J20>1, IF($J20=4, "Unknown", IF($J20=99, "Surveillance", E20)), 0),"Not required") -> 33919.56 | P20: =IF(INTRO!$E$41="Endemic", IF($J20>1, IF($J20=4, "Unknown", IF($J20=99, "Surveillance", F20)), 0),"Not required") -> 35213 | Q20: =IF(INTRO!$E$41="Endemic", IF($J20>1, IF($J20=4, "Unknown", IF($J20=99, "Surveillance", ROUND(D20*INTRO!$E$51,0))), 0),"Not required") -> 4926 | R20: =IF(INTRO!$E$41="Endemic", IF($J20>1, IF($J20=4, "Unknown", IF($J20=99, "Surveillance", SUM($O20:$Q20))), 0),"Not required") -> 74058.56 | S20: =IF(INTRO!$E$43="Endemic", IF($K20>1, IF($K20=4, "Unknown", IF($K20=99, "Surveillance", ROUND(E20*0.75,0))), 0),"Not required") -> 25440 | T20: =IF(INTRO!$E$43="Endemic", IF($K20>1, IF($K20=4, "Unknown", IF($K20=99, "Surveillance", F20)), 0),"Not required") -> 35213 | U20: =IF(INTRO!$E$43="Endemic", IF($K20>1, IF($K20=4, "Unknown", IF($K20=99, "Surveillance", G20)), 0),"Not required") -> 76644 | V20: =IF(INTRO!$E$43="Endemic", IF($K20>1, IF($K20=4, "Unknown", IF($K20=99, "Surveillance", SUM($S20:$U20))), 0),"Not required") -> 137297 | W20: 0 | X20: 1 | Y20: 1 | Z20: 1 | AA20: TAS | AH20: 7428 | AI20: TIGNERE
A21: =IF(INTRO!$E$33<>0,INTRO!$E$33, " ") -> Cameroun | B21: Centre | C21: Akonolinga | D21: 96193 | E21: 31048.812 | F21: =IF(INTRO!$E$49="","",ROUND($D21*INTRO!$E$49,0)) -> 25443 | G21: =IF(INTRO!$E$50="","",ROUND($D21*INTRO!$E$50,0)) -> 55378 | H21: 0 | I21: 4 | J21: 3 | K21: 1 | L21: 1 | M21: =IF(INTRO!$E$37="Endemic",IF($H21>0,IF($H21=4,"Unknown",IF($H21=99,"Stopped",$D21)),0),"Not required") -> 0 | N21: =IF(INTRO!$E$39="Endemic", IF($I21>0, IF($I21=4,"Unknown",IF($I21=99,"Stopped",$D21)), 0),"Not required") -> Unknown | O21: =IF(INTRO!$E$41="Endemic", IF($J21>1, IF($J21=4, "Unknown", IF($J21=99, "Surveillance", E21)), 0),"Not required") -> 31048.812 | P21: =IF(INTRO!$E$41="Endemic", IF($J21>1, IF($J21=4, "Unknown", IF($J21=99, "Surveillance", F21)), 0),"Not required") -> 25443 | Q21: =IF(INTRO!$E$41="Endemic", IF($J21>1, IF($J21=4, "Unknown", IF($J21=99, "Surveillance", ROUND(D21*INTRO!$E$51,0))), 0),"Not required") -> 3559 | R21: =IF(INTRO!$E$41="Endemic", IF($J21>1, IF($J21=4, "Unknown", IF($J21=99, "Surveillance", SUM($O21:$Q21))), 0),"Not required") -> 60050.812 | S21: =IF(INTRO!$E$43="Endemic", IF($K21>1, IF($K21=4, "Unknown", IF($K21=99, "Surveillance", ROUND(E21*0.75,0))), 0),"Not required") -> 0 | T21: =IF(INTRO!$E$43="Endemic", IF($K21>1, IF($K21=4, "Unknown", IF($K21=99, "Surveillance", F21)), 0),"Not required") -> 0 | U21: =IF(INTRO!$E$43="Endemic", IF($K21>1, IF($K21=4, "Unknown", IF($K21=99, "Surveillance", G21)), 0),"Not required") -> 0 | V21: =IF(INTRO!$E$43="Endemic", IF($K21>1, IF($K21=4, "Unknown", IF($K21=99, "Surveillance", SUM($S21:$U21))), 0),"Not required") -> 0 | W21: 0 | X21: 0 | Y21: 1 | Z21: 0 | AB21: Yes | AH21: 7429 | AI21: AKONOLINGA
A22: =IF(INTRO!$E$33<>0,INTRO!$E$33, " ") -> Cameroun | B22: Centre | C22: Awae | D22: 31187 | E22: 6658.74 | F22: =IF(INTRO!$E$49="","",ROUND($D22*INTRO!$E$49,0)) -> 8249 | G22: =IF(INTRO!$E$50="","",ROUND($D22*INTRO!$E$50,0)) -> 17954 | H22: 0 | I22: 4 | J22: 3 | K22: 1 | L22: 1 | M22: =IF(INTRO!$E$37="Endemic",IF($H22>0,IF($H22=4,"Unknown",IF($H22=99,"Stopped",$D22)),0),"Not required") -> 0 | N22: =IF(INTRO!$E$39="Endemic", IF($I22>0, IF($I22=4,"Unknown",IF($I22=99,"Stopped",$D22)), 0),"Not required") -> Unknown | O22: =IF(INTRO!$E$41="Endemic", IF($J22>1, IF($J22=4, "Unknown", IF($J22=99, "Surveillance", E22)), 0),"Not required") -> 6658.74 | P22: =IF(INTRO!$E$41="Endemic", IF($J22>1, IF($J22=4, "Unknown", IF($J22=99, "Surveillance", F22)), 0),"Not required") -> 8249 | Q22: =IF(INTRO!$E$41="Endemic", IF($J22>1, IF($J22=4, "Unknown", IF($J22=99, "Surveillance", ROUND(D22*INTRO!$E$51,0))), 0),"Not required") -> 1154 | R22: =IF(INTRO!$E$41="Endemic", IF($J22>1, IF($J22=4, "Unknown", IF($J22=99, "Surveillance", SUM($O22:$Q22))), 0),"Not required") -> 16061.74 | S22: =IF(INTRO!$E$43="Endemic", IF($K22>1, IF($K22=4, "Unknown", IF($K22=99, "Surveillance", ROUND(E22*0.75,0))), 0),"Not required") -> 0 | T22: =IF(INTRO!$E$43="Endemic", IF($K22>1, IF($K22=4, "Unknown", IF($K22=99, "Surveillance", F22)), 0),"Not required") -> 0 | U22: =IF(INTRO!$E$43="Endemic", IF($K22>1, IF($K22=4, "Unknown", IF($K22=99, "Surveillance", G22)), 0),"Not required") -> 0 | V22: =IF(INTRO!$E$43="Endemic", IF($K22>1, IF($K22=4, "Unknown", IF($K22=99, "Surveillance", SUM($S22:$U22))), 0),"Not required") -> 0 | W22: 0 | X22: 0 | Y22: 1 | Z22: 0 | AB22: Yes | AH22: 7430 | AI22: AWAE
A23: =IF(INTRO!$E$33<>0,INTRO!$E$33, " ") -> Cameroun | B23: Centre | C23: Ayos | D23: 46897 | E23: 12306.87 | F23: =IF(INTRO!$E$49="","",ROUND($D23*INTRO!$E$49,0)) -> 12404 | G23: =IF(INTRO!$E$50="","",ROUND($D23*INTRO!$E$50,0)) -> 26999 | H23: 0 | I23: 4 | J23: 3 | K23: 2 | L23: 1 | M23: =IF(INTRO!$E$37="Endemic",IF($H23>0,IF($H23=4,"Unknown",IF($H23=99,"Stopped",$D23)),0),"Not required") -> 0 | N23: =IF(INTRO!$E$39="Endemic", IF($I23>0, IF($I23=4,"Unknown",IF($I23=99,"Stopped",$D23)), 0),"Not required") -> Unknown | O23: =IF(INTRO!$E$41="Endemic", IF($J23>1, IF($J23=4, "Unknown", IF($J23=99, "Surveillance", E23)), 0),"Not required") -> 12306.87 | P23: =IF(INTRO!$E$41="Endemic", IF($J23>1, IF($J23=4, "Unknown", IF($J23=99, "Surveillance", F23)), 0),"Not required") -> 12404 | Q23: =IF(INTRO!$E$41="Endemic", IF($J23>1, IF($J23=4, "Unknown", IF($J23=99, "Surveillance", ROUND(D23*INTRO!$E$51,0))), 0),"Not required") -> 1735 | R23: =IF(INTRO!$E$41="Endemic", IF($J23>1, IF($J23=4, "Unknown", IF($J23=99, "Surveillance", SUM($O23:$Q23))), 0),"Not required") -> 26445.87 | S23: =IF(INTRO!$E$43="Endemic", IF($K23>1, IF($K23=4, "Unknown", IF($K23=99, "Surveillance", ROUND(E23*0.75,0))), 0),"Not required") -> 9230 | T23: =IF(INTRO!$E$43="Endemic", IF($K23>1, IF($K23=4, "Unknown", IF($K23=99, "Surveillance", F23)), 0),"Not required") -> 12404 | U23: =IF(INTRO!$E$43="Endemic", IF($K23>1, IF($K23=4, "Unknown", IF($K23=99, "Surveillance", G23)), 0),"Not required") -> 26999 | V23: =IF(INTRO!$E$43="Endemic", IF($K23>1, IF($K23=4, "Unknown", IF($K23=99, "Surveillance", SUM($S23:$U23))), 0),"Not required") -> 48633 | W23: 0 | X23: 0 | Y23: 1 | Z23: 1 | AB23: Yes | AH23: 7431 | AI23: AYOS
A24: =IF(INTRO!$E$33<>0,INTRO!$E$33, " ") -> Cameroun | B24: Centre | C24: Bafia | D24: 186015 | E24: 25252.938 | F24: =IF(INTRO!$E$49="","",ROUND($D24*INTRO!$E$49,0)) -> 49201 | G24: =IF(INTRO!$E$50="","",ROUND($D24*INTRO!$E$50,0)) -> 107089 | H24: 99 | I24: 1 | J24: 3 | K24: 3 | L24: 1 | M24: =IF(INTRO!$E$37="Endemic",IF($H24>0,IF($H24=4,"Unknown",IF($H24=99,"Stopped",$D24)),0),"Not required") -> Stopped | N24: =IF(INTRO!$E$39="Endemic", IF($I24>0, IF($I24=4,"Unknown",IF($I24=99,"Stopped",$D24)), 0),"Not required") -> 186015 | O24: =IF(INTRO!$E$41="Endemic", IF($J24>1, IF($J24=4, "Unknown", IF($J24=99, "Surveillance", E24)), 0),"Not required") -> 25252.938 | P24: =IF(INTRO!$E$41="Endemic", IF($J24>1, IF($J24=4, "Unknown", IF($J24=99, "Surveillance", F24)), 0),"Not required") -> 49201 | Q24: =IF(INTRO!$E$41="Endemic", IF($J24>1, IF($J24=4, "Unknown", IF($J24=99, "Surveillance", ROUND(D24*INTRO!$E$51,0))), 0),"Not required") -> 6883 | R24: =IF(INTRO!$E$41="Endemic", IF($J24>1, IF($J24=4, "Unknown", IF($J24=99, "Surveillance", SUM($O24:$Q24))), 0),"Not required") -> 81336.938 | S24: =IF(INTRO!$E$43="Endemic", IF($K24>1, IF($K24=4, "Unknown", IF($K24=99, "Surveillance", ROUND(E24*0.75,0))), 0),"Not required") -> 18940 | T24: =IF(INTRO!$E$43="Endemic", IF($K24>1, IF($K24=4, "Unknown", IF($K24=99, "Surveillance", F24)), 0),"Not required") -> 49201 | U24: =IF(INTRO!$E$43="Endemic", IF($K24>1, IF($K24=4, "Unknown", IF($K24=99, "Surveillance", G24)), 0),"Not required") -> 107089 | V24: =IF(INTRO!$E$43="Endemic", IF($K24>1, IF($K24=4, "Unknown", IF($K24=99, "Surveillance", SUM($S24:$U24))), 0),"Not required") -> 175230 | W24: 0 | X24: 1 | Y24: 1 | Z24: 1 | AB24: Yes | AH24: 7432 | AI24: BAFIA
A25: =IF(INTRO!$E$33<>0,INTRO!$E$33, " ") -> Cameroun | B25: Centre | C25: Biyem Assi | D25: 430366 | E25: 96731.28 | F25: =IF(INTRO!$E$49="","",ROUND($D25*INTRO!$E$49,0)) -> 113832 | G25: =IF(INTRO!$E$50="","",ROUND($D25*INTRO!$E$50,0)) -> 247762 | H25: 0 | I25: 4 | J25: 2 | K25: 1 | L25: 1 | M25: =IF(INTRO!$E$37="Endemic",IF($H25>0,IF($H25=4,"Unknown",IF($H25=99,"Stopped",$D25)),0),"Not required") -> 0 | N25: =IF(INTRO!$E$39="Endemic", IF($I25>0, IF($I25=4,"Unknown",IF($I25=99,"Stopped",$D25)), 0),"Not required") -> Unknown | O25: =IF(INTRO!$E$41="Endemic", IF($J25>1, IF($J25=4, "Unknown", IF($J25=99, "Surveillance", E25)), 0),"Not required") -> 96731.28 | P25: =IF(INTRO!$E$41="Endemic", IF($J25>1, IF($J25=4, "Unknown", IF($J25=99, "Surveillance", F25)), 0),"Not required") -> 113832 | Q25: =IF(INTRO!$E$41="Endemic", IF($J25>1, IF($J25=4, "Unknown", IF($J25=99, "Surveillance", ROUND(D25*INTRO!$E$51,0))), 0),"Not required") -> 15924 | R25: =IF(INTRO!$E$41="Endemic", IF($J25>1, IF($J25=4, "Unknown", IF($J25=99, "Surveillance", SUM($O25:$Q25))), 0),"Not required") -> 226487.28 | S25: =IF(INTRO!$E$43="Endemic", IF($K25>1, IF($K25=4, "Unknown", IF($K25=99, "Surveillance", ROUND(E25*0.75,0))), 0),"Not required") -> 0 | T25: =IF(INTRO!$E$43="Endemic", IF($K25>1, IF($K25=4, "Unknown", IF($K25=99, "Surveillance", F25)), 0),"Not required") -> 0 | U25: =IF(INTRO!$E$43="Endemic", IF($K25>1, IF($K25=4, "Unknown", IF($K25=99, "Surveillance", G25)), 0),"Not required") -> 0 | V25: =IF(INTRO!$E$43="Endemic", IF($K25>1, IF($K25=4, "Unknown", IF($K25=99, "Surveillance", SUM($S25:$U25))), 0),"Not required") -> 0 | W25: 0 | X25: 0 | Y25: 1 | Z25: 0 | AB25: Yes | AH25: 7433 | AI25: BIYEM ASSI
A26: =IF(INTRO!$E$33<>0,INTRO!$E$33, " ") -> Cameroun | B26: Centre | C26: Cite Verte | D26: 481065 | E26: 77701.032 | F26: =IF(INTRO!$E$49="","",ROUND($D26*INTRO!$E$49,0)) -> 127242 | G26: =IF(INTRO!$E$50="","",ROUND($D26*INTRO!$E$50,0)) -> 276949 | H26: 0 | I26: 4 | J26: 1 | K26: 1 | L26: 1 | M26: =IF(INTRO!$E$37="Endemic",IF($H26>0,IF($H26=4,"Unknown",IF($H26=99,"Stopped",$D26)),0),"Not required") -> 0 | N26: =IF(INTRO!$E$39="Endemic", IF($I26>0, IF($I26=4,"Unknown",IF($I26=99,"Stopped",$D26)), 0),"Not required") -> Unknown | O26: =IF(INTRO!$E$41="Endemic", IF($J26>1, IF($J26=4, "Unknown", IF($J26=99, "Surveillance", E26)), 0),"Not required") -> 0 | P26: =IF(INTRO!$E$41="Endemic", IF($J26>1, IF($J26=4, "Unknown", IF($J26=99, "Surveillance", F26)), 0),"Not required") -> 0 | Q26: =IF(INTRO!$E$41="Endemic", IF($J26>1, IF($J26=4, "Unknown", IF($J26=99, "Surveillance", ROUND(D26*INTRO!$E$51,0))), 0),"Not required") -> 0 | R26: =IF(INTRO!$E$41="Endemic", IF($J26>1, IF($J26=4, "Unknown", IF($J26=99, "Surveillance", SUM($O26:$Q26))), 0),"Not required") -> 0 | S26: =IF(INTRO!$E$43="Endemic", IF($K26>1, IF($K26=4, "Unknown", IF($K26=99, "Surveillance", ROUND(E26*0.75,0))), 0),"Not required") -> 0 | T26: =IF(INTRO!$E$43="Endemic", IF($K26>1, IF($K26=4, "Unknown", IF($K26=99, "Surveillance", F26)), 0),"Not required") -> 0 | U26: =IF(INTRO!$E$43="Endemic", IF($K26>1, IF($K26=4, "Unknown", IF($K26=99, "Surveillance", G26)), 0),"Not required") -> 0 | V26: =IF(INTRO!$E$43="Endemic", IF($K26>1, IF($K26=4, "Unknown", IF($K26=99, "Surveillance", SUM($S26:$U26))), 0),"Not required") -> 0 | W26: 0 | X26: 0 | Y26: 0 | Z26: 0 | AB26: Yes | AH26: 7434 | AI26: CITE VERTE
A27: =IF(INTRO!$E$33<>0,INTRO!$E$33, " ") -> Cameroun | B27: Centre | C27: Djoungolo | D27: 562641 | E27: 115025.886 | F27: =IF(INTRO!$E$49="","",ROUND($D27*INTRO!$E$49,0)) -> 148819 | G27: =IF(INTRO!$E$50="","",ROUND($D27*INTRO!$E$50,0)) -> 323912 | H27: 0 | I27: 4 | J27: 2 | K27: 2 | L27: 1 | M27: =IF(INTRO!$E$37="Endemic",IF($H27>0,IF($H27=4,"Unknown",IF($H27=99,"Stopped",$D27)),0),"Not required") -> 0 | N27: =IF(INTRO!$E$39="Endemic", IF($I27>0, IF($I27=4,"Unknown",IF($I27=99,"Stopped",$D27)), 0),"Not required") -> Unknown | O27: =IF(INTRO!$E$41="Endemic", IF($J27>1, IF($J27=4, "Unknown", IF($J27=99, "Surveillance", E27)), 0),"Not required") -> 115025.886 | P27: =IF(INTRO!$E$41="Endemic", IF($J27>1, IF($J27=4, "Unknown", IF($J27=99, "Surveillance", F27)), 0),"Not required") -> 148819 | Q27: =IF(INTRO!$E$41="Endemic", IF($J27>1, IF($J27=4, "Unknown", IF($J27=99, "Surveillance", ROUND(D27*INTRO!$E$51,0))), 0),"Not required") -> 20818 | R27: =IF(INTRO!$E$41="Endemic", IF($J27>1, IF($J27=4, "Unknown", IF($J27=99, "Surveillance", SUM($O27:$Q27))), 0),"Not required") -> 284662.886 | S27: =IF(INTRO!$E$43="Endemic", IF($K27>1, IF($K27=4, "Unknown", IF($K27=99, "Surveillance", ROUND(E27*0.75,0))), 0),"Not required") -> 86269 | T27: =IF(INTRO!$E$43="Endemic", IF($K27>1, IF($K27=4, "Unknown", IF($K27=99, "Surveillance", F27)), 0),"Not required") -> 148819 | U27: =IF(INTRO!$E$43="Endemic", IF($K27>1, IF($K27=4, "Unknown", IF($K27=99, "Surveillance", G27)), 0),"Not required") -> 323912 | V27: =IF(INTRO!$E$43="Endemic", IF($K27>1, IF($K27=4, "Unknown", IF($K27=99, "Surveillance", SUM($S27:$U27))), 0),"Not required") -> 559000 | W27: 0 | X27: 0 | Y27: 1 | Z27: 1 | AB27: Yes | AH27: 7435 | AI27: DJOUNGOLO
A28: =IF(INTRO!$E$33<>0,INTRO!$E$33, " ") -> Cameroun | B28: Centre | C28: Ebebda | D28: 24675 | E28: 3150.846 | F28: =IF(INTRO!$E$49="","",ROUND($D28*INTRO!$E$49,0)) -> 6527 | G28: =IF(INTRO!$E$50="","",ROUND($D28*INTRO!$E$50,0)) -> 14205 | H28: 99 | I28: 1 | J28: 3 | K28: 0 | L28: 1 | M28: =IF(INTRO!$E$37="Endemic",IF($H28>0,IF($H28=4,"Unknown",IF($H28=99,"Stopped",$D28)),0),"Not required") -> Stopped | N28: =IF(INTRO!$E$39="Endemic", IF($I28>0, IF($I28=4,"Unknown",IF($I28=99,"Stopped",$D28)), 0),"Not required") -> 24675 | O28: =IF(INTRO!$E$41="Endemic", IF($J28>1, IF($J28=4, "Unknown", IF($J28=99, "Surveillance", E28)), 0),"Not required") -> 3150.846 | P28: =IF(INTRO!$E$41="Endemic", IF($J28>1, IF($J28=4, "Unknown", IF($J28=99, "Surveillance", F28)), 0),"Not required") -> 6527 | Q28: =IF(INTRO!$E$41="Endemic", IF($J28>1, IF($J28=4, "Unknown", IF($J28=99, "Surveillance", ROUND(D28*INTRO!$E$51,0))), 0),"Not required") -> 913 | R28: =IF(INTRO!$E$41="Endemic", IF($J28>1, IF($J28=4, "Unknown", IF($J28=99, "Surveillance", SUM($O28:$Q28))), 0),"Not required") -> 10590.846 | S28: =IF(INTRO!$E$43="Endemic", IF($K28>1, IF($K28=4, "Unknown", IF($K28=99, "Surveillance", ROUND(E28*0.75,0))), 0),"Not required") -> 0 | T28: =IF(INTRO!$E$43="Endemic", IF($K28>1, IF($K28=4, "Unknown", IF($K28=99, "Surveillance", F28)), 0),"Not required") -> 0 | U28: =IF(INTRO!$E$43="Endemic", IF($K28>1, IF($K28=4, "Unknown", IF($K28=99, "Surveillance", G28)), 0),"Not required") -> 0 | V28: =IF(INTRO!$E$43="Endemic", IF($K28>1, IF($K28=4, "Unknown", IF($K28=99, "Surveillance", SUM($S28:$U28))), 0),"Not required") -> 0 | W28: 0 | X28: 1 | Y28: 1 | Z28: 0 | AB28: Yes | AH28: 7436 | AI28: EBEBDA
A29: =IF(INTRO!$E$33<>0,INTRO!$E$33, " ") -> Cameroun | B29: Centre | C29: Efoulan | D29: 489314 | E29: 51818.13 | F29: =IF(INTRO!$E$49="","",ROUND($D29*INTRO!$E$49,0)) -> 129424 | G29: =IF(INTRO!$E$50="","",ROUND($D29*INTRO!$E$50,0)) -> 281698 | H29: 0 | I29: 4 | J29: 2 | K29: 2 | L29: 1 | M29: =IF(INTRO!$E$37="Endemic",IF($H29>0,IF($H29=4,"Unknown",IF($H29=99,"Stopped",$D29)),0),"Not required") -> 0 | N29: =IF(INTRO!$E$39="Endemic", IF($I29>0, IF($I29=4,"Unknown",IF($I29=99,"Stopped",$D29)), 0),"Not required") -> Unknown | O29: =IF(INTRO!$E$41="Endemic", IF($J29>1, IF($J29=4, "Unknown", IF($J29=99, "Surveillance", E29)), 0),"Not required") -> 51818.13 | P29: =IF(INTRO!$E$41="Endemic", IF($J29>1, IF($J29=4, "Unknown", IF($J29=99, "Surveillance", F29)), 0),"Not required") -> 129424 | Q29: =IF(INTRO!$E$41="Endemic", IF($J29>1, IF($J29=4, "Unknown", IF($J29=99, "Surveillance", ROUND(D29*INTRO!$E$51,0))), 0),"Not required") -> 18105 | R29: =IF(INTRO!$E$41="Endemic", IF($J29>1, IF($J29=4, "Unknown", IF($J29=99, "Surveillance", SUM($O29:$Q29))), 0),"Not required") -> 199347.13 | S29: =IF(INTRO!$E$43="Endemic", IF($K29>1, IF($K29=4, "Unknown", IF($K29=99, "Surveillance", ROUND(E29*0.75,0))), 0),"Not required") -> 38864 | T29: =IF(INTRO!$E$43="Endemic", IF($K29>1, IF($K29=4, "Unknown", IF($K29=99, "Surveillance", F29)), 0),"Not required") -> 129424 | U29: =IF(INTRO!$E$43="Endemic", IF($K29>1, IF($K29=4, "Unknown", IF($K29=99, "Surveillance", G29)), 0),"Not required") -> 281698 | V29: =IF(INTRO!$E$43="Endemic", IF($K29>1, IF($K29=4, "Unknown", IF($K29=99, "Surveillance", SUM($S29:$U29))), 0),"Not required") -> 449986 | W29: 0 | X29: 0 | Y29: 1 | Z29: 1 | AB29: Yes | AH29: 7437 | AI29: EFOULAN
A30: =IF(INTRO!$E$33<>0,INTRO!$E$33, " ") -> Cameroun | B30: Centre | C30: Elig Mfomo | D30: 18714 | E30: 2423.412 | F30: =IF(INTRO!$E$49="","",ROUND($D30*INTRO!$E$49,0)) -> 4950 | G30: =IF(INTRO!$E$50="","",ROUND($D30*INTRO!$E$50,0)) -> 10774 | H30: 0 | I30: 0 | J30: 2 | K30: 1 | L30: 1 | M30: =IF(INTRO!$E$37="Endemic",IF($H30>0,IF($H30=4,"Unknown",IF($H30=99,"Stopped",$D30)),0),"Not required") -> 0 | N30: =IF(INTRO!$E$39="Endemic", IF($I30>0, IF($I30=4,"Unknown",IF($I30=99,"Stopped",$D30)), 0),"Not required") -> 0 | O30: =IF(INTRO!$E$41="Endemic", IF($J30>1, IF($J30=4, "Unknown", IF($J30=99, "Surveillance", E30)), 0),"Not required") -> 2423.412 | P30: =IF(INTRO!$E$41="Endemic", IF($J30>1, IF($J30=4, "Unknown", IF($J30=99, "Surveillance", F30)), 0),"Not required") -> 4950 | Q30: =IF(INTRO!$E$41="Endemic", IF($J30>1, IF($J30=4, "Unknown", IF($J30=99, "Surveillance", ROUND(D30*INTRO!$E$51,0))), 0),"Not required") -> 692 | R30: =IF(INTRO!$E$41="Endemic", IF($J30>1, IF($J30=4, "Unknown", IF($J30=99, "Surveillance", SUM($O30:$Q30))), 0),"Not required") -> 8065.412 | S30: =IF(INTRO!$E$43="Endemic", IF($K30>1, IF($K30=4, "Unknown", IF($K30=99, "Surveillance", ROUND(E30*0.75,0))), 0),"Not required") -> 0 | T30: =IF(INTRO!$E$43="Endemic", IF($K30>1, IF($K30=4, "Unknown", IF($K30=99, "Surveillance", F30)), 0),"Not required") -> 0 | U30: =IF(INTRO!$E$43="Endemic", IF($K30>1, IF($K30=4, "Unknown", IF($K30=99, "Surveillance", G30)), 0),"Not required") -> 0 | V30: =IF(INTRO!$E$43="Endemic", IF($K30>1, IF($K30=4, "Unknown", IF($K30=99, "Surveillance", SUM($S30:$U30))), 0),"Not required") -> 0 | W30: 0 | X30: 0 | Y30: 1 | Z30: 0 | AB30: Yes | AH30: 7438 | AI30: ELIG MFOMO
A31: =IF(INTRO!$E$33<>0,INTRO!$E$33, " ") -> Cameroun | B31: Centre | C31: Eseka | D31: 92456 | E31: 14601.006 | F31: =IF(INTRO!$E$49="","",ROUND($D31*INTRO!$E$49,0)) -> 24455 | G31: =IF(INTRO!$E$50="","",ROUND($D31*INTRO!$E$50,0)) -> 53227 | H31: 0 | I31: 1 | J31: 3 | K31: 2 | L31: 1 | M31: =IF(INTRO!$E$37="Endemic",IF($H31>0,IF($H31=4,"Unknown",IF($H31=99,"Stopped",$D31)),0),"Not required") -> 0 | N31: =IF(INTRO!$E$39="Endemic", IF($I31>0, IF($I31=4,"Unknown",IF($I31=99,"Stopped",$D31)), 0),"Not required") -> 92456 | O31: =IF(INTRO!$E$41="Endemic", IF($J31>1, IF($J31=4, "Unknown", IF($J31=99, "Surveillance", E31)), 0),"Not required") -> 14601.006 | P31: =IF(INTRO!$E$41="Endemic", IF($J31>1, IF($J31=4, "Unknown", IF($J31=99, "Surveillance", F31)), 0),"Not required") -> 24455 | Q31: =IF(INTRO!$E$41="Endemic", IF($J31>1, IF($J31=4, "Unknown", IF($J31=99, "Surveillance", ROUND(D31*INTRO!$E$51,0))), 0),"Not required") -> 3421 | R31: =IF(INTRO!$E$41="Endemic", IF($J31>1, IF($J31=4, "Unknown", IF($J31=99, "Surveillance", SUM($O31:$Q31))), 0),"Not required") -> 42477.006 | S31: =IF(INTRO!$E$43="Endemic", IF($K31>1, IF($K31=4, "Unknown", IF($K31=99, "Surveillance", ROUND(E31*0.75,0))), 0),"Not required") -> 10951 | T31: =IF(INTRO!$E$43="Endemic", IF($K31>1, IF($K31=4, "Unknown", IF($K31=99, "Surveillance", F31)), 0),"Not required") -> 24455 | U31: =IF(INTRO!$E$43="Endemic", IF($K31>1, IF($K31=4, "Unknown", IF($K31=99, "Surveillance", G31)), 0),"Not required") -> 53227 | V31: =IF(INTRO!$E$43="Endemic", IF($K31>1, IF($K31=4, "Unknown", IF($K31=99, "Surveillance", SUM($S31:$U31))), 0),"Not required") -> 88633 | W31: 0 | X31: 1 | Y31: 1 | Z31: 1 | AB31: Yes | AH31: 7439 | AI31: ESEKA
A32: =IF(INTRO!$E$33<>0,INTRO!$E$33, " ") -> Cameroun | B32: Centre | C32: Esse | D32: 29592 | E32: 4187.106 | F32: =IF(INTRO!$E$49="","",ROUND($D32*INTRO!$E$49,0)) -> 7827 | G32: =IF(INTRO!$E$50="","",ROUND($D32*INTRO!$E$50,0)) -> 17036 | H32: 99 | I32: 1 | J32: 3 | K32: 1 | L32: 1 | M32: =IF(INTRO!$E$37="Endemic",IF($H32>0,IF($H32=4,"Unknown",IF($H32=99,"Stopped",$D32)),0),"Not required") -> Stopped | N32: =IF(INTRO!$E$39="Endemic", IF($I32>0, IF($I32=4,"Unknown",IF($I32=99,"Stopped",$D32)), 0),"Not required") -> 29592 | O32: =IF(INTRO!$E$41="Endemic", IF($J32>1, IF($J32=4, "Unknown", IF($J32=99, "Surveillance", E32)), 0),"Not required") -> 4187.106 | P32: =IF(INTRO!$E$41="Endemic", IF($J32>1, IF($J32=4, "Unknown", IF($J32=99, "Surveillance", F32)), 0),"Not required") -> 7827 | Q32: =IF(INTRO!$E$41="Endemic", IF($J32>1, IF($J32=4, "Unknown", IF($J32=99, "Surveillance", ROUND(D32*INTRO!$E$51,0))), 0),"Not required") -> 1095 | R32: =IF(INTRO!$E$41="Endemic", IF($J32>1, IF($J32=4, "Unknown", IF($J32=99, "Surveillance", SUM($O32:$Q32))), 0),"Not required") -> 13109.106 | S32: =IF(INTRO!$E$43="Endemic", IF($K32>1, IF($K32=4, "Unknown", IF($K32=99, "Surveillance", ROUND(E32*0.75,0))), 0),"Not required") -> 0 | T32: =IF(INTRO!$E$43="Endemic", IF($K32>1, IF($K32=4, "Unknown", IF($K32=99, "Surveillance", F32)), 0),"Not required") -> 0 | U32: =IF(INTRO!$E$43="Endemic", IF($K32>1, IF($K32=4, "Unknown", IF($K32=99, "Surveillance", G32)), 0),"Not required") -> 0 | V32: =IF(INTRO!$E$43="Endemic", IF($K32>1, IF($K32=4, "Unknown", IF($K32=99, "Surveillance", SUM($S32:$U32))), 0),"Not required") -> 0 | W32: 0 | X32: 1 | Y32: 1 | Z32: 0 | AA32: TAS | AB32: Yes | AH32: 7440 | AI32: ESSE
A33: =IF(INTRO!$E$33<>0,INTRO!$E$33, " ") -> Cameroun | B33: Centre | C33: Evodoula | D33: 23174 | E33: 4038.336 | F33: =IF(INTRO!$E$49="","",ROUND($D33*INTRO!$E$49,0)) -> 6130 | G33: =IF(INTRO!$E$50="","",ROUND($D33*INTRO!$E$50,0)) -> 13341 | H33: 99 | I33: 1 | J33: 3 | K33: 0 | L33: 1 | M33: =IF(INTRO!$E$37="Endemic",IF($H33>0,IF($H33=4,"Unknown",IF($H33=99,"Stopped",$D33)),0),"Not required") -> Stopped | N33: =IF(INTRO!$E$39="Endemic", IF($I33>0, IF($I33=4,"Unknown",IF($I33=99,"Stopped",$D33)), 0),"Not required") -> 23174 | O33: =IF(INTRO!$E$41="Endemic", IF($J33>1, IF($J33=4, "Unknown", IF($J33=99, "Surveillance", E33)), 0),"Not required") -> 4038.336 | P33: =IF(INTRO!$E$41="Endemic", IF($J33>1, IF($J33=4, "Unknown", IF($J33=99, "Surveillance", F33)), 0),"Not required") -> 6130 | Q33: =IF(INTRO!$E$41="Endemic", IF($J33>1, IF($J33=4, "Unknown", IF($J33=99, "Surveillance", ROUND(D33*INTRO!$E$51,0))), 0),"Not required") -> 857 | R33: =IF(INTRO!$E$41="Endemic", IF($J33>1, IF($J33=4, "Unknown", IF($J33=99, "Surveillance", SUM($O33:$Q33))), 0),"Not required") -> 11025.336 | S33: =IF(INTRO!$E$43="Endemic", IF($K33>1, IF($K33=4, "Unknown", IF($K33=99, "Surveillance", ROUND(E33*0.75,0))), 0),"Not required") -> 0 | T33: =IF(INTRO!$E$43="Endemic", IF($K33>1, IF($K33=4, "Unknown", IF($K33=99, "Surveillance", F33)), 0),"Not required") -> 0 | U33: =IF(INTRO!$E$43="Endemic", IF($K33>1, IF($K33=4, "Unknown", IF($K33=99, "Surveillance", G33)), 0),"Not required") -> 0 | V33: =IF(INTRO!$E$43="Endemic", IF($K33>1, IF($K33=4, "Unknown", IF($K33=99, "Surveillance", SUM($S33:$U33))), 0),"Not required") -> 0 | W33: 0 | X33: 1 | Y33: 1 | Z33: 0 | AA33: TAS | AH33: 7441 | AI33: EVODOULA
A34: =IF(INTRO!$E$33<>0,INTRO!$E$33, " ") -> Cameroun | B34: Centre | C34: Mbalmayo | D34: 138501 | E34: 20569.248 | F34: =IF(INTRO!$E$49="","",ROUND($D34*INTRO!$E$49,0)) -> 36634 | G34: =IF(INTRO!$E$50="","",ROUND($D34*INTRO!$E$50,0)) -> 79735 | H34: 0 | I34: 4 | J34: 3 | K34: 2 | L34: 1 | M34: =IF(INTRO!$E$37="Endemic",IF($H34>0,IF($H34=4,"Unknown",IF($H34=99,"Stopped",$D34)),0),"Not required") -> 0 | N34: =IF(INTRO!$E$39="Endemic", IF($I34>0, IF($I34=4,"Unknown",IF($I34=99,"Stopped",$D34)), 0),"Not required") -> Unknown | O34: =IF(INTRO!$E$41="Endemic", IF($J34>1, IF($J34=4, "Unknown", IF($J34=99, "Surveillance", E34)), 0),"Not required") -> 20569.248 | P34: =IF(INTRO!$E$41="Endemic", IF($J34>1, IF($J34=4, "Unknown", IF($J34=99, "Surveillance", F34)), 0),"Not required") -> 36634 | Q34: =IF(INTRO!$E$41="Endemic", IF($J34>1, IF($J34=4, "Unknown", IF($J34=99, "Surveillance", ROUND(D34*INTRO!$E$51,0))), 0),"Not required") -> 5125 | R34: =IF(INTRO!$E$41="Endemic", IF($J34>1, IF($J34=4, "Unknown", IF($J34=99, "Surveillance", SUM($O34:$Q34))), 0),"Not required") -> 62328.248 | S34: =IF(INTRO!$E$43="Endemic", IF($K34>1, IF($K34=4, "Unknown", IF($K34=99, "Surveillance", ROUND(E34*0.75,0))), 0),"Not required") -> 15427 | T34: =IF(INTRO!$E$43="Endemic", IF($K34>1, IF($K34=4, "Unknown", IF($K34=99, "Surveillance", F34)), 0),"Not required") -> 36634 | U34: =IF(INTRO!$E$43="Endemic", IF($K34>1, IF($K34=4, "Unknown", IF($K34=99, "Surveillance", G34)), 0),"Not required") -> 79735 | V34: =IF(INTRO!$E$43="Endemic", IF($K34>1, IF($K34=4, "Unknown", IF($K34=99, "Surveillance", SUM($S34:$U34))), 0),"Not required") -> 131796 | W34: 0 | X34: 0 | Y34: 1 | Z34: 1 | AB34: Yes | AH34: 7442 | AI34: MBALMAYO
A35: =IF(INTRO!$E$33<>0,INTRO!$E$33, " ") -> Cameroun | B35: Centre | C35: Mbandjock | D35: 67413 | E35: 8911.836 | F35: =IF(INTRO!$E$49="","",ROUND($D35*INTRO!$E$49,0)) -> 17831 | G35: =IF(INTRO!$E$50="","",ROUND($D35*INTRO!$E$50,0)) -> 38810 | H35: 99 | I35: 1 | J35: 3 | K35: 1 | L35: 1 | M35: =IF(INTRO!$E$37="Endemic",IF($H35>0,IF($H35=4,"Unknown",IF($H35=99,"Stopped",$D35)),0),"Not required") -> Stopped | N35: =IF(INTRO!$E$39="Endemic", IF($I35>0, IF($I35=4,"Unknown",IF($I35=99,"Stopped",$D35)), 0),"Not required") -> 67413 | O35: =IF(INTRO!$E$41="Endemic", IF($J35>1, IF($J35=4, "Unknown", IF($J35=99, "Surveillance", E35)), 0),"Not required") -> 8911.836 | P35: =IF(INTRO!$E$41="Endemic", IF($J35>1, IF($J35=4, "Unknown", IF($J35=99, "Surveillance", F35)), 0),"Not required") -> 17831 | Q35: =IF(INTRO!$E$41="Endemic", IF($J35>1, IF($J35=4, "Unknown", IF($J35=99, "Surveillance", ROUND(D35*INTRO!$E$51,0))), 0),"Not required") -> 2494 | R35: =IF(INTRO!$E$41="Endemic", IF($J35>1, IF($J35=4, "Unknown", IF($J35=99, "Surveillance", SUM($O35:$Q35))), 0),"Not required") -> 29236.836 | S35: =IF(INTRO!$E$43="Endemic", IF($K35>1, IF($K35=4, "Unknown", IF($K35=99, "Surveillance", ROUND(E35*0.75,0))), 0),"Not required") -> 0 | T35: =IF(INTRO!$E$43="Endemic", IF($K35>1, IF($K35=4, "Unknown", IF($K35=99, "Surveillance", F35)), 0),"Not required") -> 0 | U35: =IF(INTRO!$E$43="Endemic", IF($K35>1, IF($K35=4, "Unknown", IF($K35=99, "Surveillance", G35)), 0),"Not required") -> 0 | V35: =IF(INTRO!$E$43="Endemic", IF($K35>1, IF($K35=4, "Unknown", IF($K35=99, "Surveillance", SUM($S35:$U35))), 0),"Not required") -> 0 | W35: 0 | X35: 1 | Y35: 1 | Z35: 0 | AB35: Yes | AH35: 7443 | AI35: MBANDJOCK
A36: =IF(INTRO!$E$33<>0,INTRO!$E$33, " ") -> Cameroun | B36: Centre | C36: Mbankomo | D36: 35662 | E36: 6175.494 | F36: =IF(INTRO!$E$49="","",ROUND($D36*INTRO!$E$49,0)) -> 9433 | G36: =IF(INTRO!$E$50="","",ROUND($D36*INTRO!$E$50,0)) -> 20531 | H36: 0 | I36: 4 | J36: 3 | K36: 2 | L36: 1 | M36: =IF(INTRO!$E$37="Endemic",IF($H36>0,IF($H36=4,"Unknown",IF($H36=99,"Stopped",$D36)),0),"Not required") -> 0 | N36: =IF(INTRO!$E$39="Endemic", IF($I36>0, IF($I36=4,"Unknown",IF($I36=99,"Stopped",$D36)), 0),"Not required") -> Unknown | O36: =IF(INTRO!$E$41="Endemic", IF($J36>1, IF($J36=4, "Unknown", IF($J36=99, "Surveillance", E36)), 0),"Not required") -> 6175.494 | P36: =IF(INTRO!$E$41="Endemic", IF($J36>1, IF($J36=4, "Unknown", IF($J36=99, "Surveillance", F36)), 0),"Not required") -> 9433 | Q36: =IF(INTRO!$E$41="Endemic", IF($J36>1, IF($J36=4, "Unknown", IF($J36=99, "Surveillance", ROUND(D36*INTRO!$E$51,0))), 0),"Not required") -> 1319 | R36: =IF(INTRO!$E$41="Endemic", IF($J36>1, IF($J36=4, "Unknown", IF($J36=99, "Surveillance", SUM($O36:$Q36))), 0),"Not required") -> 16927.494 | S36: =IF(INTRO!$E$43="Endemic", IF($K36>1, IF($K36=4, "Unknown", IF($K36=99, "Surveillance", ROUND(E36*0.75,0))), 0),"Not required") -> 4632 | T36: =IF(INTRO!$E$43="Endemic", IF($K36>1, IF($K36=4, "Unknown", IF($K36=99, "Surveillance", F36)), 0),"Not required") -> 9433 | U36: =IF(INTRO!$E$43="Endemic", IF($K36>1, IF($K36=4, "Unknown", IF($K36=99, "Surveillance", G36)), 0),"Not required") -> 20531 | V36: =IF(INTRO!$E$43="Endemic", IF($K36>1, IF($K36=4, "Unknown", IF($K36=99, "Surveillance", SUM($S36:$U36))), 0),"Not required") -> 34596 | W36: 0 | X36: 0 | Y36: 1 | Z36: 1 | AB36: Yes | AH36: 7444 | AI36: MBANKOMO
A37: =IF(INTRO!$E$33<>0,INTRO!$E$33, " ") -> Cameroun | B37: Centre | C37: Mfou | D37: 117306 | E37: 27661.986 | F37: =IF(INTRO!$E$49="","",ROUND($D37*INTRO!$E$49,0)) -> 31027 | G37: =IF(INTRO!$E$50="","",ROUND($D37*INTRO!$E$50,0)) -> 67533 | H37: 0 | I37: 4 | J37: 3 | K37: 3 | L37: 1 | M37: =IF(INTRO!$E$37="Endemic",IF($H37>0,IF($H37=4,"Unknown",IF($H37=99,"Stopped",$D37)),0),"Not required") -> 0 | N37: =IF(INTRO!$E$39="Endemic", IF($I37>0, IF($I37=4,"Unknown",IF($I37=99,"Stopped",$D37)), 0),"Not required") -> Unknown | O37: =IF(INTRO!$E$41="Endemic", IF($J37>1, IF($J37=4, "Unknown", IF($J37=99, "Surveillance", E37)), 0),"Not required") -> 27661.986 | P37: =IF(INTRO!$E$41="Endemic", IF($J37>1, IF($J37=4, "Unknown", IF($J37=99, "Surveillance", F37)), 0),"Not required") -> 31027 | Q37: =IF(INTRO!$E$41="Endemic", IF($J37>1, IF($J37=4, "Unknown", IF($J37=99, "Surveillance", ROUND(D37*INTRO!$E$51,0))), 0),"Not required") -> 4340 | R37: =IF(INTRO!$E$41="Endemic", IF($J37>1, IF($J37=4, "Unknown", IF($J37=99, "Surveillance", SUM($O37:$Q37))), 0),"Not required") -> 63028.986 | S37: =IF(INTRO!$E$43="Endemic", IF($K37>1, IF($K37=4, "Unknown", IF($K37=99, "Surveillance", ROUND(E37*0.75,0))), 0),"Not required") -> 20746 | T37: =IF(INTRO!$E$43="Endemic", IF($K37>1, IF($K37=4, "Unknown", IF($K37=99, "Surveillance", F37)), 0),"Not required") -> 31027 | U37: =IF(INTRO!$E$43="Endemic", IF($K37>1, IF($K37=4, "Unknown", IF($K37=99, "Surveillance", G37)), 0),"Not required") -> 67533 | V37: =IF(INTRO!$E$43="Endemic", IF($K37>1, IF($K37=4, "Unknown", IF($K37=99, "Surveillance", SUM($S37:$U37))), 0),"Not required") -> 119306 | W37: 0 | X37: 0 | Y37: 1 | Z37: 1 | AB37: Yes | AH37: 7445 | AI37: MFOU
A38: =IF(INTRO!$E$33<>0,INTRO!$E$33, " ") -> Cameroun | B38: Centre | C38: Monatele | D38: 55894 | E38: 6689.52 | F38: =IF(INTRO!$E$49="","",ROUND($D38*INTRO!$E$49,0)) -> 14784 | G38: =IF(INTRO!$E$50="","",ROUND($D38*INTRO!$E$50,0)) -> 32178 | H38: 99 | I38: 1 | J38: 3 | K38: 1 | L38: 1 | M38: =IF(INTRO!$E$37="Endemic",IF($H38>0,IF($H38=4,"Unknown",IF($H38=99,"Stopped",$D38)),0),"Not required") -> Stopped | N38: =IF(INTRO!$E$39="Endemic", IF($I38>0, IF($I38=4,"Unknown",IF($I38=99,"Stopped",$D38)), 0),"Not required") -> 55894 | O38: =IF(INTRO!$E$41="Endemic", IF($J38>1, IF($J38=4, "Unknown", IF($J38=99, "Surveillance", E38)), 0),"Not required") -> 6689.52 | P38: =IF(INTRO!$E$41="Endemic", IF($J38>1, IF($J38=4, "Unknown", IF($J38=99, "Surveillance", F38)), 0),"Not required") -> 14784 | Q38: =IF(INTRO!$E$41="Endemic", IF($J38>1, IF($J38=4, "Unknown", IF($J38=99, "Surveillance", ROUND(D38*INTRO!$E$51,0))), 0),"Not required") -> 2068 | R38: =IF(INTRO!$E$41="Endemic", IF($J38>1, IF($J38=4, "Unknown", IF($J38=99, "Surveillance", SUM($O38:$Q38))), 0),"Not required") -> 23541.52 | S38: =IF(INTRO!$E$43="Endemic", IF($K38>1, IF($K38=4, "Unknown", IF($K38=99, "Surveillance", ROUND(E38*0.75,0))), 0),"Not required") -> 0 | T38: =IF(INTRO!$E$43="Endemic", IF($K38>1, IF($K38=4, "Unknown", IF($K38=99, "Surveillance", F38)), 0),"Not required") -> 0 | U38: =IF(INTRO!$E$43="Endemic", IF($K38>1, IF($K38=4, "Unknown", IF($K38=99, "Surveillance", G38)), 0),"Not required") -> 0 | V38: =IF(INTRO!$E$43="Endemic", IF($K38>1, IF($K38=4, "Unknown", IF($K38=99, "Surveillance", SUM($S38:$U38))), 0),"Not required") -> 0 | W38: 0 | X38: 1 | Y38: 1 | Z38: 0 | AB38: Yes | AH38: 7446 | AI38: MONATELE
A39: =IF(INTRO!$E$33<>0,INTRO!$E$33, " ") -> Cameroun | B39: Centre | C39: Mvog-Ada | D39: 475878 | E39: 80867.268 | F39: =IF(INTRO!$E$49="","",ROUND($D39*INTRO!$E$49,0)) -> 125870 | G39: =IF(INTRO!$E$50="","",ROUND($D39*INTRO!$E$50,0)) -> 273963 | H39: 0 | I39: 4 | J39: 3 | K39: 2 | L39: 1 | M39: =IF(INTRO!$E$37="Endemic",IF($H39>0,IF($H39=4,"Unknown",IF($H39=99,"Stopped",$D39)),0),"Not required") -> 0 | N39: =IF(INTRO!$E$39="Endemic", IF($I39>0, IF($I39=4,"Unknown",IF($I39=99,"Stopped",$D39)), 0),"Not required") -> Unknown | O39: =IF(INTRO!$E$41="Endemic", IF($J39>1, IF($J39=4, "Unknown", IF($J39=99, "Surveillance", E39)), 0),"Not required") -> 80867.268 | P39: =IF(INTRO!$E$41="Endemic", IF($J39>1, IF($J39=4, "Unknown", IF($J39=99, "Surveillance", F39)), 0),"Not required") -> 125870 | Q39: =IF(INTRO!$E$41="Endemic", IF($J39>1, IF($J39=4, "Unknown", IF($J39=99, "Surveillance", ROUND(D39*INTRO!$E$51,0))), 0),"Not required") -> 17607 | R39: =IF(INTRO!$E$41="Endemic", IF($J39>1, IF($J39=4, "Unknown", IF($J39=99, "Surveillance", SUM($O39:$Q39))), 0),"Not required") -> 224344.268 | S39: =IF(INTRO!$E$43="Endemic", IF($K39>1, IF($K39=4, "Unknown", IF($K39=99, "Surveillance", ROUND(E39*0.75,0))), 0),"Not required") -> 60650 | T39: =IF(INTRO!$E$43="Endemic", IF($K39>1, IF($K39=4, "Unknown", IF($K39=99, "Surveillance", F39)), 0),"Not required") -> 125870 | U39: =IF(INTRO!$E$43="Endemic", IF($K39>1, IF($K39=4, "Unknown", IF($K39=99, "Surveillance", G39)), 0),"Not required") -> 273963 | V39: =IF(INTRO!$E$43="Endemic", IF($K39>1, IF($K39=4, "Unknown", IF($K39=99, "Surveillance", SUM($S39:$U39))), 0),"Not required") -> 460483 | W39: 0 | X39: 0 | Y39: 1 | Z39: 1 | AB39: Yes | AH39: 7610 | AI39: Mvog-Ada
A40: =IF(INTRO!$E$33<>0,INTRO!$E$33, " ") -> Cameroun | B40: Centre | C40: Nanga Eboko | D40: 72698 | E40: 18126.342 | F40: =IF(INTRO!$E$49="","",ROUND($D40*INTRO!$E$49,0)) -> 19229 | G40: =IF(INTRO!$E$50="","",ROUND($D40*INTRO!$E$50,0)) -> 41852 | H40: 99 | I40: 1 | J40: 3 | K40: 1 | L40: 1 | M40: =IF(INTRO!$E$37="Endemic",IF($H40>0,IF($H40=4,"Unknown",IF($H40=99,"Stopped",$D40)),0),"Not required") -> Stopped | N40: =IF(INTRO!$E$39="Endemic", IF($I40>0, IF($I40=4,"Unknown",IF($I40=99,"Stopped",$D40)), 0),"Not required") -> 72698 | O40: =IF(INTRO!$E$41="Endemic", IF($J40>1, IF($J40=4, "Unknown", IF($J40=99, "Surveillance", E40)), 0),"Not required") -> 18126.342 | P40: =IF(INTRO!$E$41="Endemic", IF($J40>1, IF($J40=4, "Unknown", IF($J40=99, "Surveillance", F40)), 0),"Not required") -> 19229 | Q40: =IF(INTRO!$E$41="Endemic", IF($J40>1, IF($J40=4, "Unknown", IF($J40=99, "Surveillance", ROUND(D40*INTRO!$E$51,0))), 0),"Not required") -> 2690 | R40: =IF(INTRO!$E$41="Endemic", IF($J40>1, IF($J40=4, "Unknown", IF($J40=99, "Surveillance", SUM($O40:$Q40))), 0),"Not required") -> 40045.342 | S40: =IF(INTRO!$E$43="Endemic", IF($K40>1, IF($K40=4, "Unknown", IF($K40=99, "Surveillance", ROUND(E40*0.75,0))), 0),"Not required") -> 0 | T40: =IF(INTRO!$E$43="Endemic", IF($K40>1, IF($K40=4, "Unknown", IF($K40=99, "Surveillance", F40)), 0),"Not required") -> 0 | U40: =IF(INTRO!$E$43="Endemic", IF($K40>1, IF($K40=4, "Unknown", IF($K40=99, "Surveillance", G40)), 0),"Not required") -> 0 | V40: =IF(INTRO!$E$43="Endemic", IF($K40>1, IF($K40=4, "Unknown", IF($K40=99, "Surveillance", SUM($S40:$U40))), 0),"Not required") -> 0 | W40: 0 | X40: 1 | Y40: 1 | Z40: 0 | AA40: TAS | AB40: Yes | AH40: 7447 | AI40: NANGA EBOKO
A41: =IF(INTRO!$E$33<>0,INTRO!$E$33, " ") -> Cameroun | B41: Centre | C41: Ndikinimeki | D41: 51308 | E41: 6852.654 | F41: =IF(INTRO!$E$49="","",ROUND($D41*INTRO!$E$49,0)) -> 13571 | G41: =IF(INTRO!$E$50="","",ROUND($D41*INTRO!$E$50,0)) -> 29538 | H41: 99 | I41: 1 | J41: 3 | K41: 3 | L41: 1 | M41: =IF(INTRO!$E$37="Endemic",IF($H41>0,IF($H41=4,"Unknown",IF($H41=99,"Stopped",$D41)),0),"Not required") -> Stopped | N41: =IF(INTRO!$E$39="Endemic", IF($I41>0, IF($I41=4,"Unknown",IF($I41=99,"Stopped",$D41)), 0),"Not required") -> 51308 | O41: =IF(INTRO!$E$41="Endemic", IF($J41>1, IF($J41=4, "Unknown", IF($J41=99, "Surveillance", E41)), 0),"Not required") -> 6852.654 | P41: =IF(INTRO!$E$41="Endemic", IF($J41>1, IF($J41=4, "Unknown", IF($J41=99, "Surveillance", F41)), 0),"Not required") -> 13571 | Q41: =IF(INTRO!$E$41="Endemic", IF($J41>1, IF($J41=4, "Unknown", IF($J41=99, "Surveillance", ROUND(D41*INTRO!$E$51,0))), 0),"Not required") -> 1898 | R41: =IF(INTRO!$E$41="Endemic", IF($J41>1, IF($J41=4, "Unknown", IF($J41=99, "Surveillance", SUM($O41:$Q41))), 0),"Not required") -> 22321.654 | S41: =IF(INTRO!$E$43="Endemic", IF($K41>1, IF($K41=4, "Unknown", IF($K41=99, "Surveillance", ROUND(E41*0.75,0))), 0),"Not required") -> 5139 | T41: =IF(INTRO!$E$43="Endemic", IF($K41>1, IF($K41=4, "Unknown", IF($K41=99, "Surveillance", F41)), 0),"Not required") -> 13571 | U41: =IF(INTRO!$E$43="Endemic", IF($K41>1, IF($K41=4, "Unknown", IF($K41=99, "Surveillance", G41)), 0),"Not required") -> 29538 | V41: =IF(INTRO!$E$43="Endemic", IF($K41>1, IF($K41=4, "Unknown", IF($K41=99, "Surveillance", SUM($S41:$U41))), 0),"Not required") -> 48248 | W41: 0 | X41: 1 | Y41: 1 | Z41: 1 | AB41: Yes | AH41: 7448 | AI41: NDIKINIMEKI
A42: =IF(INTRO!$E$33<>0,INTRO!$E$33, " ") -> Cameroun | B42: Centre | C42: Ngog Mapubi | D42: 61284 | E42: 8735.364 | F42: =IF(INTRO!$E$49="","",ROUND($D42*INTRO!$E$49,0)) -> 16210 | G42: =IF(INTRO!$E$50="","",ROUND($D42*INTRO!$E$50,0)) -> 35281 | H42: 99 | I42: 1 | J42: 3 | K42: 1 | L42: 1 | M42: =IF(INTRO!$E$37="Endemic",IF($H42>0,IF($H42=4,"Unknown",IF($H42=99,"Stopped",$D42)),0),"Not required") -> Stopped | N42: =IF(INTRO!$E$39="Endemic", IF($I42>0, IF($I42=4,"Unknown",IF($I42=99,"Stopped",$D42)), 0),"Not required") -> 61284 | O42: =IF(INTRO!$E$41="Endemic", IF($J42>1, IF($J42=4, "Unknown", IF($J42=99, "Surveillance", E42)), 0),"Not required") -> 8735.364 | P42: =IF(INTRO!$E$41="Endemic", IF($J42>1, IF($J42=4, "Unknown", IF($J42=99, "Surveillance", F42)), 0),"Not required") -> 16210 | Q42: =IF(INTRO!$E$41="Endemic", IF($J42>1, IF($J42=4, "Unknown", IF($J42=99, "Surveillance", ROUND(D42*INTRO!$E$51,0))), 0),"Not required") -> 2268 | R42: =IF(INTRO!$E$41="Endemic", IF($J42>1, IF($J42=4, "Unknown", IF($J42=99, "Surveillance", SUM($O42:$Q42))), 0),"Not required") -> 27213.364 | S42: =IF(INTRO!$E$43="Endemic", IF($K42>1, IF($K42=4, "Unknown", IF($K42=99, "Surveillance", ROUND(E42*0.75,0))), 0),"Not required") -> 0 | T42: =IF(INTRO!$E$43="Endemic", IF($K42>1, IF($K42=4, "Unknown", IF($K42=99, "Surveillance", F42)), 0),"Not required") -> 0 | U42: =IF(INTRO!$E$43="Endemic", IF($K42>1, IF($K42=4, "Unknown", IF($K42=99, "Surveillance", G42)), 0),"Not required") -> 0 | V42: =IF(INTRO!$E$43="Endemic", IF($K42>1, IF($K42=4, "Unknown", IF($K42=99, "Surveillance", SUM($S42:$U42))), 0),"Not required") -> 0 | W42: 0 | X42: 1 | Y42: 1 | Z42: 0 | AA42: TAS | AB42: Yes | AH42: 7449 | AI42: NGOG MAPUBI
A43: =IF(INTRO!$E$33<>0,INTRO!$E$33, " ") -> Cameroun | B43: Centre | C43: Ngoumou | D43: 49813 | E43: 7436.448 | F43: =IF(INTRO!$E$49="","",ROUND($D43*INTRO!$E$49,0)) -> 13176 | G43: =IF(INTRO!$E$50="","",ROUND($D43*INTRO!$E$50,0)) -> 28677 | H43: 0 | I43: 4 | J43: 3 | K43: 2 | L43: 1 | M43: =IF(INTRO!$E$37="Endemic",IF($H43>0,IF($H43=4,"Unknown",IF($H43=99,"Stopped",$D43)),0),"Not required") -> 0 | N43: =IF(INTRO!$E$39="Endemic", IF($I43>0, IF($I43=4,"Unknown",IF($I43=99,"Stopped",$D43)), 0),"Not required") -> Unknown | O43: =IF(INTRO!$E$41="Endemic", IF($J43>1, IF($J43=4, "Unknown", IF($J43=99, "Surveillance", E43)), 0),"Not required") -> 7436.448 | P43: =IF(INTRO!$E$41="Endemic", IF($J43>1, IF($J43=4, "Unknown", IF($J43=99, "Surveillance", F43)), 0),"Not required") -> 13176 | Q43: =IF(INTRO!$E$41="Endemic", IF($J43>1, IF($J43=4, "Unknown", IF($J43=99, "Surveillance", ROUND(D43*INTRO!$E$51,0))), 0),"Not required") -> 1843 | R43: =IF(INTRO!$E$41="Endemic", IF($J43>1, IF($J43=4, "Unknown", IF($J43=99, "Surveillance", SUM($O43:$Q43))), 0),"Not required") -> 22455.448 | S43: =IF(INTRO!$E$43="Endemic", IF($K43>1, IF($K43=4, "Unknown", IF($K43=99, "Surveillance", ROUND(E43*0.75,0))), 0),"Not required") -> 5577 | T43: =IF(INTRO!$E$43="Endemic", IF($K43>1, IF($K43=4, "Unknown", IF($K43=99, "Surveillance", F43)), 0),"Not required") -> 13176 | U43: =IF(INTRO!$E$43="Endemic", IF($K43>1, IF($K43=4, "Unknown", IF($K43=99, "Surveillance", G43)), 0),"Not required") -> 28677 | V43: =IF(INTRO!$E$43="Endemic", IF($K43>1, IF($K43=4, "Unknown", IF($K43=99, "Surveillance", SUM($S43:$U43))), 0),"Not required") -> 47430 | W43: 0 | X43: 0 | Y43: 1 | Z43: 1 | AB43: Yes | AH43: 7450 | AI43: NGOUMOU
A44: =IF(INTRO!$E$33<>0,INTRO!$E$33, " ") -> Cameroun | B44: Centre | C44: Nkolbisson | D44: 196128 | E44: 56721.384 | F44: =IF(INTRO!$E$49="","",ROUND($D44*INTRO!$E$49,0)) -> 51876 | G44: =IF(INTRO!$E$50="","",ROUND($D44*INTRO!$E$50,0)) -> 112911 | H44: 0 | I44: 4 | J44: 2 | K44: 2 | L44: 1 | M44: =IF(INTRO!$E$37="Endemic",IF($H44>0,IF($H44=4,"Unknown",IF($H44=99,"Stopped",$D44)),0),"Not required") -> 0 | N44: =IF(INTRO!$E$39="Endemic", IF($I44>0, IF($I44=4,"Unknown",IF($I44=99,"Stopped",$D44)), 0),"Not required") -> Unknown | O44: =IF(INTRO!$E$41="Endemic", IF($J44>1, IF($J44=4, "Unknown", IF($J44=99, "Surveillance", E44)), 0),"Not required") -> 56721.384 | P44: =IF(INTRO!$E$41="Endemic", IF($J44>1, IF($J44=4, "Unknown", IF($J44=99, "Surveillance", F44)), 0),"Not required") -> 51876 | Q44: =IF(INTRO!$E$41="Endemic", IF($J44>1, IF($J44=4, "Unknown", IF($J44=99, "Surveillance", ROUND(D44*INTRO!$E$51,0))), 0),"Not required") -> 7257 | R44: =IF(INTRO!$E$41="Endemic", IF($J44>1, IF($J44=4, "Unknown", IF($J44=99, "Surveillance", SUM($O44:$Q44))), 0),"Not required") -> 115854.384 | S44: =IF(INTRO!$E$43="Endemic", IF($K44>1, IF($K44=4, "Unknown", IF($K44=99, "Surveillance", ROUND(E44*0.75,0))), 0),"Not required") -> 42541 | T44: =IF(INTRO!$E$43="Endemic", IF($K44>1, IF($K44=4, "Unknown", IF($K44=99, "Surveillance", F44)), 0),"Not required") -> 51876 | U44: =IF(INTRO!$E$43="Endemic", IF($K44>1, IF($K44=4, "Unknown", IF($K44=99, "Surveillance", G44)), 0),"Not required") -> 112911 | V44: =IF(INTRO!$E$43="Endemic", IF($K44>1, IF($K44=4, "Unknown", IF($K44=99, "Surveillance", SUM($S44:$U44))), 0),"Not required") -> 207328 | W44: 0 | X44: 0 | Y44: 1 | Z44: 1 | AB44: Yes | AH44: 7451 | AI44: NKOLBISSON
A45: =IF(INTRO!$E$33<>0,INTRO!$E$33, " ") -> Cameroun | B45: Centre | C45: Nkolndongo | D45: 485934 | E45: 46249.002 | F45: =IF(INTRO!$E$49="","",ROUND($D45*INTRO!$E$49,0)) -> 128530 | G45: =IF(INTRO!$E$50="","",ROUND($D45*INTRO!$E$50,0)) -> 279752 | H45: 0 | I45: 4 | J45: 2 | K45: 2 | L45: 1 | M45: =IF(INTRO!$E$37="Endemic",IF($H45>0,IF($H45=4,"Unknown",IF($H45=99,"Stopped",$D45)),0),"Not required") -> 0 | N45: =IF(INTRO!$E$39="Endemic", IF($I45>0, IF($I45=4,"Unknown",IF($I45=99,"Stopped",$D45)), 0),"Not required") -> Unknown | O45: =IF(INTRO!$E$41="Endemic", IF($J45>1, IF($J45=4, "Unknown", IF($J45=99, "Surveillance", E45)), 0),"Not required") -> 46249.002 | P45: =IF(INTRO!$E$41="Endemic", IF($J45>1, IF($J45=4, "Unknown", IF($J45=99, "Surveillance", F45)), 0),"Not required") -> 128530 | Q45: =IF(INTRO!$E$41="Endemic", IF($J45>1, IF($J45=4, "Unknown", IF($J45=99, "Surveillance", ROUND(D45*INTRO!$E$51,0))), 0),"Not required") -> 17980 | R45: =IF(INTRO!$E$41="Endemic", IF($J45>1, IF($J45=4, "Unknown", IF($J45=99, "Surveillance", SUM($O45:$Q45))), 0),"Not required") -> 192759.002 | S45: =IF(INTRO!$E$43="Endemic", IF($K45>1, IF($K45=4, "Unknown", IF($K45=99, "Surveillance", ROUND(E45*0.75,0))), 0),"Not required") -> 34687 | T45: =IF(INTRO!$E$43="Endemic", IF($K45>1, IF($K45=4, "Unknown", IF($K45=99, "Surveillance", F45)), 0),"Not required") -> 128530 | U45: =IF(INTRO!$E$43="Endemic", IF($K45>1, IF($K45=4, "Unknown", IF($K45=99, "Surveillance", G45)), 0),"Not required") -> 279752 | V45: =IF(INTRO!$E$43="Endemic", IF($K45>1, IF($K45=4, "Unknown", IF($K45=99, "Surveillance", SUM($S45:$U45))), 0),"Not required") -> 442969 | W45: 0 | X45: 0 | Y45: 1 | Z45: 1 | AB45: Yes | AH45: 7452 | AI45: NKOLNDONGO
A46: =IF(INTRO!$E$33<>0,INTRO!$E$33, " ") -> Cameroun | B46: Centre | C46: Ntui | D46: 147835 | E46: 27591.192 | F46: =IF(INTRO!$E$49="","",ROUND($D46*INTRO!$E$49,0)) -> 39102 | G46: =IF(INTRO!$E$50="","",ROUND($D46*INTRO!$E$50,0)) -> 85109 | H46: 99 | I46: 1 | J46: 3 | K46: 2 | L46: 1 | M46: =IF(INTRO!$E$37="Endemic",IF($H46>0,IF($H46=4,"Unknown",IF($H46=99,"Stopped",$D46)),0),"Not required") -> Stopped | N46: =IF(INTRO!$E$39="Endemic", IF($I46>0, IF($I46=4,"Unknown",IF($I46=99,"Stopped",$D46)), 0),"Not required") -> 147835 | O46: =IF(INTRO!$E$41="Endemic", IF($J46>1, IF($J46=4, "Unknown", IF($J46=99, "Surveillance", E46)), 0),"Not required") -> 27591.192 | P46: =IF(INTRO!$E$41="Endemic", IF($J46>1, IF($J46=4, "Unknown", IF($J46=99, "Surveillance", F46)), 0),"Not required") -> 39102 | Q46: =IF(INTRO!$E$41="Endemic", IF($J46>1, IF($J46=4, "Unknown", IF($J46=99, "Surveillance", ROUND(D46*INTRO!$E$51,0))), 0),"Not required") -> 5470 | R46: =IF(INTRO!$E$41="Endemic", IF($J46>1, IF($J46=4, "Unknown", IF($J46=99, "Surveillance", SUM($O46:$Q46))), 0),"Not required") -> 72163.192 | S46: =IF(INTRO!$E$43="Endemic", IF($K46>1, IF($K46=4, "Unknown", IF($K46=99, "Surveillance", ROUND(E46*0.75,0))), 0),"Not required") -> 20693 | T46: =IF(INTRO!$E$43="Endemic", IF($K46>1, IF($K46=4, "Unknown", IF($K46=99, "Surveillance", F46)), 0),"Not required") -> 39102 | U46: =IF(INTRO!$E$43="Endemic", IF($K46>1, IF($K46=4, "Unknown", IF($K46=99, "Surveillance", G46)), 0),"Not required") -> 85109 | V46: =IF(INTRO!$E$43="Endemic", IF($K46>1, IF($K46=4, "Unknown", IF($K46=99, "Surveillance", SUM($S46:$U46))), 0),"Not required") -> 144904 | W46: 0 | X46: 1 | Y46: 1 | Z46: 1 | AB46: Yes | AH46: 7453 | AI46: NTUI
A47: =IF(INTRO!$E$33<>0,INTRO!$E$33, " ") -> Cameroun | B47: Centre | C47: Obala | D47: 154252 | E47: 26711.91 | F47: =IF(INTRO!$E$49="","",ROUND($D47*INTRO!$E$49,0)) -> 40800 | G47: =IF(INTRO!$E$50="","",ROUND($D47*INTRO!$E$50,0)) -> 88803 | H47: 99 | I47: 1 | J47: 3 | K47: 1 | L47: 1 | M47: =IF(INTRO!$E$37="Endemic",IF($H47>0,IF($H47=4,"Unknown",IF($H47=99,"Stopped",$D47)),0),"Not required") -> Stopped | N47: =IF(INTRO!$E$39="Endemic", IF($I47>0, IF($I47=4,"Unknown",IF($I47=99,"Stopped",$D47)), 0),"Not required") -> 154252 | O47: =IF(INTRO!$E$41="Endemic", IF($J47>1, IF($J47=4, "Unknown", IF($J47=99, "Surveillance", E47)), 0),"Not required") -> 26711.91 | P47: =IF(INTRO!$E$41="Endemic", IF($J47>1, IF($J47=4, "Unknown", IF($J47=99, "Surveillance", F47)), 0),"Not required") -> 40800 | Q47: =IF(INTRO!$E$41="Endemic", IF($J47>1, IF($J47=4, "Unknown", IF($J47=99, "Surveillance", ROUND(D47*INTRO!$E$51,0))), 0),"Not required") -> 5707 | R47: =IF(INTRO!$E$41="Endemic", IF($J47>1, IF($J47=4, "Unknown", IF($J47=99, "Surveillance", SUM($O47:$Q47))), 0),"Not required") -> 73218.91 | S47: =IF(INTRO!$E$43="Endemic", IF($K47>1, IF($K47=4, "Unknown", IF($K47=99, "Surveillance", ROUND(E47*0.75,0))), 0),"Not required") -> 0 | T47: =IF(INTRO!$E$43="Endemic", IF($K47>1, IF($K47=4, "Unknown", IF($K47=99, "Surveillance", F47)), 0),"Not required") -> 0 | U47: =IF(INTRO!$E$43="Endemic", IF($K47>1, IF($K47=4, "Unknown", IF($K47=99, "Surveillance", G47)), 0),"Not required") -> 0 | V47: =IF(INTRO!$E$43="Endemic", IF($K47>1, IF($K47=4, "Unknown", IF($K47=99, "Surveillance", SUM($S47:$U47))), 0),"Not required") -> 0 | W47: 0 | X47: 1 | Y47: 1 | Z47: 0 | AB47: Yes | AH47: 7454 | AI47: OBALA
A48: =IF(INTRO!$E$33<>0,INTRO!$E$33, " ") -> Cameroun | B48: Centre | C48: Odza | D48: 496898 | E48: 34951.716 | F48: =IF(INTRO!$E$49="","",ROUND($D48*INTRO!$E$49,0)) -> 131430 | G48: =IF(INTRO!$E$50="","",ROUND($D48*INTRO!$E$50,0)) -> 286064 | H48: 0 | I48: 4 | J48: 3 | K48: 1 | L48: 1 | M48: =IF(INTRO!$E$37="Endemic",IF($H48>0,IF($H48=4,"Unknown",IF($H48=99,"Stopped",$D48)),0),"Not required") -> 0 | N48: =IF(INTRO!$E$39="Endemic", IF($I48>0, IF($I48=4,"Unknown",IF($I48=99,"Stopped",$D48)), 0),"Not required") -> Unknown | O48: =IF(INTRO!$E$41="Endemic", IF($J48>1, IF($J48=4, "Unknown", IF($J48=99, "Surveillance", E48)), 0),"Not required") -> 34951.716 | P48: =IF(INTRO!$E$41="Endemic", IF($J48>1, IF($J48=4, "Unknown", IF($J48=99, "Surveillance", F48)), 0),"Not required") -> 131430 | Q48: =IF(INTRO!$E$41="Endemic", IF($J48>1, IF($J48=4, "Unknown", IF($J48=99, "Surveillance", ROUND(D48*INTRO!$E$51,0))), 0),"Not required") -> 18385 | R48: =IF(INTRO!$E$41="Endemic", IF($J48>1, IF($J48=4, "Unknown", IF($J48=99, "Surveillance", SUM($O48:$Q48))), 0),"Not required") -> 184766.716 | S48: =IF(INTRO!$E$43="Endemic", IF($K48>1, IF($K48=4, "Unknown", IF($K48=99, "Surveillance", ROUND(E48*0.75,0))), 0),"Not required") -> 0 | T48: =IF(INTRO!$E$43="Endemic", IF($K48>1, IF($K48=4, "Unknown", IF($K48=99, "Surveillance", F48)), 0),"Not required") -> 0 | U48: =IF(INTRO!$E$43="Endemic", IF($K48>1, IF($K48=4, "Unknown", IF($K48=99, "Surveillance", G48)), 0),"Not required") -> 0 | V48: =IF(INTRO!$E$43="Endemic", IF($K48>1, IF($K48=4, "Unknown", IF($K48=99, "Surveillance", SUM($S48:$U48))), 0),"Not required") -> 0 | W48: 0 | X48: 0 | Y48: 1 | Z48: 0 | AB48: Yes | AH48: 7611 | AI48: Odza
A49: =IF(INTRO!$E$33<>0,INTRO!$E$33, " ") -> Cameroun | B49: Centre | C49: Okola | D49: 63236 | E49: 8926.2 | F49: =IF(INTRO!$E$49="","",ROUND($D49*INTRO!$E$49,0)) -> 16726 | G49: =IF(INTRO!$E$50="","",ROUND($D49*INTRO!$E$50,0)) -> 36405 | H49: 99 | I49: 1 | J49: 3 | K49: 1 | L49: 1 | M49: =IF(INTRO!$E$37="Endemic",IF($H49>0,IF($H49=4,"Unknown",IF($H49=99,"Stopped",$D49)),0),"Not required") -> Stopped | N49: =IF(INTRO!$E$39="Endemic", IF($I49>0, IF($I49=4,"Unknown",IF($I49=99,"Stopped",$D49)), 0),"Not required") -> 63236 | O49: =IF(INTRO!$E$41="Endemic", IF($J49>1, IF($J49=4, "Unknown", IF($J49=99, "Surveillance", E49)), 0),"Not required") -> 8926.2 | P49: =IF(INTRO!$E$41="Endemic", IF($J49>1, IF($J49=4, "Unknown", IF($J49=99, "Surveillance", F49)), 0),"Not required") -> 16726 | Q49: =IF(INTRO!$E$41="Endemic", IF($J49>1, IF($J49=4, "Unknown", IF($J49=99, "Surveillance", ROUND(D49*INTRO!$E$51,0))), 0),"Not required") -> 2340 | R49: =IF(INTRO!$E$41="Endemic", IF($J49>1, IF($J49=4, "Unknown", IF($J49=99, "Surveillance", SUM($O49:$Q49))), 0),"Not required") -> 27992.2 | S49: =IF(INTRO!$E$43="Endemic", IF($K49>1, IF($K49=4, "Unknown", IF($K49=99, "Surveillance", ROUND(E49*0.75,0))), 0),"Not required") -> 0 | T49: =IF(INTRO!$E$43="Endemic", IF($K49>1, IF($K49=4, "Unknown", IF($K49=99, "Surveillance", F49)), 0),"Not required") -> 0 | U49: =IF(INTRO!$E$43="Endemic", IF($K49>1, IF($K49=4, "Unknown", IF($K49=99, "Surveillance", G49)), 0),"Not required") -> 0 | V49: =IF(INTRO!$E$43="Endemic", IF($K49>1, IF($K49=4, "Unknown", IF($K49=99, "Surveillance", SUM($S49:$U49))), 0),"Not required") -> 0 | W49: 0 | X49: 1 | Y49: 1 | Z49: 0 | AA49: TAS | AB49: Yes | AH49: 7455 | AI49: OKOLA
A50: =IF(INTRO!$E$33<>0,INTRO!$E$33, " ") -> Cameroun | B50: Centre | C50: Sa'a | D50: 80457 | E50: 10426.212 | F50: =IF(INTRO!$E$49="","",ROUND($D50*INTRO!$E$49,0)) -> 21281 | G50: =IF(INTRO!$E$50="","",ROUND($D50*INTRO!$E$50,0)) -> 46319 | H50: 99 | I50: 1 | J50: 3 | K50: 1 | L50: 1 | M50: =IF(INTRO!$E$37="Endemic",IF($H50>0,IF($H50=4,"Unknown",IF($H50=99,"Stopped",$D50)),0),"Not required") -> Stopped | N50: =IF(INTRO!$E$39="Endemic", IF($I50>0, IF($I50=4,"Unknown",IF($I50=99,"Stopped",$D50)), 0),"Not required") -> 80457 | O50: =IF(INTRO!$E$41="Endemic", IF($J50>1, IF($J50=4, "Unknown", IF($J50=99, "Surveillance", E50)), 0),"Not required") -> 10426.212 | P50: =IF(INTRO!$E$41="Endemic", IF($J50>1, IF($J50=4, "Unknown", IF($J50=99, "Surveillance", F50)), 0),"Not required") -> 21281 | Q50: =IF(INTRO!$E$41="Endemic", IF($J50>1, IF($J50=4, "Unknown", IF($J50=99, "Surveillance", ROUND(D50*INTRO!$E$51,0))), 0),"Not required") -> 2977 | R50: =IF(INTRO!$E$41="Endemic", IF($J50>1, IF($J50=4, "Unknown", IF($J50=99, "Surveillance", SUM($O50:$Q50))), 0),"Not required") -> 34684.212 | S50: =IF(INTRO!$E$43="Endemic", IF($K50>1, IF($K50=4, "Unknown", IF($K50=99, "Surveillance", ROUND(E50*0.75,0))), 0),"Not required") -> 0 | T50: =IF(INTRO!$E$43="Endemic", IF($K50>1, IF($K50=4, "Unknown", IF($K50=99, "Surveillance", F50)), 0),"Not required") -> 0 | U50: =IF(INTRO!$E$43="Endemic", IF($K50>1, IF($K50=4, "Unknown", IF($K50=99, "Surveillance", G50)), 0),"Not required") -> 0 | V50: =IF(INTRO!$E$43="Endemic", IF($K50>1, IF($K50=4, "Unknown", IF($K50=99, "Surveillance", SUM($S50:$U50))), 0),"Not required") -> 0 | W50: 0 | X50: 1 | Y50: 1 | Z50: 0 | AB50: Yes | AH50: 7456 | AI50: SAA
A51: =IF(INTRO!$E$33<>0,INTRO!$E$33, " ") -> Cameroun | B51: Centre | C51: Soa | D51: 51610 | E51: 13891.014 | F51: =IF(INTRO!$E$49="","",ROUND($D51*INTRO!$E$49,0)) -> 13651 | G51: =IF(INTRO!$E$50="","",ROUND($D51*INTRO!$E$50,0)) -> 29712 | H51: 0 | I51: 4 | J51: 2 | K51: 1 | L51: 1 | M51: =IF(INTRO!$E$37="Endemic",IF($H51>0,IF($H51=4,"Unknown",IF($H51=99,"Stopped",$D51)),0),"Not required") -> 0 | N51: =IF(INTRO!$E$39="Endemic", IF($I51>0, IF($I51=4,"Unknown",IF($I51=99,"Stopped",$D51)), 0),"Not required") -> Unknown | O51: =IF(INTRO!$E$41="Endemic", IF($J51>1, IF($J51=4, "Unknown", IF($J51=99, "Surveillance", E51)), 0),"Not required") -> 13891.014 | P51: =IF(INTRO!$E$41="Endemic", IF($J51>1, IF($J51=4, "Unknown", IF($J51=99, "Surveillance", F51)), 0),"Not required") -> 13651 | Q51: =IF(INTRO!$E$41="Endemic", IF($J51>1, IF($J51=4, "Unknown", IF($J51=99, "Surveillance", ROUND(D51*INTRO!$E$51,0))), 0),"Not required") -> 1910 | R51: =IF(INTRO!$E$41="Endemic", IF($J51>1, IF($J51=4, "Unknown", IF($J51=99, "Surveillance", SUM($O51:$Q51))), 0),"Not required") -> 29452.014 | S51: =IF(INTRO!$E$43="Endemic", IF($K51>1, IF($K51=4, "Unknown", IF($K51=99, "Surveillance", ROUND(E51*0.75,0))), 0),"Not required") -> 0 | T51: =IF(INTRO!$E$43="Endemic", IF($K51>1, IF($K51=4, "Unknown", IF($K51=99, "Surveillance", F51)), 0),"Not required") -> 0 | U51: =IF(INTRO!$E$43="Endemic", IF($K51>1, IF($K51=4, "Unknown", IF($K51=99, "Surveillance", G51)), 0),"Not required") -> 0 | V51: =IF(INTRO!$E$43="Endemic", IF($K51>1, IF($K51=4, "Unknown", IF($K51=99, "Surveillance", SUM($S51:$U51))), 0),"Not required") -> 0 | W51: 0 | X51: 0 | Y51: 1 | Z51: 0 | AB51: Yes | AH51: 7457 | AI51: SOA
A52: =IF(INTRO!$E$33<>0,INTRO!$E$33, " ") -> Cameroun | B52: Centre | C52: Yoko | D52: 48954 | E52: 12137.58 | F52: =IF(INTRO!$E$49="","",ROUND($D52*INTRO!$E$49,0)) -> 12948 | G52: =IF(INTRO!$E$50="","",ROUND($D52*INTRO!$E$50,0)) -> 28183 | H52: 99 | I52: 1 | J52: 3 | K52: 0 | L52: 1 | M52: =IF(INTRO!$E$37="Endemic",IF($H52>0,IF($H52=4,"Unknown",IF($H52=99,"Stopped",$D52)),0),"Not required") -> Stopped | N52: =IF(INTRO!$E$39="Endemic", IF($I52>0, IF($I52=4,"Unknown",IF($I52=99,"Stopped",$D52)), 0),"Not required") -> 48954 | O52: =IF(INTRO!$E$41="Endemic", IF($J52>1, IF($J52=4, "Unknown", IF($J52=99, "Surveillance", E52)), 0),"Not required") -> 12137.58 | P52: =IF(INTRO!$E$41="Endemic", IF($J52>1, IF($J52=4, "Unknown", IF($J52=99, "Surveillance", F52)), 0),"Not required") -> 12948 | Q52: =IF(INTRO!$E$41="Endemic", IF($J52>1, IF($J52=4, "Unknown", IF($J52=99, "Surveillance", ROUND(D52*INTRO!$E$51,0))), 0),"Not required") -> 1811 | R52: =IF(INTRO!$E$41="Endemic", IF($J52>1, IF($J52=4, "Unknown", IF($J52=99, "Surveillance", SUM($O52:$Q52))), 0),"Not required") -> 26896.58 | S52: =IF(INTRO!$E$43="Endemic", IF($K52>1, IF($K52=4, "Unknown", IF($K52=99, "Surveillance", ROUND(E52*0.75,0))), 0),"Not required") -> 0 | T52: =IF(INTRO!$E$43="Endemic", IF($K52>1, IF($K52=4, "Unknown", IF($K52=99, "Surveillance", F52)), 0),"Not required") -> 0 | U52: =IF(INTRO!$E$43="Endemic", IF($K52>1, IF($K52=4, "Unknown", IF($K52=99, "Surveillance", G52)), 0),"Not required") -> 0 | V52: =IF(INTRO!$E$43="Endemic", IF($K52>1, IF($K52=4, "Unknown", IF($K52=99, "Surveillance", SUM($S52:$U52))), 0),"Not required") -> 0 | W52: 0 | X52: 1 | Y52: 1 | Z52: 0 | AB52: Yes | AH52: 7458 | AI52: YOKO
A53: =IF(INTRO!$E$33<>0,INTRO!$E$33, " ") -> Cameroun | B53: Est | C53: Abong Mbang | D53: 90434 | E53: 19130.796 | F53: =IF(INTRO!$E$49="","",ROUND($D53*INTRO!$E$49,0)) -> 23920 | G53: =IF(INTRO!$E$50="","",ROUND($D53*INTRO!$E$50,0)) -> 52063 | H53: 0 | I53: 4 | J53: 3 | K53: 0 | L53: 1 | M53: =IF(INTRO!$E$37="Endemic",IF($H53>0,IF($H53=4,"Unknown",IF($H53=99,"Stopped",$D53)),0),"Not required") -> 0 | N53: =IF(INTRO!$E$39="Endemic", IF($I53>0, IF($I53=4,"Unknown",IF($I53=99,"Stopped",$D53)), 0),"Not required") -> Unknown | O53: =IF(INTRO!$E$41="Endemic", IF($J53>1, IF($J53=4, "Unknown", IF($J53=99, "Surveillance", E53)), 0),"Not required") -> 19130.796 | P53: =IF(INTRO!$E$41="Endemic", IF($J53>1, IF($J53=4, "Unknown", IF($J53=99, "Surveillance", F53)), 0),"Not required") -> 23920 | Q53: =IF(INTRO!$E$41="Endemic", IF($J53>1, IF($J53=4, "Unknown", IF($J53=99, "Surveillance", ROUND(D53*INTRO!$E$51,0))), 0),"Not required") -> 3346 | R53: =IF(INTRO!$E$41="Endemic", IF($J53>1, IF($J53=4, "Unknown", IF($J53=99, "Surveillance", SUM($O53:$Q53))), 0),"Not required") -> 46396.796 | S53: =IF(INTRO!$E$43="Endemic", IF($K53>1, IF($K53=4, "Unknown", IF($K53=99, "Surveillance", ROUND(E53*0.75,0))), 0),"Not required") -> 0 | T53: =IF(INTRO!$E$43="Endemic", IF($K53>1, IF($K53=4, "Unknown", IF($K53=99, "Surveillance", F53)), 0),"Not required") -> 0 | U53: =IF(INTRO!$E$43="Endemic", IF($K53>1, IF($K53=4, "Unknown", IF($K53=99, "Surveillance", G53)), 0),"Not required") -> 0 | V53: =IF(INTRO!$E$43="Endemic", IF($K53>1, IF($K53=4, "Unknown", IF($K53=99, "Surveillance", SUM($S53:$U53))), 0),"Not required") -> 0 | W53: 0 | X53: 0 | Y53: 1 | Z53: 0 | AB53: Yes | AH53: 7459 | AI53: ABONG MBANG
A54: =IF(INTRO!$E$33<>0,INTRO!$E$33, " ") -> Cameroun | B54: Est | C54: Batouri | D54: 127905 | E54: 27208.494 | F54: =IF(INTRO!$E$49="","",ROUND($D54*INTRO!$E$49,0)) -> 33831 | G54: =IF(INTRO!$E$50="","",ROUND($D54*INTRO!$E$50,0)) -> 73635 | H54: 0 | I54: 4 | J54: 3 | K54: 1 | L54: 1 | M54: =IF(INTRO!$E$37="Endemic",IF($H54>0,IF($H54=4,"Unknown",IF($H54=99,"Stopped",$D54)),0),"Not required") -> 0 | N54: =IF(INTRO!$E$39="Endemic", IF($I54>0, IF($I54=4,"Unknown",IF($I54=99,"Stopped",$D54)), 0),"Not required") -> Unknown | O54: =IF(INTRO!$E$41="Endemic", IF($J54>1, IF($J54=4, "Unknown", IF($J54=99, "Surveillance", E54)), 0),"Not required") -> 27208.494 | P54: =IF(INTRO!$E$41="Endemic", IF($J54>1, IF($J54=4, "Unknown", IF($J54=99, "Surveillance", F54)), 0),"Not required") -> 33831 | Q54: =IF(INTRO!$E$41="Endemic", IF($J54>1, IF($J54=4, "Unknown", IF($J54=99, "Surveillance", ROUND(D54*INTRO!$E$51,0))), 0),"Not required") -> 4732 | R54: =IF(INTRO!$E$41="Endemic", IF($J54>1, IF($J54=4, "Unknown", IF($J54=99, "Surveillance", SUM($O54:$Q54))), 0),"Not required") -> 65771.494 | S54: =IF(INTRO!$E$43="Endemic", IF($K54>1, IF($K54=4, "Unknown", IF($K54=99, "Surveillance", ROUND(E54*0.75,0))), 0),"Not required") -> 0 | T54: =IF(INTRO!$E$43="Endemic", IF($K54>1, IF($K54=4, "Unknown", IF($K54=99, "Surveillance", F54)), 0),"Not required") -> 0 | U54: =IF(INTRO!$E$43="Endemic", IF($K54>1, IF($K54=4, "Unknown", IF($K54=99, "Surveillance", G54)), 0),"Not required") -> 0 | V54: =IF(INTRO!$E$43="Endemic", IF($K54>1, IF($K54=4, "Unknown", IF($K54=99, "Surveillance", SUM($S54:$U54))), 0),"Not required") -> 0 | W54: 0 | X54: 0 | Y54: 1 | Z54: 0 | AB54: Yes | AH54: 7460 | AI54: BATOURI
A55: =IF(INTRO!$E$33<>0,INTRO!$E$33, " ") -> Cameroun | B55: Est | C55: Belabo | D55: 130726 | E55: 15198.138 | F55: =IF(INTRO!$E$49="","",ROUND($D55*INTRO!$E$49,0)) -> 34577 | G55: =IF(INTRO!$E$50="","",ROUND($D55*INTRO!$E$50,0)) -> 75259 | H55: 99 | I55: 1 | J55: 3 | K55: 2 | L55: 1 | M55: =IF(INTRO!$E$37="Endemic",IF($H55>0,IF($H55=4,"Unknown",IF($H55=99,"Stopped",$D55)),0),"Not required") -> Stopped | N55: =IF(INTRO!$E$39="Endemic", IF($I55>0, IF($I55=4,"Unknown",IF($I55=99,"Stopped",$D55)), 0),"Not required") -> 130726 | O55: =IF(INTRO!$E$41="Endemic", IF($J55>1, IF($J55=4, "Unknown", IF($J55=99, "Surveillance", E55)), 0),"Not required") -> 15198.138 | P55: =IF(INTRO!$E$41="Endemic", IF($J55>1, IF($J55=4, "Unknown", IF($J55=99, "Surveillance", F55)), 0),"Not required") -> 34577 | Q55: =IF(INTRO!$E$41="Endemic", IF($J55>1, IF($J55=4, "Unknown", IF($J55=99, "Surveillance", ROUND(D55*INTRO!$E$51,0))), 0),"Not required") -> 4837 | R55: =IF(INTRO!$E$41="Endemic", IF($J55>1, IF($J55=4, "Unknown", IF($J55=99, "Surveillance", SUM($O55:$Q55))), 0),"Not required") -> 54612.138 | S55: =IF(INTRO!$E$43="Endemic", IF($K55>1, IF($K55=4, "Unknown", IF($K55=99, "Surveillance", ROUND(E55*0.75,0))), 0),"Not required") -> 11399 | T55: =IF(INTRO!$E$43="Endemic", IF($K55>1, IF($K55=4, "Unknown", IF($K55=99, "Surveillance", F55)), 0),"Not required") -> 34577 | U55: =IF(INTRO!$E$43="Endemic", IF($K55>1, IF($K55=4, "Unknown", IF($K55=99, "Surveillance", G55)), 0),"Not required") -> 75259 | V55: =IF(INTRO!$E$43="Endemic", IF($K55>1, IF($K55=4, "Unknown", IF($K55=99, "Surveillance", SUM($S55:$U55))), 0),"Not required") -> 121235 | W55: 0 | X55: 1 | Y55: 1 | Z55: 1 | AA55: TAS | AB55: Yes | AH55: 7612 | AI55: BELABO
A56: =IF(INTRO!$E$33<>0,INTRO!$E$33, " ") -> Cameroun | B56: Est | C56: Bertoua | D56: 255484 | E56: 58267.566 | F56: =IF(INTRO!$E$49="","",ROUND($D56*INTRO!$E$49,0)) -> 67576 | G56: =IF(INTRO!$E$50="","",ROUND($D56*INTRO!$E$50,0)) -> 147082 | H56: 99 | I56: 4 | J56: 3 | K56: 2 | L56: 1 | M56: =IF(INTRO!$E$37="Endemic",IF($H56>0,IF($H56=4,"Unknown",IF($H56=99,"Stopped",$D56)),0),"Not required") -> Stopped | N56: =IF(INTRO!$E$39="Endemic", IF($I56>0, IF($I56=4,"Unknown",IF($I56=99,"Stopped",$D56)), 0),"Not required") -> Unknown | O56: =IF(INTRO!$E$41="Endemic", IF($J56>1, IF($J56=4, "Unknown", IF($J56=99, "Surveillance", E56)), 0),"Not required") -> 58267.566 | P56: =IF(INTRO!$E$41="Endemic", IF($J56>1, IF($J56=4, "Unknown", IF($J56=99, "Surveillance", F56)), 0),"Not required") -> 67576 | Q56: =IF(INTRO!$E$41="Endemic", IF($J56>1, IF($J56=4, "Unknown", IF($J56=99, "Surveillance", ROUND(D56*INTRO!$E$51,0))), 0),"Not required") -> 9453 | R56: =IF(INTRO!$E$41="Endemic", IF($J56>1, IF($J56=4, "Unknown", IF($J56=99, "Surveillance", SUM($O56:$Q56))), 0),"Not required") -> 135296.566 | S56: =IF(INTRO!$E$43="Endemic", IF($K56>1, IF($K56=4, "Unknown", IF($K56=99, "Surveillance", ROUND(E56*0.75,0))), 0),"Not required") -> 43701 | T56: =IF(INTRO!$E$43="Endemic", IF($K56>1, IF($K56=4, "Unknown", IF($K56=99, "Surveillance", F56)), 0),"Not required") -> 67576 | U56: =IF(INTRO!$E$43="Endemic", IF($K56>1, IF($K56=4, "Unknown", IF($K56=99, "Surveillance", G56)), 0),"Not required") -> 147082 | V56: =IF(INTRO!$E$43="Endemic", IF($K56>1, IF($K56=4, "Unknown", IF($K56=99, "Surveillance", SUM($S56:$U56))), 0),"Not required") -> 258359 | W56: 0 | X56: 0 | Y56: 1 | Z56: 1 | AB56: Yes | AH56: 7461 | AI56: BERTOUA
A57: =IF(INTRO!$E$33<>0,INTRO!$E$33, " ") -> Cameroun | B57: Est | C57: Betare Oya | D57: 149226 | E57: 40708.602 | F57: =IF(INTRO!$E$49="","",ROUND($D57*INTRO!$E$49,0)) -> 39470 | G57: =IF(INTRO!$E$50="","",ROUND($D57*INTRO!$E$50,0)) -> 85909 | H57: 99 | I57: 1 | J57: 3 | K57: 2 | L57: 1 | M57: =IF(INTRO!$E$37="Endemic",IF($H57>0,IF($H57=4,"Unknown",IF($H57=99,"Stopped",$D57)),0),"Not required") -> Stopped | N57: =IF(INTRO!$E$39="Endemic", IF($I57>0, IF($I57=4,"Unknown",IF($I57=99,"Stopped",$D57)), 0),"Not required") -> 149226 | O57: =IF(INTRO!$E$41="Endemic", IF($J57>1, IF($J57=4, "Unknown", IF($J57=99, "Surveillance", E57)), 0),"Not required") -> 40708.602 | P57: =IF(INTRO!$E$41="Endemic", IF($J57>1, IF($J57=4, "Unknown", IF($J57=99, "Surveillance", F57)), 0),"Not required") -> 39470 | Q57: =IF(INTRO!$E$41="Endemic", IF($J57>1, IF($J57=4, "Unknown", IF($J57=99, "Surveillance", ROUND(D57*INTRO!$E$51,0))), 0),"Not required") -> 5521 | R57: =IF(INTRO!$E$41="Endemic", IF($J57>1, IF($J57=4, "Unknown", IF($J57=99, "Surveillance", SUM($O57:$Q57))), 0),"Not required") -> 85699.602 | S57: =IF(INTRO!$E$43="Endemic", IF($K57>1, IF($K57=4, "Unknown", IF($K57=99, "Surveillance", ROUND(E57*0.75,0))), 0),"Not required") -> 30531 | T57: =IF(INTRO!$E$43="Endemic", IF($K57>1, IF($K57=4, "Unknown", IF($K57=99, "Surveillance", F57)), 0),"Not required") -> 39470 | U57: =IF(INTRO!$E$43="Endemic", IF($K57>1, IF($K57=4, "Unknown", IF($K57=99, "Surveillance", G57)), 0),"Not required") -> 85909 | V57: =IF(INTRO!$E$43="Endemic", IF($K57>1, IF($K57=4, "Unknown", IF($K57=99, "Surveillance", SUM($S57:$U57))), 0),"Not required") -> 155910 | W57: 0 | X57: 1 | Y57: 1 | Z57: 1 | AA57: TAS | AB57: Yes | AH57: 7462 | AI57: BETARE OYA
A58: =IF(INTRO!$E$33<>0,INTRO!$E$33, " ") -> Cameroun | B58: Est | C58: Doume | D58: 56236 | E58: 8996.994 | F58: =IF(INTRO!$E$49="","",ROUND($D58*INTRO!$E$49,0)) -> 14874 | G58: =IF(INTRO!$E$50="","",ROUND($D58*INTRO!$E$50,0)) -> 32375 | H58: 0 | I58: 4 | J58: 3 | K58: 2 | L58: 1 | M58: =IF(INTRO!$E$37="Endemic",IF($H58>0,IF($H58=4,"Unknown",IF($H58=99,"Stopped",$D58)),0),"Not required") -> 0 | N58: =IF(INTRO!$E$39="Endemic", IF($I58>0, IF($I58=4,"Unknown",IF($I58=99,"Stopped",$D58)), 0),"Not required") -> Unknown | O58: =IF(INTRO!$E$41="Endemic", IF($J58>1, IF($J58=4, "Unknown", IF($J58=99, "Surveillance", E58)), 0),"Not required") -> 8996.994 | P58: =IF(INTRO!$E$41="Endemic", IF($J58>1, IF($J58=4, "Unknown", IF($J58=99, "Surveillance", F58)), 0),"Not required") -> 14874 | Q58: =IF(INTRO!$E$41="Endemic", IF($J58>1, IF($J58=4, "Unknown", IF($J58=99, "Surveillance", ROUND(D58*INTRO!$E$51,0))), 0),"Not required") -> 2081 | R58: =IF(INTRO!$E$41="Endemic", IF($J58>1, IF($J58=4, "Unknown", IF($J58=99, "Surveillance", SUM($O58:$Q58))), 0),"Not required") -> 25951.994 | S58: =IF(INTRO!$E$43="Endemic", IF($K58>1, IF($K58=4, "Unknown", IF($K58=99, "Surveillance", ROUND(E58*0.75,0))), 0),"Not required") -> 6748 | T58: =IF(INTRO!$E$43="Endemic", IF($K58>1, IF($K58=4, "Unknown", IF($K58=99, "Surveillance", F58)), 0),"Not required") -> 14874 | U58: =IF(INTRO!$E$43="Endemic", IF($K58>1, IF($K58=4, "Unknown", IF($K58=99, "Surveillance", G58)), 0),"Not required") -> 32375 | V58: =IF(INTRO!$E$43="Endemic", IF($K58>1, IF($K58=4, "Unknown", IF($K58=99, "Surveillance", SUM($S58:$U58))), 0),"Not required") -> 53997 | W58: 0 | X58: 0 | Y58: 1 | Z58: 1 | AB58: Yes | AH58: 7463 | AI58: DOUME
A59: =IF(INTRO!$E$33<>0,INTRO!$E$33, " ") -> Cameroun | B59: Est | C59: Garoua Boulai | D59: 129102 | E59: 39757.5 | F59: =IF(INTRO!$E$49="","",ROUND($D59*INTRO!$E$49,0)) -> 34147 | G59: =IF(INTRO!$E$50="","",ROUND($D59*INTRO!$E$50,0)) -> 74324 | H59: 0 | I59: 4 | J59: 3 | K59: 1 | L59: 1 | M59: =IF(INTRO!$E$37="Endemic",IF($H59>0,IF($H59=4,"Unknown",IF($H59=99,"Stopped",$D59)),0),"Not required") -> 0 | N59: =IF(INTRO!$E$39="Endemic", IF($I59>0, IF($I59=4,"Unknown",IF($I59=99,"Stopped",$D59)), 0),"Not required") -> Unknown | O59: =IF(INTRO!$E$41="Endemic", IF($J59>1, IF($J59=4, "Unknown", IF($J59=99, "Surveillance", E59)), 0),"Not required") -> 39757.5 | P59: =IF(INTRO!$E$41="Endemic", IF($J59>1, IF($J59=4, "Unknown", IF($J59=99, "Surveillance", F59)), 0),"Not required") -> 34147 | Q59: =IF(INTRO!$E$41="Endemic", IF($J59>1, IF($J59=4, "Unknown", IF($J59=99, "Surveillance", ROUND(D59*INTRO!$E$51,0))), 0),"Not required") -> 4777 | R59: =IF(INTRO!$E$41="Endemic", IF($J59>1, IF($J59=4, "Unknown", IF($J59=99, "Surveillance", SUM($O59:$Q59))), 0),"Not required") -> 78681.5 | S59: =IF(INTRO!$E$43="Endemic", IF($K59>1, IF($K59=4, "Unknown", IF($K59=99, "Surveillance", ROUND(E59*0.75,0))), 0),"Not required") -> 0 | T59: =IF(INTRO!$E$43="Endemic", IF($K59>1, IF($K59=4, "Unknown", IF($K59=99, "Surveillance", F59)), 0),"Not required") -> 0 | U59: =IF(INTRO!$E$43="Endemic", IF($K59>1, IF($K59=4, "Unknown", IF($K59=99, "Surveillance", G59)), 0),"Not required") -> 0 | V59: =IF(INTRO!$E$43="Endemic", IF($K59>1, IF($K59=4, "Unknown", IF($K59=99, "Surveillance", SUM($S59:$U59))), 0),"Not required") -> 0 | W59: 0 | X59: 0 | Y59: 1 | Z59: 0 | AB59: Yes | AH59: 7464 | AI59: GAROUA BOULAI
A60: =IF(INTRO!$E$33<>0,INTRO!$E$33, " ") -> Cameroun | B60: Est | C60: Kette | D60: 84039 | E60: 40989.726 | F60: =IF(INTRO!$E$49="","",ROUND($D60*INTRO!$E$49,0)) -> 22228 | G60: =IF(INTRO!$E$50="","",ROUND($D60*INTRO!$E$50,0)) -> 48381 | H60: 0 | I60: 4 | J60: 3 | K60: 2 | L60: 1 | M60: =IF(INTRO!$E$37="Endemic",IF($H60>0,IF($H60=4,"Unknown",IF($H60=99,"Stopped",$D60)),0),"Not required") -> 0 | N60: =IF(INTRO!$E$39="Endemic", IF($I60>0, IF($I60=4,"Unknown",IF($I60=99,"Stopped",$D60)), 0),"Not required") -> Unknown | O60: =IF(INTRO!$E$41="Endemic", IF($J60>1, IF($J60=4, "Unknown", IF($J60=99, "Surveillance", E60)), 0),"Not required") -> 40989.726 | P60: =IF(INTRO!$E$41="Endemic", IF($J60>1, IF($J60=4, "Unknown", IF($J60=99, "Surveillance", F60)), 0),"Not required") -> 22228 | Q60: =IF(INTRO!$E$41="Endemic", IF($J60>1, IF($J60=4, "Unknown", IF($J60=99, "Surveillance", ROUND(D60*INTRO!$E$51,0))), 0),"Not required") -> 3109 | R60: =IF(INTRO!$E$41="Endemic", IF($J60>1, IF($J60=4, "Unknown", IF($J60=99, "Surveillance", SUM($O60:$Q60))), 0),"Not required") -> 66326.726 | S60: =IF(INTRO!$E$43="Endemic", IF($K60>1, IF($K60=4, "Unknown", IF($K60=99, "Surveillance", ROUND(E60*0.75,0))), 0),"Not required") -> 30742 | T60: =IF(INTRO!$E$43="Endemic", IF($K60>1, IF($K60=4, "Unknown", IF($K60=99, "Surveillance", F60)), 0),"Not required") -> 22228 | U60: =IF(INTRO!$E$43="Endemic", IF($K60>1, IF($K60=4, "Unknown", IF($K60=99, "Surveillance", G60)), 0),"Not required") -> 48381 | V60: =IF(INTRO!$E$43="Endemic", IF($K60>1, IF($K60=4, "Unknown", IF($K60=99, "Surveillance", SUM($S60:$U60))), 0),"Not required") -> 101351 | W60: 0 | X60: 0 | Y60: 1 | Z60: 1 | AB60: Yes | AH60: 7465 | AI60: KETTE
A61: =IF(INTRO!$E$33<>0,INTRO!$E$33, " ") -> Cameroun | B61: Est | C61: Lomie | D61: 50335 | E61: 7618.05 | F61: =IF(INTRO!$E$49="","",ROUND($D61*INTRO!$E$49,0)) -> 13314 | G61: =IF(INTRO!$E$50="","",ROUND($D61*INTRO!$E$50,0)) -> 28978 | H61: 99 | I61: 1 | J61: 3 | K61: 1 | L61: 1 | M61: =IF(INTRO!$E$37="Endemic",IF($H61>0,IF($H61=4,"Unknown",IF($H61=99,"Stopped",$D61)),0),"Not required") -> Stopped | N61: =IF(INTRO!$E$39="Endemic", IF($I61>0, IF($I61=4,"Unknown",IF($I61=99,"Stopped",$D61)), 0),"Not required") -> 50335 | O61: =IF(INTRO!$E$41="Endemic", IF($J61>1, IF($J61=4, "Unknown", IF($J61=99, "Surveillance", E61)), 0),"Not required") -> 7618.05 | P61: =IF(INTRO!$E$41="Endemic", IF($J61>1, IF($J61=4, "Unknown", IF($J61=99, "Surveillance", F61)), 0),"Not required") -> 13314 | Q61: =IF(INTRO!$E$41="Endemic", IF($J61>1, IF($J61=4, "Unknown", IF($J61=99, "Surveillance", ROUND(D61*INTRO!$E$51,0))), 0),"Not required") -> 1862 | R61: =IF(INTRO!$E$41="Endemic", IF($J61>1, IF($J61=4, "Unknown", IF($J61=99, "Surveillance", SUM($O61:$Q61))), 0),"Not required") -> 22794.05 | S61: =IF(INTRO!$E$43="Endemic", IF($K61>1, IF($K61=4, "Unknown", IF($K61=99, "Surveillance", ROUND(E61*0.75,0))), 0),"Not required") -> 0 | T61: =IF(INTRO!$E$43="Endemic", IF($K61>1, IF($K61=4, "Unknown", IF($K61=99, "Surveillance", F61)), 0),"Not required") -> 0 | U61: =IF(INTRO!$E$43="Endemic", IF($K61>1, IF($K61=4, "Unknown", IF($K61=99, "Surveillance", G61)), 0),"Not required") -> 0 | V61: =IF(INTRO!$E$43="Endemic", IF($K61>1, IF($K61=4, "Unknown", IF($K61=99, "Surveillance", SUM($S61:$U61))), 0),"Not required") -> 0 | W61: 0 | X61: 1 | Y61: 1 | Z61: 0 | AA61: TAS | AB61: Yes | AH61: 7466 | AI61: LOMIE
A62: =IF(INTRO!$E$33<>0,INTRO!$E$33, " ") -> Cameroun | B62: Est | C62: Mbang | D62: 36218 | E62: 7962.786 | F62: =IF(INTRO!$E$49="","",ROUND($D62*INTRO!$E$49,0)) -> 9580 | G62: =IF(INTRO!$E$50="","",ROUND($D62*INTRO!$E$50,0)) -> 20851 | H62: 0 | I62: 4 | J62: 3 | K62: 1 | L62: 1 | M62: =IF(INTRO!$E$37="Endemic",IF($H62>0,IF($H62=4,"Unknown",IF($H62=99,"Stopped",$D62)),0),"Not required") -> 0 | N62: =IF(INTRO!$E$39="Endemic", IF($I62>0, IF($I62=4,"Unknown",IF($I62=99,"Stopped",$D62)), 0),"Not required") -> Unknown | O62: =IF(INTRO!$E$41="Endemic", IF($J62>1, IF($J62=4, "Unknown", IF($J62=99, "Surveillance", E62)), 0),"Not required") -> 7962.786 | P62: =IF(INTRO!$E$41="Endemic", IF($J62>1, IF($J62=4, "Unknown", IF($J62=99, "Surveillance", F62)), 0),"Not required") -> 9580 | Q62: =IF(INTRO!$E$41="Endemic", IF($J62>1, IF($J62=4, "Unknown", IF($J62=99, "Surveillance", ROUND(D62*INTRO!$E$51,0))), 0),"Not required") -> 1340 | R62: =IF(INTRO!$E$41="Endemic", IF($J62>1, IF($J62=4, "Unknown", IF($J62=99, "Surveillance", SUM($O62:$Q62))), 0),"Not required") -> 18882.786 | S62: =IF(INTRO!$E$43="Endemic", IF($K62>1, IF($K62=4, "Unknown", IF($K62=99, "Surveillance", ROUND(E62*0.75,0))), 0),"Not required") -> 0 | T62: =IF(INTRO!$E$43="Endemic", IF($K62>1, IF($K62=4, "Unknown", IF($K62=99, "Surveillance", F62)), 0),"Not required") -> 0 | U62: =IF(INTRO!$E$43="Endemic", IF($K62>1, IF($K62=4, "Unknown", IF($K62=99, "Surveillance", G62)), 0),"Not required") -> 0 | V62: =IF(INTRO!$E$43="Endemic", IF($K62>1, IF($K62=4, "Unknown", IF($K62=99, "Surveillance", SUM($S62:$U62))), 0),"Not required") -> 0 | W62: 0 | X62: 0 | Y62: 1 | Z62: 0 | AB62: Yes | AH62: 7467 | AI62: MBANG
A63: =IF(INTRO!$E$33<>0,INTRO!$E$33, " ") -> Cameroun | B63: Est | C63: Messamena | D63: 34015 | E63: 4497.984 | F63: =IF(INTRO!$E$49="","",ROUND($D63*INTRO!$E$49,0)) -> 8997 | G63: =IF(INTRO!$E$50="","",ROUND($D63*INTRO!$E$50,0)) -> 19582 | H63: 99 | I63: 1 | J63: 3 | K63: 1 | L63: 1 | M63: =IF(INTRO!$E$37="Endemic",IF($H63>0,IF($H63=4,"Unknown",IF($H63=99,"Stopped",$D63)),0),"Not required") -> Stopped | N63: =IF(INTRO!$E$39="Endemic", IF($I63>0, IF($I63=4,"Unknown",IF($I63=99,"Stopped",$D63)), 0),"Not required") -> 34015 | O63: =IF(INTRO!$E$41="Endemic", IF($J63>1, IF($J63=4, "Unknown", IF($J63=99, "Surveillance", E63)), 0),"Not required") -> 4497.984 | P63: =IF(INTRO!$E$41="Endemic", IF($J63>1, IF($J63=4, "Unknown", IF($J63=99, "Surveillance", F63)), 0),"Not required") -> 8997 | Q63: =IF(INTRO!$E$41="Endemic", IF($J63>1, IF($J63=4, "Unknown", IF($J63=99, "Surveillance", ROUND(D63*INTRO!$E$51,0))), 0),"Not required") -> 1259 | R63: =IF(INTRO!$E$41="Endemic", IF($J63>1, IF($J63=4, "Unknown", IF($J63=99, "Surveillance", SUM($O63:$Q63))), 0),"Not required") -> 14753.984 | S63: =IF(INTRO!$E$43="Endemic", IF($K63>1, IF($K63=4, "Unknown", IF($K63=99, "Surveillance", ROUND(E63*0.75,0))), 0),"Not required") -> 0 | T63: =IF(INTRO!$E$43="Endemic", IF($K63>1, IF($K63=4, "Unknown", IF($K63=99, "Surveillance", F63)), 0),"Not required") -> 0 | U63: =IF(INTRO!$E$43="Endemic", IF($K63>1, IF($K63=4, "Unknown", IF($K63=99, "Surveillance", G63)), 0),"Not required") -> 0 | V63: =IF(INTRO!$E$43="Endemic", IF($K63>1, IF($K63=4, "Unknown", IF($K63=99, "Surveillance", SUM($S63:$U63))), 0),"Not required") -> 0 | W63: 0 | X63: 1 | Y63: 1 | Z63: 0 | AB63: Yes | AH63: 7468 | AI63: MESSAMENA
A64: =IF(INTRO!$E$33<>0,INTRO!$E$33, " ") -> Cameroun | B64: Est | C64: Moloundou | D64: 53868 | E64: 8229.546 | F64: =IF(INTRO!$E$49="","",ROUND($D64*INTRO!$E$49,0)) -> 14248 | G64: =IF(INTRO!$E$50="","",ROUND($D64*INTRO!$E$50,0)) -> 31012 | H64: 0 | I64: 4 | J64: 3 | K64: 1 | L64: 1 | M64: =IF(INTRO!$E$37="Endemic",IF($H64>0,IF($H64=4,"Unknown",IF($H64=99,"Stopped",$D64)),0),"Not required") -> 0 | N64: =IF(INTRO!$E$39="Endemic", IF($I64>0, IF($I64=4,"Unknown",IF($I64=99,"Stopped",$D64)), 0),"Not required") -> Unknown | O64: =IF(INTRO!$E$41="Endemic", IF($J64>1, IF($J64=4, "Unknown", IF($J64=99, "Surveillance", E64)), 0),"Not required") -> 8229.546 | P64: =IF(INTRO!$E$41="Endemic", IF($J64>1, IF($J64=4, "Unknown", IF($J64=99, "Surveillance", F64)), 0),"Not required") -> 14248 | Q64: =IF(INTRO!$E$41="Endemic", IF($J64>1, IF($J64=4, "Unknown", IF($J64=99, "Surveillance", ROUND(D64*INTRO!$E$51,0))), 0),"Not required") -> 1993 | R64: =IF(INTRO!$E$41="Endemic", IF($J64>1, IF($J64=4, "Unknown", IF($J64=99, "Surveillance", SUM($O64:$Q64))), 0),"Not required") -> 24470.546 | S64: =IF(INTRO!$E$43="Endemic", IF($K64>1, IF($K64=4, "Unknown", IF($K64=99, "Surveillance", ROUND(E64*0.75,0))), 0),"Not required") -> 0 | T64: =IF(INTRO!$E$43="Endemic", IF($K64>1, IF($K64=4, "Unknown", IF($K64=99, "Surveillance", F64)), 0),"Not required") -> 0 | U64: =IF(INTRO!$E$43="Endemic", IF($K64>1, IF($K64=4, "Unknown", IF($K64=99, "Surveillance", G64)), 0),"Not required") -> 0 | V64: =IF(INTRO!$E$43="Endemic", IF($K64>1, IF($K64=4, "Unknown", IF($K64=99, "Surveillance", SUM($S64:$U64))), 0),"Not required") -> 0 | W64: 0 | X64: 0 | Y64: 1 | Z64: 0 | AB64: Yes | AH64: 7469 | AI64: MOLOUNDOU
A65: =IF(INTRO!$E$33<>0,INTRO!$E$33, " ") -> Cameroun | B65: Est | C65: Ndelele | D65: 107317 | E65: 20494.35 | F65: =IF(INTRO!$E$49="","",ROUND($D65*INTRO!$E$49,0)) -> 28385 | G65: =IF(INTRO!$E$50="","",ROUND($D65*INTRO!$E$50,0)) -> 61782 | H65: 0 | I65: 4 | J65: 3 | K65: 1 | L65: 1 | M65: =IF(INTRO!$E$37="Endemic",IF($H65>0,IF($H65=4,"Unknown",IF($H65=99,"Stopped",$D65)),0),"Not required") -> 0 | N65: =IF(INTRO!$E$39="Endemic", IF($I65>0, IF($I65=4,"Unknown",IF($I65=99,"Stopped",$D65)), 0),"Not required") -> Unknown | O65: =IF(INTRO!$E$41="Endemic", IF($J65>1, IF($J65=4, "Unknown", IF($J65=99, "Surveillance", E65)), 0),"Not required") -> 20494.35 | P65: =IF(INTRO!$E$41="Endemic", IF($J65>1, IF($J65=4, "Unknown", IF($J65=99, "Surveillance", F65)), 0),"Not required") -> 28385 | Q65: =IF(INTRO!$E$41="Endemic", IF($J65>1, IF($J65=4, "Unknown", IF($J65=99, "Surveillance", ROUND(D65*INTRO!$E$51,0))), 0),"Not required") -> 3971 | R65: =IF(INTRO!$E$41="Endemic", IF($J65>1, IF($J65=4, "Unknown", IF($J65=99, "Surveillance", SUM($O65:$Q65))), 0),"Not required") -> 52850.35 | S65: =IF(INTRO!$E$43="Endemic", IF($K65>1, IF($K65=4, "Unknown", IF($K65=99, "Surveillance", ROUND(E65*0.75,0))), 0),"Not required") -> 0 | T65: =IF(INTRO!$E$43="Endemic", IF($K65>1, IF($K65=4, "Unknown", IF($K65=99, "Surveillance", F65)), 0),"Not required") -> 0 | U65: =IF(INTRO!$E$43="Endemic", IF($K65>1, IF($K65=4, "Unknown", IF($K65=99, "Surveillance", G65)), 0),"Not required") -> 0 | V65: =IF(INTRO!$E$43="Endemic", IF($K65>1, IF($K65=4, "Unknown", IF($K65=99, "Surveillance", SUM($S65:$U65))), 0),"Not required") -> 0 | W65: 0 | X65: 0 | Y65: 1 | Z65: 0 | AB65: Yes | AH65: 7470 | AI65: NDELELE
A66: =IF(INTRO!$E$33<>0,INTRO!$E$33, " ") -> Cameroun | B66: Est | C66: Nguelemendouka | D66: 33993 | E66: 7323.588 | F66: =IF(INTRO!$E$49="","",ROUND($D66*INTRO!$E$49,0)) -> 8991 | G66: =IF(INTRO!$E$50="","",ROUND($D66*INTRO!$E$50,0)) -> 19570 | H66: 0 | I66: 4 | J66: 3 | K66: 1 | L66: 1 | M66: =IF(INTRO!$E$37="Endemic",IF($H66>0,IF($H66=4,"Unknown",IF($H66=99,"Stopped",$D66)),0),"Not required") -> 0 | N66: =IF(INTRO!$E$39="Endemic", IF($I66>0, IF($I66=4,"Unknown",IF($I66=99,"Stopped",$D66)), 0),"Not required") -> Unknown | O66: =IF(INTRO!$E$41="Endemic", IF($J66>1, IF($J66=4, "Unknown", IF($J66=99, "Surveillance", E66)), 0),"Not required") -> 7323.588 | P66: =IF(INTRO!$E$41="Endemic", IF($J66>1, IF($J66=4, "Unknown", IF($J66=99, "Surveillance", F66)), 0),"Not required") -> 8991 | Q66: =IF(INTRO!$E$41="Endemic", IF($J66>1, IF($J66=4, "Unknown", IF($J66=99, "Surveillance", ROUND(D66*INTRO!$E$51,0))), 0),"Not required") -> 1258 | R66: =IF(INTRO!$E$41="Endemic", IF($J66>1, IF($J66=4, "Unknown", IF($J66=99, "Surveillance", SUM($O66:$Q66))), 0),"Not required") -> 17572.588 | S66: =IF(INTRO!$E$43="Endemic", IF($K66>1, IF($K66=4, "Unknown", IF($K66=99, "Surveillance", ROUND(E66*0.75,0))), 0),"Not required") -> 0 | T66: =IF(INTRO!$E$43="Endemic", IF($K66>1, IF($K66=4, "Unknown", IF($K66=99, "Surveillance", F66)), 0),"Not required") -> 0 | U66: =IF(INTRO!$E$43="Endemic", IF($K66>1, IF($K66=4, "Unknown", IF($K66=99, "Surveillance", G66)), 0),"Not required") -> 0 | V66: =IF(INTRO!$E$43="Endemic", IF($K66>1, IF($K66=4, "Unknown", IF($K66=99, "Surveillance", SUM($S66:$U66))), 0),"Not required") -> 0 | W66: 0 | X66: 0 | Y66: 1 | Z66: 0 | AB66: Yes | AH66: 7471 | AI66: NGUELEMENDOUKA
A67: =IF(INTRO!$E$33<>0,INTRO!$E$33, " ") -> Cameroun | B67: Est | C67: Yokadouma | D67: 130454 | E67: 27857.952 | F67: =IF(INTRO!$E$49="","",ROUND($D67*INTRO!$E$49,0)) -> 34505 | G67: =IF(INTRO!$E$50="","",ROUND($D67*INTRO!$E$50,0)) -> 75102 | H67: 0 | I67: 4 | J67: 3 | K67: 1 | L67: 1 | M67: =IF(INTRO!$E$37="Endemic",IF($H67>0,IF($H67=4,"Unknown",IF($H67=99,"Stopped",$D67)),0),"Not required") -> 0 | N67: =IF(INTRO!$E$39="Endemic", IF($I67>0, IF($I67=4,"Unknown",IF($I67=99,"Stopped",$D67)), 0),"Not required") -> Unknown | O67: =IF(INTRO!$E$41="Endemic", IF($J67>1, IF($J67=4, "Unknown", IF($J67=99, "Surveillance", E67)), 0),"Not required") -> 27857.952 | P67: =IF(INTRO!$E$41="Endemic", IF($J67>1, IF($J67=4, "Unknown", IF($J67=99, "Surveillance", F67)), 0),"Not required") -> 34505 | Q67: =IF(INTRO!$E$41="Endemic", IF($J67>1, IF($J67=4, "Unknown", IF($J67=99, "Surveillance", ROUND(D67*INTRO!$E$51,0))), 0),"Not required") -> 4827 | R67: =IF(INTRO!$E$41="Endemic", IF($J67>1, IF($J67=4, "Unknown", IF($J67=99, "Surveillance", SUM($O67:$Q67))), 0),"Not required") -> 67189.952 | S67: =IF(INTRO!$E$43="Endemic", IF($K67>1, IF($K67=4, "Unknown", IF($K67=99, "Surveillance", ROUND(E67*0.75,0))), 0),"Not required") -> 0 | T67: =IF(INTRO!$E$43="Endemic", IF($K67>1, IF($K67=4, "Unknown", IF($K67=99, "Surveillance", F67)), 0),"Not required") -> 0 | U67: =IF(INTRO!$E$43="Endemic", IF($K67>1, IF($K67=4, "Unknown", IF($K67=99, "Surveillance", G67)), 0),"Not required") -> 0 | V67: =IF(INTRO!$E$43="Endemic", IF($K67>1, IF($K67=4, "Unknown", IF($K67=99, "Surveillance", SUM($S67:$U67))), 0),"Not required") -> 0 | W67: 0 | X67: 0 | Y67: 1 | Z67: 0 | AB67: Yes | AH67: 7472 | AI67: YOKADOUMA
A68: =IF(INTRO!$E$33<>0,INTRO!$E$33, " ") -> Cameroun | B68: Extreme Nord | C68: Bogo | D68: 133175 | E68: 43004.79 | F68: =IF(INTRO!$E$49="","",ROUND($D68*INTRO!$E$49,0)) -> 35225 | G68: =IF(INTRO!$E$50="","",ROUND($D68*INTRO!$E$50,0)) -> 76669 | H68: 99 | I68: 4 | J68: 1 | K68: 2 | L68: 0 | M68: =IF(INTRO!$E$37="Endemic",IF($H68>0,IF($H68=4,"Unknown",IF($H68=99,"Stopped",$D68)),0),"Not required") -> Stopped | N68: =IF(INTRO!$E$39="Endemic", IF($I68>0, IF($I68=4,"Unknown",IF($I68=99,"Stopped",$D68)), 0),"Not required") -> Unknown | O68: =IF(INTRO!$E$41="Endemic", IF($J68>1, IF($J68=4, "Unknown", IF($J68=99, "Surveillance", E68)), 0),"Not required") -> 0 | P68: =IF(INTRO!$E$41="Endemic", IF($J68>1, IF($J68=4, "Unknown", IF($J68=99, "Surveillance", F68)), 0),"Not required") -> 0 | Q68: =IF(INTRO!$E$41="Endemic", IF($J68>1, IF($J68=4, "Unknown", IF($J68=99, "Surveillance", ROUND(D68*INTRO!$E$51,0))), 0),"Not required") -> 0 | R68: =IF(INTRO!$E$41="Endemic", IF($J68>1, IF($J68=4, "Unknown", IF($J68=99, "Surveillance", SUM($O68:$Q68))), 0),"Not required") -> 0 | S68: =IF(INTRO!$E$43="Endemic", IF($K68>1, IF($K68=4, "Unknown", IF($K68=99, "Surveillance", ROUND(E68*0.75,0))), 0),"Not required") -> 32254 | T68: =IF(INTRO!$E$43="Endemic", IF($K68>1, IF($K68=4, "Unknown", IF($K68=99, "Surveillance", F68)), 0),"Not required") -> 35225 | U68: =IF(INTRO!$E$43="Endemic", IF($K68>1, IF($K68=4, "Unknown", IF($K68=99, "Surveillance", G68)), 0),"Not required") -> 76669 | V68: =IF(INTRO!$E$43="Endemic", IF($K68>1, IF($K68=4, "Unknown", IF($K68=99, "Surveillance", SUM($S68:$U68))), 0),"Not required") -> 144148 | W68: 0 | X68: 0 | Y68: 0 | Z68: 1 | AB68: Yes | AH68: 7473 | AI68: BOGO
A69: =IF(INTRO!$E$33<>0,INTRO!$E$33, " ") -> Cameroun | B69: Extreme Nord | C69: Bourha | D69: 87832 | E69: 43854.318 | F69: =IF(INTRO!$E$49="","",ROUND($D69*INTRO!$E$49,0)) -> 23232 | G69: =IF(INTRO!$E$50="","",ROUND($D69*INTRO!$E$50,0)) -> 50565 | H69: 99 | I69: 4 | J69: 2 | K69: 3 | L69: 4 | M69: =IF(INTRO!$E$37="Endemic",IF($H69>0,IF($H69=4,"Unknown",IF($H69=99,"Stopped",$D69)),0),"Not required") -> Stopped | N69: =IF(INTRO!$E$39="Endemic", IF($I69>0, IF($I69=4,"Unknown",IF($I69=99,"Stopped",$D69)), 0),"Not required") -> Unknown | O69: =IF(INTRO!$E$41="Endemic", IF($J69>1, IF($J69=4, "Unknown", IF($J69=99, "Surveillance", E69)), 0),"Not required") -> 43854.318 | P69: =IF(INTRO!$E$41="Endemic", IF($J69>1, IF($J69=4, "Unknown", IF($J69=99, "Surveillance", F69)), 0),"Not required") -> 23232 | Q69: =IF(INTRO!$E$41="Endemic", IF($J69>1, IF($J69=4, "Unknown", IF($J69=99, "Surveillance", ROUND(D69*INTRO!$E$51,0))), 0),"Not required") -> 3250 | R69: =IF(INTRO!$E$41="Endemic", IF($J69>1, IF($J69=4, "Unknown", IF($J69=99, "Surveillance", SUM($O69:$Q69))), 0),"Not required") -> 70336.318 | S69: =IF(INTRO!$E$43="Endemic", IF($K69>1, IF($K69=4, "Unknown", IF($K69=99, "Surveillance", ROUND(E69*0.75,0))), 0),"Not required") -> 32891 | T69: =IF(INTRO!$E$43="Endemic", IF($K69>1, IF($K69=4, "Unknown", IF($K69=99, "Surveillance", F69)), 0),"Not required") -> 23232 | U69: =IF(INTRO!$E$43="Endemic", IF($K69>1, IF($K69=4, "Unknown", IF($K69=99, "Surveillance", G69)), 0),"Not required") -> 50565 | V69: =IF(INTRO!$E$43="Endemic", IF($K69>1, IF($K69=4, "Unknown", IF($K69=99, "Surveillance", SUM($S69:$U69))), 0),"Not required") -> 106688 | W69: 0 | X69: 0 | Y69: 1 | Z69: 1 | AB69: Yes | AH69: 7474 | AI69: BOURHA
A70: =IF(INTRO!$E$33<>0,INTRO!$E$33, " ") -> Cameroun | B70: Extreme Nord | C70: Fotokol | D70: 75912 | E70: 20799.072 | F70: =IF(INTRO!$E$49="","",ROUND($D70*INTRO!$E$49,0)) -> 20079 | G70: =IF(INTRO!$E$50="","",ROUND($D70*INTRO!$E$50,0)) -> 43703 | H70: 99 | I70: 4 | J70: 0 | K70: 3 | L70: 0 | M70: =IF(INTRO!$E$37="Endemic",IF($H70>0,IF($H70=4,"Unknown",IF($H70=99,"Stopped",$D70)),0),"Not required") -> Stopped | N70: =IF(INTRO!$E$39="Endemic", IF($I70>0, IF($I70=4,"Unknown",IF($I70=99,"Stopped",$D70)), 0),"Not required") -> Unknown | O70: =IF(INTRO!$E$41="Endemic", IF($J70>1, IF($J70=4, "Unknown", IF($J70=99, "Surveillance", E70)), 0),"Not required") -> 0 | P70: =IF(INTRO!$E$41="Endemic", IF($J70>1, IF($J70=4, "Unknown", IF($J70=99, "Surveillance", F70)), 0),"Not required") -> 0 | Q70: =IF(INTRO!$E$41="Endemic", IF($J70>1, IF($J70=4, "Unknown", IF($J70=99, "Surveillance", ROUND(D70*INTRO!$E$51,0))), 0),"Not required") -> 0 | R70: =IF(INTRO!$E$41="Endemic", IF($J70>1, IF($J70=4, "Unknown", IF($J70=99, "Surveillance", SUM($O70:$Q70))), 0),"Not required") -> 0 | S70: =IF(INTRO!$E$43="Endemic", IF($K70>1, IF($K70=4, "Unknown", IF($K70=99, "Surveillance", ROUND(E70*0.75,0))), 0),"Not required") -> 15599 | T70: =IF(INTRO!$E$43="Endemic", IF($K70>1, IF($K70=4, "Unknown", IF($K70=99, "Surveillance", F70)), 0),"Not required") -> 20079 | U70: =IF(INTRO!$E$43="Endemic", IF($K70>1, IF($K70=4, "Unknown", IF($K70=99, "Surveillance", G70)), 0),"Not required") -> 43703 | V70: =IF(INTRO!$E$43="Endemic", IF($K70>1, IF($K70=4, "Unknown", IF($K70=99, "Surveillance", SUM($S70:$U70))), 0),"Not required") -> 79381 | W70: 0 | X70: 0 | Y70: 0 | Z70: 1 | AB70: Yes | AH70: 7609 | AI70: Fotokol
A71: =IF(INTRO!$E$33<>0,INTRO!$E$33, " ") -> Cameroun | B71: Extreme Nord | C71: Gazawa | D71: 84230 | E71: 65516.256 | F71: =IF(INTRO!$E$49="","",ROUND($D71*INTRO!$E$49,0)) -> 22279 | G71: =IF(INTRO!$E$50="","",ROUND($D71*INTRO!$E$50,0)) -> 48491 | H71: 99 | I71: 4 | J71: 1 | K71: 2 | L71: 0 | M71: =IF(INTRO!$E$37="Endemic",IF($H71>0,IF($H71=4,"Unknown",IF($H71=99,"Stopped",$D71)),0),"Not required") -> Stopped | N71: =IF(INTRO!$E$39="Endemic", IF($I71>0, IF($I71=4,"Unknown",IF($I71=99,"Stopped",$D71)), 0),"Not required") -> Unknown | O71: =IF(INTRO!$E$41="Endemic", IF($J71>1, IF($J71=4, "Unknown", IF($J71=99, "Surveillance", E71)), 0),"Not required") -> 0 | P71: =IF(INTRO!$E$41="Endemic", IF($J71>1, IF($J71=4, "Unknown", IF($J71=99, "Surveillance", F71)), 0),"Not required") -> 0 | Q71: =IF(INTRO!$E$41="Endemic", IF($J71>1, IF($J71=4, "Unknown", IF($J71=99, "Surveillance", ROUND(D71*INTRO!$E$51,0))), 0),"Not required") -> 0 | R71: =IF(INTRO!$E$41="Endemic", IF($J71>1, IF($J71=4, "Unknown", IF($J71=99, "Surveillance", SUM($O71:$Q71))), 0),"Not required") -> 0 | S71: =IF(INTRO!$E$43="Endemic", IF($K71>1, IF($K71=4, "Unknown", IF($K71=99, "Surveillance", ROUND(E71*0.75,0))), 0),"Not required") -> 49137 | T71: =IF(INTRO!$E$43="Endemic", IF($K71>1, IF($K71=4, "Unknown", IF($K71=99, "Surveillance", F71)), 0),"Not required") -> 22279 | U71: =IF(INTRO!$E$43="Endemic", IF($K71>1, IF($K71=4, "Unknown", IF($K71=99, "Surveillance", G71)), 0),"Not required") -> 48491 | V71: =IF(INTRO!$E$43="Endemic", IF($K71>1, IF($K71=4, "Unknown", IF($K71=99, "Surveillance", SUM($S71:$U71))), 0),"Not required") -> 119907 | W71: 0 | X71: 0 | Y71: 0 | Z71: 1 | AB71: Yes | AH71: 7475 | AI71: GAZAWA
A72: =IF(INTRO!$E$33<>0,INTRO!$E$33, " ") -> Cameroun | B72: Extreme Nord | C72: Goulfey | D72: 109534 | E72: 32310.792 | F72: =IF(INTRO!$E$49="","",ROUND($D72*INTRO!$E$49,0)) -> 28972 | G72: =IF(INTRO!$E$50="","",ROUND($D72*INTRO!$E$50,0)) -> 63059 | H72: 99 | I72: 4 | J72: 1 | K72: 2 | L72: 0 | M72: =IF(INTRO!$E$37="Endemic",IF($H72>0,IF($H72=4,"Unknown",IF($H72=99,"Stopped",$D72)),0),"Not required") -> Stopped | N72: =IF(INTRO!$E$39="Endemic", IF($I72>0, IF($I72=4,"Unknown",IF($I72=99,"Stopped",$D72)), 0),"Not required") -> Unknown | O72: =IF(INTRO!$E$41="Endemic", IF($J72>1, IF($J72=4, "Unknown", IF($J72=99, "Surveillance", E72)), 0),"Not required") -> 0 | P72: =IF(INTRO!$E$41="Endemic", IF($J72>1, IF($J72=4, "Unknown", IF($J72=99, "Surveillance", F72)), 0),"Not required") -> 0 | Q72: =IF(INTRO!$E$41="Endemic", IF($J72>1, IF($J72=4, "Unknown", IF($J72=99, "Surveillance", ROUND(D72*INTRO!$E$51,0))), 0),"Not required") -> 0 | R72: =IF(INTRO!$E$41="Endemic", IF($J72>1, IF($J72=4, "Unknown", IF($J72=99, "Surveillance", SUM($O72:$Q72))), 0),"Not required") -> 0 | S72: =IF(INTRO!$E$43="Endemic", IF($K72>1, IF($K72=4, "Unknown", IF($K72=99, "Surveillance", ROUND(E72*0.75,0))), 0),"Not required") -> 24233 | T72: =IF(INTRO!$E$43="Endemic", IF($K72>1, IF($K72=4, "Unknown", IF($K72=99, "Surveillance", F72)), 0),"Not required") -> 28972 | U72: =IF(INTRO!$E$43="Endemic", IF($K72>1, IF($K72=4, "Unknown", IF($K72=99, "Surveillance", G72)), 0),"Not required") -> 63059 | V72: =IF(INTRO!$E$43="Endemic", IF($K72>1, IF($K72=4, "Unknown", IF($K72=99, "Surveillance", SUM($S72:$U72))), 0),"Not required") -> 116264 | W72: 0 | X72: 0 | Y72: 0 | Z72: 1 | AB72: Yes | AH72: 7476 | AI72: GOULFEY
A73: =IF(INTRO!$E$33<>0,INTRO!$E$33, " ") -> Cameroun | B73: Extreme Nord | C73: Guere | D73: 152822 | E73: 27996.462 | F73: =IF(INTRO!$E$49="","",ROUND($D73*INTRO!$E$49,0)) -> 40421 | G73: =IF(INTRO!$E$50="","",ROUND($D73*INTRO!$E$50,0)) -> 87980 | H73: 99 | I73: 4 | J73: 1 | K73: 3 | L73: 1 | M73: =IF(INTRO!$E$37="Endemic",IF($H73>0,IF($H73=4,"Unknown",IF($H73=99,"Stopped",$D73)),0),"Not required") -> Stopped | N73: =IF(INTRO!$E$39="Endemic", IF($I73>0, IF($I73=4,"Unknown",IF($I73=99,"Stopped",$D73)), 0),"Not required") -> Unknown | O73: =IF(INTRO!$E$41="Endemic", IF($J73>1, IF($J73=4, "Unknown", IF($J73=99, "Surveillance", E73)), 0),"Not required") -> 0 | P73: =IF(INTRO!$E$41="Endemic", IF($J73>1, IF($J73=4, "Unknown", IF($J73=99, "Surveillance", F73)), 0),"Not required") -> 0 | Q73: =IF(INTRO!$E$41="Endemic", IF($J73>1, IF($J73=4, "Unknown", IF($J73=99, "Surveillance", ROUND(D73*INTRO!$E$51,0))), 0),"Not required") -> 0 | R73: =IF(INTRO!$E$41="Endemic", IF($J73>1, IF($J73=4, "Unknown", IF($J73=99, "Surveillance", SUM($O73:$Q73))), 0),"Not required") -> 0 | S73: =IF(INTRO!$E$43="Endemic", IF($K73>1, IF($K73=4, "Unknown", IF($K73=99, "Surveillance", ROUND(E73*0.75,0))), 0),"Not required") -> 20997 | T73: =IF(INTRO!$E$43="Endemic", IF($K73>1, IF($K73=4, "Unknown", IF($K73=99, "Surveillance", F73)), 0),"Not required") -> 40421 | U73: =IF(INTRO!$E$43="Endemic", IF($K73>1, IF($K73=4, "Unknown", IF($K73=99, "Surveillance", G73)), 0),"Not required") -> 87980 | V73: =IF(INTRO!$E$43="Endemic", IF($K73>1, IF($K73=4, "Unknown", IF($K73=99, "Surveillance", SUM($S73:$U73))), 0),"Not required") -> 149398 | W73: 0 | X73: 0 | Y73: 0 | Z73: 1 | AB73: Yes | AH73: 7477 | AI73: GUERE
A74: =IF(INTRO!$E$33<>0,INTRO!$E$33, " ") -> Cameroun | B74: Extreme Nord | C74: Guidiguis | D74: 200247 | E74: 54109.188 | F74: =IF(INTRO!$E$49="","",ROUND($D74*INTRO!$E$49,0)) -> 52965 | G74: =IF(INTRO!$E$50="","",ROUND($D74*INTRO!$E$50,0)) -> 115282 | H74: 99 | I74: 4 | J74: 2 | K74: 3 | L74: 0 | M74: =IF(INTRO!$E$37="Endemic",IF($H74>0,IF($H74=4,"Unknown",IF($H74=99,"Stopped",$D74)),0),"Not required") -> Stopped | N74: =IF(INTRO!$E$39="Endemic", IF($I74>0, IF($I74=4,"Unknown",IF($I74=99,"Stopped",$D74)), 0),"Not required") -> Unknown | O74: =IF(INTRO!$E$41="Endemic", IF($J74>1, IF($J74=4, "Unknown", IF($J74=99, "Surveillance", E74)), 0),"Not required") -> 54109.188 | P74: =IF(INTRO!$E$41="Endemic", IF($J74>1, IF($J74=4, "Unknown", IF($J74=99, "Surveillance", F74)), 0),"Not required") -> 52965 | Q74: =IF(INTRO!$E$41="Endemic", IF($J74>1, IF($J74=4, "Unknown", IF($J74=99, "Surveillance", ROUND(D74*INTRO!$E$51,0))), 0),"Not required") -> 7409 | R74: =IF(INTRO!$E$41="Endemic", IF($J74>1, IF($J74=4, "Unknown", IF($J74=99, "Surveillance", SUM($O74:$Q74))), 0),"Not required") -> 114483.188 | S74: =IF(INTRO!$E$43="Endemic", IF($K74>1, IF($K74=4, "Unknown", IF($K74=99, "Surveillance", ROUND(E74*0.75,0))), 0),"Not required") -> 40582 | T74: =IF(INTRO!$E$43="Endemic", IF($K74>1, IF($K74=4, "Unknown", IF($K74=99, "Surveillance", F74)), 0),"Not required") -> 52965 | U74: =IF(INTRO!$E$43="Endemic", IF($K74>1, IF($K74=4, "Unknown", IF($K74=99, "Surveillance", G74)), 0),"Not required") -> 115282 | V74: =IF(INTRO!$E$43="Endemic", IF($K74>1, IF($K74=4, "Unknown", IF($K74=99, "Surveillance", SUM($S74:$U74))), 0),"Not required") -> 208829 | W74: 0 | X74: 0 | Y74: 1 | Z74: 1 | AB74: Yes | AH74: 7478 | AI74: GUIDIGUIS
A75: =IF(INTRO!$E$33<>0,INTRO!$E$33, " ") -> Cameroun | B75: Extreme Nord | C75: Hina | D75: 149200 | E75: 36742.086 | F75: =IF(INTRO!$E$49="","",ROUND($D75*INTRO!$E$49,0)) -> 39463 | G75: =IF(INTRO!$E$50="","",ROUND($D75*INTRO!$E$50,0)) -> 85894 | H75: 99 | I75: 4 | J75: 0 | K75: 3 | L75: 4 | M75: =IF(INTRO!$E$37="Endemic",IF($H75>0,IF($H75=4,"Unknown",IF($H75=99,"Stopped",$D75)),0),"Not required") -> Stopped | N75: =IF(INTRO!$E$39="Endemic", IF($I75>0, IF($I75=4,"Unknown",IF($I75=99,"Stopped",$D75)), 0),"Not required") -> Unknown | O75: =IF(INTRO!$E$41="Endemic", IF($J75>1, IF($J75=4, "Unknown", IF($J75=99, "Surveillance", E75)), 0),"Not required") -> 0 | P75: =IF(INTRO!$E$41="Endemic", IF($J75>1, IF($J75=4, "Unknown", IF($J75=99, "Surveillance", F75)), 0),"Not required") -> 0 | Q75: =IF(INTRO!$E$41="Endemic", IF($J75>1, IF($J75=4, "Unknown", IF($J75=99, "Surveillance", ROUND(D75*INTRO!$E$51,0))), 0),"Not required") -> 0 | R75: =IF(INTRO!$E$41="Endemic", IF($J75>1, IF($J75=4, "Unknown", IF($J75=99, "Surveillance", SUM($O75:$Q75))), 0),"Not required") -> 0 | S75: =IF(INTRO!$E$43="Endemic", IF($K75>1, IF($K75=4, "Unknown", IF($K75=99, "Surveillance", ROUND(E75*0.75,0))), 0),"Not required") -> 27557 | T75: =IF(INTRO!$E$43="Endemic", IF($K75>1, IF($K75=4, "Unknown", IF($K75=99, "Surveillance", F75)), 0),"Not required") -> 39463 | U75: =IF(INTRO!$E$43="Endemic", IF($K75>1, IF($K75=4, "Unknown", IF($K75=99, "Surveillance", G75)), 0),"Not required") -> 85894 | V75: =IF(INTRO!$E$43="Endemic", IF($K75>1, IF($K75=4, "Unknown", IF($K75=99, "Surveillance", SUM($S75:$U75))), 0),"Not required") -> 152914 | W75: 0 | X75: 0 | Y75: 0 | Z75: 1 | AB75: Yes | AH75: 7479 | AI75: HINA
A76: =IF(INTRO!$E$33<>0,INTRO!$E$33, " ") -> Cameroun | B76: Extreme Nord | C76: Kaele | D76: 130318 | E76: 30105.918 | F76: =IF(INTRO!$E$49="","",ROUND($D76*INTRO!$E$49,0)) -> 34469 | G76: =IF(INTRO!$E$50="","",ROUND($D76*INTRO!$E$50,0)) -> 75024 | H76: 99 | I76: 4 | J76: 1 | K76: 3 | L76: 0 | M76: =IF(INTRO!$E$37="Endemic",IF($H76>0,IF($H76=4,"Unknown",IF($H76=99,"Stopped",$D76)),0),"Not required") -> Stopped | N76: =IF(INTRO!$E$39="Endemic", IF($I76>0, IF($I76=4,"Unknown",IF($I76=99,"Stopped",$D76)), 0),"Not required") -> Unknown | O76: =IF(INTRO!$E$41="Endemic", IF($J76>1, IF($J76=4, "Unknown", IF($J76=99, "Surveillance", E76)), 0),"Not required") -> 0 | P76: =IF(INTRO!$E$41="Endemic", IF($J76>1, IF($J76=4, "Unknown", IF($J76=99, "Surveillance", F76)), 0),"Not required") -> 0 | Q76: =IF(INTRO!$E$41="Endemic", IF($J76>1, IF($J76=4, "Unknown", IF($J76=99, "Surveillance", ROUND(D76*INTRO!$E$51,0))), 0),"Not required") -> 0 | R76: =IF(INTRO!$E$41="Endemic", IF($J76>1, IF($J76=4, "Unknown", IF($J76=99, "Surveillance", SUM($O76:$Q76))), 0),"Not required") -> 0 | S76: =IF(INTRO!$E$43="Endemic", IF($K76>1, IF($K76=4, "Unknown", IF($K76=99, "Surveillance", ROUND(E76*0.75,0))), 0),"Not required") -> 22579 | T76: =IF(INTRO!$E$43="Endemic", IF($K76>1, IF($K76=4, "Unknown", IF($K76=99, "Surveillance", F76)), 0),"Not required") -> 34469 | U76: =IF(INTRO!$E$43="Endemic", IF($K76>1, IF($K76=4, "Unknown", IF($K76=99, "Surveillance", G76)), 0),"Not required") -> 75024 | V76: =IF(INTRO!$E$43="Endemic", IF($K76>1, IF($K76=4, "Unknown", IF($K76=99, "Surveillance", SUM($S76:$U76))), 0),"Not required") -> 132072 | W76: 0 | X76: 0 | Y76: 0 | Z76: 1 | AB76: Yes | AH76: 7480 | AI76: KAELE
A77: =IF(INTRO!$E$33<>0,INTRO!$E$33, " ") -> Cameroun | B77: Extreme Nord | C77: Kar Hay | D77: 150656 | E77: 24079.194 | F77: =IF(INTRO!$E$49="","",ROUND($D77*INTRO!$E$49,0)) -> 39849 | G77: =IF(INTRO!$E$50="","",ROUND($D77*INTRO!$E$50,0)) -> 86733 | H77: 99 | I77: 4 | J77: 2 | K77: 3 | L77: 0 | M77: =IF(INTRO!$E$37="Endemic",IF($H77>0,IF($H77=4,"Unknown",IF($H77=99,"Stopped",$D77)),0),"Not required") -> Stopped | N77: =IF(INTRO!$E$39="Endemic", IF($I77>0, IF($I77=4,"Unknown",IF($I77=99,"Stopped",$D77)), 0),"Not required") -> Unknown | O77: =IF(INTRO!$E$41="Endemic", IF($J77>1, IF($J77=4, "Unknown", IF($J77=99, "Surveillance", E77)), 0),"Not required") -> 24079.194 | P77: =IF(INTRO!$E$41="Endemic", IF($J77>1, IF($J77=4, "Unknown", IF($J77=99, "Surveillance", F77)), 0),"Not required") -> 39849 | Q77: =IF(INTRO!$E$41="Endemic", IF($J77>1, IF($J77=4, "Unknown", IF($J77=99, "Surveillance", ROUND(D77*INTRO!$E$51,0))), 0),"Not required") -> 5574 | R77: =IF(INTRO!$E$41="Endemic", IF($J77>1, IF($J77=4, "Unknown", IF($J77=99, "Surveillance", SUM($O77:$Q77))), 0),"Not required") -> 69502.194 | S77: =IF(INTRO!$E$43="Endemic", IF($K77>1, IF($K77=4, "Unknown", IF($K77=99, "Surveillance", ROUND(E77*0.75,0))), 0),"Not required") -> 18059 | T77: =IF(INTRO!$E$43="Endemic", IF($K77>1, IF($K77=4, "Unknown", IF($K77=99, "Surveillance", F77)), 0),"Not required") -> 39849 | U77: =IF(INTRO!$E$43="Endemic", IF($K77>1, IF($K77=4, "Unknown", IF($K77=99, "Surveillance", G77)), 0),"Not required") -> 86733 | V77: =IF(INTRO!$E$43="Endemic", IF($K77>1, IF($K77=4, "Unknown", IF($K77=99, "Surveillance", SUM($S77:$U77))), 0),"Not required") -> 144641 | W77: 0 | X77: 0 | Y77: 1 | Z77: 1 | AB77: Yes | AH77: 7481 | AI77: KAR HAY
A78: =IF(INTRO!$E$33<>0,INTRO!$E$33, " ") -> Cameroun | B78: Extreme Nord | C78: Kolofata | D78: 133512 | E78: 41172.354 | F78: =IF(INTRO!$E$49="","",ROUND($D78*INTRO!$E$49,0)) -> 35314 | G78: =IF(INTRO!$E$50="","",ROUND($D78*INTRO!$E$50,0)) -> 76863 | H78: 99 | I78: 4 | J78: 2 | K78: 3 | L78: 4 | M78: =IF(INTRO!$E$37="Endemic",IF($H78>0,IF($H78=4,"Unknown",IF($H78=99,"Stopped",$D78)),0),"Not required") -> Stopped | N78: =IF(INTRO!$E$39="Endemic", IF($I78>0, IF($I78=4,"Unknown",IF($I78=99,"Stopped",$D78)), 0),"Not required") -> Unknown | O78: =IF(INTRO!$E$41="Endemic", IF($J78>1, IF($J78=4, "Unknown", IF($J78=99, "Surveillance", E78)), 0),"Not required") -> 41172.354 | P78: =IF(INTRO!$E$41="Endemic", IF($J78>1, IF($J78=4, "Unknown", IF($J78=99, "Surveillance", F78)), 0),"Not required") -> 35314 | Q78: =IF(INTRO!$E$41="Endemic", IF($J78>1, IF($J78=4, "Unknown", IF($J78=99, "Surveillance", ROUND(D78*INTRO!$E$51,0))), 0),"Not required") -> 4940 | R78: =IF(INTRO!$E$41="Endemic", IF($J78>1, IF($J78=4, "Unknown", IF($J78=99, "Surveillance", SUM($O78:$Q78))), 0),"Not required") -> 81426.354 | S78: =IF(INTRO!$E$43="Endemic", IF($K78>1, IF($K78=4, "Unknown", IF($K78=99, "Surveillance", ROUND(E78*0.75,0))), 0),"Not required") -> 30879 | T78: =IF(INTRO!$E$43="Endemic", IF($K78>1, IF($K78=4, "Unknown", IF($K78=99, "Surveillance", F78)), 0),"Not required") -> 35314 | U78: =IF(INTRO!$E$43="Endemic", IF($K78>1, IF($K78=4, "Unknown", IF($K78=99, "Surveillance", G78)), 0),"Not required") -> 76863 | V78: =IF(INTRO!$E$43="Endemic", IF($K78>1, IF($K78=4, "Unknown", IF($K78=99, "Surveillance", SUM($S78:$U78))), 0),"Not required") -> 143056 | W78: 0 | X78: 0 | Y78: 1 | Z78: 1 | AA78: TAS | AB78: Yes | AH78: 7482 | AI78: KOLOFATA
A79: =IF(INTRO!$E$33<>0,INTRO!$E$33, " ") -> Cameroun | B79: Extreme Nord | C79: Kousseri | D79: 491386 | E79: 84556.764 | F79: =IF(INTRO!$E$49="","",ROUND($D79*INTRO!$E$49,0)) -> 129972 | G79: =IF(INTRO!$E$50="","",ROUND($D79*INTRO!$E$50,0)) -> 282891 | H79: 99 | I79: 4 | J79: 1 | K79: 2 | L79: 0 | M79: =IF(INTRO!$E$37="Endemic",IF($H79>0,IF($H79=4,"Unknown",IF($H79=99,"Stopped",$D79)),0),"Not required") -> Stopped | N79: =IF(INTRO!$E$39="Endemic", IF($I79>0, IF($I79=4,"Unknown",IF($I79=99,"Stopped",$D79)), 0),"Not required") -> Unknown | O79: =IF(INTRO!$E$41="Endemic", IF($J79>1, IF($J79=4, "Unknown", IF($J79=99, "Surveillance", E79)), 0),"Not required") -> 0 | P79: =IF(INTRO!$E$41="Endemic", IF($J79>1, IF($J79=4, "Unknown", IF($J79=99, "Surveillance", F79)), 0),"Not required") -> 0 | Q79: =IF(INTRO!$E$41="Endemic", IF($J79>1, IF($J79=4, "Unknown", IF($J79=99, "Surveillance", ROUND(D79*INTRO!$E$51,0))), 0),"Not required") -> 0 | R79: =IF(INTRO!$E$41="Endemic", IF($J79>1, IF($J79=4, "Unknown", IF($J79=99, "Surveillance", SUM($O79:$Q79))), 0),"Not required") -> 0 | S79: =IF(INTRO!$E$43="Endemic", IF($K79>1, IF($K79=4, "Unknown", IF($K79=99, "Surveillance", ROUND(E79*0.75,0))), 0),"Not required") -> 63418 | T79: =IF(INTRO!$E$43="Endemic", IF($K79>1, IF($K79=4, "Unknown", IF($K79=99, "Surveillance", F79)), 0),"Not required") -> 129972 | U79: =IF(INTRO!$E$43="Endemic", IF($K79>1, IF($K79=4, "Unknown", IF($K79=99, "Surveillance", G79)), 0),"Not required") -> 282891 | V79: =IF(INTRO!$E$43="Endemic", IF($K79>1, IF($K79=4, "Unknown", IF($K79=99, "Surveillance", SUM($S79:$U79))), 0),"Not required") -> 476281 | W79: 0 | X79: 0 | Y79: 0 | Z79: 1 | AB79: Yes | AH79: 7483 | AI79: KOUSSERI
A80: =IF(INTRO!$E$33<>0,INTRO!$E$33, " ") -> Cameroun | B80: Extreme Nord | C80: Koza | D80: 106379 | E80: 21066.858 | F80: =IF(INTRO!$E$49="","",ROUND($D80*INTRO!$E$49,0)) -> 28137 | G80: =IF(INTRO!$E$50="","",ROUND($D80*INTRO!$E$50,0)) -> 61242 | H80: 99 | I80: 1 | J80: 2 | K80: 3 | L80: 4 | M80: =IF(INTRO!$E$37="Endemic",IF($H80>0,IF($H80=4,"Unknown",IF($H80=99,"Stopped",$D80)),0),"Not required") -> Stopped | N80: =IF(INTRO!$E$39="Endemic", IF($I80>0, IF($I80=4,"Unknown",IF($I80=99,"Stopped",$D80)), 0),"Not required") -> 106379 | O80: =IF(INTRO!$E$41="Endemic", IF($J80>1, IF($J80=4, "Unknown", IF($J80=99, "Surveillance", E80)), 0),"Not required") -> 21066.858 | P80: =IF(INTRO!$E$41="Endemic", IF($J80>1, IF($J80=4, "Unknown", IF($J80=99, "Surveillance", F80)), 0),"Not required") -> 28137 | Q80: =IF(INTRO!$E$41="Endemic", IF($J80>1, IF($J80=4, "Unknown", IF($J80=99, "Surveillance", ROUND(D80*INTRO!$E$51,0))), 0),"Not required") -> 3936 | R80: =IF(INTRO!$E$41="Endemic", IF($J80>1, IF($J80=4, "Unknown", IF($J80=99, "Surveillance", SUM($O80:$Q80))), 0),"Not required") -> 53139.858 | S80: =IF(INTRO!$E$43="Endemic", IF($K80>1, IF($K80=4, "Unknown", IF($K80=99, "Surveillance", ROUND(E80*0.75,0))), 0),"Not required") -> 15800 | T80: =IF(INTRO!$E$43="Endemic", IF($K80>1, IF($K80=4, "Unknown", IF($K80=99, "Surveillance", F80)), 0),"Not required") -> 28137 | U80: =IF(INTRO!$E$43="Endemic", IF($K80>1, IF($K80=4, "Unknown", IF($K80=99, "Surveillance", G80)), 0),"Not required") -> 61242 | V80: =IF(INTRO!$E$43="Endemic", IF($K80>1, IF($K80=4, "Unknown", IF($K80=99, "Surveillance", SUM($S80:$U80))), 0),"Not required") -> 105179 | W80: 0 | X80: 1 | Y80: 1 | Z80: 1 | AB80: Yes | AH80: 7484 | AI80: KOZA
A81: =IF(INTRO!$E$33<>0,INTRO!$E$33, " ") -> Cameroun | B81: Extreme Nord | C81: Mada | D81: 181704 | E81: 50919.354 | F81: =IF(INTRO!$E$49="","",ROUND($D81*INTRO!$E$49,0)) -> 48061 | G81: =IF(INTRO!$E$50="","",ROUND($D81*INTRO!$E$50,0)) -> 104607 | H81: 99 | I81: 4 | J81: 2 | K81: 3 | L81: 0 | M81: =IF(INTRO!$E$37="Endemic",IF($H81>0,IF($H81=4,"Unknown",IF($H81=99,"Stopped",$D81)),0),"Not required") -> Stopped | N81: =IF(INTRO!$E$39="Endemic", IF($I81>0, IF($I81=4,"Unknown",IF($I81=99,"Stopped",$D81)), 0),"Not required") -> Unknown | O81: =IF(INTRO!$E$41="Endemic", IF($J81>1, IF($J81=4, "Unknown", IF($J81=99, "Surveillance", E81)), 0),"Not required") -> 50919.354 | P81: =IF(INTRO!$E$41="Endemic", IF($J81>1, IF($J81=4, "Unknown", IF($J81=99, "Surveillance", F81)), 0),"Not required") -> 48061 | Q81: =IF(INTRO!$E$41="Endemic", IF($J81>1, IF($J81=4, "Unknown", IF($J81=99, "Surveillance", ROUND(D81*INTRO!$E$51,0))), 0),"Not required") -> 6723 | R81: =IF(INTRO!$E$41="Endemic", IF($J81>1, IF($J81=4, "Unknown", IF($J81=99, "Surveillance", SUM($O81:$Q81))), 0),"Not required") -> 105703.354 | S81: =IF(INTRO!$E$43="Endemic", IF($K81>1, IF($K81=4, "Unknown", IF($K81=99, "Surveillance", ROUND(E81*0.75,0))), 0),"Not required") -> 38190 | T81: =IF(INTRO!$E$43="Endemic", IF($K81>1, IF($K81=4, "Unknown", IF($K81=99, "Surveillance", F81)), 0),"Not required") -> 48061 | U81: =IF(INTRO!$E$43="Endemic", IF($K81>1, IF($K81=4, "Unknown", IF($K81=99, "Surveillance", G81)), 0),"Not required") -> 104607 | V81: =IF(INTRO!$E$43="Endemic", IF($K81>1, IF($K81=4, "Unknown", IF($K81=99, "Surveillance", SUM($S81:$U81))), 0),"Not required") -> 190858 | W81: 0 | X81: 0 | Y81: 1 | Z81: 1 | AB81: Yes | AH81: 7485 | AI81: MADA
A82: =IF(INTRO!$E$33<>0,INTRO!$E$33, " ") -> Cameroun | B82: Extreme Nord | C82: Maga | D82: 218674 | E82: 41486.31 | F82: =IF(INTRO!$E$49="","",ROUND($D82*INTRO!$E$49,0)) -> 57839 | G82: =IF(INTRO!$E$50="","",ROUND($D82*INTRO!$E$50,0)) -> 125891 | H82: 99 | I82: 4 | J82: 1 | K82: 3 | L82: 0 | M82: =IF(INTRO!$E$37="Endemic",IF($H82>0,IF($H82=4,"Unknown",IF($H82=99,"Stopped",$D82)),0),"Not required") -> Stopped | N82: =IF(INTRO!$E$39="Endemic", IF($I82>0, IF($I82=4,"Unknown",IF($I82=99,"Stopped",$D82)), 0),"Not required") -> Unknown | O82: =IF(INTRO!$E$41="Endemic", IF($J82>1, IF($J82=4, "Unknown", IF($J82=99, "Surveillance", E82)), 0),"Not required") -> 0 | P82: =IF(INTRO!$E$41="Endemic", IF($J82>1, IF($J82=4, "Unknown", IF($J82=99, "Surveillance", F82)), 0),"Not required") -> 0 | Q82: =IF(INTRO!$E$41="Endemic", IF($J82>1, IF($J82=4, "Unknown", IF($J82=99, "Surveillance", ROUND(D82*INTRO!$E$51,0))), 0),"Not required") -> 0 | R82: =IF(INTRO!$E$41="Endemic", IF($J82>1, IF($J82=4, "Unknown", IF($J82=99, "Surveillance", SUM($O82:$Q82))), 0),"Not required") -> 0 | S82: =IF(INTRO!$E$43="Endemic", IF($K82>1, IF($K82=4, "Unknown", IF($K82=99, "Surveillance", ROUND(E82*0.75,0))), 0),"Not required") -> 31115 | T82: =IF(INTRO!$E$43="Endemic", IF($K82>1, IF($K82=4, "Unknown", IF($K82=99, "Surveillance", F82)), 0),"Not required") -> 57839 | U82: =IF(INTRO!$E$43="Endemic", IF($K82>1, IF($K82=4, "Unknown", IF($K82=99, "Surveillance", G82)), 0),"Not required") -> 125891 | V82: =IF(INTRO!$E$43="Endemic", IF($K82>1, IF($K82=4, "Unknown", IF($K82=99, "Surveillance", SUM($S82:$U82))), 0),"Not required") -> 214845 | W82: 0 | X82: 0 | Y82: 0 | Z82: 1 | AB82: Yes | AH82: 7486 | AI82: MAGA
A83: =IF(INTRO!$E$33<>0,INTRO!$E$33, " ") -> Cameroun | B83: Extreme Nord | C83: Makary | D83: 146864 | E83: 39403.53 | F83: =IF(INTRO!$E$49="","",ROUND($D83*INTRO!$E$49,0)) -> 38846 | G83: =IF(INTRO!$E$50="","",ROUND($D83*INTRO!$E$50,0)) -> 84550 | H83: 99 | I83: 4 | J83: 1 | K83: 1 | L83: 0 | M83: =IF(INTRO!$E$37="Endemic",IF($H83>0,IF($H83=4,"Unknown",IF($H83=99,"Stopped",$D83)),0),"Not required") -> Stopped | N83: =IF(INTRO!$E$39="Endemic", IF($I83>0, IF($I83=4,"Unknown",IF($I83=99,"Stopped",$D83)), 0),"Not required") -> Unknown | O83: =IF(INTRO!$E$41="Endemic", IF($J83>1, IF($J83=4, "Unknown", IF($J83=99, "Surveillance", E83)), 0),"Not required") -> 0 | P83: =IF(INTRO!$E$41="Endemic", IF($J83>1, IF($J83=4, "Unknown", IF($J83=99, "Surveillance", F83)), 0),"Not required") -> 0 | Q83: =IF(INTRO!$E$41="Endemic", IF($J83>1, IF($J83=4, "Unknown", IF($J83=99, "Surveillance", ROUND(D83*INTRO!$E$51,0))), 0),"Not required") -> 0 | R83: =IF(INTRO!$E$41="Endemic", IF($J83>1, IF($J83=4, "Unknown", IF($J83=99, "Surveillance", SUM($O83:$Q83))), 0),"Not required") -> 0 | S83: =IF(INTRO!$E$43="Endemic", IF($K83>1, IF($K83=4, "Unknown", IF($K83=99, "Surveillance", ROUND(E83*0.75,0))), 0),"Not required") -> 0 | T83: =IF(INTRO!$E$43="Endemic", IF($K83>1, IF($K83=4, "Unknown", IF($K83=99, "Surveillance", F83)), 0),"Not required") -> 0 | U83: =IF(INTRO!$E$43="Endemic", IF($K83>1, IF($K83=4, "Unknown", IF($K83=99, "Surveillance", G83)), 0),"Not required") -> 0 | V83: =IF(INTRO!$E$43="Endemic", IF($K83>1, IF($K83=4, "Unknown", IF($K83=99, "Surveillance", SUM($S83:$U83))), 0),"Not required") -> 0 | W83: 0 | X83: 0 | Y83: 0 | Z83: 0 | AB83: Yes | AH83: 7487 | AI83: MAKARY
A84: =IF(INTRO!$E$33<>0,INTRO!$E$33, " ") -> Cameroun | B84: Extreme Nord | C84: Maroua 1 | D84: 218207 | E84: 55843.128 | F84: =IF(INTRO!$E$49="","",ROUND($D84*INTRO!$E$49,0)) -> 57716 | G84: =IF(INTRO!$E$50="","",ROUND($D84*INTRO!$E$50,0)) -> 125622 | H84: 99 | I84: 4 | J84: 1 | K84: 2 | L84: 0 | M84: =IF(INTRO!$E$37="Endemic",IF($H84>0,IF($H84=4,"Unknown",IF($H84=99,"Stopped",$D84)),0),"Not required") -> Stopped | N84: =IF(INTRO!$E$39="Endemic", IF($I84>0, IF($I84=4,"Unknown",IF($I84=99,"Stopped",$D84)), 0),"Not required") -> Unknown | O84: =IF(INTRO!$E$41="Endemic", IF($J84>1, IF($J84=4, "Unknown", IF($J84=99, "Surveillance", E84)), 0),"Not required") -> 0 | P84: =IF(INTRO!$E$41="Endemic", IF($J84>1, IF($J84=4, "Unknown", IF($J84=99, "Surveillance", F84)), 0),"Not required") -> 0 | Q84: =IF(INTRO!$E$41="Endemic", IF($J84>1, IF($J84=4, "Unknown", IF($J84=99, "Surveillance", ROUND(D84*INTRO!$E$51,0))), 0),"Not required") -> 0 | R84: =IF(INTRO!$E$41="Endemic", IF($J84>1, IF($J84=4, "Unknown", IF($J84=99, "Surveillance", SUM($O84:$Q84))), 0),"Not required") -> 0 | S84: =IF(INTRO!$E$43="Endemic", IF($K84>1, IF($K84=4, "Unknown", IF($K84=99, "Surveillance", ROUND(E84*0.75,0))), 0),"Not required") -> 41882 | T84: =IF(INTRO!$E$43="Endemic", IF($K84>1, IF($K84=4, "Unknown", IF($K84=99, "Surveillance", F84)), 0),"Not required") -> 57716 | U84: =IF(INTRO!$E$43="Endemic", IF($K84>1, IF($K84=4, "Unknown", IF($K84=99, "Surveillance", G84)), 0),"Not required") -> 125622 | V84: =IF(INTRO!$E$43="Endemic", IF($K84>1, IF($K84=4, "Unknown", IF($K84=99, "Surveillance", SUM($S84:$U84))), 0),"Not required") -> 225220 | W84: 0 | X84: 0 | Y84: 0 | Z84: 1 | AB84: Yes | AH84: 7488 | AI84: MAROUA 1
A85: =IF(INTRO!$E$33<>0,INTRO!$E$33, " ") -> Cameroun | B85: Extreme Nord | C85: Maroua 2 | D85: 225494 | E85: 137795.904 | F85: =IF(INTRO!$E$49="","",ROUND($D85*INTRO!$E$49,0)) -> 59643 | G85: =IF(INTRO!$E$50="","",ROUND($D85*INTRO!$E$50,0)) -> 129817 | H85: 99 | I85: 4 | J85: 0 | K85: 2 | L85: 4 | M85: =IF(INTRO!$E$37="Endemic",IF($H85>0,IF($H85=4,"Unknown",IF($H85=99,"Stopped",$D85)),0),"Not required") -> Stopped | N85: =IF(INTRO!$E$39="Endemic", IF($I85>0, IF($I85=4,"Unknown",IF($I85=99,"Stopped",$D85)), 0),"Not required") -> Unknown | O85: =IF(INTRO!$E$41="Endemic", IF($J85>1, IF($J85=4, "Unknown", IF($J85=99, "Surveillance", E85)), 0),"Not required") -> 0 | P85: =IF(INTRO!$E$41="Endemic", IF($J85>1, IF($J85=4, "Unknown", IF($J85=99, "Surveillance", F85)), 0),"Not required") -> 0 | Q85: =IF(INTRO!$E$41="Endemic", IF($J85>1, IF($J85=4, "Unknown", IF($J85=99, "Surveillance", ROUND(D85*INTRO!$E$51,0))), 0),"Not required") -> 0 | R85: =IF(INTRO!$E$41="Endemic", IF($J85>1, IF($J85=4, "Unknown", IF($J85=99, "Surveillance", SUM($O85:$Q85))), 0),"Not required") -> 0 | S85: =IF(INTRO!$E$43="Endemic", IF($K85>1, IF($K85=4, "Unknown", IF($K85=99, "Surveillance", ROUND(E85*0.75,0))), 0),"Not required") -> 103347 | T85: =IF(INTRO!$E$43="Endemic", IF($K85>1, IF($K85=4, "Unknown", IF($K85=99, "Surveillance", F85)), 0),"Not required") -> 59643 | U85: =IF(INTRO!$E$43="Endemic", IF($K85>1, IF($K85=4, "Unknown", IF($K85=99, "Surveillance", G85)), 0),"Not required") -> 129817 | V85: =IF(INTRO!$E$43="Endemic", IF($K85>1, IF($K85=4, "Unknown", IF($K85=99, "Surveillance", SUM($S85:$U85))), 0),"Not required") -> 292807 | W85: 0 | X85: 0 | Y85: 0 | Z85: 1 | AB85: Yes | AH85: 7489 | AI85: MAROUA 2
A86: =IF(INTRO!$E$33<>0,INTRO!$E$33, " ") -> Cameroun | B86: Extreme Nord | C86: Maroua 3 | D86: 197560 | E86: 54717.606 | F86: =IF(INTRO!$E$49="","",ROUND($D86*INTRO!$E$49,0)) -> 52255 | G86: =IF(INTRO!$E$50="","",ROUND($D86*INTRO!$E$50,0)) -> 113735 | H86: 99 | I86: 4 | J86: 1 | K86: 3 | L86: 0 | M86: =IF(INTRO!$E$37="Endemic",IF($H86>0,IF($H86=4,"Unknown",IF($H86=99,"Stopped",$D86)),0),"Not required") -> Stopped | N86: =IF(INTRO!$E$39="Endemic", IF($I86>0, IF($I86=4,"Unknown",IF($I86=99,"Stopped",$D86)), 0),"Not required") -> Unknown | O86: =IF(INTRO!$E$41="Endemic", IF($J86>1, IF($J86=4, "Unknown", IF($J86=99, "Surveillance", E86)), 0),"Not required") -> 0 | P86: =IF(INTRO!$E$41="Endemic", IF($J86>1, IF($J86=4, "Unknown", IF($J86=99, "Surveillance", F86)), 0),"Not required") -> 0 | Q86: =IF(INTRO!$E$41="Endemic", IF($J86>1, IF($J86=4, "Unknown", IF($J86=99, "Surveillance", ROUND(D86*INTRO!$E$51,0))), 0),"Not required") -> 0 | R86: =IF(INTRO!$E$41="Endemic", IF($J86>1, IF($J86=4, "Unknown", IF($J86=99, "Surveillance", SUM($O86:$Q86))), 0),"Not required") -> 0 | S86: =IF(INTRO!$E$43="Endemic", IF($K86>1, IF($K86=4, "Unknown", IF($K86=99, "Surveillance", ROUND(E86*0.75,0))), 0),"Not required") -> 41038 | T86: =IF(INTRO!$E$43="Endemic", IF($K86>1, IF($K86=4, "Unknown", IF($K86=99, "Surveillance", F86)), 0),"Not required") -> 52255 | U86: =IF(INTRO!$E$43="Endemic", IF($K86>1, IF($K86=4, "Unknown", IF($K86=99, "Surveillance", G86)), 0),"Not required") -> 113735 | V86: =IF(INTRO!$E$43="Endemic", IF($K86>1, IF($K86=4, "Unknown", IF($K86=99, "Surveillance", SUM($S86:$U86))), 0),"Not required") -> 207028 | W86: 0 | X86: 0 | Y86: 0 | Z86: 1 | AB86: Yes | AH86: 7490 | AI86: MAROUA 3
A87: =IF(INTRO!$E$33<>0,INTRO!$E$33, " ") -> Cameroun | B87: Extreme Nord | C87: Meri | D87: 182178 | E87: 42781.122 | F87: =IF(INTRO!$E$49="","",ROUND($D87*INTRO!$E$49,0)) -> 48186 | G87: =IF(INTRO!$E$50="","",ROUND($D87*INTRO!$E$50,0)) -> 104880 | H87: 99 | I87: 4 | J87: 1 | K87: 3 | L87: 4 | M87: =IF(INTRO!$E$37="Endemic",IF($H87>0,IF($H87=4,"Unknown",IF($H87=99,"Stopped",$D87)),0),"Not required") -> Stopped | N87: =IF(INTRO!$E$39="Endemic", IF($I87>0, IF($I87=4,"Unknown",IF($I87=99,"Stopped",$D87)), 0),"Not required") -> Unknown | O87: =IF(INTRO!$E$41="Endemic", IF($J87>1, IF($J87=4, "Unknown", IF($J87=99, "Surveillance", E87)), 0),"Not required") -> 0 | P87: =IF(INTRO!$E$41="Endemic", IF($J87>1, IF($J87=4, "Unknown", IF($J87=99, "Surveillance", F87)), 0),"Not required") -> 0 | Q87: =IF(INTRO!$E$41="Endemic", IF($J87>1, IF($J87=4, "Unknown", IF($J87=99, "Surveillance", ROUND(D87*INTRO!$E$51,0))), 0),"Not required") -> 0 | R87: =IF(INTRO!$E$41="Endemic", IF($J87>1, IF($J87=4, "Unknown", IF($J87=99, "Surveillance", SUM($O87:$Q87))), 0),"Not required") -> 0 | S87: =IF(INTRO!$E$43="Endemic", IF($K87>1, IF($K87=4, "Unknown", IF($K87=99, "Surveillance", ROUND(E87*0.75,0))), 0),"Not required") -> 32086 | T87: =IF(INTRO!$E$43="Endemic", IF($K87>1, IF($K87=4, "Unknown", IF($K87=99, "Surveillance", F87)), 0),"Not required") -> 48186 | U87: =IF(INTRO!$E$43="Endemic", IF($K87>1, IF($K87=4, "Unknown", IF($K87=99, "Surveillance", G87)), 0),"Not required") -> 104880 | V87: =IF(INTRO!$E$43="Endemic", IF($K87>1, IF($K87=4, "Unknown", IF($K87=99, "Surveillance", SUM($S87:$U87))), 0),"Not required") -> 185152 | W87: 0 | X87: 0 | Y87: 0 | Z87: 1 | AB87: Yes | AH87: 7491 | AI87: MERI
A88: =IF(INTRO!$E$33<>0,INTRO!$E$33, " ") -> Cameroun | B88: Extreme Nord | C88: Mindif | D88: 64959 | E88: 15815.79 | F88: =IF(INTRO!$E$49="","",ROUND($D88*INTRO!$E$49,0)) -> 17182 | G88: =IF(INTRO!$E$50="","",ROUND($D88*INTRO!$E$50,0)) -> 37397 | H88: 99 | I88: 4 | J88: 1 | K88: 2 | L88: 0 | M88: =IF(INTRO!$E$37="Endemic",IF($H88>0,IF($H88=4,"Unknown",IF($H88=99,"Stopped",$D88)),0),"Not required") -> Stopped | N88: =IF(INTRO!$E$39="Endemic", IF($I88>0, IF($I88=4,"Unknown",IF($I88=99,"Stopped",$D88)), 0),"Not required") -> Unknown | O88: =IF(INTRO!$E$41="Endemic", IF($J88>1, IF($J88=4, "Unknown", IF($J88=99, "Surveillance", E88)), 0),"Not required") -> 0 | P88: =IF(INTRO!$E$41="Endemic", IF($J88>1, IF($J88=4, "Unknown", IF($J88=99, "Surveillance", F88)), 0),"Not required") -> 0 | Q88: =IF(INTRO!$E$41="Endemic", IF($J88>1, IF($J88=4, "Unknown", IF($J88=99, "Surveillance", ROUND(D88*INTRO!$E$51,0))), 0),"Not required") -> 0 | R88: =IF(INTRO!$E$41="Endemic", IF($J88>1, IF($J88=4, "Unknown", IF($J88=99, "Surveillance", SUM($O88:$Q88))), 0),"Not required") -> 0 | S88: =IF(INTRO!$E$43="Endemic", IF($K88>1, IF($K88=4, "Unknown", IF($K88=99, "Surveillance", ROUND(E88*0.75,0))), 0),"Not required") -> 11862 | T88: =IF(INTRO!$E$43="Endemic", IF($K88>1, IF($K88=4, "Unknown", IF($K88=99, "Surveillance", F88)), 0),"Not required") -> 17182 | U88: =IF(INTRO!$E$43="Endemic", IF($K88>1, IF($K88=4, "Unknown", IF($K88=99, "Surveillance", G88)), 0),"Not required") -> 37397 | V88: =IF(INTRO!$E$43="Endemic", IF($K88>1, IF($K88=4, "Unknown", IF($K88=99, "Surveillance", SUM($S88:$U88))), 0),"Not required") -> 66441 | W88: 0 | X88: 0 | Y88: 0 | Z88: 1 | AB88: Yes | AH88: 7492 | AI88: MINDIF
A89: =IF(INTRO!$E$33<>0,INTRO!$E$33, " ") -> Cameroun | B89: Extreme Nord | C89: Mogode | D89: 140451 | E89: 29483.136 | F89: =IF(INTRO!$E$49="","",ROUND($D89*INTRO!$E$49,0)) -> 37149 | G89: =IF(INTRO!$E$50="","",ROUND($D89*INTRO!$E$50,0)) -> 80858 | H89: 99 | I89: 4 | J89: 1 | K89: 3 | L89: 4 | M89: =IF(INTRO!$E$37="Endemic",IF($H89>0,IF($H89=4,"Unknown",IF($H89=99,"Stopped",$D89)),0),"Not required") -> Stopped | N89: =IF(INTRO!$E$39="Endemic", IF($I89>0, IF($I89=4,"Unknown",IF($I89=99,"Stopped",$D89)), 0),"Not required") -> Unknown | O89: =IF(INTRO!$E$41="Endemic", IF($J89>1, IF($J89=4, "Unknown", IF($J89=99, "Surveillance", E89)), 0),"Not required") -> 0 | P89: =IF(INTRO!$E$41="Endemic", IF($J89>1, IF($J89=4, "Unknown", IF($J89=99, "Surveillance", F89)), 0),"Not required") -> 0 | Q89: =IF(INTRO!$E$41="Endemic", IF($J89>1, IF($J89=4, "Unknown", IF($J89=99, "Surveillance", ROUND(D89*INTRO!$E$51,0))), 0),"Not required") -> 0 | R89: =IF(INTRO!$E$41="Endemic", IF($J89>1, IF($J89=4, "Unknown", IF($J89=99, "Surveillance", SUM($O89:$Q89))), 0),"Not required") -> 0 | S89: =IF(INTRO!$E$43="Endemic", IF($K89>1, IF($K89=4, "Unknown", IF($K89=99, "Surveillance", ROUND(E89*0.75,0))), 0),"Not required") -> 22112 | T89: =IF(INTRO!$E$43="Endemic", IF($K89>1, IF($K89=4, "Unknown", IF($K89=99, "Surveillance", F89)), 0),"Not required") -> 37149 | U89: =IF(INTRO!$E$43="Endemic", IF($K89>1, IF($K89=4, "Unknown", IF($K89=99, "Surveillance", G89)), 0),"Not required") -> 80858 | V89: =IF(INTRO!$E$43="Endemic", IF($K89>1, IF($K89=4, "Unknown", IF($K89=99, "Surveillance", SUM($S89:$U89))), 0),"Not required") -> 140119 | W89: 0 | X89: 0 | Y89: 0 | Z89: 1 | AB89: Yes | AH89: 7493 | AI89: MOGODE
A90: =IF(INTRO!$E$33<>0,INTRO!$E$33, " ") -> Cameroun | B90: Extreme Nord | C90: Mokolo | D90: 327637 | E90: 90374.184 | F90: =IF(INTRO!$E$49="","",ROUND($D90*INTRO!$E$49,0)) -> 86660 | G90: =IF(INTRO!$E$50="","",ROUND($D90*INTRO!$E$50,0)) -> 188621 | H90: 99 | I90: 1 | J90: 1 | K90: 3 | L90: 4 | M90: =IF(INTRO!$E$37="Endemic",IF($H90>0,IF($H90=4,"Unknown",IF($H90=99,"Stopped",$D90)),0),"Not required") -> Stopped | N90: =IF(INTRO!$E$39="Endemic", IF($I90>0, IF($I90=4,"Unknown",IF($I90=99,"Stopped",$D90)), 0),"Not required") -> 327637 | O90: =IF(INTRO!$E$41="Endemic", IF($J90>1, IF($J90=4, "Unknown", IF($J90=99, "Surveillance", E90)), 0),"Not required") -> 0 | P90: =IF(INTRO!$E$41="Endemic", IF($J90>1, IF($J90=4, "Unknown", IF($J90=99, "Surveillance", F90)), 0),"Not required") -> 0 | Q90: =IF(INTRO!$E$41="Endemic", IF($J90>1, IF($J90=4, "Unknown", IF($J90=99, "Surveillance", ROUND(D90*INTRO!$E$51,0))), 0),"Not required") -> 0 | R90: =IF(INTRO!$E$41="Endemic", IF($J90>1, IF($J90=4, "Unknown", IF($J90=99, "Surveillance", SUM($O90:$Q90))), 0),"Not required") -> 0 | S90: =IF(INTRO!$E$43="Endemic", IF($K90>1, IF($K90=4, "Unknown", IF($K90=99, "Surveillance", ROUND(E90*0.75,0))), 0),"Not required") -> 67781 | T90: =IF(INTRO!$E$43="Endemic", IF($K90>1, IF($K90=4, "Unknown", IF($K90=99, "Surveillance", F90)), 0),"Not required") -> 86660 | U90: =IF(INTRO!$E$43="Endemic", IF($K90>1, IF($K90=4, "Unknown", IF($K90=99, "Surveillance", G90)), 0),"Not required") -> 188621 | V90: =IF(INTRO!$E$43="Endemic", IF($K90>1, IF($K90=4, "Unknown", IF($K90=99, "Surveillance", SUM($S90:$U90))), 0),"Not required") -> 343062 | W90: 0 | X90: 1 | Y90: 0 | Z90: 1 | AB90: Yes | AH90: 7494 | AI90: MOKOLO
A91: =IF(INTRO!$E$33<>0,INTRO!$E$33, " ") -> Cameroun | B91: Extreme Nord | C91: Mora | D91: 334276 | E91: 78156.576 | F91: =IF(INTRO!$E$49="","",ROUND($D91*INTRO!$E$49,0)) -> 88416 | G91: =IF(INTRO!$E$50="","",ROUND($D91*INTRO!$E$50,0)) -> 192443 | H91: 99 | I91: 4 | J91: 1 | K91: 3 | L91: 4 | M91: =IF(INTRO!$E$37="Endemic",IF($H91>0,IF($H91=4,"Unknown",IF($H91=99,"Stopped",$D91)),0),"Not required") -> Stopped | N91: =IF(INTRO!$E$39="Endemic", IF($I91>0, IF($I91=4,"Unknown",IF($I91=99,"Stopped",$D91)), 0),"Not required") -> Unknown | O91: =IF(INTRO!$E$41="Endemic", IF($J91>1, IF($J91=4, "Unknown", IF($J91=99, "Surveillance", E91)), 0),"Not required") -> 0 | P91: =IF(INTRO!$E$41="Endemic", IF($J91>1, IF($J91=4, "Unknown", IF($J91=99, "Surveillance", F91)), 0),"Not required") -> 0 | Q91: =IF(INTRO!$E$41="Endemic", IF($J91>1, IF($J91=4, "Unknown", IF($J91=99, "Surveillance", ROUND(D91*INTRO!$E$51,0))), 0),"Not required") -> 0 | R91: =IF(INTRO!$E$41="Endemic", IF($J91>1, IF($J91=4, "Unknown", IF($J91=99, "Surveillance", SUM($O91:$Q91))), 0),"Not required") -> 0 | S91: =IF(INTRO!$E$43="Endemic", IF($K91>1, IF($K91=4, "Unknown", IF($K91=99, "Surveillance", ROUND(E91*0.75,0))), 0),"Not required") -> 58617 | T91: =IF(INTRO!$E$43="Endemic", IF($K91>1, IF($K91=4, "Unknown", IF($K91=99, "Surveillance", F91)), 0),"Not required") -> 88416 | U91: =IF(INTRO!$E$43="Endemic", IF($K91>1, IF($K91=4, "Unknown", IF($K91=99, "Surveillance", G91)), 0),"Not required") -> 192443 | V91: =IF(INTRO!$E$43="Endemic", IF($K91>1, IF($K91=4, "Unknown", IF($K91=99, "Surveillance", SUM($S91:$U91))), 0),"Not required") -> 339476 | W91: 0 | X91: 0 | Y91: 0 | Z91: 1 | AB91: Yes | AH91: 7495 | AI91: MORA
A92: =IF(INTRO!$E$33<>0,INTRO!$E$33, " ") -> Cameroun | B92: Extreme Nord | C92: Moulvoudaye | D92: 167444 | E92: 43303.356 | F92: =IF(INTRO!$E$49="","",ROUND($D92*INTRO!$E$49,0)) -> 44289 | G92: =IF(INTRO!$E$50="","",ROUND($D92*INTRO!$E$50,0)) -> 96398 | H92: 99 | I92: 4 | J92: 1 | K92: 3 | L92: 0 | M92: =IF(INTRO!$E$37="Endemic",IF($H92>0,IF($H92=4,"Unknown",IF($H92=99,"Stopped",$D92)),0),"Not required") -> Stopped | N92: =IF(INTRO!$E$39="Endemic", IF($I92>0, IF($I92=4,"Unknown",IF($I92=99,"Stopped",$D92)), 0),"Not required") -> Unknown | O92: =IF(INTRO!$E$41="Endemic", IF($J92>1, IF($J92=4, "Unknown", IF($J92=99, "Surveillance", E92)), 0),"Not required") -> 0 | P92: =IF(INTRO!$E$41="Endemic", IF($J92>1, IF($J92=4, "Unknown", IF($J92=99, "Surveillance", F92)), 0),"Not required") -> 0 | Q92: =IF(INTRO!$E$41="Endemic", IF($J92>1, IF($J92=4, "Unknown", IF($J92=99, "Surveillance", ROUND(D92*INTRO!$E$51,0))), 0),"Not required") -> 0 | R92: =IF(INTRO!$E$41="Endemic", IF($J92>1, IF($J92=4, "Unknown", IF($J92=99, "Surveillance", SUM($O92:$Q92))), 0),"Not required") -> 0 | S92: =IF(INTRO!$E$43="Endemic", IF($K92>1, IF($K92=4, "Unknown", IF($K92=99, "Surveillance", ROUND(E92*0.75,0))), 0),"Not required") -> 32478 | T92: =IF(INTRO!$E$43="Endemic", IF($K92>1, IF($K92=4, "Unknown", IF($K92=99, "Surveillance", F92)), 0),"Not required") -> 44289 | U92: =IF(INTRO!$E$43="Endemic", IF($K92>1, IF($K92=4, "Unknown", IF($K92=99, "Surveillance", G92)), 0),"Not required") -> 96398 | V92: =IF(INTRO!$E$43="Endemic", IF($K92>1, IF($K92=4, "Unknown", IF($K92=99, "Surveillance", SUM($S92:$U92))), 0),"Not required") -> 173165 | W92: 0 | X92: 0 | Y92: 0 | Z92: 1 | AB92: Yes | AH92: 7496 | AI92: MOULVOUDAYE
A93: =IF(INTRO!$E$33<>0,INTRO!$E$33, " ") -> Cameroun | B93: Extreme Nord | C93: Moutourwa | D93: 61645 | E93: 17559.99 | F93: =IF(INTRO!$E$49="","",ROUND($D93*INTRO!$E$49,0)) -> 16305 | G93: =IF(INTRO!$E$50="","",ROUND($D93*INTRO!$E$50,0)) -> 35489 | H93: 99 | I93: 4 | J93: 1 | K93: 2 | L93: 0 | M93: =IF(INTRO!$E$37="Endemic",IF($H93>0,IF($H93=4,"Unknown",IF($H93=99,"Stopped",$D93)),0),"Not required") -> Stopped | N93: =IF(INTRO!$E$39="Endemic", IF($I93>0, IF($I93=4,"Unknown",IF($I93=99,"Stopped",$D93)), 0),"Not required") -> Unknown | O93: =IF(INTRO!$E$41="Endemic", IF($J93>1, IF($J93=4, "Unknown", IF($J93=99, "Surveillance", E93)), 0),"Not required") -> 0 | P93: =IF(INTRO!$E$41="Endemic", IF($J93>1, IF($J93=4, "Unknown", IF($J93=99, "Surveillance", F93)), 0),"Not required") -> 0 | Q93: =IF(INTRO!$E$41="Endemic", IF($J93>1, IF($J93=4, "Unknown", IF($J93=99, "Surveillance", ROUND(D93*INTRO!$E$51,0))), 0),"Not required") -> 0 | R93: =IF(INTRO!$E$41="Endemic", IF($J93>1, IF($J93=4, "Unknown", IF($J93=99, "Surveillance", SUM($O93:$Q93))), 0),"Not required") -> 0 | S93: =IF(INTRO!$E$43="Endemic", IF($K93>1, IF($K93=4, "Unknown", IF($K93=99, "Surveillance", ROUND(E93*0.75,0))), 0),"Not required") -> 13170 | T93: =IF(INTRO!$E$43="Endemic", IF($K93>1, IF($K93=4, "Unknown", IF($K93=99, "Surveillance", F93)), 0),"Not required") -> 16305 | U93: =IF(INTRO!$E$43="Endemic", IF($K93>1, IF($K93=4, "Unknown", IF($K93=99, "Surveillance", G93)), 0),"Not required") -> 35489 | V93: =IF(INTRO!$E$43="Endemic", IF($K93>1, IF($K93=4, "Unknown", IF($K93=99, "Surveillance", SUM($S93:$U93))), 0),"Not required") -> 64964 | W93: 0 | X93: 0 | Y93: 0 | Z93: 1 | AB93: Yes | AH93: 7497 | AI93: MOUTOURWA
A94: =IF(INTRO!$E$33<>0,INTRO!$E$33, " ") -> Cameroun | B94: Extreme Nord | C94: Mozogo | D94: 94815 | E94: 17793.918 | F94: =IF(INTRO!$E$49="","",ROUND($D94*INTRO!$E$49,0)) -> 25079 | G94: =IF(INTRO!$E$50="","",ROUND($D94*INTRO!$E$50,0)) -> 54585 | H94: 99 | I94: 1 | J94: 1 | K94: 3 | L94: 4 | M94: =IF(INTRO!$E$37="Endemic",IF($H94>0,IF($H94=4,"Unknown",IF($H94=99,"Stopped",$D94)),0),"Not required") -> Stopped | N94: =IF(INTRO!$E$39="Endemic", IF($I94>0, IF($I94=4,"Unknown",IF($I94=99,"Stopped",$D94)), 0),"Not required") -> 94815 | O94: =IF(INTRO!$E$41="Endemic", IF($J94>1, IF($J94=4, "Unknown", IF($J94=99, "Surveillance", E94)), 0),"Not required") -> 0 | P94: =IF(INTRO!$E$41="Endemic", IF($J94>1, IF($J94=4, "Unknown", IF($J94=99, "Surveillance", F94)), 0),"Not required") -> 0 | Q94: =IF(INTRO!$E$41="Endemic", IF($J94>1, IF($J94=4, "Unknown", IF($J94=99, "Surveillance", ROUND(D94*INTRO!$E$51,0))), 0),"Not required") -> 0 | R94: =IF(INTRO!$E$41="Endemic", IF($J94>1, IF($J94=4, "Unknown", IF($J94=99, "Surveillance", SUM($O94:$Q94))), 0),"Not required") -> 0 | S94: =IF(INTRO!$E$43="Endemic", IF($K94>1, IF($K94=4, "Unknown", IF($K94=99, "Surveillance", ROUND(E94*0.75,0))), 0),"Not required") -> 13345 | T94: =IF(INTRO!$E$43="Endemic", IF($K94>1, IF($K94=4, "Unknown", IF($K94=99, "Surveillance", F94)), 0),"Not required") -> 25079 | U94: =IF(INTRO!$E$43="Endemic", IF($K94>1, IF($K94=4, "Unknown", IF($K94=99, "Surveillance", G94)), 0),"Not required") -> 54585 | V94: =IF(INTRO!$E$43="Endemic", IF($K94>1, IF($K94=4, "Unknown", IF($K94=99, "Surveillance", SUM($S94:$U94))), 0),"Not required") -> 93009 | W94: 0 | X94: 1 | Y94: 0 | Z94: 1 | AB94: Yes | AH94: 7614 | AI94: Mozogo
A95: =IF(INTRO!$E$33<>0,INTRO!$E$33, " ") -> Cameroun | B95: Extreme Nord | C95: Pette | D95: 69362 | E95: 23989.932 | F95: =IF(INTRO!$E$49="","",ROUND($D95*INTRO!$E$49,0)) -> 18346 | G95: =IF(INTRO!$E$50="","",ROUND($D95*INTRO!$E$50,0)) -> 39932 | H95: 99 | I95: 4 | J95: 2 | K95: 3 | L95: 4 | M95: =IF(INTRO!$E$37="Endemic",IF($H95>0,IF($H95=4,"Unknown",IF($H95=99,"Stopped",$D95)),0),"Not required") -> Stopped | N95: =IF(INTRO!$E$39="Endemic", IF($I95>0, IF($I95=4,"Unknown",IF($I95=99,"Stopped",$D95)), 0),"Not required") -> Unknown | O95: =IF(INTRO!$E$41="Endemic", IF($J95>1, IF($J95=4, "Unknown", IF($J95=99, "Surveillance", E95)), 0),"Not required") -> 23989.932 | P95: =IF(INTRO!$E$41="Endemic", IF($J95>1, IF($J95=4, "Unknown", IF($J95=99, "Surveillance", F95)), 0),"Not required") -> 18346 | Q95: =IF(INTRO!$E$41="Endemic", IF($J95>1, IF($J95=4, "Unknown", IF($J95=99, "Surveillance", ROUND(D95*INTRO!$E$51,0))), 0),"Not required") -> 2566 | R95: =IF(INTRO!$E$41="Endemic", IF($J95>1, IF($J95=4, "Unknown", IF($J95=99, "Surveillance", SUM($O95:$Q95))), 0),"Not required") -> 44901.932 | S95: =IF(INTRO!$E$43="Endemic", IF($K95>1, IF($K95=4, "Unknown", IF($K95=99, "Surveillance", ROUND(E95*0.75,0))), 0),"Not required") -> 17992 | T95: =IF(INTRO!$E$43="Endemic", IF($K95>1, IF($K95=4, "Unknown", IF($K95=99, "Surveillance", F95)), 0),"Not required") -> 18346 | U95: =IF(INTRO!$E$43="Endemic", IF($K95>1, IF($K95=4, "Unknown", IF($K95=99, "Surveillance", G95)), 0),"Not required") -> 39932 | V95: =IF(INTRO!$E$43="Endemic", IF($K95>1, IF($K95=4, "Unknown", IF($K95=99, "Surveillance", SUM($S95:$U95))), 0),"Not required") -> 76270 | W95: 0 | X95: 0 | Y95: 1 | Z95: 1 | AB95: Yes | AH95: 7498 | AI95: PETTE
A96: =IF(INTRO!$E$33<>0,INTRO!$E$33, " ") -> Cameroun | B96: Extreme Nord | C96: Roua | D96: 109517 | E96: 29997.162 | F96: =IF(INTRO!$E$49="","",ROUND($D96*INTRO!$E$49,0)) -> 28967 | G96: =IF(INTRO!$E$50="","",ROUND($D96*INTRO!$E$50,0)) -> 63049 | H96: 99 | I96: 1 | J96: 1 | K96: 3 | L96: 4 | M96: =IF(INTRO!$E$37="Endemic",IF($H96>0,IF($H96=4,"Unknown",IF($H96=99,"Stopped",$D96)),0),"Not required") -> Stopped | N96: =IF(INTRO!$E$39="Endemic", IF($I96>0, IF($I96=4,"Unknown",IF($I96=99,"Stopped",$D96)), 0),"Not required") -> 109517 | O96: =IF(INTRO!$E$41="Endemic", IF($J96>1, IF($J96=4, "Unknown", IF($J96=99, "Surveillance", E96)), 0),"Not required") -> 0 | P96: =IF(INTRO!$E$41="Endemic", IF($J96>1, IF($J96=4, "Unknown", IF($J96=99, "Surveillance", F96)), 0),"Not required") -> 0 | Q96: =IF(INTRO!$E$41="Endemic", IF($J96>1, IF($J96=4, "Unknown", IF($J96=99, "Surveillance", ROUND(D96*INTRO!$E$51,0))), 0),"Not required") -> 0 | R96: =IF(INTRO!$E$41="Endemic", IF($J96>1, IF($J96=4, "Unknown", IF($J96=99, "Surveillance", SUM($O96:$Q96))), 0),"Not required") -> 0 | S96: =IF(INTRO!$E$43="Endemic", IF($K96>1, IF($K96=4, "Unknown", IF($K96=99, "Surveillance", ROUND(E96*0.75,0))), 0),"Not required") -> 22498 | T96: =IF(INTRO!$E$43="Endemic", IF($K96>1, IF($K96=4, "Unknown", IF($K96=99, "Surveillance", F96)), 0),"Not required") -> 28967 | U96: =IF(INTRO!$E$43="Endemic", IF($K96>1, IF($K96=4, "Unknown", IF($K96=99, "Surveillance", G96)), 0),"Not required") -> 63049 | V96: =IF(INTRO!$E$43="Endemic", IF($K96>1, IF($K96=4, "Unknown", IF($K96=99, "Surveillance", SUM($S96:$U96))), 0),"Not required") -> 114514 | W96: 0 | X96: 1 | Y96: 0 | Z96: 1 | AB96: Yes | AH96: 7499 | AI96: ROUA
A97: =IF(INTRO!$E$33<>0,INTRO!$E$33, " ") -> Cameroun | B97: Extreme Nord | C97: Tokombere | D97: 165298 | E97: 48017.826 | F97: =IF(INTRO!$E$49="","",ROUND($D97*INTRO!$E$49,0)) -> 43721 | G97: =IF(INTRO!$E$50="","",ROUND($D97*INTRO!$E$50,0)) -> 95162 | H97: 99 | I97: 4 | J97: 2 | K97: 2 | L97: 4 | M97: =IF(INTRO!$E$37="Endemic",IF($H97>0,IF($H97=4,"Unknown",IF($H97=99,"Stopped",$D97)),0),"Not required") -> Stopped | N97: =IF(INTRO!$E$39="Endemic", IF($I97>0, IF($I97=4,"Unknown",IF($I97=99,"Stopped",$D97)), 0),"Not required") -> Unknown | O97: =IF(INTRO!$E$41="Endemic", IF($J97>1, IF($J97=4, "Unknown", IF($J97=99, "Surveillance", E97)), 0),"Not required") -> 48017.826 | P97: =IF(INTRO!$E$41="Endemic", IF($J97>1, IF($J97=4, "Unknown", IF($J97=99, "Surveillance", F97)), 0),"Not required") -> 43721 | Q97: =IF(INTRO!$E$41="Endemic", IF($J97>1, IF($J97=4, "Unknown", IF($J97=99, "Surveillance", ROUND(D97*INTRO!$E$51,0))), 0),"Not required") -> 6116 | R97: =IF(INTRO!$E$41="Endemic", IF($J97>1, IF($J97=4, "Unknown", IF($J97=99, "Surveillance", SUM($O97:$Q97))), 0),"Not required") -> 97854.826 | S97: =IF(INTRO!$E$43="Endemic", IF($K97>1, IF($K97=4, "Unknown", IF($K97=99, "Surveillance", ROUND(E97*0.75,0))), 0),"Not required") -> 36013 | T97: =IF(INTRO!$E$43="Endemic", IF($K97>1, IF($K97=4, "Unknown", IF($K97=99, "Surveillance", F97)), 0),"Not required") -> 43721 | U97: =IF(INTRO!$E$43="Endemic", IF($K97>1, IF($K97=4, "Unknown", IF($K97=99, "Surveillance", G97)), 0),"Not required") -> 95162 | V97: =IF(INTRO!$E$43="Endemic", IF($K97>1, IF($K97=4, "Unknown", IF($K97=99, "Surveillance", SUM($S97:$U97))), 0),"Not required") -> 174896 | W97: 0 | X97: 0 | Y97: 1 | Z97: 1 | AB97: Yes | AH97: 7500 | AI97: TOKOMBERE
A98: =IF(INTRO!$E$33<>0,INTRO!$E$33, " ") -> Cameroun | B98: Extreme Nord | C98: Vele | D98: 170428 | E98: 53906.04 | F98: =IF(INTRO!$E$49="","",ROUND($D98*INTRO!$E$49,0)) -> 45078 | G98: =IF(INTRO!$E$50="","",ROUND($D98*INTRO!$E$50,0)) -> 98115 | H98: 99 | I98: 4 | J98: 2 | K98: 3 | L98: 0 | M98: =IF(INTRO!$E$37="Endemic",IF($H98>0,IF($H98=4,"Unknown",IF($H98=99,"Stopped",$D98)),0),"Not required") -> Stopped | N98: =IF(INTRO!$E$39="Endemic", IF($I98>0, IF($I98=4,"Unknown",IF($I98=99,"Stopped",$D98)), 0),"Not required") -> Unknown | O98: =IF(INTRO!$E$41="Endemic", IF($J98>1, IF($J98=4, "Unknown", IF($J98=99, "Surveillance", E98)), 0),"Not required") -> 53906.04 | P98: =IF(INTRO!$E$41="Endemic", IF($J98>1, IF($J98=4, "Unknown", IF($J98=99, "Surveillance", F98)), 0),"Not required") -> 45078 | Q98: =IF(INTRO!$E$41="Endemic", IF($J98>1, IF($J98=4, "Unknown", IF($J98=99, "Surveillance", ROUND(D98*INTRO!$E$51,0))), 0),"Not required") -> 6306 | R98: =IF(INTRO!$E$41="Endemic", IF($J98>1, IF($J98=4, "Unknown", IF($J98=99, "Surveillance", SUM($O98:$Q98))), 0),"Not required") -> 105290.04 | S98: =IF(INTRO!$E$43="Endemic", IF($K98>1, IF($K98=4, "Unknown", IF($K98=99, "Surveillance", ROUND(E98*0.75,0))), 0),"Not required") -> 40430 | T98: =IF(INTRO!$E$43="Endemic", IF($K98>1, IF($K98=4, "Unknown", IF($K98=99, "Surveillance", F98)), 0),"Not required") -> 45078 | U98: =IF(INTRO!$E$43="Endemic", IF($K98>1, IF($K98=4, "Unknown", IF($K98=99, "Surveillance", G98)), 0),"Not required") -> 98115 | V98: =IF(INTRO!$E$43="Endemic", IF($K98>1, IF($K98=4, "Unknown", IF($K98=99, "Surveillance", SUM($S98:$U98))), 0),"Not required") -> 183623 | W98: 0 | X98: 0 | Y98: 1 | Z98: 1 | AB98: Yes | AH98: 7501 | AI98: VELE
A99: =IF(INTRO!$E$33<>0,INTRO!$E$33, " ") -> Cameroun | B99: Extreme Nord | C99: Yagoua | D99: 277109 | E99: 77437.35 | F99: =IF(INTRO!$E$49="","",ROUND($D99*INTRO!$E$49,0)) -> 73295 | G99: =IF(INTRO!$E$50="","",ROUND($D99*INTRO!$E$50,0)) -> 159532 | H99: 99 | I99: 4 | J99: 2 | K99: 3 | L99: 0 | M99: =IF(INTRO!$E$37="Endemic",IF($H99>0,IF($H99=4,"Unknown",IF($H99=99,"Stopped",$D99)),0),"Not required") -> Stopped | N99: =IF(INTRO!$E$39="Endemic", IF($I99>0, IF($I99=4,"Unknown",IF($I99=99,"Stopped",$D99)), 0),"Not required") -> Unknown | O99: =IF(INTRO!$E$41="Endemic", IF($J99>1, IF($J99=4, "Unknown", IF($J99=99, "Surveillance", E99)), 0),"Not required") -> 77437.35 | P99: =IF(INTRO!$E$41="Endemic", IF($J99>1, IF($J99=4, "Unknown", IF($J99=99, "Surveillance", F99)), 0),"Not required") -> 73295 | Q99: =IF(INTRO!$E$41="Endemic", IF($J99>1, IF($J99=4, "Unknown", IF($J99=99, "Surveillance", ROUND(D99*INTRO!$E$51,0))), 0),"Not required") -> 10253 | R99: =IF(INTRO!$E$41="Endemic", IF($J99>1, IF($J99=4, "Unknown", IF($J99=99, "Surveillance", SUM($O99:$Q99))), 0),"Not required") -> 160985.35 | S99: =IF(INTRO!$E$43="Endemic", IF($K99>1, IF($K99=4, "Unknown", IF($K99=99, "Surveillance", ROUND(E99*0.75,0))), 0),"Not required") -> 58078 | T99: =IF(INTRO!$E$43="Endemic", IF($K99>1, IF($K99=4, "Unknown", IF($K99=99, "Surveillance", F99)), 0),"Not required") -> 73295 | U99: =IF(INTRO!$E$43="Endemic", IF($K99>1, IF($K99=4, "Unknown", IF($K99=99, "Surveillance", G99)), 0),"Not required") -> 159532 | V99: =IF(INTRO!$E$43="Endemic", IF($K99>1, IF($K99=4, "Unknown", IF($K99=99, "Surveillance", SUM($S99:$U99))), 0),"Not required") -> 290905 | W99: 0 | X99: 0 | Y99: 1 | Z99: 1 | AB99: Yes | AH99: 7502 | AI99: YAGOUA
A100: =IF(INTRO!$E$33<>0,INTRO!$E$33, " ") -> Cameroun | B100: Littoral | C100: Abo | D100: 32885 | E100: 4483.62 | F100: =IF(INTRO!$E$49="","",ROUND($D100*INTRO!$E$49,0)) -> 8698 | G100: =IF(INTRO!$E$50="","",ROUND($D100*INTRO!$E$50,0)) -> 18932 | H100: 0 | I100: 4 | J100: 3 | K100: 1 | L100: 1 | M100: =IF(INTRO!$E$37="Endemic",IF($H100>0,IF($H100=4,"Unknown",IF($H100=99,"Stopped",$D100)),0),"Not required") -> 0 | N100: =IF(INTRO!$E$39="Endemic", IF($I100>0, IF($I100=4,"Unknown",IF($I100=99,"Stopped",$D100)), 0),"Not required") -> Unknown | O100: =IF(INTRO!$E$41="Endemic", IF($J100>1, IF($J100=4, "Unknown", IF($J100=99, "Surveillance", E100)), 0),"Not required") -> 4483.62 | P100: =IF(INTRO!$E$41="Endemic", IF($J100>1, IF($J100=4, "Unknown", IF($J100=99, "Surveillance", F100)), 0),"Not required") -> 8698 | Q100: =IF(INTRO!$E$41="Endemic", IF($J100>1, IF($J100=4, "Unknown", IF($J100=99, "Surveillance", ROUND(D100*INTRO!$E$51,0))), 0),"Not required") -> 1217 | R100: =IF(INTRO!$E$41="Endemic", IF($J100>1, IF($J100=4, "Unknown", IF($J100=99, "Surveillance", SUM($O100:$Q100))), 0),"Not required") -> 14398.62 | S100: =IF(INTRO!$E$43="Endemic", IF($K100>1, IF($K100=4, "Unknown", IF($K100=99, "Surveillance", ROUND(E100*0.75,0))), 0),"Not required") -> 0 | T100: =IF(INTRO!$E$43="Endemic", IF($K100>1, IF($K100=4, "Unknown", IF($K100=99, "Surveillance", F100)), 0),"Not required") -> 0 | U100: =IF(INTRO!$E$43="Endemic", IF($K100>1, IF($K100=4, "Unknown", IF($K100=99, "Surveillance", G100)), 0),"Not required") -> 0 | V100: =IF(INTRO!$E$43="Endemic", IF($K100>1, IF($K100=4, "Unknown", IF($K100=99, "Surveillance", SUM($S100:$U100))), 0),"Not required") -> 0 | W100: 0 | X100: 0 | Y100: 1 | Z100: 0 | AB100: Yes | AH100: 7503 | AI100: ABO
A101: =IF(INTRO!$E$33<>0,INTRO!$E$33, " ") -> Cameroun | B101: Littoral | C101: Bangue | D101: 382523 | E101: 35514.99 | F101: =IF(INTRO!$E$49="","",ROUND($D101*INTRO!$E$49,0)) -> 101177 | G101: =IF(INTRO!$E$50="","",ROUND($D101*INTRO!$E$50,0)) -> 220218 | H101: 0 | I101: 4 | J101: 1 | K101: 1 | L101: 1 | M101: =IF(INTRO!$E$37="Endemic",IF($H101>0,IF($H101=4,"Unknown",IF($H101=99,"Stopped",$D101)),0),"Not required") -> 0 | N101: =IF(INTRO!$E$39="Endemic", IF($I101>0, IF($I101=4,"Unknown",IF($I101=99,"Stopped",$D101)), 0),"Not required") -> Unknown | O101: =IF(INTRO!$E$41="Endemic", IF($J101>1, IF($J101=4, "Unknown", IF($J101=99, "Surveillance", E101)), 0),"Not required") -> 0 | P101: =IF(INTRO!$E$41="Endemic", IF($J101>1, IF($J101=4, "Unknown", IF($J101=99, "Surveillance", F101)), 0),"Not required") -> 0 | Q101: =IF(INTRO!$E$41="Endemic", IF($J101>1, IF($J101=4, "Unknown", IF($J101=99, "Surveillance", ROUND(D101*INTRO!$E$51,0))), 0),"Not required") -> 0 | R101: =IF(INTRO!$E$41="Endemic", IF($J101>1, IF($J101=4, "Unknown", IF($J101=99, "Surveillance", SUM($O101:$Q101))), 0),"Not required") -> 0 | S101: =IF(INTRO!$E$43="Endemic", IF($K101>1, IF($K101=4, "Unknown", IF($K101=99, "Surveillance", ROUND(E101*0.75,0))), 0),"Not required") -> 0 | T101: =IF(INTRO!$E$43="Endemic", IF($K101>1, IF($K101=4, "Unknown", IF($K101=99, "Surveillance", F101)), 0),"Not required") -> 0 | U101: =IF(INTRO!$E$43="Endemic", IF($K101>1, IF($K101=4, "Unknown", IF($K101=99, "Surveillance", G101)), 0),"Not required") -> 0 | V101: =IF(INTRO!$E$43="Endemic", IF($K101>1, IF($K101=4, "Unknown", IF($K101=99, "Surveillance", SUM($S101:$U101))), 0),"Not required") -> 0 | W101: 0 | X101: 0 | Y101: 0 | Z101: 0 | AB101: Yes | AH101: 7516 | AI101: MBANGUE
A102: =IF(INTRO!$E$33<>0,INTRO!$E$33, " ") -> Cameroun | B102: Littoral | C102: Boko | D102: 450027 | E102: 55343.466 | F102: =IF(INTRO!$E$49="","",ROUND($D102*INTRO!$E$49,0)) -> 119032 | G102: =IF(INTRO!$E$50="","",ROUND($D102*INTRO!$E$50,0)) -> 259081 | H102: 0 | I102: 4 | J102: 1 | K102: 0 | L102: 1 | M102: =IF(INTRO!$E$37="Endemic",IF($H102>0,IF($H102=4,"Unknown",IF($H102=99,"Stopped",$D102)),0),"Not required") -> 0 | N102: =IF(INTRO!$E$39="Endemic", IF($I102>0, IF($I102=4,"Unknown",IF($I102=99,"Stopped",$D102)), 0),"Not required") -> Unknown | O102: =IF(INTRO!$E$41="Endemic", IF($J102>1, IF($J102=4, "Unknown", IF($J102=99, "Surveillance", E102)), 0),"Not required") -> 0 | P102: =IF(INTRO!$E$41="Endemic", IF($J102>1, IF($J102=4, "Unknown", IF($J102=99, "Surveillance", F102)), 0),"Not required") -> 0 | Q102: =IF(INTRO!$E$41="Endemic", IF($J102>1, IF($J102=4, "Unknown", IF($J102=99, "Surveillance", ROUND(D102*INTRO!$E$51,0))), 0),"Not required") -> 0 | R102: =IF(INTRO!$E$41="Endemic", IF($J102>1, IF($J102=4, "Unknown", IF($J102=99, "Surveillance", SUM($O102:$Q102))), 0),"Not required") -> 0 | S102: =IF(INTRO!$E$43="Endemic", IF($K102>1, IF($K102=4, "Unknown", IF($K102=99, "Surveillance", ROUND(E102*0.75,0))), 0),"Not required") -> 0 | T102: =IF(INTRO!$E$43="Endemic", IF($K102>1, IF($K102=4, "Unknown", IF($K102=99, "Surveillance", F102)), 0),"Not required") -> 0 | U102: =IF(INTRO!$E$43="Endemic", IF($K102>1, IF($K102=4, "Unknown", IF($K102=99, "Surveillance", G102)), 0),"Not required") -> 0 | V102: =IF(INTRO!$E$43="Endemic", IF($K102>1, IF($K102=4, "Unknown", IF($K102=99, "Surveillance", SUM($S102:$U102))), 0),"Not required") -> 0 | W102: 0 | X102: 0 | Y102: 0 | Z102: 0 | AB102: Yes | AH102: 7504 | AI102: BOKO
A103: =IF(INTRO!$E$33<>0,INTRO!$E$33, " ") -> Cameroun | B103: Littoral | C103: Bonassama | D103: 355948 | E103: 28697.22 | F103: =IF(INTRO!$E$49="","",ROUND($D103*INTRO!$E$49,0)) -> 94148 | G103: =IF(INTRO!$E$50="","",ROUND($D103*INTRO!$E$50,0)) -> 204919 | H103: 0 | I103: 4 | J103: 0 | K103: 0 | L103: 1 | M103: =IF(INTRO!$E$37="Endemic",IF($H103>0,IF($H103=4,"Unknown",IF($H103=99,"Stopped",$D103)),0),"Not required") -> 0 | N103: =IF(INTRO!$E$39="Endemic", IF($I103>0, IF($I103=4,"Unknown",IF($I103=99,"Stopped",$D103)), 0),"Not required") -> Unknown | O103: =IF(INTRO!$E$41="Endemic", IF($J103>1, IF($J103=4, "Unknown", IF($J103=99, "Surveillance", E103)), 0),"Not required") -> 0 | P103: =IF(INTRO!$E$41="Endemic", IF($J103>1, IF($J103=4, "Unknown", IF($J103=99, "Surveillance", F103)), 0),"Not required") -> 0 | Q103: =IF(INTRO!$E$41="Endemic", IF($J103>1, IF($J103=4, "Unknown", IF($J103=99, "Surveillance", ROUND(D103*INTRO!$E$51,0))), 0),"Not required") -> 0 | R103: =IF(INTRO!$E$41="Endemic", IF($J103>1, IF($J103=4, "Unknown", IF($J103=99, "Surveillance", SUM($O103:$Q103))), 0),"Not required") -> 0 | S103: =IF(INTRO!$E$43="Endemic", IF($K103>1, IF($K103=4, "Unknown", IF($K103=99, "Surveillance", ROUND(E103*0.75,0))), 0),"Not required") -> 0 | T103: =IF(INTRO!$E$43="Endemic", IF($K103>1, IF($K103=4, "Unknown", IF($K103=99, "Surveillance", F103)), 0),"Not required") -> 0 | U103: =IF(INTRO!$E$43="Endemic", IF($K103>1, IF($K103=4, "Unknown", IF($K103=99, "Surveillance", G103)), 0),"Not required") -> 0 | V103: =IF(INTRO!$E$43="Endemic", IF($K103>1, IF($K103=4, "Unknown", IF($K103=99, "Surveillance", SUM($S103:$U103))), 0),"Not required") -> 0 | W103: 0 | X103: 0 | Y103: 0 | Z103: 0 | AB103: Yes | AH103: 7505 | AI103: BONASSAMA
A104: =IF(INTRO!$E$33<>0,INTRO!$E$33, " ") -> Cameroun | B104: Littoral | C104: Cite Des Palmiers | D104: 655236 | E104: 63211.86 | F104: =IF(INTRO!$E$49="","",ROUND($D104*INTRO!$E$49,0)) -> 173310 | G104: =IF(INTRO!$E$50="","",ROUND($D104*INTRO!$E$50,0)) -> 377219 | H104: 0 | I104: 4 | J104: 0 | K104: 0 | L104: 1 | M104: =IF(INTRO!$E$37="Endemic",IF($H104>0,IF($H104=4,"Unknown",IF($H104=99,"Stopped",$D104)),0),"Not required") -> 0 | N104: =IF(INTRO!$E$39="Endemic", IF($I104>0, IF($I104=4,"Unknown",IF($I104=99,"Stopped",$D104)), 0),"Not required") -> Unknown | O104: =IF(INTRO!$E$41="Endemic", IF($J104>1, IF($J104=4, "Unknown", IF($J104=99, "Surveillance", E104)), 0),"Not required") -> 0 | P104: =IF(INTRO!$E$41="Endemic", IF($J104>1, IF($J104=4, "Unknown", IF($J104=99, "Surveillance", F104)), 0),"Not required") -> 0 | Q104: =IF(INTRO!$E$41="Endemic", IF($J104>1, IF($J104=4, "Unknown", IF($J104=99, "Surveillance", ROUND(D104*INTRO!$E$51,0))), 0),"Not required") -> 0 | R104: =IF(INTRO!$E$41="Endemic", IF($J104>1, IF($J104=4, "Unknown", IF($J104=99, "Surveillance", SUM($O104:$Q104))), 0),"Not required") -> 0 | S104: =IF(INTRO!$E$43="Endemic", IF($K104>1, IF($K104=4, "Unknown", IF($K104=99, "Surveillance", ROUND(E104*0.75,0))), 0),"Not required") -> 0 | T104: =IF(INTRO!$E$43="Endemic", IF($K104>1, IF($K104=4, "Unknown", IF($K104=99, "Surveillance", F104)), 0),"Not required") -> 0 | U104: =IF(INTRO!$E$43="Endemic", IF($K104>1, IF($K104=4, "Unknown", IF($K104=99, "Surveillance", G104)), 0),"Not required") -> 0 | V104: =IF(INTRO!$E$43="Endemic", IF($K104>1, IF($K104=4, "Unknown", IF($K104=99, "Surveillance", SUM($S104:$U104))), 0),"Not required") -> 0 | W104: 0 | X104: 0 | Y104: 0 | Z104: 0 | AB104: Yes | AH104: 7506 | AI104: CITE PALMIERS
A105: =IF(INTRO!$E$33<>0,INTRO!$E$33, " ") -> Cameroun | B105: Littoral | C105: Deido | D105: 46737 | E105: 7047.594 | F105: =IF(INTRO!$E$49="","",ROUND($D105*INTRO!$E$49,0)) -> 12362 | G105: =IF(INTRO!$E$50="","",ROUND($D105*INTRO!$E$50,0)) -> 26906 | H105: 0 | I105: 4 | J105: 1 | K105: 1 | L105: 1 | M105: =IF(INTRO!$E$37="Endemic",IF($H105>0,IF($H105=4,"Unknown",IF($H105=99,"Stopped",$D105)),0),"Not required") -> 0 | N105: =IF(INTRO!$E$39="Endemic", IF($I105>0, IF($I105=4,"Unknown",IF($I105=99,"Stopped",$D105)), 0),"Not required") -> Unknown | O105: =IF(INTRO!$E$41="Endemic", IF($J105>1, IF($J105=4, "Unknown", IF($J105=99, "Surveillance", E105)), 0),"Not required") -> 0 | P105: =IF(INTRO!$E$41="Endemic", IF($J105>1, IF($J105=4, "Unknown", IF($J105=99, "Surveillance", F105)), 0),"Not required") -> 0 | Q105: =IF(INTRO!$E$41="Endemic", IF($J105>1, IF($J105=4, "Unknown", IF($J105=99, "Surveillance", ROUND(D105*INTRO!$E$51,0))), 0),"Not required") -> 0 | R105: =IF(INTRO!$E$41="Endemic", IF($J105>1, IF($J105=4, "Unknown", IF($J105=99, "Surveillance", SUM($O105:$Q105))), 0),"Not required") -> 0 | S105: =IF(INTRO!$E$43="Endemic", IF($K105>1, IF($K105=4, "Unknown", IF($K105=99, "Surveillance", ROUND(E105*0.75,0))), 0),"Not required") -> 0 | T105: =IF(INTRO!$E$43="Endemic", IF($K105>1, IF($K105=4, "Unknown", IF($K105=99, "Surveillance", F105)), 0),"Not required") -> 0 | U105: =IF(INTRO!$E$43="Endemic", IF($K105>1, IF($K105=4, "Unknown", IF($K105=99, "Surveillance", G105)), 0),"Not required") -> 0 | V105: =IF(INTRO!$E$43="Endemic", IF($K105>1, IF($K105=4, "Unknown", IF($K105=99, "Surveillance", SUM($S105:$U105))), 0),"Not required") -> 0 | W105: 0 | X105: 0 | Y105: 0 | Z105: 0 | AB105: Yes | AH105: 7507 | AI105: DEIDO
A106: =IF(INTRO!$E$33<>0,INTRO!$E$33, " ") -> Cameroun | B106: Littoral | C106: Dibombari | D106: 196122 | E106: 19627.38 | F106: =IF(INTRO!$E$49="","",ROUND($D106*INTRO!$E$49,0)) -> 51874 | G106: =IF(INTRO!$E$50="","",ROUND($D106*INTRO!$E$50,0)) -> 112907 | H106: 0 | I106: 4 | J106: 3 | K106: 1 | L106: 1 | M106: =IF(INTRO!$E$37="Endemic",IF($H106>0,IF($H106=4,"Unknown",IF($H106=99,"Stopped",$D106)),0),"Not required") -> 0 | N106: =IF(INTRO!$E$39="Endemic", IF($I106>0, IF($I106=4,"Unknown",IF($I106=99,"Stopped",$D106)), 0),"Not required") -> Unknown | O106: =IF(INTRO!$E$41="Endemic", IF($J106>1, IF($J106=4, "Unknown", IF($J106=99, "Surveillance", E106)), 0),"Not required") -> 19627.38 | P106: =IF(INTRO!$E$41="Endemic", IF($J106>1, IF($J106=4, "Unknown", IF($J106=99, "Surveillance", F106)), 0),"Not required") -> 51874 | Q106: =IF(INTRO!$E$41="Endemic", IF($J106>1, IF($J106=4, "Unknown", IF($J106=99, "Surveillance", ROUND(D106*INTRO!$E$51,0))), 0),"Not required") -> 7257 | R106: =IF(INTRO!$E$41="Endemic", IF($J106>1, IF($J106=4, "Unknown", IF($J106=99, "Surveillance", SUM($O106:$Q106))), 0),"Not required") -> 78758.38 | S106: =IF(INTRO!$E$43="Endemic", IF($K106>1, IF($K106=4, "Unknown", IF($K106=99, "Surveillance", ROUND(E106*0.75,0))), 0),"Not required") -> 0 | T106: =IF(INTRO!$E$43="Endemic", IF($K106>1, IF($K106=4, "Unknown", IF($K106=99, "Surveillance", F106)), 0),"Not required") -> 0 | U106: =IF(INTRO!$E$43="Endemic", IF($K106>1, IF($K106=4, "Unknown", IF($K106=99, "Surveillance", G106)), 0),"Not required") -> 0 | V106: =IF(INTRO!$E$43="Endemic", IF($K106>1, IF($K106=4, "Unknown", IF($K106=99, "Surveillance", SUM($S106:$U106))), 0),"Not required") -> 0 | W106: 0 | X106: 0 | Y106: 1 | Z106: 0 | AB106: Yes | AH106: 7508 | AI106: DIBOMBARI
A107: =IF(INTRO!$E$33<>0,INTRO!$E$33, " ") -> Cameroun | B107: Littoral | C107: Edea | D107: 191276 | E107: 21319.254 | F107: =IF(INTRO!$E$49="","",ROUND($D107*INTRO!$E$49,0)) -> 50593 | G107: =IF(INTRO!$E$50="","",ROUND($D107*INTRO!$E$50,0)) -> 110118 | H107: 99 | I107: 1 | J107: 3 | K107: 2 | L107: 1 | M107: =IF(INTRO!$E$37="Endemic",IF($H107>0,IF($H107=4,"Unknown",IF($H107=99,"Stopped",$D107)),0),"Not required") -> Stopped | N107: =IF(INTRO!$E$39="Endemic", IF($I107>0, IF($I107=4,"Unknown",IF($I107=99,"Stopped",$D107)), 0),"Not required") -> 191276 | O107: =IF(INTRO!$E$41="Endemic", IF($J107>1, IF($J107=4, "Unknown", IF($J107=99, "Surveillance", E107)), 0),"Not required") -> 21319.254 | P107: =IF(INTRO!$E$41="Endemic", IF($J107>1, IF($J107=4, "Unknown", IF($J107=99, "Surveillance", F107)), 0),"Not required") -> 50593 | Q107: =IF(INTRO!$E$41="Endemic", IF($J107>1, IF($J107=4, "Unknown", IF($J107=99, "Surveillance", ROUND(D107*INTRO!$E$51,0))), 0),"Not required") -> 7077 | R107: =IF(INTRO!$E$41="Endemic", IF($J107>1, IF($J107=4, "Unknown", IF($J107=99, "Surveillance", SUM($O107:$Q107))), 0),"Not required") -> 78989.254 | S107: =IF(INTRO!$E$43="Endemic", IF($K107>1, IF($K107=4, "Unknown", IF($K107=99, "Surveillance", ROUND(E107*0.75,0))), 0),"Not required") -> 15989 | T107: =IF(INTRO!$E$43="Endemic", IF($K107>1, IF($K107=4, "Unknown", IF($K107=99, "Surveillance", F107)), 0),"Not required") -> 50593 | U107: =IF(INTRO!$E$43="Endemic", IF($K107>1, IF($K107=4, "Unknown", IF($K107=99, "Surveillance", G107)), 0),"Not required") -> 110118 | V107: =IF(INTRO!$E$43="Endemic", IF($K107>1, IF($K107=4, "Unknown", IF($K107=99, "Surveillance", SUM($S107:$U107))), 0),"Not required") -> 176700 | W107: 0 | X107: 1 | Y107: 1 | Z107: 1 | AB107: Yes | AH107: 7509 | AI107: EDEA
A108: =IF(INTRO!$E$33<>0,INTRO!$E$33, " ") -> Cameroun | B108: Littoral | C108: Japoma | D108: 286315 | E108: 29834.028 | F108: =IF(INTRO!$E$49="","",ROUND($D108*INTRO!$E$49,0)) -> 75730 | G108: =IF(INTRO!$E$50="","",ROUND($D108*INTRO!$E$50,0)) -> 164832 | H108: 0 | I108: 4 | J108: 3 | K108: 0 | L108: 1 | M108: =IF(INTRO!$E$37="Endemic",IF($H108>0,IF($H108=4,"Unknown",IF($H108=99,"Stopped",$D108)),0),"Not required") -> 0 | N108: =IF(INTRO!$E$39="Endemic", IF($I108>0, IF($I108=4,"Unknown",IF($I108=99,"Stopped",$D108)), 0),"Not required") -> Unknown | O108: =IF(INTRO!$E$41="Endemic", IF($J108>1, IF($J108=4, "Unknown", IF($J108=99, "Surveillance", E108)), 0),"Not required") -> 29834.028 | P108: =IF(INTRO!$E$41="Endemic", IF($J108>1, IF($J108=4, "Unknown", IF($J108=99, "Surveillance", F108)), 0),"Not required") -> 75730 | Q108: =IF(INTRO!$E$41="Endemic", IF($J108>1, IF($J108=4, "Unknown", IF($J108=99, "Surveillance", ROUND(D108*INTRO!$E$51,0))), 0),"Not required") -> 10594 | R108: =IF(INTRO!$E$41="Endemic", IF($J108>1, IF($J108=4, "Unknown", IF($J108=99, "Surveillance", SUM($O108:$Q108))), 0),"Not required") -> 116158.028 | S108: =IF(INTRO!$E$43="Endemic", IF($K108>1, IF($K108=4, "Unknown", IF($K108=99, "Surveillance", ROUND(E108*0.75,0))), 0),"Not required") -> 0 | T108: =IF(INTRO!$E$43="Endemic", IF($K108>1, IF($K108=4, "Unknown", IF($K108=99, "Surveillance", F108)), 0),"Not required") -> 0 | U108: =IF(INTRO!$E$43="Endemic", IF($K108>1, IF($K108=4, "Unknown", IF($K108=99, "Surveillance", G108)), 0),"Not required") -> 0 | V108: =IF(INTRO!$E$43="Endemic", IF($K108>1, IF($K108=4, "Unknown", IF($K108=99, "Surveillance", SUM($S108:$U108))), 0),"Not required") -> 0 | W108: 0 | X108: 0 | Y108: 1 | Z108: 0 | AB108: Yes | AH108: 7510 | AI108: JAPOMA
A109: =IF(INTRO!$E$33<>0,INTRO!$E$33, " ") -> Cameroun | B109: Littoral | C109: Logbaba | D109: 77029 | E109: 12558.24 | F109: =IF(INTRO!$E$49="","",ROUND($D109*INTRO!$E$49,0)) -> 20374 | G109: =IF(INTRO!$E$50="","",ROUND($D109*INTRO!$E$50,0)) -> 44346 | H109: 0 | I109: 4 | J109: 1 | K109: 1 | L109: 1 | M109: =IF(INTRO!$E$37="Endemic",IF($H109>0,IF($H109=4,"Unknown",IF($H109=99,"Stopped",$D109)),0),"Not required") -> 0 | N109: =IF(INTRO!$E$39="Endemic", IF($I109>0, IF($I109=4,"Unknown",IF($I109=99,"Stopped",$D109)), 0),"Not required") -> Unknown | O109: =IF(INTRO!$E$41="Endemic", IF($J109>1, IF($J109=4, "Unknown", IF($J109=99, "Surveillance", E109)), 0),"Not required") -> 0 | P109: =IF(INTRO!$E$41="Endemic", IF($J109>1, IF($J109=4, "Unknown", IF($J109=99, "Surveillance", F109)), 0),"Not required") -> 0 | Q109: =IF(INTRO!$E$41="Endemic", IF($J109>1, IF($J109=4, "Unknown", IF($J109=99, "Surveillance", ROUND(D109*INTRO!$E$51,0))), 0),"Not required") -> 0 | R109: =IF(INTRO!$E$41="Endemic", IF($J109>1, IF($J109=4, "Unknown", IF($J109=99, "Surveillance", SUM($O109:$Q109))), 0),"Not required") -> 0 | S109: =IF(INTRO!$E$43="Endemic", IF($K109>1, IF($K109=4, "Unknown", IF($K109=99, "Surveillance", ROUND(E109*0.75,0))), 0),"Not required") -> 0 | T109: =IF(INTRO!$E$43="Endemic", IF($K109>1, IF($K109=4, "Unknown", IF($K109=99, "Surveillance", F109)), 0),"Not required") -> 0 | U109: =IF(INTRO!$E$43="Endemic", IF($K109>1, IF($K109=4, "Unknown", IF($K109=99, "Surveillance", G109)), 0),"Not required") -> 0 | V109: =IF(INTRO!$E$43="Endemic", IF($K109>1, IF($K109=4, "Unknown", IF($K109=99, "Surveillance", SUM($S109:$U109))), 0),"Not required") -> 0 | W109: 0 | X109: 0 | Y109: 0 | Z109: 0 | AB109: Yes | AH109: 7511 | AI109: LOGBABA
A110: =IF(INTRO!$E$33<>0,INTRO!$E$33, " ") -> Cameroun | B110: Littoral | C110: Loum | D110: 44617 | E110: 7075.296 | F110: =IF(INTRO!$E$49="","",ROUND($D110*INTRO!$E$49,0)) -> 11801 | G110: =IF(INTRO!$E$50="","",ROUND($D110*INTRO!$E$50,0)) -> 25686 | H110: 99 | I110: 1 | J110: 3 | K110: 3 | L110: 1 | M110: =IF(INTRO!$E$37="Endemic",IF($H110>0,IF($H110=4,"Unknown",IF($H110=99,"Stopped",$D110)),0),"Not required") -> Stopped | N110: =IF(INTRO!$E$39="Endemic", IF($I110>0, IF($I110=4,"Unknown",IF($I110=99,"Stopped",$D110)), 0),"Not required") -> 44617 | O110: =IF(INTRO!$E$41="Endemic", IF($J110>1, IF($J110=4, "Unknown", IF($J110=99, "Surveillance", E110)), 0),"Not required") -> 7075.296 | P110: =IF(INTRO!$E$41="Endemic", IF($J110>1, IF($J110=4, "Unknown", IF($J110=99, "Surveillance", F110)), 0),"Not required") -> 11801 | Q110: =IF(INTRO!$E$41="Endemic", IF($J110>1, IF($J110=4, "Unknown", IF($J110=99, "Surveillance", ROUND(D110*INTRO!$E$51,0))), 0),"Not required") -> 1651 | R110: =IF(INTRO!$E$41="Endemic", IF($J110>1, IF($J110=4, "Unknown", IF($J110=99, "Surveillance", SUM($O110:$Q110))), 0),"Not required") -> 20527.296 | S110: =IF(INTRO!$E$43="Endemic", IF($K110>1, IF($K110=4, "Unknown", IF($K110=99, "Surveillance", ROUND(E110*0.75,0))), 0),"Not required") -> 5306 | T110: =IF(INTRO!$E$43="Endemic", IF($K110>1, IF($K110=4, "Unknown", IF($K110=99, "Surveillance", F110)), 0),"Not required") -> 11801 | U110: =IF(INTRO!$E$43="Endemic", IF($K110>1, IF($K110=4, "Unknown", IF($K110=99, "Surveillance", G110)), 0),"Not required") -> 25686 | V110: =IF(INTRO!$E$43="Endemic", IF($K110>1, IF($K110=4, "Unknown", IF($K110=99, "Surveillance", SUM($S110:$U110))), 0),"Not required") -> 42793 | W110: 0 | X110: 1 | Y110: 1 | Z110: 1 | AB110: Yes | AH110: 7512 | AI110: LOUM
A111: =IF(INTRO!$E$33<>0,INTRO!$E$33, " ") -> Cameroun | B111: Littoral | C111: Manjo | D111: 33181 | E111: 2380.32 | F111: =IF(INTRO!$E$49="","",ROUND($D111*INTRO!$E$49,0)) -> 8776 | G111: =IF(INTRO!$E$50="","",ROUND($D111*INTRO!$E$50,0)) -> 19102 | H111: 99 | I111: 1 | J111: 3 | K111: 1 | L111: 1 | M111: =IF(INTRO!$E$37="Endemic",IF($H111>0,IF($H111=4,"Unknown",IF($H111=99,"Stopped",$D111)),0),"Not required") -> Stopped | N111: =IF(INTRO!$E$39="Endemic", IF($I111>0, IF($I111=4,"Unknown",IF($I111=99,"Stopped",$D111)), 0),"Not required") -> 33181 | O111: =IF(INTRO!$E$41="Endemic", IF($J111>1, IF($J111=4, "Unknown", IF($J111=99, "Surveillance", E111)), 0),"Not required") -> 2380.32 | P111: =IF(INTRO!$E$41="Endemic", IF($J111>1, IF($J111=4, "Unknown", IF($J111=99, "Surveillance", F111)), 0),"Not required") -> 8776 | Q111: =IF(INTRO!$E$41="Endemic", IF($J111>1, IF($J111=4, "Unknown", IF($J111=99, "Surveillance", ROUND(D111*INTRO!$E$51,0))), 0),"Not required") -> 1228 | R111: =IF(INTRO!$E$41="Endemic", IF($J111>1, IF($J111=4, "Unknown", IF($J111=99, "Surveillance", SUM($O111:$Q111))), 0),"Not required") -> 12384.32 | S111: =IF(INTRO!$E$43="Endemic", IF($K111>1, IF($K111=4, "Unknown", IF($K111=99, "Surveillance", ROUND(E111*0.75,0))), 0),"Not required") -> 0 | T111: =IF(INTRO!$E$43="Endemic", IF($K111>1, IF($K111=4, "Unknown", IF($K111=99, "Surveillance", F111)), 0),"Not required") -> 0 | U111: =IF(INTRO!$E$43="Endemic", IF($K111>1, IF($K111=4, "Unknown", IF($K111=99, "Surveillance", G111)), 0),"Not required") -> 0 | V111: =IF(INTRO!$E$43="Endemic", IF($K111>1, IF($K111=4, "Unknown", IF($K111=99, "Surveillance", SUM($S111:$U111))), 0),"Not required") -> 0 | W111: 0 | X111: 1 | Y111: 1 | Z111: 0 | AB111: Yes | AH111: 7513 | AI111: MANJO
A112: =IF(INTRO!$E$33<>0,INTRO!$E$33, " ") -> Cameroun | B112: Littoral | C112: Manoka | D112: 89805 | E112: 11949.822 | F112: =IF(INTRO!$E$49="","",ROUND($D112*INTRO!$E$49,0)) -> 23753 | G112: =IF(INTRO!$E$50="","",ROUND($D112*INTRO!$E$50,0)) -> 51701 | H112: 0 | I112: 4 | J112: 3 | K112: 0 | L112: 1 | M112: =IF(INTRO!$E$37="Endemic",IF($H112>0,IF($H112=4,"Unknown",IF($H112=99,"Stopped",$D112)),0),"Not required") -> 0 | N112: =IF(INTRO!$E$39="Endemic", IF($I112>0, IF($I112=4,"Unknown",IF($I112=99,"Stopped",$D112)), 0),"Not required") -> Unknown | O112: =IF(INTRO!$E$41="Endemic", IF($J112>1, IF($J112=4, "Unknown", IF($J112=99, "Surveillance", E112)), 0),"Not required") -> 11949.822 | P112: =IF(INTRO!$E$41="Endemic", IF($J112>1, IF($J112=4, "Unknown", IF($J112=99, "Surveillance", F112)), 0),"Not required") -> 23753 | Q112: =IF(INTRO!$E$41="Endemic", IF($J112>1, IF($J112=4, "Unknown", IF($J112=99, "Surveillance", ROUND(D112*INTRO!$E$51,0))), 0),"Not required") -> 3323 | R112: =IF(INTRO!$E$41="Endemic", IF($J112>1, IF($J112=4, "Unknown", IF($J112=99, "Surveillance", SUM($O112:$Q112))), 0),"Not required") -> 39025.822 | S112: =IF(INTRO!$E$43="Endemic", IF($K112>1, IF($K112=4, "Unknown", IF($K112=99, "Surveillance", ROUND(E112*0.75,0))), 0),"Not required") -> 0 | T112: =IF(INTRO!$E$43="Endemic", IF($K112>1, IF($K112=4, "Unknown", IF($K112=99, "Surveillance", F112)), 0),"Not required") -> 0 | U112: =IF(INTRO!$E$43="Endemic", IF($K112>1, IF($K112=4, "Unknown", IF($K112=99, "Surveillance", G112)), 0),"Not required") -> 0 | V112: =IF(INTRO!$E$43="Endemic", IF($K112>1, IF($K112=4, "Unknown", IF($K112=99, "Surveillance", SUM($S112:$U112))), 0),"Not required") -> 0 | W112: 0 | X112: 0 | Y112: 1 | Z112: 0 | AB112: Yes | AH112: 7514 | AI112: MANOKA
A113: =IF(INTRO!$E$33<>0,INTRO!$E$33, " ") -> Cameroun | B113: Littoral | C113: Mbanga | D113: 404342 | E113: 34077.564 | F113: =IF(INTRO!$E$49="","",ROUND($D113*INTRO!$E$49,0)) -> 106948 | G113: =IF(INTRO!$E$50="","",ROUND($D113*INTRO!$E$50,0)) -> 232780 | H113: 99 | I113: 1 | J113: 3 | K113: 1 | L113: 1 | M113: =IF(INTRO!$E$37="Endemic",IF($H113>0,IF($H113=4,"Unknown",IF($H113=99,"Stopped",$D113)),0),"Not required") -> Stopped | N113: =IF(INTRO!$E$39="Endemic", IF($I113>0, IF($I113=4,"Unknown",IF($I113=99,"Stopped",$D113)), 0),"Not required") -> 404342 | O113: =IF(INTRO!$E$41="Endemic", IF($J113>1, IF($J113=4, "Unknown", IF($J113=99, "Surveillance", E113)), 0),"Not required") -> 34077.564 | P113: =IF(INTRO!$E$41="Endemic", IF($J113>1, IF($J113=4, "Unknown", IF($J113=99, "Surveillance", F113)), 0),"Not required") -> 106948 | Q113: =IF(INTRO!$E$41="Endemic", IF($J113>1, IF($J113=4, "Unknown", IF($J113=99, "Surveillance", ROUND(D113*INTRO!$E$51,0))), 0),"Not required") -> 14961 | R113: =IF(INTRO!$E$41="Endemic", IF($J113>1, IF($J113=4, "Unknown", IF($J113=99, "Surveillance", SUM($O113:$Q113))), 0),"Not required") -> 155986.564 | S113: =IF(INTRO!$E$43="Endemic", IF($K113>1, IF($K113=4, "Unknown", IF($K113=99, "Surveillance", ROUND(E113*0.75,0))), 0),"Not required") -> 0 | T113: =IF(INTRO!$E$43="Endemic", IF($K113>1, IF($K113=4, "Unknown", IF($K113=99, "Surveillance", F113)), 0),"Not required") -> 0 | U113: =IF(INTRO!$E$43="Endemic", IF($K113>1, IF($K113=4, "Unknown", IF($K113=99, "Surveillance", G113)), 0),"Not required") -> 0 | V113: =IF(INTRO!$E$43="Endemic", IF($K113>1, IF($K113=4, "Unknown", IF($K113=99, "Surveillance", SUM($S113:$U113))), 0),"Not required") -> 0 | W113: 0 | X113: 1 | Y113: 1 | Z113: 0 | AB113: Yes | AH113: 7515 | AI113: MBANGA
A114: =IF(INTRO!$E$33<>0,INTRO!$E$33, " ") -> Cameroun | B114: Littoral | C114: Melong | D114: 120692 | E114: 16458.066 | F114: =IF(INTRO!$E$49="","",ROUND($D114*INTRO!$E$49,0)) -> 31923 | G114: =IF(INTRO!$E$50="","",ROUND($D114*INTRO!$E$50,0)) -> 69482 | H114: 99 | I114: 1 | J114: 3 | K114: 2 | L114: 1 | M114: =IF(INTRO!$E$37="Endemic",IF($H114>0,IF($H114=4,"Unknown",IF($H114=99,"Stopped",$D114)),0),"Not required") -> Stopped | N114: =IF(INTRO!$E$39="Endemic", IF($I114>0, IF($I114=4,"Unknown",IF($I114=99,"Stopped",$D114)), 0),"Not required") -> 120692 | O114: =IF(INTRO!$E$41="Endemic", IF($J114>1, IF($J114=4, "Unknown", IF($J114=99, "Surveillance", E114)), 0),"Not required") -> 16458.066 | P114: =IF(INTRO!$E$41="Endemic", IF($J114>1, IF($J114=4, "Unknown", IF($J114=99, "Surveillance", F114)), 0),"Not required") -> 31923 | Q114: =IF(INTRO!$E$41="Endemic", IF($J114>1, IF($J114=4, "Unknown", IF($J114=99, "Surveillance", ROUND(D114*INTRO!$E$51,0))), 0),"Not required") -> 4466 | R114: =IF(INTRO!$E$41="Endemic", IF($J114>1, IF($J114=4, "Unknown", IF($J114=99, "Surveillance", SUM($O114:$Q114))), 0),"Not required") -> 52847.066 | S114: =IF(INTRO!$E$43="Endemic", IF($K114>1, IF($K114=4, "Unknown", IF($K114=99, "Surveillance", ROUND(E114*0.75,0))), 0),"Not required") -> 12344 | T114: =IF(INTRO!$E$43="Endemic", IF($K114>1, IF($K114=4, "Unknown", IF($K114=99, "Surveillance", F114)), 0),"Not required") -> 31923 | U114: =IF(INTRO!$E$43="Endemic", IF($K114>1, IF($K114=4, "Unknown", IF($K114=99, "Surveillance", G114)), 0),"Not required") -> 69482 | V114: =IF(INTRO!$E$43="Endemic", IF($K114>1, IF($K114=4, "Unknown", IF($K114=99, "Surveillance", SUM($S114:$U114))), 0),"Not required") -> 113749 | W114: 0 | X114: 1 | Y114: 1 | Z114: 1 | AB114: Yes | AH114: 7517 | AI114: MELONG
A115: =IF(INTRO!$E$33<>0,INTRO!$E$33, " ") -> Cameroun | B115: Littoral | C115: Ndom | D115: 29605 | E115: 3505.842 | F115: =IF(INTRO!$E$49="","",ROUND($D115*INTRO!$E$49,0)) -> 7831 | G115: =IF(INTRO!$E$50="","",ROUND($D115*INTRO!$E$50,0)) -> 17044 | H115: 99 | I115: 1 | J115: 3 | K115: 1 | L115: 1 | M115: =IF(INTRO!$E$37="Endemic",IF($H115>0,IF($H115=4,"Unknown",IF($H115=99,"Stopped",$D115)),0),"Not required") -> Stopped | N115: =IF(INTRO!$E$39="Endemic", IF($I115>0, IF($I115=4,"Unknown",IF($I115=99,"Stopped",$D115)), 0),"Not required") -> 29605 | O115: =IF(INTRO!$E$41="Endemic", IF($J115>1, IF($J115=4, "Unknown", IF($J115=99, "Surveillance", E115)), 0),"Not required") -> 3505.842 | P115: =IF(INTRO!$E$41="Endemic", IF($J115>1, IF($J115=4, "Unknown", IF($J115=99, "Surveillance", F115)), 0),"Not required") -> 7831 | Q115: =IF(INTRO!$E$41="Endemic", IF($J115>1, IF($J115=4, "Unknown", IF($J115=99, "Surveillance", ROUND(D115*INTRO!$E$51,0))), 0),"Not required") -> 1095 | R115: =IF(INTRO!$E$41="Endemic", IF($J115>1, IF($J115=4, "Unknown", IF($J115=99, "Surveillance", SUM($O115:$Q115))), 0),"Not required") -> 12431.842 | S115: =IF(INTRO!$E$43="Endemic", IF($K115>1, IF($K115=4, "Unknown", IF($K115=99, "Surveillance", ROUND(E115*0.75,0))), 0),"Not required") -> 0 | T115: =IF(INTRO!$E$43="Endemic", IF($K115>1, IF($K115=4, "Unknown", IF($K115=99, "Surveillance", F115)), 0),"Not required") -> 0 | U115: =IF(INTRO!$E$43="Endemic", IF($K115>1, IF($K115=4, "Unknown", IF($K115=99, "Surveillance", G115)), 0),"Not required") -> 0 | V115: =IF(INTRO!$E$43="Endemic", IF($K115>1, IF($K115=4, "Unknown", IF($K115=99, "Surveillance", SUM($S115:$U115))), 0),"Not required") -> 0 | W115: 0 | X115: 1 | Y115: 1 | Z115: 0 | AB115: Yes | AH115: 7518 | AI115: NDOM
A116: =IF(INTRO!$E$33<>0,INTRO!$E$33, " ") -> Cameroun | B116: Littoral | C116: New Bell | D116: 331570 | E116: 34359.714 | F116: =IF(INTRO!$E$49="","",ROUND($D116*INTRO!$E$49,0)) -> 87700 | G116: =IF(INTRO!$E$50="","",ROUND($D116*INTRO!$E$50,0)) -> 190885 | H116: 0 | I116: 4 | J116: 1 | K116: 1 | L116: 1 | M116: =IF(INTRO!$E$37="Endemic",IF($H116>0,IF($H116=4,"Unknown",IF($H116=99,"Stopped",$D116)),0),"Not required") -> 0 | N116: =IF(INTRO!$E$39="Endemic", IF($I116>0, IF($I116=4,"Unknown",IF($I116=99,"Stopped",$D116)), 0),"Not required") -> Unknown | O116: =IF(INTRO!$E$41="Endemic", IF($J116>1, IF($J116=4, "Unknown", IF($J116=99, "Surveillance", E116)), 0),"Not required") -> 0 | P116: =IF(INTRO!$E$41="Endemic", IF($J116>1, IF($J116=4, "Unknown", IF($J116=99, "Surveillance", F116)), 0),"Not required") -> 0 | Q116: =IF(INTRO!$E$41="Endemic", IF($J116>1, IF($J116=4, "Unknown", IF($J116=99, "Surveillance", ROUND(D116*INTRO!$E$51,0))), 0),"Not required") -> 0 | R116: =IF(INTRO!$E$41="Endemic", IF($J116>1, IF($J116=4, "Unknown", IF($J116=99, "Surveillance", SUM($O116:$Q116))), 0),"Not required") -> 0 | S116: =IF(INTRO!$E$43="Endemic", IF($K116>1, IF($K116=4, "Unknown", IF($K116=99, "Surveillance", ROUND(E116*0.75,0))), 0),"Not required") -> 0 | T116: =IF(INTRO!$E$43="Endemic", IF($K116>1, IF($K116=4, "Unknown", IF($K116=99, "Surveillance", F116)), 0),"Not required") -> 0 | U116: =IF(INTRO!$E$43="Endemic", IF($K116>1, IF($K116=4, "Unknown", IF($K116=99, "Surveillance", G116)), 0),"Not required") -> 0 | V116: =IF(INTRO!$E$43="Endemic", IF($K116>1, IF($K116=4, "Unknown", IF($K116=99, "Surveillance", SUM($S116:$U116))), 0),"Not required") -> 0 | W116: 0 | X116: 0 | Y116: 0 | Z116: 0 | AB116: Yes | AH116: 7519 | AI116: NEW BELL
A117: =IF(INTRO!$E$33<>0,INTRO!$E$33, " ") -> Cameroun | B117: Littoral | C117: Ngambe | D117: 16252 | E117: 2084.832 | F117: =IF(INTRO!$E$49="","",ROUND($D117*INTRO!$E$49,0)) -> 4299 | G117: =IF(INTRO!$E$50="","",ROUND($D117*INTRO!$E$50,0)) -> 9356 | H117: 99 | I117: 1 | J117: 3 | K117: 1 | L117: 1 | M117: =IF(INTRO!$E$37="Endemic",IF($H117>0,IF($H117=4,"Unknown",IF($H117=99,"Stopped",$D117)),0),"Not required") -> Stopped | N117: =IF(INTRO!$E$39="Endemic", IF($I117>0, IF($I117=4,"Unknown",IF($I117=99,"Stopped",$D117)), 0),"Not required") -> 16252 | O117: =IF(INTRO!$E$41="Endemic", IF($J117>1, IF($J117=4, "Unknown", IF($J117=99, "Surveillance", E117)), 0),"Not required") -> 2084.832 | P117: =IF(INTRO!$E$41="Endemic", IF($J117>1, IF($J117=4, "Unknown", IF($J117=99, "Surveillance", F117)), 0),"Not required") -> 4299 | Q117: =IF(INTRO!$E$41="Endemic", IF($J117>1, IF($J117=4, "Unknown", IF($J117=99, "Surveillance", ROUND(D117*INTRO!$E$51,0))), 0),"Not required") -> 601 | R117: =IF(INTRO!$E$41="Endemic", IF($J117>1, IF($J117=4, "Unknown", IF($J117=99, "Surveillance", SUM($O117:$Q117))), 0),"Not required") -> 6984.832 | S117: =IF(INTRO!$E$43="Endemic", IF($K117>1, IF($K117=4, "Unknown", IF($K117=99, "Surveillance", ROUND(E117*0.75,0))), 0),"Not required") -> 0 | T117: =IF(INTRO!$E$43="Endemic", IF($K117>1, IF($K117=4, "Unknown", IF($K117=99, "Surveillance", F117)), 0),"Not required") -> 0 | U117: =IF(INTRO!$E$43="Endemic", IF($K117>1, IF($K117=4, "Unknown", IF($K117=99, "Surveillance", G117)), 0),"Not required") -> 0 | V117: =IF(INTRO!$E$43="Endemic", IF($K117>1, IF($K117=4, "Unknown", IF($K117=99, "Surveillance", SUM($S117:$U117))), 0),"Not required") -> 0 | W117: 0 | X117: 1 | Y117: 1 | Z117: 0 | AB117: Yes | AH117: 7520 | AI117: NGAMBE
A118: =IF(INTRO!$E$33<>0,INTRO!$E$33, " ") -> Cameroun | B118: Littoral | C118: Njombe Penja | D118: 63313 | E118: 11231.622 | F118: =IF(INTRO!$E$49="","",ROUND($D118*INTRO!$E$49,0)) -> 16746 | G118: =IF(INTRO!$E$50="","",ROUND($D118*INTRO!$E$50,0)) -> 36449 | H118: 99 | I118: 1 | J118: 3 | K118: 3 | L118: 1 | M118: =IF(INTRO!$E$37="Endemic",IF($H118>0,IF($H118=4,"Unknown",IF($H118=99,"Stopped",$D118)),0),"Not required") -> Stopped | N118: =IF(INTRO!$E$39="Endemic", IF($I118>0, IF($I118=4,"Unknown",IF($I118=99,"Stopped",$D118)), 0),"Not required") -> 63313 | O118: =IF(INTRO!$E$41="Endemic", IF($J118>1, IF($J118=4, "Unknown", IF($J118=99, "Surveillance", E118)), 0),"Not required") -> 11231.622 | P118: =IF(INTRO!$E$41="Endemic", IF($J118>1, IF($J118=4, "Unknown", IF($J118=99, "Surveillance", F118)), 0),"Not required") -> 16746 | Q118: =IF(INTRO!$E$41="Endemic", IF($J118>1, IF($J118=4, "Unknown", IF($J118=99, "Surveillance", ROUND(D118*INTRO!$E$51,0))), 0),"Not required") -> 2343 | R118: =IF(INTRO!$E$41="Endemic", IF($J118>1, IF($J118=4, "Unknown", IF($J118=99, "Surveillance", SUM($O118:$Q118))), 0),"Not required") -> 30320.622 | S118: =IF(INTRO!$E$43="Endemic", IF($K118>1, IF($K118=4, "Unknown", IF($K118=99, "Surveillance", ROUND(E118*0.75,0))), 0),"Not required") -> 8424 | T118: =IF(INTRO!$E$43="Endemic", IF($K118>1, IF($K118=4, "Unknown", IF($K118=99, "Surveillance", F118)), 0),"Not required") -> 16746 | U118: =IF(INTRO!$E$43="Endemic", IF($K118>1, IF($K118=4, "Unknown", IF($K118=99, "Surveillance", G118)), 0),"Not required") -> 36449 | V118: =IF(INTRO!$E$43="Endemic", IF($K118>1, IF($K118=4, "Unknown", IF($K118=99, "Surveillance", SUM($S118:$U118))), 0),"Not required") -> 61619 | W118: 0 | X118: 1 | Y118: 1 | Z118: 1 | AB118: Yes | AH118: 7521 | AI118: NJOMBE PENJA
A119: =IF(INTRO!$E$33<>0,INTRO!$E$33, " ") -> Cameroun | B119: Littoral | C119: Nkondjock | D119: 28720 | E119: 4486.698 | F119: =IF(INTRO!$E$49="","",ROUND($D119*INTRO!$E$49,0)) -> 7596 | G119: =IF(INTRO!$E$50="","",ROUND($D119*INTRO!$E$50,0)) -> 16534 | H119: 99 | I119: 1 | J119: 3 | K119: 1 | L119: 1 | M119: =IF(INTRO!$E$37="Endemic",IF($H119>0,IF($H119=4,"Unknown",IF($H119=99,"Stopped",$D119)),0),"Not required") -> Stopped | N119: =IF(INTRO!$E$39="Endemic", IF($I119>0, IF($I119=4,"Unknown",IF($I119=99,"Stopped",$D119)), 0),"Not required") -> 28720 | O119: =IF(INTRO!$E$41="Endemic", IF($J119>1, IF($J119=4, "Unknown", IF($J119=99, "Surveillance", E119)), 0),"Not required") -> 4486.698 | P119: =IF(INTRO!$E$41="Endemic", IF($J119>1, IF($J119=4, "Unknown", IF($J119=99, "Surveillance", F119)), 0),"Not required") -> 7596 | Q119: =IF(INTRO!$E$41="Endemic", IF($J119>1, IF($J119=4, "Unknown", IF($J119=99, "Surveillance", ROUND(D119*INTRO!$E$51,0))), 0),"Not required") -> 1063 | R119: =IF(INTRO!$E$41="Endemic", IF($J119>1, IF($J119=4, "Unknown", IF($J119=99, "Surveillance", SUM($O119:$Q119))), 0),"Not required") -> 13145.698 | S119: =IF(INTRO!$E$43="Endemic", IF($K119>1, IF($K119=4, "Unknown", IF($K119=99, "Surveillance", ROUND(E119*0.75,0))), 0),"Not required") -> 0 | T119: =IF(INTRO!$E$43="Endemic", IF($K119>1, IF($K119=4, "Unknown", IF($K119=99, "Surveillance", F119)), 0),"Not required") -> 0 | U119: =IF(INTRO!$E$43="Endemic", IF($K119>1, IF($K119=4, "Unknown", IF($K119=99, "Surveillance", G119)), 0),"Not required") -> 0 | V119: =IF(INTRO!$E$43="Endemic", IF($K119>1, IF($K119=4, "Unknown", IF($K119=99, "Surveillance", SUM($S119:$U119))), 0),"Not required") -> 0 | W119: 0 | X119: 1 | Y119: 1 | Z119: 0 | AB119: Yes | AH119: 7522 | AI119: NKONDJOCK
A120: =IF(INTRO!$E$33<>0,INTRO!$E$33, " ") -> Cameroun | B120: Littoral | C120: Nkongsamba | D120: 130263 | E120: 16024.068 | F120: =IF(INTRO!$E$49="","",ROUND($D120*INTRO!$E$49,0)) -> 34455 | G120: =IF(INTRO!$E$50="","",ROUND($D120*INTRO!$E$50,0)) -> 74992 | H120: 99 | I120: 1 | J120: 3 | K120: 0 | L120: 1 | M120: =IF(INTRO!$E$37="Endemic",IF($H120>0,IF($H120=4,"Unknown",IF($H120=99,"Stopped",$D120)),0),"Not required") -> Stopped | N120: =IF(INTRO!$E$39="Endemic", IF($I120>0, IF($I120=4,"Unknown",IF($I120=99,"Stopped",$D120)), 0),"Not required") -> 130263 | O120: =IF(INTRO!$E$41="Endemic", IF($J120>1, IF($J120=4, "Unknown", IF($J120=99, "Surveillance", E120)), 0),"Not required") -> 16024.068 | P120: =IF(INTRO!$E$41="Endemic", IF($J120>1, IF($J120=4, "Unknown", IF($J120=99, "Surveillance", F120)), 0),"Not required") -> 34455 | Q120: =IF(INTRO!$E$41="Endemic", IF($J120>1, IF($J120=4, "Unknown", IF($J120=99, "Surveillance", ROUND(D120*INTRO!$E$51,0))), 0),"Not required") -> 4820 | R120: =IF(INTRO!$E$41="Endemic", IF($J120>1, IF($J120=4, "Unknown", IF($J120=99, "Surveillance", SUM($O120:$Q120))), 0),"Not required") -> 55299.068 | S120: =IF(INTRO!$E$43="Endemic", IF($K120>1, IF($K120=4, "Unknown", IF($K120=99, "Surveillance", ROUND(E120*0.75,0))), 0),"Not required") -> 0 | T120: =IF(INTRO!$E$43="Endemic", IF($K120>1, IF($K120=4, "Unknown", IF($K120=99, "Surveillance", F120)), 0),"Not required") -> 0 | U120: =IF(INTRO!$E$43="Endemic", IF($K120>1, IF($K120=4, "Unknown", IF($K120=99, "Surveillance", G120)), 0),"Not required") -> 0 | V120: =IF(INTRO!$E$43="Endemic", IF($K120>1, IF($K120=4, "Unknown", IF($K120=99, "Surveillance", SUM($S120:$U120))), 0),"Not required") -> 0 | W120: 0 | X120: 1 | Y120: 1 | Z120: 0 | AB120: Yes | AH120: 7523 | AI120: NKONGSAMBA
A121: =IF(INTRO!$E$33<>0,INTRO!$E$33, " ") -> Cameroun | B121: Littoral | C121: Nylon | D121: 473383 | E121: 50965.524 | F121: =IF(INTRO!$E$49="","",ROUND($D121*INTRO!$E$49,0)) -> 125210 | G121: =IF(INTRO!$E$50="","",ROUND($D121*INTRO!$E$50,0)) -> 272527 | H121: 0 | I121: 4 | J121: 0 | K121: 0 | L121: 1 | M121: =IF(INTRO!$E$37="Endemic",IF($H121>0,IF($H121=4,"Unknown",IF($H121=99,"Stopped",$D121)),0),"Not required") -> 0 | N121: =IF(INTRO!$E$39="Endemic", IF($I121>0, IF($I121=4,"Unknown",IF($I121=99,"Stopped",$D121)), 0),"Not required") -> Unknown | O121: =IF(INTRO!$E$41="Endemic", IF($J121>1, IF($J121=4, "Unknown", IF($J121=99, "Surveillance", E121)), 0),"Not required") -> 0 | P121: =IF(INTRO!$E$41="Endemic", IF($J121>1, IF($J121=4, "Unknown", IF($J121=99, "Surveillance", F121)), 0),"Not required") -> 0 | Q121: =IF(INTRO!$E$41="Endemic", IF($J121>1, IF($J121=4, "Unknown", IF($J121=99, "Surveillance", ROUND(D121*INTRO!$E$51,0))), 0),"Not required") -> 0 | R121: =IF(INTRO!$E$41="Endemic", IF($J121>1, IF($J121=4, "Unknown", IF($J121=99, "Surveillance", SUM($O121:$Q121))), 0),"Not required") -> 0 | S121: =IF(INTRO!$E$43="Endemic", IF($K121>1, IF($K121=4, "Unknown", IF($K121=99, "Surveillance", ROUND(E121*0.75,0))), 0),"Not required") -> 0 | T121: =IF(INTRO!$E$43="Endemic", IF($K121>1, IF($K121=4, "Unknown", IF($K121=99, "Surveillance", F121)), 0),"Not required") -> 0 | U121: =IF(INTRO!$E$43="Endemic", IF($K121>1, IF($K121=4, "Unknown", IF($K121=99, "Surveillance", G121)), 0),"Not required") -> 0 | V121: =IF(INTRO!$E$43="Endemic", IF($K121>1, IF($K121=4, "Unknown", IF($K121=99, "Surveillance", SUM($S121:$U121))), 0),"Not required") -> 0 | W121: 0 | X121: 0 | Y121: 0 | Z121: 0 | AB121: Yes | AH121: 7524 | AI121: NYLON
A122: =IF(INTRO!$E$33<>0,INTRO!$E$33, " ") -> Cameroun | B122: Littoral | C122: Pouma | D122: 22093 | E122: 2359.8 | F122: =IF(INTRO!$E$49="","",ROUND($D122*INTRO!$E$49,0)) -> 5844 | G122: =IF(INTRO!$E$50="","",ROUND($D122*INTRO!$E$50,0)) -> 12719 | H122: 99 | I122: 1 | J122: 3 | K122: 1 | L122: 1 | M122: =IF(INTRO!$E$37="Endemic",IF($H122>0,IF($H122=4,"Unknown",IF($H122=99,"Stopped",$D122)),0),"Not required") -> Stopped | N122: =IF(INTRO!$E$39="Endemic", IF($I122>0, IF($I122=4,"Unknown",IF($I122=99,"Stopped",$D122)), 0),"Not required") -> 22093 | O122: =IF(INTRO!$E$41="Endemic", IF($J122>1, IF($J122=4, "Unknown", IF($J122=99, "Surveillance", E122)), 0),"Not required") -> 2359.8 | P122: =IF(INTRO!$E$41="Endemic", IF($J122>1, IF($J122=4, "Unknown", IF($J122=99, "Surveillance", F122)), 0),"Not required") -> 5844 | Q122: =IF(INTRO!$E$41="Endemic", IF($J122>1, IF($J122=4, "Unknown", IF($J122=99, "Surveillance", ROUND(D122*INTRO!$E$51,0))), 0),"Not required") -> 817 | R122: =IF(INTRO!$E$41="Endemic", IF($J122>1, IF($J122=4, "Unknown", IF($J122=99, "Surveillance", SUM($O122:$Q122))), 0),"Not required") -> 9020.8 | S122: =IF(INTRO!$E$43="Endemic", IF($K122>1, IF($K122=4, "Unknown", IF($K122=99, "Surveillance", ROUND(E122*0.75,0))), 0),"Not required") -> 0 | T122: =IF(INTRO!$E$43="Endemic", IF($K122>1, IF($K122=4, "Unknown", IF($K122=99, "Surveillance", F122)), 0),"Not required") -> 0 | U122: =IF(INTRO!$E$43="Endemic", IF($K122>1, IF($K122=4, "Unknown", IF($K122=99, "Surveillance", G122)), 0),"Not required") -> 0 | V122: =IF(INTRO!$E$43="Endemic", IF($K122>1, IF($K122=4, "Unknown", IF($K122=99, "Surveillance", SUM($S122:$U122))), 0),"Not required") -> 0 | W122: 0 | X122: 1 | Y122: 1 | Z122: 0 | AB122: Yes | AH122: 7525 | AI122: POUMA
A123: =IF(INTRO!$E$33<>0,INTRO!$E$33, " ") -> Cameroun | B123: Littoral | C123: Yabassi | D123: 26038 | E123: 3458.646 | F123: =IF(INTRO!$E$49="","",ROUND($D123*INTRO!$E$49,0)) -> 6887 | G123: =IF(INTRO!$E$50="","",ROUND($D123*INTRO!$E$50,0)) -> 14990 | H123: 99 | I123: 1 | J123: 3 | K123: 1 | L123: 1 | M123: =IF(INTRO!$E$37="Endemic",IF($H123>0,IF($H123=4,"Unknown",IF($H123=99,"Stopped",$D123)),0),"Not required") -> Stopped | N123: =IF(INTRO!$E$39="Endemic", IF($I123>0, IF($I123=4,"Unknown",IF($I123=99,"Stopped",$D123)), 0),"Not required") -> 26038 | O123: =IF(INTRO!$E$41="Endemic", IF($J123>1, IF($J123=4, "Unknown", IF($J123=99, "Surveillance", E123)), 0),"Not required") -> 3458.646 | P123: =IF(INTRO!$E$41="Endemic", IF($J123>1, IF($J123=4, "Unknown", IF($J123=99, "Surveillance", F123)), 0),"Not required") -> 6887 | Q123: =IF(INTRO!$E$41="Endemic", IF($J123>1, IF($J123=4, "Unknown", IF($J123=99, "Surveillance", ROUND(D123*INTRO!$E$51,0))), 0),"Not required") -> 963 | R123: =IF(INTRO!$E$41="Endemic", IF($J123>1, IF($J123=4, "Unknown", IF($J123=99, "Surveillance", SUM($O123:$Q123))), 0),"Not required") -> 11308.646 | S123: =IF(INTRO!$E$43="Endemic", IF($K123>1, IF($K123=4, "Unknown", IF($K123=99, "Surveillance", ROUND(E123*0.75,0))), 0),"Not required") -> 0 | T123: =IF(INTRO!$E$43="Endemic", IF($K123>1, IF($K123=4, "Unknown", IF($K123=99, "Surveillance", F123)), 0),"Not required") -> 0 | U123: =IF(INTRO!$E$43="Endemic", IF($K123>1, IF($K123=4, "Unknown", IF($K123=99, "Surveillance", G123)), 0),"Not required") -> 0 | V123: =IF(INTRO!$E$43="Endemic", IF($K123>1, IF($K123=4, "Unknown", IF($K123=99, "Surveillance", SUM($S123:$U123))), 0),"Not required") -> 0 | W123: 0 | X123: 1 | Y123: 1 | Z123: 0 | AB123: Yes | AH123: 7526 | AI123: YABASSI
A124: =IF(INTRO!$E$33<>0,INTRO!$E$33, " ") -> Cameroun | B124: Nord | C124: Bibemi | D124: 178429 | E124: 43620.39 | F124: =IF(INTRO!$E$49="","",ROUND($D124*INTRO!$E$49,0)) -> 47194 | G124: =IF(INTRO!$E$50="","",ROUND($D124*INTRO!$E$50,0)) -> 102722 | H124: 99 | I124: 4 | J124: 2 | K124: 3 | L124: 0 | M124: =IF(INTRO!$E$37="Endemic",IF($H124>0,IF($H124=4,"Unknown",IF($H124=99,"Stopped",$D124)),0),"Not required") -> Stopped | N124: =IF(INTRO!$E$39="Endemic", IF($I124>0, IF($I124=4,"Unknown",IF($I124=99,"Stopped",$D124)), 0),"Not required") -> Unknown | O124: =IF(INTRO!$E$41="Endemic", IF($J124>1, IF($J124=4, "Unknown", IF($J124=99, "Surveillance", E124)), 0),"Not required") -> 43620.39 | P124: =IF(INTRO!$E$41="Endemic", IF($J124>1, IF($J124=4, "Unknown", IF($J124=99, "Surveillance", F124)), 0),"Not required") -> 47194 | Q124: =IF(INTRO!$E$41="Endemic", IF($J124>1, IF($J124=4, "Unknown", IF($J124=99, "Surveillance", ROUND(D124*INTRO!$E$51,0))), 0),"Not required") -> 6602 | R124: =IF(INTRO!$E$41="Endemic", IF($J124>1, IF($J124=4, "Unknown", IF($J124=99, "Surveillance", SUM($O124:$Q124))), 0),"Not required") -> 97416.39 | S124: =IF(INTRO!$E$43="Endemic", IF($K124>1, IF($K124=4, "Unknown", IF($K124=99, "Surveillance", ROUND(E124*0.75,0))), 0),"Not required") -> 32715 | T124: =IF(INTRO!$E$43="Endemic", IF($K124>1, IF($K124=4, "Unknown", IF($K124=99, "Surveillance", F124)), 0),"Not required") -> 47194 | U124: =IF(INTRO!$E$43="Endemic", IF($K124>1, IF($K124=4, "Unknown", IF($K124=99, "Surveillance", G124)), 0),"Not required") -> 102722 | V124: =IF(INTRO!$E$43="Endemic", IF($K124>1, IF($K124=4, "Unknown", IF($K124=99, "Surveillance", SUM($S124:$U124))), 0),"Not required") -> 182631 | W124: 0 | X124: 0 | Y124: 1 | Z124: 1 | AB124: Yes | AH124: 7527 | AI124: BIBEMI
A125: =IF(INTRO!$E$33<>0,INTRO!$E$33, " ") -> Cameroun | B125: Nord | C125: Figuil | D125: 110739 | E125: 19954.674 | F125: =IF(INTRO!$E$49="","",ROUND($D125*INTRO!$E$49,0)) -> 29290 | G125: =IF(INTRO!$E$50="","",ROUND($D125*INTRO!$E$50,0)) -> 63752 | H125: 99 | I125: 4 | J125: 2 | K125: 3 | L125: 0 | M125: =IF(INTRO!$E$37="Endemic",IF($H125>0,IF($H125=4,"Unknown",IF($H125=99,"Stopped",$D125)),0),"Not required") -> Stopped | N125: =IF(INTRO!$E$39="Endemic", IF($I125>0, IF($I125=4,"Unknown",IF($I125=99,"Stopped",$D125)), 0),"Not required") -> Unknown | O125: =IF(INTRO!$E$41="Endemic", IF($J125>1, IF($J125=4, "Unknown", IF($J125=99, "Surveillance", E125)), 0),"Not required") -> 19954.674 | P125: =IF(INTRO!$E$41="Endemic", IF($J125>1, IF($J125=4, "Unknown", IF($J125=99, "Surveillance", F125)), 0),"Not required") -> 29290 | Q125: =IF(INTRO!$E$41="Endemic", IF($J125>1, IF($J125=4, "Unknown", IF($J125=99, "Surveillance", ROUND(D125*INTRO!$E$51,0))), 0),"Not required") -> 4097 | R125: =IF(INTRO!$E$41="Endemic", IF($J125>1, IF($J125=4, "Unknown", IF($J125=99, "Surveillance", SUM($O125:$Q125))), 0),"Not required") -> 53341.674 | S125: =IF(INTRO!$E$43="Endemic", IF($K125>1, IF($K125=4, "Unknown", IF($K125=99, "Surveillance", ROUND(E125*0.75,0))), 0),"Not required") -> 14966 | T125: =IF(INTRO!$E$43="Endemic", IF($K125>1, IF($K125=4, "Unknown", IF($K125=99, "Surveillance", F125)), 0),"Not required") -> 29290 | U125: =IF(INTRO!$E$43="Endemic", IF($K125>1, IF($K125=4, "Unknown", IF($K125=99, "Surveillance", G125)), 0),"Not required") -> 63752 | V125: =IF(INTRO!$E$43="Endemic", IF($K125>1, IF($K125=4, "Unknown", IF($K125=99, "Surveillance", SUM($S125:$U125))), 0),"Not required") -> 108008 | W125: 0 | X125: 0 | Y125: 1 | Z125: 1 | AB125: Yes | AH125: 7528 | AI125: FIGUIL
A126: =IF(INTRO!$E$33<>0,INTRO!$E$33, " ") -> Cameroun | B126: Nord | C126: Garoua I | D126: 319428 | E126: 66593.556 | F126: =IF(INTRO!$E$49="","",ROUND($D126*INTRO!$E$49,0)) -> 84489 | G126: =IF(INTRO!$E$50="","",ROUND($D126*INTRO!$E$50,0)) -> 183895 | H126: 99 | I126: 4 | J126: 1 | K126: 2 | L126: 0 | M126: =IF(INTRO!$E$37="Endemic",IF($H126>0,IF($H126=4,"Unknown",IF($H126=99,"Stopped",$D126)),0),"Not required") -> Stopped | N126: =IF(INTRO!$E$39="Endemic", IF($I126>0, IF($I126=4,"Unknown",IF($I126=99,"Stopped",$D126)), 0),"Not required") -> Unknown | O126: =IF(INTRO!$E$41="Endemic", IF($J126>1, IF($J126=4, "Unknown", IF($J126=99, "Surveillance", E126)), 0),"Not required") -> 0 | P126: =IF(INTRO!$E$41="Endemic", IF($J126>1, IF($J126=4, "Unknown", IF($J126=99, "Surveillance", F126)), 0),"Not required") -> 0 | Q126: =IF(INTRO!$E$41="Endemic", IF($J126>1, IF($J126=4, "Unknown", IF($J126=99, "Surveillance", ROUND(D126*INTRO!$E$51,0))), 0),"Not required") -> 0 | R126: =IF(INTRO!$E$41="Endemic", IF($J126>1, IF($J126=4, "Unknown", IF($J126=99, "Surveillance", SUM($O126:$Q126))), 0),"Not required") -> 0 | S126: =IF(INTRO!$E$43="Endemic", IF($K126>1, IF($K126=4, "Unknown", IF($K126=99, "Surveillance", ROUND(E126*0.75,0))), 0),"Not required") -> 49945 | T126: =IF(INTRO!$E$43="Endemic", IF($K126>1, IF($K126=4, "Unknown", IF($K126=99, "Surveillance", F126)), 0),"Not required") -> 84489 | U126: =IF(INTRO!$E$43="Endemic", IF($K126>1, IF($K126=4, "Unknown", IF($K126=99, "Surveillance", G126)), 0),"Not required") -> 183895 | V126: =IF(INTRO!$E$43="Endemic", IF($K126>1, IF($K126=4, "Unknown", IF($K126=99, "Surveillance", SUM($S126:$U126))), 0),"Not required") -> 318329 | W126: 0 | X126: 0 | Y126: 0 | Z126: 1 | AB126: Yes | AH126: 7529 | AI126: GAROUA I
A127: =IF(INTRO!$E$33<>0,INTRO!$E$33, " ") -> Cameroun | B127: Nord | C127: Garoua II | D127: 348352 | E127: 71163.36 | F127: =IF(INTRO!$E$49="","",ROUND($D127*INTRO!$E$49,0)) -> 92139 | G127: =IF(INTRO!$E$50="","",ROUND($D127*INTRO!$E$50,0)) -> 200546 | H127: 99 | I127: 4 | J127: 1 | K127: 2 | L127: 0 | M127: =IF(INTRO!$E$37="Endemic",IF($H127>0,IF($H127=4,"Unknown",IF($H127=99,"Stopped",$D127)),0),"Not required") -> Stopped | N127: =IF(INTRO!$E$39="Endemic", IF($I127>0, IF($I127=4,"Unknown",IF($I127=99,"Stopped",$D127)), 0),"Not required") -> Unknown | O127: =IF(INTRO!$E$41="Endemic", IF($J127>1, IF($J127=4, "Unknown", IF($J127=99, "Surveillance", E127)), 0),"Not required") -> 0 | P127: =IF(INTRO!$E$41="Endemic", IF($J127>1, IF($J127=4, "Unknown", IF($J127=99, "Surveillance", F127)), 0),"Not required") -> 0 | Q127: =IF(INTRO!$E$41="Endemic", IF($J127>1, IF($J127=4, "Unknown", IF($J127=99, "Surveillance", ROUND(D127*INTRO!$E$51,0))), 0),"Not required") -> 0 | R127: =IF(INTRO!$E$41="Endemic", IF($J127>1, IF($J127=4, "Unknown", IF($J127=99, "Surveillance", SUM($O127:$Q127))), 0),"Not required") -> 0 | S127: =IF(INTRO!$E$43="Endemic", IF($K127>1, IF($K127=4, "Unknown", IF($K127=99, "Surveillance", ROUND(E127*0.75,0))), 0),"Not required") -> 53373 | T127: =IF(INTRO!$E$43="Endemic", IF($K127>1, IF($K127=4, "Unknown", IF($K127=99, "Surveillance", F127)), 0),"Not required") -> 92139 | U127: =IF(INTRO!$E$43="Endemic", IF($K127>1, IF($K127=4, "Unknown", IF($K127=99, "Surveillance", G127)), 0),"Not required") -> 200546 | V127: =IF(INTRO!$E$43="Endemic", IF($K127>1, IF($K127=4, "Unknown", IF($K127=99, "Surveillance", SUM($S127:$U127))), 0),"Not required") -> 346058 | W127: 0 | X127: 0 | Y127: 0 | Z127: 1 | AB127: Yes | AH127: 7530 | AI127: GAROUA II
A128: =IF(INTRO!$E$33<>0,INTRO!$E$33, " ") -> Cameroun | B128: Nord | C128: Gaschiga | D128: 163539 | E128: 35641.188 | F128: =IF(INTRO!$E$49="","",ROUND($D128*INTRO!$E$49,0)) -> 43256 | G128: =IF(INTRO!$E$50="","",ROUND($D128*INTRO!$E$50,0)) -> 94149 | H128: 99 | I128: 4 | J128: 1 | K128: 3 | L128: 0 | M128: =IF(INTRO!$E$37="Endemic",IF($H128>0,IF($H128=4,"Unknown",IF($H128=99,"Stopped",$D128)),0),"Not required") -> Stopped | N128: =IF(INTRO!$E$39="Endemic", IF($I128>0, IF($I128=4,"Unknown",IF($I128=99,"Stopped",$D128)), 0),"Not required") -> Unknown | O128: =IF(INTRO!$E$41="Endemic", IF($J128>1, IF($J128=4, "Unknown", IF($J128=99, "Surveillance", E128)), 0),"Not required") -> 0 | P128: =IF(INTRO!$E$41="Endemic", IF($J128>1, IF($J128=4, "Unknown", IF($J128=99, "Surveillance", F128)), 0),"Not required") -> 0 | Q128: =IF(INTRO!$E$41="Endemic", IF($J128>1, IF($J128=4, "Unknown", IF($J128=99, "Surveillance", ROUND(D128*INTRO!$E$51,0))), 0),"Not required") -> 0 | R128: =IF(INTRO!$E$41="Endemic", IF($J128>1, IF($J128=4, "Unknown", IF($J128=99, "Surveillance", SUM($O128:$Q128))), 0),"Not required") -> 0 | S128: =IF(INTRO!$E$43="Endemic", IF($K128>1, IF($K128=4, "Unknown", IF($K128=99, "Surveillance", ROUND(E128*0.75,0))), 0),"Not required") -> 26731 | T128: =IF(INTRO!$E$43="Endemic", IF($K128>1, IF($K128=4, "Unknown", IF($K128=99, "Surveillance", F128)), 0),"Not required") -> 43256 | U128: =IF(INTRO!$E$43="Endemic", IF($K128>1, IF($K128=4, "Unknown", IF($K128=99, "Surveillance", G128)), 0),"Not required") -> 94149 | V128: =IF(INTRO!$E$43="Endemic", IF($K128>1, IF($K128=4, "Unknown", IF($K128=99, "Surveillance", SUM($S128:$U128))), 0),"Not required") -> 164136 | W128: 0 | X128: 0 | Y128: 0 | Z128: 1 | AB128: Yes | AH128: 7531 | AI128: GASCHIGA
A129: =IF(INTRO!$E$33<>0,INTRO!$E$33, " ") -> Cameroun | B129: Nord | C129: Golombe | D129: 73466 | E129: 24760.458 | F129: =IF(INTRO!$E$49="","",ROUND($D129*INTRO!$E$49,0)) -> 19432 | G129: =IF(INTRO!$E$50="","",ROUND($D129*INTRO!$E$50,0)) -> 42294 | H129: 99 | I129: 4 | J129: 1 | K129: 2 | L129: 0 | M129: =IF(INTRO!$E$37="Endemic",IF($H129>0,IF($H129=4,"Unknown",IF($H129=99,"Stopped",$D129)),0),"Not required") -> Stopped | N129: =IF(INTRO!$E$39="Endemic", IF($I129>0, IF($I129=4,"Unknown",IF($I129=99,"Stopped",$D129)), 0),"Not required") -> Unknown | O129: =IF(INTRO!$E$41="Endemic", IF($J129>1, IF($J129=4, "Unknown", IF($J129=99, "Surveillance", E129)), 0),"Not required") -> 0 | P129: =IF(INTRO!$E$41="Endemic", IF($J129>1, IF($J129=4, "Unknown", IF($J129=99, "Surveillance", F129)), 0),"Not required") -> 0 | Q129: =IF(INTRO!$E$41="Endemic", IF($J129>1, IF($J129=4, "Unknown", IF($J129=99, "Surveillance", ROUND(D129*INTRO!$E$51,0))), 0),"Not required") -> 0 | R129: =IF(INTRO!$E$41="Endemic", IF($J129>1, IF($J129=4, "Unknown", IF($J129=99, "Surveillance", SUM($O129:$Q129))), 0),"Not required") -> 0 | S129: =IF(INTRO!$E$43="Endemic", IF($K129>1, IF($K129=4, "Unknown", IF($K129=99, "Surveillance", ROUND(E129*0.75,0))), 0),"Not required") -> 18570 | T129: =IF(INTRO!$E$43="Endemic", IF($K129>1, IF($K129=4, "Unknown", IF($K129=99, "Surveillance", F129)), 0),"Not required") -> 19432 | U129: =IF(INTRO!$E$43="Endemic", IF($K129>1, IF($K129=4, "Unknown", IF($K129=99, "Surveillance", G129)), 0),"Not required") -> 42294 | V129: =IF(INTRO!$E$43="Endemic", IF($K129>1, IF($K129=4, "Unknown", IF($K129=99, "Surveillance", SUM($S129:$U129))), 0),"Not required") -> 80296 | W129: 0 | X129: 0 | Y129: 0 | Z129: 1 | AB129: Yes | AH129: 7532 | AI129: GOLOMBE
A130: =IF(INTRO!$E$33<>0,INTRO!$E$33, " ") -> Cameroun | B130: Nord | C130: Guider | D130: 268725 | E130: 66834.666 | F130: =IF(INTRO!$E$49="","",ROUND($D130*INTRO!$E$49,0)) -> 71078 | G130: =IF(INTRO!$E$50="","",ROUND($D130*INTRO!$E$50,0)) -> 154705 | H130: 99 | I130: 4 | J130: 2 | K130: 3 | L130: 0 | M130: =IF(INTRO!$E$37="Endemic",IF($H130>0,IF($H130=4,"Unknown",IF($H130=99,"Stopped",$D130)),0),"Not required") -> Stopped | N130: =IF(INTRO!$E$39="Endemic", IF($I130>0, IF($I130=4,"Unknown",IF($I130=99,"Stopped",$D130)), 0),"Not required") -> Unknown | O130: =IF(INTRO!$E$41="Endemic", IF($J130>1, IF($J130=4, "Unknown", IF($J130=99, "Surveillance", E130)), 0),"Not required") -> 66834.666 | P130: =IF(INTRO!$E$41="Endemic", IF($J130>1, IF($J130=4, "Unknown", IF($J130=99, "Surveillance", F130)), 0),"Not required") -> 71078 | Q130: =IF(INTRO!$E$41="Endemic", IF($J130>1, IF($J130=4, "Unknown", IF($J130=99, "Surveillance", ROUND(D130*INTRO!$E$51,0))), 0),"Not required") -> 9943 | R130: =IF(INTRO!$E$41="Endemic", IF($J130>1, IF($J130=4, "Unknown", IF($J130=99, "Surveillance", SUM($O130:$Q130))), 0),"Not required") -> 147855.666 | S130: =IF(INTRO!$E$43="Endemic", IF($K130>1, IF($K130=4, "Unknown", IF($K130=99, "Surveillance", ROUND(E130*0.75,0))), 0),"Not required") -> 50126 | T130: =IF(INTRO!$E$43="Endemic", IF($K130>1, IF($K130=4, "Unknown", IF($K130=99, "Surveillance", F130)), 0),"Not required") -> 71078 | U130: =IF(INTRO!$E$43="Endemic", IF($K130>1, IF($K130=4, "Unknown", IF($K130=99, "Surveillance", G130)), 0),"Not required") -> 154705 | V130: =IF(INTRO!$E$43="Endemic", IF($K130>1, IF($K130=4, "Unknown", IF($K130=99, "Surveillance", SUM($S130:$U130))), 0),"Not required") -> 275909 | W130: 0 | X130: 0 | Y130: 1 | Z130: 1 | AB130: Yes | AH130: 7533 | AI130: GUIDER
A131: =IF(INTRO!$E$33<>0,INTRO!$E$33, " ") -> Cameroun | B131: Nord | C131: Lagdo | D131: 242276 | E131: 39045.456 | F131: =IF(INTRO!$E$49="","",ROUND($D131*INTRO!$E$49,0)) -> 64082 | G131: =IF(INTRO!$E$50="","",ROUND($D131*INTRO!$E$50,0)) -> 139478 | H131: 99 | I131: 1 | J131: 0 | K131: 3 | L131: 0 | M131: =IF(INTRO!$E$37="Endemic",IF($H131>0,IF($H131=4,"Unknown",IF($H131=99,"Stopped",$D131)),0),"Not required") -> Stopped | N131: =IF(INTRO!$E$39="Endemic", IF($I131>0, IF($I131=4,"Unknown",IF($I131=99,"Stopped",$D131)), 0),"Not required") -> 242276 | O131: =IF(INTRO!$E$41="Endemic", IF($J131>1, IF($J131=4, "Unknown", IF($J131=99, "Surveillance", E131)), 0),"Not required") -> 0 | P131: =IF(INTRO!$E$41="Endemic", IF($J131>1, IF($J131=4, "Unknown", IF($J131=99, "Surveillance", F131)), 0),"Not required") -> 0 | Q131: =IF(INTRO!$E$41="Endemic", IF($J131>1, IF($J131=4, "Unknown", IF($J131=99, "Surveillance", ROUND(D131*INTRO!$E$51,0))), 0),"Not required") -> 0 | R131: =IF(INTRO!$E$41="Endemic", IF($J131>1, IF($J131=4, "Unknown", IF($J131=99, "Surveillance", SUM($O131:$Q131))), 0),"Not required") -> 0 | S131: =IF(INTRO!$E$43="Endemic", IF($K131>1, IF($K131=4, "Unknown", IF($K131=99, "Surveillance", ROUND(E131*0.75,0))), 0),"Not required") -> 29284 | T131: =IF(INTRO!$E$43="Endemic", IF($K131>1, IF($K131=4, "Unknown", IF($K131=99, "Surveillance", F131)), 0),"Not required") -> 64082 | U131: =IF(INTRO!$E$43="Endemic", IF($K131>1, IF($K131=4, "Unknown", IF($K131=99, "Surveillance", G131)), 0),"Not required") -> 139478 | V131: =IF(INTRO!$E$43="Endemic", IF($K131>1, IF($K131=4, "Unknown", IF($K131=99, "Surveillance", SUM($S131:$U131))), 0),"Not required") -> 232844 | W131: 0 | X131: 1 | Y131: 0 | Z131: 1 | AB131: Yes | AH131: 7534 | AI131: LAGDO
A132: =IF(INTRO!$E$33<>0,INTRO!$E$33, " ") -> Cameroun | B132: Nord | C132: Mayo Oulo | D132: 159525 | E132: 57122.55 | F132: =IF(INTRO!$E$49="","",ROUND($D132*INTRO!$E$49,0)) -> 42194 | G132: =IF(INTRO!$E$50="","",ROUND($D132*INTRO!$E$50,0)) -> 91839 | H132: 99 | I132: 4 | J132: 2 | K132: 3 | L132: 0 | M132: =IF(INTRO!$E$37="Endemic",IF($H132>0,IF($H132=4,"Unknown",IF($H132=99,"Stopped",$D132)),0),"Not required") -> Stopped | N132: =IF(INTRO!$E$39="Endemic", IF($I132>0, IF($I132=4,"Unknown",IF($I132=99,"Stopped",$D132)), 0),"Not required") -> Unknown | O132: =IF(INTRO!$E$41="Endemic", IF($J132>1, IF($J132=4, "Unknown", IF($J132=99, "Surveillance", E132)), 0),"Not required") -> 57122.55 | P132: =IF(INTRO!$E$41="Endemic", IF($J132>1, IF($J132=4, "Unknown", IF($J132=99, "Surveillance", F132)), 0),"Not required") -> 42194 | Q132: =IF(INTRO!$E$41="Endemic", IF($J132>1, IF($J132=4, "Unknown", IF($J132=99, "Surveillance", ROUND(D132*INTRO!$E$51,0))), 0),"Not required") -> 5902 | R132: =IF(INTRO!$E$41="Endemic", IF($J132>1, IF($J132=4, "Unknown", IF($J132=99, "Surveillance", SUM($O132:$Q132))), 0),"Not required") -> 105218.55 | S132: =IF(INTRO!$E$43="Endemic", IF($K132>1, IF($K132=4, "Unknown", IF($K132=99, "Surveillance", ROUND(E132*0.75,0))), 0),"Not required") -> 42842 | T132: =IF(INTRO!$E$43="Endemic", IF($K132>1, IF($K132=4, "Unknown", IF($K132=99, "Surveillance", F132)), 0),"Not required") -> 42194 | U132: =IF(INTRO!$E$43="Endemic", IF($K132>1, IF($K132=4, "Unknown", IF($K132=99, "Surveillance", G132)), 0),"Not required") -> 91839 | V132: =IF(INTRO!$E$43="Endemic", IF($K132>1, IF($K132=4, "Unknown", IF($K132=99, "Surveillance", SUM($S132:$U132))), 0),"Not required") -> 176875 | W132: 0 | X132: 0 | Y132: 1 | Z132: 1 | AB132: Yes | AH132: 7535 | AI132: MAYO OULO
A133: =IF(INTRO!$E$33<>0,INTRO!$E$33, " ") -> Cameroun | B133: Nord | C133: Ngong | D133: 301714 | E133: 79544.754 | F133: =IF(INTRO!$E$49="","",ROUND($D133*INTRO!$E$49,0)) -> 79803 | G133: =IF(INTRO!$E$50="","",ROUND($D133*INTRO!$E$50,0)) -> 173697 | H133: 99 | I133: 1 | J133: 2 | K133: 2 | L133: 0 | M133: =IF(INTRO!$E$37="Endemic",IF($H133>0,IF($H133=4,"Unknown",IF($H133=99,"Stopped",$D133)),0),"Not required") -> Stopped | N133: =IF(INTRO!$E$39="Endemic", IF($I133>0, IF($I133=4,"Unknown",IF($I133=99,"Stopped",$D133)), 0),"Not required") -> 301714 | O133: =IF(INTRO!$E$41="Endemic", IF($J133>1, IF($J133=4, "Unknown", IF($J133=99, "Surveillance", E133)), 0),"Not required") -> 79544.754 | P133: =IF(INTRO!$E$41="Endemic", IF($J133>1, IF($J133=4, "Unknown", IF($J133=99, "Surveillance", F133)), 0),"Not required") -> 79803 | Q133: =IF(INTRO!$E$41="Endemic", IF($J133>1, IF($J133=4, "Unknown", IF($J133=99, "Surveillance", ROUND(D133*INTRO!$E$51,0))), 0),"Not required") -> 11163 | R133: =IF(INTRO!$E$41="Endemic", IF($J133>1, IF($J133=4, "Unknown", IF($J133=99, "Surveillance", SUM($O133:$Q133))), 0),"Not required") -> 170510.754 | S133: =IF(INTRO!$E$43="Endemic", IF($K133>1, IF($K133=4, "Unknown", IF($K133=99, "Surveillance", ROUND(E133*0.75,0))), 0),"Not required") -> 59659 | T133: =IF(INTRO!$E$43="Endemic", IF($K133>1, IF($K133=4, "Unknown", IF($K133=99, "Surveillance", F133)), 0),"Not required") -> 79803 | U133: =IF(INTRO!$E$43="Endemic", IF($K133>1, IF($K133=4, "Unknown", IF($K133=99, "Surveillance", G133)), 0),"Not required") -> 173697 | V133: =IF(INTRO!$E$43="Endemic", IF($K133>1, IF($K133=4, "Unknown", IF($K133=99, "Surveillance", SUM($S133:$U133))), 0),"Not required") -> 313159 | W133: 0 | X133: 1 | Y133: 1 | Z133: 1 | AB133: Yes | AH133: 7536 | AI133: NGONG
A134: =IF(INTRO!$E$33<>0,INTRO!$E$33, " ") -> Cameroun | B134: Nord | C134: Pitoa | D134: 175013 | E134: 38887.452 | F134: =IF(INTRO!$E$49="","",ROUND($D134*INTRO!$E$49,0)) -> 46291 | G134: =IF(INTRO!$E$50="","",ROUND($D134*INTRO!$E$50,0)) -> 100755 | H134: 99 | I134: 4 | J134: 1 | K134: 3 | L134: 0 | M134: =IF(INTRO!$E$37="Endemic",IF($H134>0,IF($H134=4,"Unknown",IF($H134=99,"Stopped",$D134)),0),"Not required") -> Stopped | N134: =IF(INTRO!$E$39="Endemic", IF($I134>0, IF($I134=4,"Unknown",IF($I134=99,"Stopped",$D134)), 0),"Not required") -> Unknown | O134: =IF(INTRO!$E$41="Endemic", IF($J134>1, IF($J134=4, "Unknown", IF($J134=99, "Surveillance", E134)), 0),"Not required") -> 0 | P134: =IF(INTRO!$E$41="Endemic", IF($J134>1, IF($J134=4, "Unknown", IF($J134=99, "Surveillance", F134)), 0),"Not required") -> 0 | Q134: =IF(INTRO!$E$41="Endemic", IF($J134>1, IF($J134=4, "Unknown", IF($J134=99, "Surveillance", ROUND(D134*INTRO!$E$51,0))), 0),"Not required") -> 0 | R134: =IF(INTRO!$E$41="Endemic", IF($J134>1, IF($J134=4, "Unknown", IF($J134=99, "Surveillance", SUM($O134:$Q134))), 0),"Not required") -> 0 | S134: =IF(INTRO!$E$43="Endemic", IF($K134>1, IF($K134=4, "Unknown", IF($K134=99, "Surveillance", ROUND(E134*0.75,0))), 0),"Not required") -> 29166 | T134: =IF(INTRO!$E$43="Endemic", IF($K134>1, IF($K134=4, "Unknown", IF($K134=99, "Surveillance", F134)), 0),"Not required") -> 46291 | U134: =IF(INTRO!$E$43="Endemic", IF($K134>1, IF($K134=4, "Unknown", IF($K134=99, "Surveillance", G134)), 0),"Not required") -> 100755 | V134: =IF(INTRO!$E$43="Endemic", IF($K134>1, IF($K134=4, "Unknown", IF($K134=99, "Surveillance", SUM($S134:$U134))), 0),"Not required") -> 176212 | W134: 0 | X134: 0 | Y134: 0 | Z134: 1 | AB134: Yes | AH134: 7537 | AI134: PITOA
A135: =IF(INTRO!$E$33<>0,INTRO!$E$33, " ") -> Cameroun | B135: Nord | C135: Poli | D135: 126657 | E135: 28684.908 | F135: =IF(INTRO!$E$49="","",ROUND($D135*INTRO!$E$49,0)) -> 33501 | G135: =IF(INTRO!$E$50="","",ROUND($D135*INTRO!$E$50,0)) -> 72916 | H135: 99 | I135: 1 | J135: 2 | K135: 3 | L135: 0 | M135: =IF(INTRO!$E$37="Endemic",IF($H135>0,IF($H135=4,"Unknown",IF($H135=99,"Stopped",$D135)),0),"Not required") -> Stopped | N135: =IF(INTRO!$E$39="Endemic", IF($I135>0, IF($I135=4,"Unknown",IF($I135=99,"Stopped",$D135)), 0),"Not required") -> 126657 | O135: =IF(INTRO!$E$41="Endemic", IF($J135>1, IF($J135=4, "Unknown", IF($J135=99, "Surveillance", E135)), 0),"Not required") -> 28684.908 | P135: =IF(INTRO!$E$41="Endemic", IF($J135>1, IF($J135=4, "Unknown", IF($J135=99, "Surveillance", F135)), 0),"Not required") -> 33501 | Q135: =IF(INTRO!$E$41="Endemic", IF($J135>1, IF($J135=4, "Unknown", IF($J135=99, "Surveillance", ROUND(D135*INTRO!$E$51,0))), 0),"Not required") -> 4686 | R135: =IF(INTRO!$E$41="Endemic", IF($J135>1, IF($J135=4, "Unknown", IF($J135=99, "Surveillance", SUM($O135:$Q135))), 0),"Not required") -> 66871.908 | S135: =IF(INTRO!$E$43="Endemic", IF($K135>1, IF($K135=4, "Unknown", IF($K135=99, "Surveillance", ROUND(E135*0.75,0))), 0),"Not required") -> 21514 | T135: =IF(INTRO!$E$43="Endemic", IF($K135>1, IF($K135=4, "Unknown", IF($K135=99, "Surveillance", F135)), 0),"Not required") -> 33501 | U135: =IF(INTRO!$E$43="Endemic", IF($K135>1, IF($K135=4, "Unknown", IF($K135=99, "Surveillance", G135)), 0),"Not required") -> 72916 | V135: =IF(INTRO!$E$43="Endemic", IF($K135>1, IF($K135=4, "Unknown", IF($K135=99, "Surveillance", SUM($S135:$U135))), 0),"Not required") -> 127931 | W135: 0 | X135: 1 | Y135: 1 | Z135: 1 | AB135: Yes | AH135: 7538 | AI135: POLI
A136: =IF(INTRO!$E$33<>0,INTRO!$E$33, " ") -> Cameroun | B136: Nord | C136: Rey Bouba | D136: 205397 | E136: 53152.956 | F136: =IF(INTRO!$E$49="","",ROUND($D136*INTRO!$E$49,0)) -> 54328 | G136: =IF(INTRO!$E$50="","",ROUND($D136*INTRO!$E$50,0)) -> 118247 | H136: 99 | I136: 1 | J136: 2 | K136: 3 | L136: 1 | M136: =IF(INTRO!$E$37="Endemic",IF($H136>0,IF($H136=4,"Unknown",IF($H136=99,"Stopped",$D136)),0),"Not required") -> Stopped | N136: =IF(INTRO!$E$39="Endemic", IF($I136>0, IF($I136=4,"Unknown",IF($I136=99,"Stopped",$D136)), 0),"Not required") -> 205397 | O136: =IF(INTRO!$E$41="Endemic", IF($J136>1, IF($J136=4, "Unknown", IF($J136=99, "Surveillance", E136)), 0),"Not required") -> 53152.956 | P136: =IF(INTRO!$E$41="Endemic", IF($J136>1, IF($J136=4, "Unknown", IF($J136=99, "Surveillance", F136)), 0),"Not required") -> 54328 | Q136: =IF(INTRO!$E$41="Endemic", IF($J136>1, IF($J136=4, "Unknown", IF($J136=99, "Surveillance", ROUND(D136*INTRO!$E$51,0))), 0),"Not required") -> 7600 | R136: =IF(INTRO!$E$41="Endemic", IF($J136>1, IF($J136=4, "Unknown", IF($J136=99, "Surveillance", SUM($O136:$Q136))), 0),"Not required") -> 115080.956 | S136: =IF(INTRO!$E$43="Endemic", IF($K136>1, IF($K136=4, "Unknown", IF($K136=99, "Surveillance", ROUND(E136*0.75,0))), 0),"Not required") -> 39865 | T136: =IF(INTRO!$E$43="Endemic", IF($K136>1, IF($K136=4, "Unknown", IF($K136=99, "Surveillance", F136)), 0),"Not required") -> 54328 | U136: =IF(INTRO!$E$43="Endemic", IF($K136>1, IF($K136=4, "Unknown", IF($K136=99, "Surveillance", G136)), 0),"Not required") -> 118247 | V136: =IF(INTRO!$E$43="Endemic", IF($K136>1, IF($K136=4, "Unknown", IF($K136=99, "Surveillance", SUM($S136:$U136))), 0),"Not required") -> 212440 | W136: 0 | X136: 1 | Y136: 1 | Z136: 1 | AB136: Yes | AH136: 7539 | AI136: REY BOUBA
A137: =IF(INTRO!$E$33<>0,INTRO!$E$33, " ") -> Cameroun | B137: Nord | C137: Tchollire | D137: 229793 | E137: 51483.654 | F137: =IF(INTRO!$E$49="","",ROUND($D137*INTRO!$E$49,0)) -> 60780 | G137: =IF(INTRO!$E$50="","",ROUND($D137*INTRO!$E$50,0)) -> 132292 | H137: 99 | I137: 1 | J137: 3 | K137: 3 | L137: 1 | M137: =IF(INTRO!$E$37="Endemic",IF($H137>0,IF($H137=4,"Unknown",IF($H137=99,"Stopped",$D137)),0),"Not required") -> Stopped | N137: =IF(INTRO!$E$39="Endemic", IF($I137>0, IF($I137=4,"Unknown",IF($I137=99,"Stopped",$D137)), 0),"Not required") -> 229793 | O137: =IF(INTRO!$E$41="Endemic", IF($J137>1, IF($J137=4, "Unknown", IF($J137=99, "Surveillance", E137)), 0),"Not required") -> 51483.654 | P137: =IF(INTRO!$E$41="Endemic", IF($J137>1, IF($J137=4, "Unknown", IF($J137=99, "Surveillance", F137)), 0),"Not required") -> 60780 | Q137: =IF(INTRO!$E$41="Endemic", IF($J137>1, IF($J137=4, "Unknown", IF($J137=99, "Surveillance", ROUND(D137*INTRO!$E$51,0))), 0),"Not required") -> 8502 | R137: =IF(INTRO!$E$41="Endemic", IF($J137>1, IF($J137=4, "Unknown", IF($J137=99, "Surveillance", SUM($O137:$Q137))), 0),"Not required") -> 120765.654 | S137: =IF(INTRO!$E$43="Endemic", IF($K137>1, IF($K137=4, "Unknown", IF($K137=99, "Surveillance", ROUND(E137*0.75,0))), 0),"Not required") -> 38613 | T137: =IF(INTRO!$E$43="Endemic", IF($K137>1, IF($K137=4, "Unknown", IF($K137=99, "Surveillance", F137)), 0),"Not required") -> 60780 | U137: =IF(INTRO!$E$43="Endemic", IF($K137>1, IF($K137=4, "Unknown", IF($K137=99, "Surveillance", G137)), 0),"Not required") -> 132292 | V137: =IF(INTRO!$E$43="Endemic", IF($K137>1, IF($K137=4, "Unknown", IF($K137=99, "Surveillance", SUM($S137:$U137))), 0),"Not required") -> 231685 | W137: 0 | X137: 1 | Y137: 1 | Z137: 1 | AB137: Yes | AH137: 7540 | AI137: TCHOLLIRE
A138: =IF(INTRO!$E$33<>0,INTRO!$E$33, " ") -> Cameroun | B138: Nord | C138: Touboro | D138: 339672 | E138: 82874.124 | F138: =IF(INTRO!$E$49="","",ROUND($D138*INTRO!$E$49,0)) -> 89843 | G138: =IF(INTRO!$E$50="","",ROUND($D138*INTRO!$E$50,0)) -> 195549 | H138: 99 | I138: 1 | J138: 3 | K138: 3 | L138: 1 | M138: =IF(INTRO!$E$37="Endemic",IF($H138>0,IF($H138=4,"Unknown",IF($H138=99,"Stopped",$D138)),0),"Not required") -> Stopped | N138: =IF(INTRO!$E$39="Endemic", IF($I138>0, IF($I138=4,"Unknown",IF($I138=99,"Stopped",$D138)), 0),"Not required") -> 339672 | O138: =IF(INTRO!$E$41="Endemic", IF($J138>1, IF($J138=4, "Unknown", IF($J138=99, "Surveillance", E138)), 0),"Not required") -> 82874.124 | P138: =IF(INTRO!$E$41="Endemic", IF($J138>1, IF($J138=4, "Unknown", IF($J138=99, "Surveillance", F138)), 0),"Not required") -> 89843 | Q138: =IF(INTRO!$E$41="Endemic", IF($J138>1, IF($J138=4, "Unknown", IF($J138=99, "Surveillance", ROUND(D138*INTRO!$E$51,0))), 0),"Not required") -> 12568 | R138: =IF(INTRO!$E$41="Endemic", IF($J138>1, IF($J138=4, "Unknown", IF($J138=99, "Surveillance", SUM($O138:$Q138))), 0),"Not required") -> 185285.124 | S138: =IF(INTRO!$E$43="Endemic", IF($K138>1, IF($K138=4, "Unknown", IF($K138=99, "Surveillance", ROUND(E138*0.75,0))), 0),"Not required") -> 62156 | T138: =IF(INTRO!$E$43="Endemic", IF($K138>1, IF($K138=4, "Unknown", IF($K138=99, "Surveillance", F138)), 0),"Not required") -> 89843 | U138: =IF(INTRO!$E$43="Endemic", IF($K138>1, IF($K138=4, "Unknown", IF($K138=99, "Surveillance", G138)), 0),"Not required") -> 195549 | V138: =IF(INTRO!$E$43="Endemic", IF($K138>1, IF($K138=4, "Unknown", IF($K138=99, "Surveillance", SUM($S138:$U138))), 0),"Not required") -> 347548 | W138: 0 | X138: 1 | Y138: 1 | Z138: 1 | AB138: Yes | AH138: 7541 | AI138: TOUBORO
A139: =IF(INTRO!$E$33<>0,INTRO!$E$33, " ") -> Cameroun | B139: Nord Ouest | C139: Ako | D139: 69617 | E139: 9236.052 | F139: =IF(INTRO!$E$49="","",ROUND($D139*INTRO!$E$49,0)) -> 18414 | G139: =IF(INTRO!$E$50="","",ROUND($D139*INTRO!$E$50,0)) -> 40079 | H139: 99 | I139: 1 | J139: 1 | K139: 3 | L139: 1 | M139: =IF(INTRO!$E$37="Endemic",IF($H139>0,IF($H139=4,"Unknown",IF($H139=99,"Stopped",$D139)),0),"Not required") -> Stopped | N139: =IF(INTRO!$E$39="Endemic", IF($I139>0, IF($I139=4,"Unknown",IF($I139=99,"Stopped",$D139)), 0),"Not required") -> 69617 | O139: =IF(INTRO!$E$41="Endemic", IF($J139>1, IF($J139=4, "Unknown", IF($J139=99, "Surveillance", E139)), 0),"Not required") -> 0 | P139: =IF(INTRO!$E$41="Endemic", IF($J139>1, IF($J139=4, "Unknown", IF($J139=99, "Surveillance", F139)), 0),"Not required") -> 0 | Q139: =IF(INTRO!$E$41="Endemic", IF($J139>1, IF($J139=4, "Unknown", IF($J139=99, "Surveillance", ROUND(D139*INTRO!$E$51,0))), 0),"Not required") -> 0 | R139: =IF(INTRO!$E$41="Endemic", IF($J139>1, IF($J139=4, "Unknown", IF($J139=99, "Surveillance", SUM($O139:$Q139))), 0),"Not required") -> 0 | S139: =IF(INTRO!$E$43="Endemic", IF($K139>1, IF($K139=4, "Unknown", IF($K139=99, "Surveillance", ROUND(E139*0.75,0))), 0),"Not required") -> 6927 | T139: =IF(INTRO!$E$43="Endemic", IF($K139>1, IF($K139=4, "Unknown", IF($K139=99, "Surveillance", F139)), 0),"Not required") -> 18414 | U139: =IF(INTRO!$E$43="Endemic", IF($K139>1, IF($K139=4, "Unknown", IF($K139=99, "Surveillance", G139)), 0),"Not required") -> 40079 | V139: =IF(INTRO!$E$43="Endemic", IF($K139>1, IF($K139=4, "Unknown", IF($K139=99, "Surveillance", SUM($S139:$U139))), 0),"Not required") -> 65420 | W139: 0 | X139: 1 | Y139: 0 | Z139: 1 | AA139: TAS | AH139: 7542 | AI139: AKO
A140: =IF(INTRO!$E$33<>0,INTRO!$E$33, " ") -> Cameroun | B140: Nord Ouest | C140: Bafut | D140: 45912 | E140: 3995.244 | F140: =IF(INTRO!$E$49="","",ROUND($D140*INTRO!$E$49,0)) -> 12144 | G140: =IF(INTRO!$E$50="","",ROUND($D140*INTRO!$E$50,0)) -> 26432 | H140: 99 | I140: 1 | J140: 3 | K140: 1 | L140: 1 | M140: =IF(INTRO!$E$37="Endemic",IF($H140>0,IF($H140=4,"Unknown",IF($H140=99,"Stopped",$D140)),0),"Not required") -> Stopped | N140: =IF(INTRO!$E$39="Endemic", IF($I140>0, IF($I140=4,"Unknown",IF($I140=99,"Stopped",$D140)), 0),"Not required") -> 45912 | O140: =IF(INTRO!$E$41="Endemic", IF($J140>1, IF($J140=4, "Unknown", IF($J140=99, "Surveillance", E140)), 0),"Not required") -> 3995.244 | P140: =IF(INTRO!$E$41="Endemic", IF($J140>1, IF($J140=4, "Unknown", IF($J140=99, "Surveillance", F140)), 0),"Not required") -> 12144 | Q140: =IF(INTRO!$E$41="Endemic", IF($J140>1, IF($J140=4, "Unknown", IF($J140=99, "Surveillance", ROUND(D140*INTRO!$E$51,0))), 0),"Not required") -> 1699 | R140: =IF(INTRO!$E$41="Endemic", IF($J140>1, IF($J140=4, "Unknown", IF($J140=99, "Surveillance", SUM($O140:$Q140))), 0),"Not required") -> 17838.244 | S140: =IF(INTRO!$E$43="Endemic", IF($K140>1, IF($K140=4, "Unknown", IF($K140=99, "Surveillance", ROUND(E140*0.75,0))), 0),"Not required") -> 0 | T140: =IF(INTRO!$E$43="Endemic", IF($K140>1, IF($K140=4, "Unknown", IF($K140=99, "Surveillance", F140)), 0),"Not required") -> 0 | U140: =IF(INTRO!$E$43="Endemic", IF($K140>1, IF($K140=4, "Unknown", IF($K140=99, "Surveillance", G140)), 0),"Not required") -> 0 | V140: =IF(INTRO!$E$43="Endemic", IF($K140>1, IF($K140=4, "Unknown", IF($K140=99, "Surveillance", SUM($S140:$U140))), 0),"Not required") -> 0 | W140: 0 | X140: 1 | Y140: 1 | Z140: 0 | AA140: TAS | AH140: 7543 | AI140: BAFUT
A141: =IF(INTRO!$E$33<>0,INTRO!$E$33, " ") -> Cameroun | B141: Nord Ouest | C141: Bali | D141: 30496 | E141: 4076.298 | F141: =IF(INTRO!$E$49="","",ROUND($D141*INTRO!$E$49,0)) -> 8066 | G141: =IF(INTRO!$E$50="","",ROUND($D141*INTRO!$E$50,0)) -> 17557 | H141: 99 | I141: 1 | J141: 1 | K141: 0 | L141: 1 | M141: =IF(INTRO!$E$37="Endemic",IF($H141>0,IF($H141=4,"Unknown",IF($H141=99,"Stopped",$D141)),0),"Not required") -> Stopped | N141: =IF(INTRO!$E$39="Endemic", IF($I141>0, IF($I141=4,"Unknown",IF($I141=99,"Stopped",$D141)), 0),"Not required") -> 30496 | O141: =IF(INTRO!$E$41="Endemic", IF($J141>1, IF($J141=4, "Unknown", IF($J141=99, "Surveillance", E141)), 0),"Not required") -> 0 | P141: =IF(INTRO!$E$41="Endemic", IF($J141>1, IF($J141=4, "Unknown", IF($J141=99, "Surveillance", F141)), 0),"Not required") -> 0 | Q141: =IF(INTRO!$E$41="Endemic", IF($J141>1, IF($J141=4, "Unknown", IF($J141=99, "Surveillance", ROUND(D141*INTRO!$E$51,0))), 0),"Not required") -> 0 | R141: =IF(INTRO!$E$41="Endemic", IF($J141>1, IF($J141=4, "Unknown", IF($J141=99, "Surveillance", SUM($O141:$Q141))), 0),"Not required") -> 0 | S141: =IF(INTRO!$E$43="Endemic", IF($K141>1, IF($K141=4, "Unknown", IF($K141=99, "Surveillance", ROUND(E141*0.75,0))), 0),"Not required") -> 0 | T141: =IF(INTRO!$E$43="Endemic", IF($K141>1, IF($K141=4, "Unknown", IF($K141=99, "Surveillance", F141)), 0),"Not required") -> 0 | U141: =IF(INTRO!$E$43="Endemic", IF($K141>1, IF($K141=4, "Unknown", IF($K141=99, "Surveillance", G141)), 0),"Not required") -> 0 | V141: =IF(INTRO!$E$43="Endemic", IF($K141>1, IF($K141=4, "Unknown", IF($K141=99, "Surveillance", SUM($S141:$U141))), 0),"Not required") -> 0 | W141: 0 | X141: 1 | Y141: 0 | Z141: 0 | AA141: TAS | AH141: 7544 | AI141: BALI
A142: =IF(INTRO!$E$33<>0,INTRO!$E$33, " ") -> Cameroun | B142: Nord Ouest | C142: Bamenda | D142: 285945 | E142: 33494.796 | F142: =IF(INTRO!$E$49="","",ROUND($D142*INTRO!$E$49,0)) -> 75632 | G142: =IF(INTRO!$E$50="","",ROUND($D142*INTRO!$E$50,0)) -> 164619 | H142: 99 | I142: 1 | J142: 1 | K142: 1 | L142: 1 | M142: =IF(INTRO!$E$37="Endemic",IF($H142>0,IF($H142=4,"Unknown",IF($H142=99,"Stopped",$D142)),0),"Not required") -> Stopped | N142: =IF(INTRO!$E$39="Endemic", IF($I142>0, IF($I142=4,"Unknown",IF($I142=99,"Stopped",$D142)), 0),"Not required") -> 285945 | O142: =IF(INTRO!$E$41="Endemic", IF($J142>1, IF($J142=4, "Unknown", IF($J142=99, "Surveillance", E142)), 0),"Not required") -> 0 | P142: =IF(INTRO!$E$41="Endemic", IF($J142>1, IF($J142=4, "Unknown", IF($J142=99, "Surveillance", F142)), 0),"Not required") -> 0 | Q142: =IF(INTRO!$E$41="Endemic", IF($J142>1, IF($J142=4, "Unknown", IF($J142=99, "Surveillance", ROUND(D142*INTRO!$E$51,0))), 0),"Not required") -> 0 | R142: =IF(INTRO!$E$41="Endemic", IF($J142>1, IF($J142=4, "Unknown", IF($J142=99, "Surveillance", SUM($O142:$Q142))), 0),"Not required") -> 0 | S142: =IF(INTRO!$E$43="Endemic", IF($K142>1, IF($K142=4, "Unknown", IF($K142=99, "Surveillance", ROUND(E142*0.75,0))), 0),"Not required") -> 0 | T142: =IF(INTRO!$E$43="Endemic", IF($K142>1, IF($K142=4, "Unknown", IF($K142=99, "Surveillance", F142)), 0),"Not required") -> 0 | U142: =IF(INTRO!$E$43="Endemic", IF($K142>1, IF($K142=4, "Unknown", IF($K142=99, "Surveillance", G142)), 0),"Not required") -> 0 | V142: =IF(INTRO!$E$43="Endemic", IF($K142>1, IF($K142=4, "Unknown", IF($K142=99, "Surveillance", SUM($S142:$U142))), 0),"Not required") -> 0 | W142: 0 | X142: 1 | Y142: 0 | Z142: 0 | AA142: TAS | AH142: 7545 | AI142: BAMENDA
A143: =IF(INTRO!$E$33<>0,INTRO!$E$33, " ") -> Cameroun | B143: Nord Ouest | C143: Bamenda 3 | D143: 187735 | E143: 20066.508 | F143: =IF(INTRO!$E$49="","",ROUND($D143*INTRO!$E$49,0)) -> 49656 | G143: =IF(INTRO!$E$50="","",ROUND($D143*INTRO!$E$50,0)) -> 108079 | H143: 99 | I143: 1 | J143: 1 | K143: 1 | L143: 1 | M143: =IF(INTRO!$E$37="Endemic",IF($H143>0,IF($H143=4,"Unknown",IF($H143=99,"Stopped",$D143)),0),"Not required") -> Stopped | N143: =IF(INTRO!$E$39="Endemic", IF($I143>0, IF($I143=4,"Unknown",IF($I143=99,"Stopped",$D143)), 0),"Not required") -> 187735 | O143: =IF(INTRO!$E$41="Endemic", IF($J143>1, IF($J143=4, "Unknown", IF($J143=99, "Surveillance", E143)), 0),"Not required") -> 0 | P143: =IF(INTRO!$E$41="Endemic", IF($J143>1, IF($J143=4, "Unknown", IF($J143=99, "Surveillance", F143)), 0),"Not required") -> 0 | Q143: =IF(INTRO!$E$41="Endemic", IF($J143>1, IF($J143=4, "Unknown", IF($J143=99, "Surveillance", ROUND(D143*INTRO!$E$51,0))), 0),"Not required") -> 0 | R143: =IF(INTRO!$E$41="Endemic", IF($J143>1, IF($J143=4, "Unknown", IF($J143=99, "Surveillance", SUM($O143:$Q143))), 0),"Not required") -> 0 | S143: =IF(INTRO!$E$43="Endemic", IF($K143>1, IF($K143=4, "Unknown", IF($K143=99, "Surveillance", ROUND(E143*0.75,0))), 0),"Not required") -> 0 | T143: =IF(INTRO!$E$43="Endemic", IF($K143>1, IF($K143=4, "Unknown", IF($K143=99, "Surveillance", F143)), 0),"Not required") -> 0 | U143: =IF(INTRO!$E$43="Endemic", IF($K143>1, IF($K143=4, "Unknown", IF($K143=99, "Surveillance", G143)), 0),"Not required") -> 0 | V143: =IF(INTRO!$E$43="Endemic", IF($K143>1, IF($K143=4, "Unknown", IF($K143=99, "Surveillance", SUM($S143:$U143))), 0),"Not required") -> 0 | W143: 0 | X143: 1 | Y143: 0 | Z143: 0 | AA143: TAS | AH143: 7615 | AI143: Bamenda 3
A144: =IF(INTRO!$E$33<>0,INTRO!$E$33, " ") -> Cameroun | B144: Nord Ouest | C144: Batibo | D144: 79057 | E144: 8696.376 | F144: =IF(INTRO!$E$49="","",ROUND($D144*INTRO!$E$49,0)) -> 20911 | G144: =IF(INTRO!$E$50="","",ROUND($D144*INTRO!$E$50,0)) -> 45513 | H144: 99 | I144: 1 | J144: 3 | K144: 0 | L144: 1 | M144: =IF(INTRO!$E$37="Endemic",IF($H144>0,IF($H144=4,"Unknown",IF($H144=99,"Stopped",$D144)),0),"Not required") -> Stopped | N144: =IF(INTRO!$E$39="Endemic", IF($I144>0, IF($I144=4,"Unknown",IF($I144=99,"Stopped",$D144)), 0),"Not required") -> 79057 | O144: =IF(INTRO!$E$41="Endemic", IF($J144>1, IF($J144=4, "Unknown", IF($J144=99, "Surveillance", E144)), 0),"Not required") -> 8696.376 | P144: =IF(INTRO!$E$41="Endemic", IF($J144>1, IF($J144=4, "Unknown", IF($J144=99, "Surveillance", F144)), 0),"Not required") -> 20911 | Q144: =IF(INTRO!$E$41="Endemic", IF($J144>1, IF($J144=4, "Unknown", IF($J144=99, "Surveillance", ROUND(D144*INTRO!$E$51,0))), 0),"Not required") -> 2925 | R144: =IF(INTRO!$E$41="Endemic", IF($J144>1, IF($J144=4, "Unknown", IF($J144=99, "Surveillance", SUM($O144:$Q144))), 0),"Not required") -> 32532.376 | S144: =IF(INTRO!$E$43="Endemic", IF($K144>1, IF($K144=4, "Unknown", IF($K144=99, "Surveillance", ROUND(E144*0.75,0))), 0),"Not required") -> 0 | T144: =IF(INTRO!$E$43="Endemic", IF($K144>1, IF($K144=4, "Unknown", IF($K144=99, "Surveillance", F144)), 0),"Not required") -> 0 | U144: =IF(INTRO!$E$43="Endemic", IF($K144>1, IF($K144=4, "Unknown", IF($K144=99, "Surveillance", G144)), 0),"Not required") -> 0 | V144: =IF(INTRO!$E$43="Endemic", IF($K144>1, IF($K144=4, "Unknown", IF($K144=99, "Surveillance", SUM($S144:$U144))), 0),"Not required") -> 0 | W144: 0 | X144: 1 | Y144: 1 | Z144: 0 | AA144: TAS | AH144: 7546 | AI144: BATIBO
A145: =IF(INTRO!$E$33<>0,INTRO!$E$33, " ") -> Cameroun | B145: Nord Ouest | C145: Benakuma | D145: 56040 | E145: 14696.424 | F145: =IF(INTRO!$E$49="","",ROUND($D145*INTRO!$E$49,0)) -> 14823 | G145: =IF(INTRO!$E$50="","",ROUND($D145*INTRO!$E$50,0)) -> 32262 | H145: 99 | I145: 1 | J145: 2 | K145: 1 | L145: 1 | M145: =IF(INTRO!$E$37="Endemic",IF($H145>0,IF($H145=4,"Unknown",IF($H145=99,"Stopped",$D145)),0),"Not required") -> Stopped | N145: =IF(INTRO!$E$39="Endemic", IF($I145>0, IF($I145=4,"Unknown",IF($I145=99,"Stopped",$D145)), 0),"Not required") -> 56040 | O145: =IF(INTRO!$E$41="Endemic", IF($J145>1, IF($J145=4, "Unknown", IF($J145=99, "Surveillance", E145)), 0),"Not required") -> 14696.424 | P145: =IF(INTRO!$E$41="Endemic", IF($J145>1, IF($J145=4, "Unknown", IF($J145=99, "Surveillance", F145)), 0),"Not required") -> 14823 | Q145: =IF(INTRO!$E$41="Endemic", IF($J145>1, IF($J145=4, "Unknown", IF($J145=99, "Surveillance", ROUND(D145*INTRO!$E$51,0))), 0),"Not required") -> 2073 | R145: =IF(INTRO!$E$41="Endemic", IF($J145>1, IF($J145=4, "Unknown", IF($J145=99, "Surveillance", SUM($O145:$Q145))), 0),"Not required") -> 31592.424 | S145: =IF(INTRO!$E$43="Endemic", IF($K145>1, IF($K145=4, "Unknown", IF($K145=99, "Surveillance", ROUND(E145*0.75,0))), 0),"Not required") -> 0 | T145: =IF(INTRO!$E$43="Endemic", IF($K145>1, IF($K145=4, "Unknown", IF($K145=99, "Surveillance", F145)), 0),"Not required") -> 0 | U145: =IF(INTRO!$E$43="Endemic", IF($K145>1, IF($K145=4, "Unknown", IF($K145=99, "Surveillance", G145)), 0),"Not required") -> 0 | V145: =IF(INTRO!$E$43="Endemic", IF($K145>1, IF($K145=4, "Unknown", IF($K145=99, "Surveillance", SUM($S145:$U145))), 0),"Not required") -> 0 | W145: 0 | X145: 1 | Y145: 1 | Z145: 0 | AA145: TAS | AH145: 7547 | AI145: BENAKUMA
A146: =IF(INTRO!$E$33<>0,INTRO!$E$33, " ") -> Cameroun | B146: Nord Ouest | C146: Fundong | D146: 137887 | E146: 15764.49 | F146: =IF(INTRO!$E$49="","",ROUND($D146*INTRO!$E$49,0)) -> 36471 | G146: =IF(INTRO!$E$50="","",ROUND($D146*INTRO!$E$50,0)) -> 79382 | H146: 99 | I146: 1 | J146: 3 | K146: 0 | L146: 1 | M146: =IF(INTRO!$E$37="Endemic",IF($H146>0,IF($H146=4,"Unknown",IF($H146=99,"Stopped",$D146)),0),"Not required") -> Stopped | N146: =IF(INTRO!$E$39="Endemic", IF($I146>0, IF($I146=4,"Unknown",IF($I146=99,"Stopped",$D146)), 0),"Not required") -> 137887 | O146: =IF(INTRO!$E$41="Endemic", IF($J146>1, IF($J146=4, "Unknown", IF($J146=99, "Surveillance", E146)), 0),"Not required") -> 15764.49 | P146: =IF(INTRO!$E$41="Endemic", IF($J146>1, IF($J146=4, "Unknown", IF($J146=99, "Surveillance", F146)), 0),"Not required") -> 36471 | Q146: =IF(INTRO!$E$41="Endemic", IF($J146>1, IF($J146=4, "Unknown", IF($J146=99, "Surveillance", ROUND(D146*INTRO!$E$51,0))), 0),"Not required") -> 5102 | R146: =IF(INTRO!$E$41="Endemic", IF($J146>1, IF($J146=4, "Unknown", IF($J146=99, "Surveillance", SUM($O146:$Q146))), 0),"Not required") -> 57337.49 | S146: =IF(INTRO!$E$43="Endemic", IF($K146>1, IF($K146=4, "Unknown", IF($K146=99, "Surveillance", ROUND(E146*0.75,0))), 0),"Not required") -> 0 | T146: =IF(INTRO!$E$43="Endemic", IF($K146>1, IF($K146=4, "Unknown", IF($K146=99, "Surveillance", F146)), 0),"Not required") -> 0 | U146: =IF(INTRO!$E$43="Endemic", IF($K146>1, IF($K146=4, "Unknown", IF($K146=99, "Surveillance", G146)), 0),"Not required") -> 0 | V146: =IF(INTRO!$E$43="Endemic", IF($K146>1, IF($K146=4, "Unknown", IF($K146=99, "Surveillance", SUM($S146:$U146))), 0),"Not required") -> 0 | W146: 0 | X146: 1 | Y146: 1 | Z146: 0 | AA146: TAS | AH146: 7548 | AI146: FUNDONG
A147: =IF(INTRO!$E$33<>0,INTRO!$E$33, " ") -> Cameroun | B147: Nord Ouest | C147: Kumbo East | D147: 126157 | E147: 14046.966 | F147: =IF(INTRO!$E$49="","",ROUND($D147*INTRO!$E$49,0)) -> 33369 | G147: =IF(INTRO!$E$50="","",ROUND($D147*INTRO!$E$50,0)) -> 72629 | H147: 99 | I147: 1 | J147: 1 | K147: 2 | L147: 1 | M147: =IF(INTRO!$E$37="Endemic",IF($H147>0,IF($H147=4,"Unknown",IF($H147=99,"Stopped",$D147)),0),"Not required") -> Stopped | N147: =IF(INTRO!$E$39="Endemic", IF($I147>0, IF($I147=4,"Unknown",IF($I147=99,"Stopped",$D147)), 0),"Not required") -> 126157 | O147: =IF(INTRO!$E$41="Endemic", IF($J147>1, IF($J147=4, "Unknown", IF($J147=99, "Surveillance", E147)), 0),"Not required") -> 0 | P147: =IF(INTRO!$E$41="Endemic", IF($J147>1, IF($J147=4, "Unknown", IF($J147=99, "Surveillance", F147)), 0),"Not required") -> 0 | Q147: =IF(INTRO!$E$41="Endemic", IF($J147>1, IF($J147=4, "Unknown", IF($J147=99, "Surveillance", ROUND(D147*INTRO!$E$51,0))), 0),"Not required") -> 0 | R147: =IF(INTRO!$E$41="Endemic", IF($J147>1, IF($J147=4, "Unknown", IF($J147=99, "Surveillance", SUM($O147:$Q147))), 0),"Not required") -> 0 | S147: =IF(INTRO!$E$43="Endemic", IF($K147>1, IF($K147=4, "Unknown", IF($K147=99, "Surveillance", ROUND(E147*0.75,0))), 0),"Not required") -> 10535 | T147: =IF(INTRO!$E$43="Endemic", IF($K147>1, IF($K147=4, "Unknown", IF($K147=99, "Surveillance", F147)), 0),"Not required") -> 33369 | U147: =IF(INTRO!$E$43="Endemic", IF($K147>1, IF($K147=4, "Unknown", IF($K147=99, "Surveillance", G147)), 0),"Not required") -> 72629 | V147: =IF(INTRO!$E$43="Endemic", IF($K147>1, IF($K147=4, "Unknown", IF($K147=99, "Surveillance", SUM($S147:$U147))), 0),"Not required") -> 116533 | W147: 0 | X147: 1 | Y147: 0 | Z147: 1 | AA147: TAS | AH147: 7549 | AI147: KUMBO EAST
A148: =IF(INTRO!$E$33<>0,INTRO!$E$33, " ") -> Cameroun | B148: Nord Ouest | C148: Kumbo West | D148: 114554 | E148: 10334.898 | F148: =IF(INTRO!$E$49="","",ROUND($D148*INTRO!$E$49,0)) -> 30300 | G148: =IF(INTRO!$E$50="","",ROUND($D148*INTRO!$E$50,0)) -> 65949 | H148: 99 | I148: 1 | J148: 3 | K148: 0 | L148: 1 | M148: =IF(INTRO!$E$37="Endemic",IF($H148>0,IF($H148=4,"Unknown",IF($H148=99,"Stopped",$D148)),0),"Not required") -> Stopped | N148: =IF(INTRO!$E$39="Endemic", IF($I148>0, IF($I148=4,"Unknown",IF($I148=99,"Stopped",$D148)), 0),"Not required") -> 114554 | O148: =IF(INTRO!$E$41="Endemic", IF($J148>1, IF($J148=4, "Unknown", IF($J148=99, "Surveillance", E148)), 0),"Not required") -> 10334.898 | P148: =IF(INTRO!$E$41="Endemic", IF($J148>1, IF($J148=4, "Unknown", IF($J148=99, "Surveillance", F148)), 0),"Not required") -> 30300 | Q148: =IF(INTRO!$E$41="Endemic", IF($J148>1, IF($J148=4, "Unknown", IF($J148=99, "Surveillance", ROUND(D148*INTRO!$E$51,0))), 0),"Not required") -> 4238 | R148: =IF(INTRO!$E$41="Endemic", IF($J148>1, IF($J148=4, "Unknown", IF($J148=99, "Surveillance", SUM($O148:$Q148))), 0),"Not required") -> 44872.898 | S148: =IF(INTRO!$E$43="Endemic", IF($K148>1, IF($K148=4, "Unknown", IF($K148=99, "Surveillance", ROUND(E148*0.75,0))), 0),"Not required") -> 0 | T148: =IF(INTRO!$E$43="Endemic", IF($K148>1, IF($K148=4, "Unknown", IF($K148=99, "Surveillance", F148)), 0),"Not required") -> 0 | U148: =IF(INTRO!$E$43="Endemic", IF($K148>1, IF($K148=4, "Unknown", IF($K148=99, "Surveillance", G148)), 0),"Not required") -> 0 | V148: =IF(INTRO!$E$43="Endemic", IF($K148>1, IF($K148=4, "Unknown", IF($K148=99, "Surveillance", SUM($S148:$U148))), 0),"Not required") -> 0 | W148: 0 | X148: 1 | Y148: 1 | Z148: 0 | AA148: TAS | AH148: 7550 | AI148: KUMBO WEST
A149: =IF(INTRO!$E$33<>0,INTRO!$E$33, " ") -> Cameroun | B149: Nord Ouest | C149: Mbengwi | D149: 48758 | E149: 4688.82 | F149: =IF(INTRO!$E$49="","",ROUND($D149*INTRO!$E$49,0)) -> 12896 | G149: =IF(INTRO!$E$50="","",ROUND($D149*INTRO!$E$50,0)) -> 28070 | H149: 99 | I149: 1 | J149: 1 | K149: 0 | L149: 1 | M149: =IF(INTRO!$E$37="Endemic",IF($H149>0,IF($H149=4,"Unknown",IF($H149=99,"Stopped",$D149)),0),"Not required") -> Stopped | N149: =IF(INTRO!$E$39="Endemic", IF($I149>0, IF($I149=4,"Unknown",IF($I149=99,"Stopped",$D149)), 0),"Not required") -> 48758 | O149: =IF(INTRO!$E$41="Endemic", IF($J149>1, IF($J149=4, "Unknown", IF($J149=99, "Surveillance", E149)), 0),"Not required") -> 0 | P149: =IF(INTRO!$E$41="Endemic", IF($J149>1, IF($J149=4, "Unknown", IF($J149=99, "Surveillance", F149)), 0),"Not required") -> 0 | Q149: =IF(INTRO!$E$41="Endemic", IF($J149>1, IF($J149=4, "Unknown", IF($J149=99, "Surveillance", ROUND(D149*INTRO!$E$51,0))), 0),"Not required") -> 0 | R149: =IF(INTRO!$E$41="Endemic", IF($J149>1, IF($J149=4, "Unknown", IF($J149=99, "Surveillance", SUM($O149:$Q149))), 0),"Not required") -> 0 | S149: =IF(INTRO!$E$43="Endemic", IF($K149>1, IF($K149=4, "Unknown", IF($K149=99, "Surveillance", ROUND(E149*0.75,0))), 0),"Not required") -> 0 | T149: =IF(INTRO!$E$43="Endemic", IF($K149>1, IF($K149=4, "Unknown", IF($K149=99, "Surveillance", F149)), 0),"Not required") -> 0 | U149: =IF(INTRO!$E$43="Endemic", IF($K149>1, IF($K149=4, "Unknown", IF($K149=99, "Surveillance", G149)), 0),"Not required") -> 0 | V149: =IF(INTRO!$E$43="Endemic", IF($K149>1, IF($K149=4, "Unknown", IF($K149=99, "Surveillance", SUM($S149:$U149))), 0),"Not required") -> 0 | W149: 0 | X149: 1 | Y149: 0 | Z149: 0 | AA149: TAS | AH149: 7551 | AI149: MBENGWI
A150: =IF(INTRO!$E$33<>0,INTRO!$E$33, " ") -> Cameroun | B150: Nord Ouest | C150: Ndop | D150: 203473 | E150: 22547.376 | F150: =IF(INTRO!$E$49="","",ROUND($D150*INTRO!$E$49,0)) -> 53819 | G150: =IF(INTRO!$E$50="","",ROUND($D150*INTRO!$E$50,0)) -> 117139 | H150: 99 | I150: 1 | J150: 3 | K150: 0 | L150: 1 | M150: =IF(INTRO!$E$37="Endemic",IF($H150>0,IF($H150=4,"Unknown",IF($H150=99,"Stopped",$D150)),0),"Not required") -> Stopped | N150: =IF(INTRO!$E$39="Endemic", IF($I150>0, IF($I150=4,"Unknown",IF($I150=99,"Stopped",$D150)), 0),"Not required") -> 203473 | O150: =IF(INTRO!$E$41="Endemic", IF($J150>1, IF($J150=4, "Unknown", IF($J150=99, "Surveillance", E150)), 0),"Not required") -> 22547.376 | P150: =IF(INTRO!$E$41="Endemic", IF($J150>1, IF($J150=4, "Unknown", IF($J150=99, "Surveillance", F150)), 0),"Not required") -> 53819 | Q150: =IF(INTRO!$E$41="Endemic", IF($J150>1, IF($J150=4, "Unknown", IF($J150=99, "Surveillance", ROUND(D150*INTRO!$E$51,0))), 0),"Not required") -> 7529 | R150: =IF(INTRO!$E$41="Endemic", IF($J150>1, IF($J150=4, "Unknown", IF($J150=99, "Surveillance", SUM($O150:$Q150))), 0),"Not required") -> 83895.376 | S150: =IF(INTRO!$E$43="Endemic", IF($K150>1, IF($K150=4, "Unknown", IF($K150=99, "Surveillance", ROUND(E150*0.75,0))), 0),"Not required") -> 0 | T150: =IF(INTRO!$E$43="Endemic", IF($K150>1, IF($K150=4, "Unknown", IF($K150=99, "Surveillance", F150)), 0),"Not required") -> 0 | U150: =IF(INTRO!$E$43="Endemic", IF($K150>1, IF($K150=4, "Unknown", IF($K150=99, "Surveillance", G150)), 0),"Not required") -> 0 | V150: =IF(INTRO!$E$43="Endemic", IF($K150>1, IF($K150=4, "Unknown", IF($K150=99, "Surveillance", SUM($S150:$U150))), 0),"Not required") -> 0 | W150: 0 | X150: 1 | Y150: 1 | Z150: 0 | AA150: TAS | AH150: 7552 | AI150: NDOP
A151: =IF(INTRO!$E$33<>0,INTRO!$E$33, " ") -> Cameroun | B151: Nord Ouest | C151: Ndu | D151: 74042 | E151: 7795.548 | F151: =IF(INTRO!$E$49="","",ROUND($D151*INTRO!$E$49,0)) -> 19584 | G151: =IF(INTRO!$E$50="","",ROUND($D151*INTRO!$E$50,0)) -> 42626 | H151: 99 | I151: 1 | J151: 2 | K151: 2 | L151: 1 | M151: =IF(INTRO!$E$37="Endemic",IF($H151>0,IF($H151=4,"Unknown",IF($H151=99,"Stopped",$D151)),0),"Not required") -> Stopped | N151: =IF(INTRO!$E$39="Endemic", IF($I151>0, IF($I151=4,"Unknown",IF($I151=99,"Stopped",$D151)), 0),"Not required") -> 74042 | O151: =IF(INTRO!$E$41="Endemic", IF($J151>1, IF($J151=4, "Unknown", IF($J151=99, "Surveillance", E151)), 0),"Not required") -> 7795.548 | P151: =IF(INTRO!$E$41="Endemic", IF($J151>1, IF($J151=4, "Unknown", IF($J151=99, "Surveillance", F151)), 0),"Not required") -> 19584 | Q151: =IF(INTRO!$E$41="Endemic", IF($J151>1, IF($J151=4, "Unknown", IF($J151=99, "Surveillance", ROUND(D151*INTRO!$E$51,0))), 0),"Not required") -> 2740 | R151: =IF(INTRO!$E$41="Endemic", IF($J151>1, IF($J151=4, "Unknown", IF($J151=99, "Surveillance", SUM($O151:$Q151))), 0),"Not required") -> 30119.548 | S151: =IF(INTRO!$E$43="Endemic", IF($K151>1, IF($K151=4, "Unknown", IF($K151=99, "Surveillance", ROUND(E151*0.75,0))), 0),"Not required") -> 5847 | T151: =IF(INTRO!$E$43="Endemic", IF($K151>1, IF($K151=4, "Unknown", IF($K151=99, "Surveillance", F151)), 0),"Not required") -> 19584 | U151: =IF(INTRO!$E$43="Endemic", IF($K151>1, IF($K151=4, "Unknown", IF($K151=99, "Surveillance", G151)), 0),"Not required") -> 42626 | V151: =IF(INTRO!$E$43="Endemic", IF($K151>1, IF($K151=4, "Unknown", IF($K151=99, "Surveillance", SUM($S151:$U151))), 0),"Not required") -> 68057 | W151: 0 | X151: 1 | Y151: 1 | Z151: 1 | AA151: TAS | AH151: 7553 | AI151: NDU
A152: =IF(INTRO!$E$33<>0,INTRO!$E$33, " ") -> Cameroun | B152: Nord Ouest | C152: Njikwa | D152: 24071 | E152: 2889.216 | F152: =IF(INTRO!$E$49="","",ROUND($D152*INTRO!$E$49,0)) -> 6367 | G152: =IF(INTRO!$E$50="","",ROUND($D152*INTRO!$E$50,0)) -> 13858 | H152: 99 | I152: 1 | J152: 1 | K152: 0 | L152: 1 | M152: =IF(INTRO!$E$37="Endemic",IF($H152>0,IF($H152=4,"Unknown",IF($H152=99,"Stopped",$D152)),0),"Not required") -> Stopped | N152: =IF(INTRO!$E$39="Endemic", IF($I152>0, IF($I152=4,"Unknown",IF($I152=99,"Stopped",$D152)), 0),"Not required") -> 24071 | O152: =IF(INTRO!$E$41="Endemic", IF($J152>1, IF($J152=4, "Unknown", IF($J152=99, "Surveillance", E152)), 0),"Not required") -> 0 | P152: =IF(INTRO!$E$41="Endemic", IF($J152>1, IF($J152=4, "Unknown", IF($J152=99, "Surveillance", F152)), 0),"Not required") -> 0 | Q152: =IF(INTRO!$E$41="Endemic", IF($J152>1, IF($J152=4, "Unknown", IF($J152=99, "Surveillance", ROUND(D152*INTRO!$E$51,0))), 0),"Not required") -> 0 | R152: =IF(INTRO!$E$41="Endemic", IF($J152>1, IF($J152=4, "Unknown", IF($J152=99, "Surveillance", SUM($O152:$Q152))), 0),"Not required") -> 0 | S152: =IF(INTRO!$E$43="Endemic", IF($K152>1, IF($K152=4, "Unknown", IF($K152=99, "Surveillance", ROUND(E152*0.75,0))), 0),"Not required") -> 0 | T152: =IF(INTRO!$E$43="Endemic", IF($K152>1, IF($K152=4, "Unknown", IF($K152=99, "Surveillance", F152)), 0),"Not required") -> 0 | U152: =IF(INTRO!$E$43="Endemic", IF($K152>1, IF($K152=4, "Unknown", IF($K152=99, "Surveillance", G152)), 0),"Not required") -> 0 | V152: =IF(INTRO!$E$43="Endemic", IF($K152>1, IF($K152=4, "Unknown", IF($K152=99, "Surveillance", SUM($S152:$U152))), 0),"Not required") -> 0 | W152: 0 | X152: 1 | Y152: 0 | Z152: 0 | AA152: TAS | AH152: 7554 | AI152: NJIKWA
A153: =IF(INTRO!$E$33<>0,INTRO!$E$33, " ") -> Cameroun | B153: Nord Ouest | C153: Nkambe | D153: 133351 | E153: 21482.388 | F153: =IF(INTRO!$E$49="","",ROUND($D153*INTRO!$E$49,0)) -> 35271 | G153: =IF(INTRO!$E$50="","",ROUND($D153*INTRO!$E$50,0)) -> 76770 | H153: 99 | I153: 1 | J153: 3 | K153: 1 | L153: 1 | M153: =IF(INTRO!$E$37="Endemic",IF($H153>0,IF($H153=4,"Unknown",IF($H153=99,"Stopped",$D153)),0),"Not required") -> Stopped | N153: =IF(INTRO!$E$39="Endemic", IF($I153>0, IF($I153=4,"Unknown",IF($I153=99,"Stopped",$D153)), 0),"Not required") -> 133351 | O153: =IF(INTRO!$E$41="Endemic", IF($J153>1, IF($J153=4, "Unknown", IF($J153=99, "Surveillance", E153)), 0),"Not required") -> 21482.388 | P153: =IF(INTRO!$E$41="Endemic", IF($J153>1, IF($J153=4, "Unknown", IF($J153=99, "Surveillance", F153)), 0),"Not required") -> 35271 | Q153: =IF(INTRO!$E$41="Endemic", IF($J153>1, IF($J153=4, "Unknown", IF($J153=99, "Surveillance", ROUND(D153*INTRO!$E$51,0))), 0),"Not required") -> 4934 | R153: =IF(INTRO!$E$41="Endemic", IF($J153>1, IF($J153=4, "Unknown", IF($J153=99, "Surveillance", SUM($O153:$Q153))), 0),"Not required") -> 61687.388 | S153: =IF(INTRO!$E$43="Endemic", IF($K153>1, IF($K153=4, "Unknown", IF($K153=99, "Surveillance", ROUND(E153*0.75,0))), 0),"Not required") -> 0 | T153: =IF(INTRO!$E$43="Endemic", IF($K153>1, IF($K153=4, "Unknown", IF($K153=99, "Surveillance", F153)), 0),"Not required") -> 0 | U153: =IF(INTRO!$E$43="Endemic", IF($K153>1, IF($K153=4, "Unknown", IF($K153=99, "Surveillance", G153)), 0),"Not required") -> 0 | V153: =IF(INTRO!$E$43="Endemic", IF($K153>1, IF($K153=4, "Unknown", IF($K153=99, "Surveillance", SUM($S153:$U153))), 0),"Not required") -> 0 | W153: 0 | X153: 1 | Y153: 1 | Z153: 0 | AA153: TAS | AH153: 7555 | AI153: NKAMBE
A154: =IF(INTRO!$E$33<>0,INTRO!$E$33, " ") -> Cameroun | B154: Nord Ouest | C154: Nwa | D154: 64199 | E154: 8140.284 | F154: =IF(INTRO!$E$49="","",ROUND($D154*INTRO!$E$49,0)) -> 16981 | G154: =IF(INTRO!$E$50="","",ROUND($D154*INTRO!$E$50,0)) -> 36959 | H154: 99 | I154: 1 | J154: 3 | K154: 0 | L154: 1 | M154: =IF(INTRO!$E$37="Endemic",IF($H154>0,IF($H154=4,"Unknown",IF($H154=99,"Stopped",$D154)),0),"Not required") -> Stopped | N154: =IF(INTRO!$E$39="Endemic", IF($I154>0, IF($I154=4,"Unknown",IF($I154=99,"Stopped",$D154)), 0),"Not required") -> 64199 | O154: =IF(INTRO!$E$41="Endemic", IF($J154>1, IF($J154=4, "Unknown", IF($J154=99, "Surveillance", E154)), 0),"Not required") -> 8140.284 | P154: =IF(INTRO!$E$41="Endemic", IF($J154>1, IF($J154=4, "Unknown", IF($J154=99, "Surveillance", F154)), 0),"Not required") -> 16981 | Q154: =IF(INTRO!$E$41="Endemic", IF($J154>1, IF($J154=4, "Unknown", IF($J154=99, "Surveillance", ROUND(D154*INTRO!$E$51,0))), 0),"Not required") -> 2375 | R154: =IF(INTRO!$E$41="Endemic", IF($J154>1, IF($J154=4, "Unknown", IF($J154=99, "Surveillance", SUM($O154:$Q154))), 0),"Not required") -> 27496.284 | S154: =IF(INTRO!$E$43="Endemic", IF($K154>1, IF($K154=4, "Unknown", IF($K154=99, "Surveillance", ROUND(E154*0.75,0))), 0),"Not required") -> 0 | T154: =IF(INTRO!$E$43="Endemic", IF($K154>1, IF($K154=4, "Unknown", IF($K154=99, "Surveillance", F154)), 0),"Not required") -> 0 | U154: =IF(INTRO!$E$43="Endemic", IF($K154>1, IF($K154=4, "Unknown", IF($K154=99, "Surveillance", G154)), 0),"Not required") -> 0 | V154: =IF(INTRO!$E$43="Endemic", IF($K154>1, IF($K154=4, "Unknown", IF($K154=99, "Surveillance", SUM($S154:$U154))), 0),"Not required") -> 0 | W154: 0 | X154: 1 | Y154: 1 | Z154: 0 | AA154: TAS | AH154: 7556 | AI154: NWA
A155: =IF(INTRO!$E$33<>0,INTRO!$E$33, " ") -> Cameroun | B155: Nord Ouest | C155: Oku | D155: 66497 | E155: 12076.02 | F155: =IF(INTRO!$E$49="","",ROUND($D155*INTRO!$E$49,0)) -> 17588 | G155: =IF(INTRO!$E$50="","",ROUND($D155*INTRO!$E$50,0)) -> 38282 | H155: 99 | I155: 1 | J155: 2 | K155: 0 | L155: 1 | M155: =IF(INTRO!$E$37="Endemic",IF($H155>0,IF($H155=4,"Unknown",IF($H155=99,"Stopped",$D155)),0),"Not required") -> Stopped | N155: =IF(INTRO!$E$39="Endemic", IF($I155>0, IF($I155=4,"Unknown",IF($I155=99,"Stopped",$D155)), 0),"Not required") -> 66497 | O155: =IF(INTRO!$E$41="Endemic", IF($J155>1, IF($J155=4, "Unknown", IF($J155=99, "Surveillance", E155)), 0),"Not required") -> 12076.02 | P155: =IF(INTRO!$E$41="Endemic", IF($J155>1, IF($J155=4, "Unknown", IF($J155=99, "Surveillance", F155)), 0),"Not required") -> 17588 | Q155: =IF(INTRO!$E$41="Endemic", IF($J155>1, IF($J155=4, "Unknown", IF($J155=99, "Surveillance", ROUND(D155*INTRO!$E$51,0))), 0),"Not required") -> 2460 | R155: =IF(INTRO!$E$41="Endemic", IF($J155>1, IF($J155=4, "Unknown", IF($J155=99, "Surveillance", SUM($O155:$Q155))), 0),"Not required") -> 32124.02 | S155: =IF(INTRO!$E$43="Endemic", IF($K155>1, IF($K155=4, "Unknown", IF($K155=99, "Surveillance", ROUND(E155*0.75,0))), 0),"Not required") -> 0 | T155: =IF(INTRO!$E$43="Endemic", IF($K155>1, IF($K155=4, "Unknown", IF($K155=99, "Surveillance", F155)), 0),"Not required") -> 0 | U155: =IF(INTRO!$E$43="Endemic", IF($K155>1, IF($K155=4, "Unknown", IF($K155=99, "Surveillance", G155)), 0),"Not required") -> 0 | V155: =IF(INTRO!$E$43="Endemic", IF($K155>1, IF($K155=4, "Unknown", IF($K155=99, "Surveillance", SUM($S155:$U155))), 0),"Not required") -> 0 | W155: 0 | X155: 1 | Y155: 1 | Z155: 0 | AA155: TAS | AH155: 7557 | AI155: OKU
A156: =IF(INTRO!$E$33<>0,INTRO!$E$33, " ") -> Cameroun | B156: Nord Ouest | C156: Santa | D156: 82831 | E156: 12825 | F156: =IF(INTRO!$E$49="","",ROUND($D156*INTRO!$E$49,0)) -> 21909 | G156: =IF(INTRO!$E$50="","",ROUND($D156*INTRO!$E$50,0)) -> 47686 | H156: 99 | I156: 1 | J156: 3 | K156: 1 | L156: 1 | M156: =IF(INTRO!$E$37="Endemic",IF($H156>0,IF($H156=4,"Unknown",IF($H156=99,"Stopped",$D156)),0),"Not required") -> Stopped | N156: =IF(INTRO!$E$39="Endemic", IF($I156>0, IF($I156=4,"Unknown",IF($I156=99,"Stopped",$D156)), 0),"Not required") -> 82831 | O156: =IF(INTRO!$E$41="Endemic", IF($J156>1, IF($J156=4, "Unknown", IF($J156=99, "Surveillance", E156)), 0),"Not required") -> 12825 | P156: =IF(INTRO!$E$41="Endemic", IF($J156>1, IF($J156=4, "Unknown", IF($J156=99, "Surveillance", F156)), 0),"Not required") -> 21909 | Q156: =IF(INTRO!$E$41="Endemic", IF($J156>1, IF($J156=4, "Unknown", IF($J156=99, "Surveillance", ROUND(D156*INTRO!$E$51,0))), 0),"Not required") -> 3065 | R156: =IF(INTRO!$E$41="Endemic", IF($J156>1, IF($J156=4, "Unknown", IF($J156=99, "Surveillance", SUM($O156:$Q156))), 0),"Not required") -> 37799 | S156: =IF(INTRO!$E$43="Endemic", IF($K156>1, IF($K156=4, "Unknown", IF($K156=99, "Surveillance", ROUND(E156*0.75,0))), 0),"Not required") -> 0 | T156: =IF(INTRO!$E$43="Endemic", IF($K156>1, IF($K156=4, "Unknown", IF($K156=99, "Surveillance", F156)), 0),"Not required") -> 0 | U156: =IF(INTRO!$E$43="Endemic", IF($K156>1, IF($K156=4, "Unknown", IF($K156=99, "Surveillance", G156)), 0),"Not required") -> 0 | V156: =IF(INTRO!$E$43="Endemic", IF($K156>1, IF($K156=4, "Unknown", IF($K156=99, "Surveillance", SUM($S156:$U156))), 0),"Not required") -> 0 | W156: 0 | X156: 1 | Y156: 1 | Z156: 0 | AA156: TAS | AH156: 7558 | AI156: SANTA
A157: =IF(INTRO!$E$33<>0,INTRO!$E$33, " ") -> Cameroun | B157: Nord Ouest | C157: Tubah | D157: 65123 | E157: 6197.04 | F157: =IF(INTRO!$E$49="","",ROUND($D157*INTRO!$E$49,0)) -> 17225 | G157: =IF(INTRO!$E$50="","",ROUND($D157*INTRO!$E$50,0)) -> 37491 | H157: 99 | I157: 1 | J157: 1 | K157: 0 | L157: 1 | M157: =IF(INTRO!$E$37="Endemic",IF($H157>0,IF($H157=4,"Unknown",IF($H157=99,"Stopped",$D157)),0),"Not required") -> Stopped | N157: =IF(INTRO!$E$39="Endemic", IF($I157>0, IF($I157=4,"Unknown",IF($I157=99,"Stopped",$D157)), 0),"Not required") -> 65123 | O157: =IF(INTRO!$E$41="Endemic", IF($J157>1, IF($J157=4, "Unknown", IF($J157=99, "Surveillance", E157)), 0),"Not required") -> 0 | P157: =IF(INTRO!$E$41="Endemic", IF($J157>1, IF($J157=4, "Unknown", IF($J157=99, "Surveillance", F157)), 0),"Not required") -> 0 | Q157: =IF(INTRO!$E$41="Endemic", IF($J157>1, IF($J157=4, "Unknown", IF($J157=99, "Surveillance", ROUND(D157*INTRO!$E$51,0))), 0),"Not required") -> 0 | R157: =IF(INTRO!$E$41="Endemic", IF($J157>1, IF($J157=4, "Unknown", IF($J157=99, "Surveillance", SUM($O157:$Q157))), 0),"Not required") -> 0 | S157: =IF(INTRO!$E$43="Endemic", IF($K157>1, IF($K157=4, "Unknown", IF($K157=99, "Surveillance", ROUND(E157*0.75,0))), 0),"Not required") -> 0 | T157: =IF(INTRO!$E$43="Endemic", IF($K157>1, IF($K157=4, "Unknown", IF($K157=99, "Surveillance", F157)), 0),"Not required") -> 0 | U157: =IF(INTRO!$E$43="Endemic", IF($K157>1, IF($K157=4, "Unknown", IF($K157=99, "Surveillance", G157)), 0),"Not required") -> 0 | V157: =IF(INTRO!$E$43="Endemic", IF($K157>1, IF($K157=4, "Unknown", IF($K157=99, "Surveillance", SUM($S157:$U157))), 0),"Not required") -> 0 | W157: 0 | X157: 1 | Y157: 0 | Z157: 0 | AA157: TAS | AH157: 7559 | AI157: TUBAH
A158: =IF(INTRO!$E$33<>0,INTRO!$E$33, " ") -> Cameroun | B158: Nord Ouest | C158: Wum | D158: 121811 | E158: 11457.342 | F158: =IF(INTRO!$E$49="","",ROUND($D158*INTRO!$E$49,0)) -> 32219 | G158: =IF(INTRO!$E$50="","",ROUND($D158*INTRO!$E$50,0)) -> 70127 | H158: 99 | I158: 1 | J158: 3 | K158: 1 | L158: 1 | M158: =IF(INTRO!$E$37="Endemic",IF($H158>0,IF($H158=4,"Unknown",IF($H158=99,"Stopped",$D158)),0),"Not required") -> Stopped | N158: =IF(INTRO!$E$39="Endemic", IF($I158>0, IF($I158=4,"Unknown",IF($I158=99,"Stopped",$D158)), 0),"Not required") -> 121811 | O158: =IF(INTRO!$E$41="Endemic", IF($J158>1, IF($J158=4, "Unknown", IF($J158=99, "Surveillance", E158)), 0),"Not required") -> 11457.342 | P158: =IF(INTRO!$E$41="Endemic", IF($J158>1, IF($J158=4, "Unknown", IF($J158=99, "Surveillance", F158)), 0),"Not required") -> 32219 | Q158: =IF(INTRO!$E$41="Endemic", IF($J158>1, IF($J158=4, "Unknown", IF($J158=99, "Surveillance", ROUND(D158*INTRO!$E$51,0))), 0),"Not required") -> 4507 | R158: =IF(INTRO!$E$41="Endemic", IF($J158>1, IF($J158=4, "Unknown", IF($J158=99, "Surveillance", SUM($O158:$Q158))), 0),"Not required") -> 48183.342 | S158: =IF(INTRO!$E$43="Endemic", IF($K158>1, IF($K158=4, "Unknown", IF($K158=99, "Surveillance", ROUND(E158*0.75,0))), 0),"Not required") -> 0 | T158: =IF(INTRO!$E$43="Endemic", IF($K158>1, IF($K158=4, "Unknown", IF($K158=99, "Surveillance", F158)), 0),"Not required") -> 0 | U158: =IF(INTRO!$E$43="Endemic", IF($K158>1, IF($K158=4, "Unknown", IF($K158=99, "Surveillance", G158)), 0),"Not required") -> 0 | V158: =IF(INTRO!$E$43="Endemic", IF($K158>1, IF($K158=4, "Unknown", IF($K158=99, "Surveillance", SUM($S158:$U158))), 0),"Not required") -> 0 | W158: 0 | X158: 1 | Y158: 1 | Z158: 0 | AA158: TAS | AH158: 7560 | AI158: WUM
A159: =IF(INTRO!$E$33<>0,INTRO!$E$33, " ") -> Cameroun | B159: Ouest | C159: Bafang | D159: 87537 | E159: 12707.01 | F159: =IF(INTRO!$E$49="","",ROUND($D159*INTRO!$E$49,0)) -> 23154 | G159: =IF(INTRO!$E$50="","",ROUND($D159*INTRO!$E$50,0)) -> 50395 | H159: 99 | I159: 1 | J159: 3 | K159: 1 | L159: 1 | M159: =IF(INTRO!$E$37="Endemic",IF($H159>0,IF($H159=4,"Unknown",IF($H159=99,"Stopped",$D159)),0),"Not required") -> Stopped | N159: =IF(INTRO!$E$39="Endemic", IF($I159>0, IF($I159=4,"Unknown",IF($I159=99,"Stopped",$D159)), 0),"Not required") -> 87537 | O159: =IF(INTRO!$E$41="Endemic", IF($J159>1, IF($J159=4, "Unknown", IF($J159=99, "Surveillance", E159)), 0),"Not required") -> 12707.01 | P159: =IF(INTRO!$E$41="Endemic", IF($J159>1, IF($J159=4, "Unknown", IF($J159=99, "Surveillance", F159)), 0),"Not required") -> 23154 | Q159: =IF(INTRO!$E$41="Endemic", IF($J159>1, IF($J159=4, "Unknown", IF($J159=99, "Surveillance", ROUND(D159*INTRO!$E$51,0))), 0),"Not required") -> 3239 | R159: =IF(INTRO!$E$41="Endemic", IF($J159>1, IF($J159=4, "Unknown", IF($J159=99, "Surveillance", SUM($O159:$Q159))), 0),"Not required") -> 39100.01 | S159: =IF(INTRO!$E$43="Endemic", IF($K159>1, IF($K159=4, "Unknown", IF($K159=99, "Surveillance", ROUND(E159*0.75,0))), 0),"Not required") -> 0 | T159: =IF(INTRO!$E$43="Endemic", IF($K159>1, IF($K159=4, "Unknown", IF($K159=99, "Surveillance", F159)), 0),"Not required") -> 0 | U159: =IF(INTRO!$E$43="Endemic", IF($K159>1, IF($K159=4, "Unknown", IF($K159=99, "Surveillance", G159)), 0),"Not required") -> 0 | V159: =IF(INTRO!$E$43="Endemic", IF($K159>1, IF($K159=4, "Unknown", IF($K159=99, "Surveillance", SUM($S159:$U159))), 0),"Not required") -> 0 | W159: 0 | X159: 1 | Y159: 1 | Z159: 0 | AB159: Yes | AH159: 7561 | AI159: BAFANG
A160: =IF(INTRO!$E$33<>0,INTRO!$E$33, " ") -> Cameroun | B160: Ouest | C160: Baham | D160: 49935 | E160: 7871.472 | F160: =IF(INTRO!$E$49="","",ROUND($D160*INTRO!$E$49,0)) -> 13208 | G160: =IF(INTRO!$E$50="","",ROUND($D160*INTRO!$E$50,0)) -> 28748 | H160: 99 | I160: 1 | J160: 3 | K160: 1 | L160: 1 | M160: =IF(INTRO!$E$37="Endemic",IF($H160>0,IF($H160=4,"Unknown",IF($H160=99,"Stopped",$D160)),0),"Not required") -> Stopped | N160: =IF(INTRO!$E$39="Endemic", IF($I160>0, IF($I160=4,"Unknown",IF($I160=99,"Stopped",$D160)), 0),"Not required") -> 49935 | O160: =IF(INTRO!$E$41="Endemic", IF($J160>1, IF($J160=4, "Unknown", IF($J160=99, "Surveillance", E160)), 0),"Not required") -> 7871.472 | P160: =IF(INTRO!$E$41="Endemic", IF($J160>1, IF($J160=4, "Unknown", IF($J160=99, "Surveillance", F160)), 0),"Not required") -> 13208 | Q160: =IF(INTRO!$E$41="Endemic", IF($J160>1, IF($J160=4, "Unknown", IF($J160=99, "Surveillance", ROUND(D160*INTRO!$E$51,0))), 0),"Not required") -> 1848 | R160: =IF(INTRO!$E$41="Endemic", IF($J160>1, IF($J160=4, "Unknown", IF($J160=99, "Surveillance", SUM($O160:$Q160))), 0),"Not required") -> 22927.472 | S160: =IF(INTRO!$E$43="Endemic", IF($K160>1, IF($K160=4, "Unknown", IF($K160=99, "Surveillance", ROUND(E160*0.75,0))), 0),"Not required") -> 0 | T160: =IF(INTRO!$E$43="Endemic", IF($K160>1, IF($K160=4, "Unknown", IF($K160=99, "Surveillance", F160)), 0),"Not required") -> 0 | U160: =IF(INTRO!$E$43="Endemic", IF($K160>1, IF($K160=4, "Unknown", IF($K160=99, "Surveillance", G160)), 0),"Not required") -> 0 | V160: =IF(INTRO!$E$43="Endemic", IF($K160>1, IF($K160=4, "Unknown", IF($K160=99, "Surveillance", SUM($S160:$U160))), 0),"Not required") -> 0 | W160: 0 | X160: 1 | Y160: 1 | Z160: 0 | AB160: Yes | AH160: 7562 | AI160: BAHAM
A161: =IF(INTRO!$E$33<>0,INTRO!$E$33, " ") -> Cameroun | B161: Ouest | C161: Bamendjou | D161: 45866 | E161: 7487.748 | F161: =IF(INTRO!$E$49="","",ROUND($D161*INTRO!$E$49,0)) -> 12132 | G161: =IF(INTRO!$E$50="","",ROUND($D161*INTRO!$E$50,0)) -> 26405 | H161: 99 | I161: 1 | J161: 3 | K161: 0 | L161: 1 | M161: =IF(INTRO!$E$37="Endemic",IF($H161>0,IF($H161=4,"Unknown",IF($H161=99,"Stopped",$D161)),0),"Not required") -> Stopped | N161: =IF(INTRO!$E$39="Endemic", IF($I161>0, IF($I161=4,"Unknown",IF($I161=99,"Stopped",$D161)), 0),"Not required") -> 45866 | O161: =IF(INTRO!$E$41="Endemic", IF($J161>1, IF($J161=4, "Unknown", IF($J161=99, "Surveillance", E161)), 0),"Not required") -> 7487.748 | P161: =IF(INTRO!$E$41="Endemic", IF($J161>1, IF($J161=4, "Unknown", IF($J161=99, "Surveillance", F161)), 0),"Not required") -> 12132 | Q161: =IF(INTRO!$E$41="Endemic", IF($J161>1, IF($J161=4, "Unknown", IF($J161=99, "Surveillance", ROUND(D161*INTRO!$E$51,0))), 0),"Not required") -> 1697 | R161: =IF(INTRO!$E$41="Endemic", IF($J161>1, IF($J161=4, "Unknown", IF($J161=99, "Surveillance", SUM($O161:$Q161))), 0),"Not required") -> 21316.748 | S161: =IF(INTRO!$E$43="Endemic", IF($K161>1, IF($K161=4, "Unknown", IF($K161=99, "Surveillance", ROUND(E161*0.75,0))), 0),"Not required") -> 0 | T161: =IF(INTRO!$E$43="Endemic", IF($K161>1, IF($K161=4, "Unknown", IF($K161=99, "Surveillance", F161)), 0),"Not required") -> 0 | U161: =IF(INTRO!$E$43="Endemic", IF($K161>1, IF($K161=4, "Unknown", IF($K161=99, "Surveillance", G161)), 0),"Not required") -> 0 | V161: =IF(INTRO!$E$43="Endemic", IF($K161>1, IF($K161=4, "Unknown", IF($K161=99, "Surveillance", SUM($S161:$U161))), 0),"Not required") -> 0 | W161: 0 | X161: 1 | Y161: 1 | Z161: 0 | AB161: Yes | AH161: 7563 | AI161: BAMENDJOU
A162: =IF(INTRO!$E$33<>0,INTRO!$E$33, " ") -> Cameroun | B162: Ouest | C162: Bandja | D162: 30547 | E162: 5267.484 | F162: =IF(INTRO!$E$49="","",ROUND($D162*INTRO!$E$49,0)) -> 8080 | G162: =IF(INTRO!$E$50="","",ROUND($D162*INTRO!$E$50,0)) -> 17586 | H162: 99 | I162: 1 | J162: 3 | K162: 1 | L162: 1 | M162: =IF(INTRO!$E$37="Endemic",IF($H162>0,IF($H162=4,"Unknown",IF($H162=99,"Stopped",$D162)),0),"Not required") -> Stopped | N162: =IF(INTRO!$E$39="Endemic", IF($I162>0, IF($I162=4,"Unknown",IF($I162=99,"Stopped",$D162)), 0),"Not required") -> 30547 | O162: =IF(INTRO!$E$41="Endemic", IF($J162>1, IF($J162=4, "Unknown", IF($J162=99, "Surveillance", E162)), 0),"Not required") -> 5267.484 | P162: =IF(INTRO!$E$41="Endemic", IF($J162>1, IF($J162=4, "Unknown", IF($J162=99, "Surveillance", F162)), 0),"Not required") -> 8080 | Q162: =IF(INTRO!$E$41="Endemic", IF($J162>1, IF($J162=4, "Unknown", IF($J162=99, "Surveillance", ROUND(D162*INTRO!$E$51,0))), 0),"Not required") -> 1130 | R162: =IF(INTRO!$E$41="Endemic", IF($J162>1, IF($J162=4, "Unknown", IF($J162=99, "Surveillance", SUM($O162:$Q162))), 0),"Not required") -> 14477.484 | S162: =IF(INTRO!$E$43="Endemic", IF($K162>1, IF($K162=4, "Unknown", IF($K162=99, "Surveillance", ROUND(E162*0.75,0))), 0),"Not required") -> 0 | T162: =IF(INTRO!$E$43="Endemic", IF($K162>1, IF($K162=4, "Unknown", IF($K162=99, "Surveillance", F162)), 0),"Not required") -> 0 | U162: =IF(INTRO!$E$43="Endemic", IF($K162>1, IF($K162=4, "Unknown", IF($K162=99, "Surveillance", G162)), 0),"Not required") -> 0 | V162: =IF(INTRO!$E$43="Endemic", IF($K162>1, IF($K162=4, "Unknown", IF($K162=99, "Surveillance", SUM($S162:$U162))), 0),"Not required") -> 0 | W162: 0 | X162: 1 | Y162: 1 | Z162: 0 | AB162: Yes | AH162: 7564 | AI162: BANDJA
A163: =IF(INTRO!$E$33<>0,INTRO!$E$33, " ") -> Cameroun | B163: Ouest | C163: Bandjoun | D163: 104947 | E163: 22291.902 | F163: =IF(INTRO!$E$49="","",ROUND($D163*INTRO!$E$49,0)) -> 27758 | G163: =IF(INTRO!$E$50="","",ROUND($D163*INTRO!$E$50,0)) -> 60418 | H163: 99 | I163: 1 | J163: 3 | K163: 0 | L163: 1 | M163: =IF(INTRO!$E$37="Endemic",IF($H163>0,IF($H163=4,"Unknown",IF($H163=99,"Stopped",$D163)),0),"Not required") -> Stopped | N163: =IF(INTRO!$E$39="Endemic", IF($I163>0, IF($I163=4,"Unknown",IF($I163=99,"Stopped",$D163)), 0),"Not required") -> 104947 | O163: =IF(INTRO!$E$41="Endemic", IF($J163>1, IF($J163=4, "Unknown", IF($J163=99, "Surveillance", E163)), 0),"Not required") -> 22291.902 | P163: =IF(INTRO!$E$41="Endemic", IF($J163>1, IF($J163=4, "Unknown", IF($J163=99, "Surveillance", F163)), 0),"Not required") -> 27758 | Q163: =IF(INTRO!$E$41="Endemic", IF($J163>1, IF($J163=4, "Unknown", IF($J163=99, "Surveillance", ROUND(D163*INTRO!$E$51,0))), 0),"Not required") -> 3883 | R163: =IF(INTRO!$E$41="Endemic", IF($J163>1, IF($J163=4, "Unknown", IF($J163=99, "Surveillance", SUM($O163:$Q163))), 0),"Not required") -> 53932.902 | S163: =IF(INTRO!$E$43="Endemic", IF($K163>1, IF($K163=4, "Unknown", IF($K163=99, "Surveillance", ROUND(E163*0.75,0))), 0),"Not required") -> 0 | T163: =IF(INTRO!$E$43="Endemic", IF($K163>1, IF($K163=4, "Unknown", IF($K163=99, "Surveillance", F163)), 0),"Not required") -> 0 | U163: =IF(INTRO!$E$43="Endemic", IF($K163>1, IF($K163=4, "Unknown", IF($K163=99, "Surveillance", G163)), 0),"Not required") -> 0 | V163: =IF(INTRO!$E$43="Endemic", IF($K163>1, IF($K163=4, "Unknown", IF($K163=99, "Surveillance", SUM($S163:$U163))), 0),"Not required") -> 0 | W163: 0 | X163: 1 | Y163: 1 | Z163: 0 | AB163: Yes | AH163: 7565 | AI163: BANDJOUN
A164: =IF(INTRO!$E$33<>0,INTRO!$E$33, " ") -> Cameroun | B164: Ouest | C164: Bangangte | D164: 128592 | E164: 18815.814 | F164: =IF(INTRO!$E$49="","",ROUND($D164*INTRO!$E$49,0)) -> 34013 | G164: =IF(INTRO!$E$50="","",ROUND($D164*INTRO!$E$50,0)) -> 74030 | H164: 99 | I164: 1 | J164: 3 | K164: 2 | L164: 1 | M164: =IF(INTRO!$E$37="Endemic",IF($H164>0,IF($H164=4,"Unknown",IF($H164=99,"Stopped",$D164)),0),"Not required") -> Stopped | N164: =IF(INTRO!$E$39="Endemic", IF($I164>0, IF($I164=4,"Unknown",IF($I164=99,"Stopped",$D164)), 0),"Not required") -> 128592 | O164: =IF(INTRO!$E$41="Endemic", IF($J164>1, IF($J164=4, "Unknown", IF($J164=99, "Surveillance", E164)), 0),"Not required") -> 18815.814 | P164: =IF(INTRO!$E$41="Endemic", IF($J164>1, IF($J164=4, "Unknown", IF($J164=99, "Surveillance", F164)), 0),"Not required") -> 34013 | Q164: =IF(INTRO!$E$41="Endemic", IF($J164>1, IF($J164=4, "Unknown", IF($J164=99, "Surveillance", ROUND(D164*INTRO!$E$51,0))), 0),"Not required") -> 4758 | R164: =IF(INTRO!$E$41="Endemic", IF($J164>1, IF($J164=4, "Unknown", IF($J164=99, "Surveillance", SUM($O164:$Q164))), 0),"Not required") -> 57586.814 | S164: =IF(INTRO!$E$43="Endemic", IF($K164>1, IF($K164=4, "Unknown", IF($K164=99, "Surveillance", ROUND(E164*0.75,0))), 0),"Not required") -> 14112 | T164: =IF(INTRO!$E$43="Endemic", IF($K164>1, IF($K164=4, "Unknown", IF($K164=99, "Surveillance", F164)), 0),"Not required") -> 34013 | U164: =IF(INTRO!$E$43="Endemic", IF($K164>1, IF($K164=4, "Unknown", IF($K164=99, "Surveillance", G164)), 0),"Not required") -> 74030 | V164: =IF(INTRO!$E$43="Endemic", IF($K164>1, IF($K164=4, "Unknown", IF($K164=99, "Surveillance", SUM($S164:$U164))), 0),"Not required") -> 122155 | W164: 0 | X164: 1 | Y164: 1 | Z164: 1 | AB164: Yes | AH164: 7566 | AI164: BANGANGTE
A165: =IF(INTRO!$E$33<>0,INTRO!$E$33, " ") -> Cameroun | B165: Ouest | C165: Bangourain | D165: 56317 | E165: 10006.578 | F165: =IF(INTRO!$E$49="","",ROUND($D165*INTRO!$E$49,0)) -> 14896 | G165: =IF(INTRO!$E$50="","",ROUND($D165*INTRO!$E$50,0)) -> 32422 | H165: 99 | I165: 1 | J165: 1 | K165: 1 | L165: 1 | M165: =IF(INTRO!$E$37="Endemic",IF($H165>0,IF($H165=4,"Unknown",IF($H165=99,"Stopped",$D165)),0),"Not required") -> Stopped | N165: =IF(INTRO!$E$39="Endemic", IF($I165>0, IF($I165=4,"Unknown",IF($I165=99,"Stopped",$D165)), 0),"Not required") -> 56317 | O165: =IF(INTRO!$E$41="Endemic", IF($J165>1, IF($J165=4, "Unknown", IF($J165=99, "Surveillance", E165)), 0),"Not required") -> 0 | P165: =IF(INTRO!$E$41="Endemic", IF($J165>1, IF($J165=4, "Unknown", IF($J165=99, "Surveillance", F165)), 0),"Not required") -> 0 | Q165: =IF(INTRO!$E$41="Endemic", IF($J165>1, IF($J165=4, "Unknown", IF($J165=99, "Surveillance", ROUND(D165*INTRO!$E$51,0))), 0),"Not required") -> 0 | R165: =IF(INTRO!$E$41="Endemic", IF($J165>1, IF($J165=4, "Unknown", IF($J165=99, "Surveillance", SUM($O165:$Q165))), 0),"Not required") -> 0 | S165: =IF(INTRO!$E$43="Endemic", IF($K165>1, IF($K165=4, "Unknown", IF($K165=99, "Surveillance", ROUND(E165*0.75,0))), 0),"Not required") -> 0 | T165: =IF(INTRO!$E$43="Endemic", IF($K165>1, IF($K165=4, "Unknown", IF($K165=99, "Surveillance", F165)), 0),"Not required") -> 0 | U165: =IF(INTRO!$E$43="Endemic", IF($K165>1, IF($K165=4, "Unknown", IF($K165=99, "Surveillance", G165)), 0),"Not required") -> 0 | V165: =IF(INTRO!$E$43="Endemic", IF($K165>1, IF($K165=4, "Unknown", IF($K165=99, "Surveillance", SUM($S165:$U165))), 0),"Not required") -> 0 | W165: 0 | X165: 1 | Y165: 0 | Z165: 0 | AB165: Yes | AH165: 7567 | AI165: BANGOURAIN
A166: =IF(INTRO!$E$33<>0,INTRO!$E$33, " ") -> Cameroun | B166: Ouest | C166: Batcham | D166: 97945 | E166: 12368.43 | F166: =IF(INTRO!$E$49="","",ROUND($D166*INTRO!$E$49,0)) -> 25906 | G166: =IF(INTRO!$E$50="","",ROUND($D166*INTRO!$E$50,0)) -> 56387 | H166: 99 | I166: 1 | J166: 3 | K166: 1 | L166: 1 | M166: =IF(INTRO!$E$37="Endemic",IF($H166>0,IF($H166=4,"Unknown",IF($H166=99,"Stopped",$D166)),0),"Not required") -> Stopped | N166: =IF(INTRO!$E$39="Endemic", IF($I166>0, IF($I166=4,"Unknown",IF($I166=99,"Stopped",$D166)), 0),"Not required") -> 97945 | O166: =IF(INTRO!$E$41="Endemic", IF($J166>1, IF($J166=4, "Unknown", IF($J166=99, "Surveillance", E166)), 0),"Not required") -> 12368.43 | P166: =IF(INTRO!$E$41="Endemic", IF($J166>1, IF($J166=4, "Unknown", IF($J166=99, "Surveillance", F166)), 0),"Not required") -> 25906 | Q166: =IF(INTRO!$E$41="Endemic", IF($J166>1, IF($J166=4, "Unknown", IF($J166=99, "Surveillance", ROUND(D166*INTRO!$E$51,0))), 0),"Not required") -> 3624 | R166: =IF(INTRO!$E$41="Endemic", IF($J166>1, IF($J166=4, "Unknown", IF($J166=99, "Surveillance", SUM($O166:$Q166))), 0),"Not required") -> 41898.43 | S166: =IF(INTRO!$E$43="Endemic", IF($K166>1, IF($K166=4, "Unknown", IF($K166=99, "Surveillance", ROUND(E166*0.75,0))), 0),"Not required") -> 0 | T166: =IF(INTRO!$E$43="Endemic", IF($K166>1, IF($K166=4, "Unknown", IF($K166=99, "Surveillance", F166)), 0),"Not required") -> 0 | U166: =IF(INTRO!$E$43="Endemic", IF($K166>1, IF($K166=4, "Unknown", IF($K166=99, "Surveillance", G166)), 0),"Not required") -> 0 | V166: =IF(INTRO!$E$43="Endemic", IF($K166>1, IF($K166=4, "Unknown", IF($K166=99, "Surveillance", SUM($S166:$U166))), 0),"Not required") -> 0 | W166: 0 | X166: 1 | Y166: 1 | Z166: 0 | AB166: Yes | AH166: 7568 | AI166: BATCHAM
A167: =IF(INTRO!$E$33<>0,INTRO!$E$33, " ") -> Cameroun | B167: Ouest | C167: Dschang | D167: 256865 | E167: 41353.956 | F167: =IF(INTRO!$E$49="","",ROUND($D167*INTRO!$E$49,0)) -> 67941 | G167: =IF(INTRO!$E$50="","",ROUND($D167*INTRO!$E$50,0)) -> 147877 | H167: 99 | I167: 1 | J167: 3 | K167: 0 | L167: 1 | M167: =IF(INTRO!$E$37="Endemic",IF($H167>0,IF($H167=4,"Unknown",IF($H167=99,"Stopped",$D167)),0),"Not required") -> Stopped | N167: =IF(INTRO!$E$39="Endemic", IF($I167>0, IF($I167=4,"Unknown",IF($I167=99,"Stopped",$D167)), 0),"Not required") -> 256865 | O167: =IF(INTRO!$E$41="Endemic", IF($J167>1, IF($J167=4, "Unknown", IF($J167=99, "Surveillance", E167)), 0),"Not required") -> 41353.956 | P167: =IF(INTRO!$E$41="Endemic", IF($J167>1, IF($J167=4, "Unknown", IF($J167=99, "Surveillance", F167)), 0),"Not required") -> 67941 | Q167: =IF(INTRO!$E$41="Endemic", IF($J167>1, IF($J167=4, "Unknown", IF($J167=99, "Surveillance", ROUND(D167*INTRO!$E$51,0))), 0),"Not required") -> 9504 | R167: =IF(INTRO!$E$41="Endemic", IF($J167>1, IF($J167=4, "Unknown", IF($J167=99, "Surveillance", SUM($O167:$Q167))), 0),"Not required") -> 118798.956 | S167: =IF(INTRO!$E$43="Endemic", IF($K167>1, IF($K167=4, "Unknown", IF($K167=99, "Surveillance", ROUND(E167*0.75,0))), 0),"Not required") -> 0 | T167: =IF(INTRO!$E$43="Endemic", IF($K167>1, IF($K167=4, "Unknown", IF($K167=99, "Surveillance", F167)), 0),"Not required") -> 0 | U167: =IF(INTRO!$E$43="Endemic", IF($K167>1, IF($K167=4, "Unknown", IF($K167=99, "Surveillance", G167)), 0),"Not required") -> 0 | V167: =IF(INTRO!$E$43="Endemic", IF($K167>1, IF($K167=4, "Unknown", IF($K167=99, "Surveillance", SUM($S167:$U167))), 0),"Not required") -> 0 | W167: 0 | X167: 1 | Y167: 1 | Z167: 0 | AB167: Yes | AH167: 7569 | AI167: DSCHANG
A168: =IF(INTRO!$E$33<>0,INTRO!$E$33, " ") -> Cameroun | B168: Ouest | C168: Foumban | D168: 274904 | E168: 54025.056 | F168: =IF(INTRO!$E$49="","",ROUND($D168*INTRO!$E$49,0)) -> 72712 | G168: =IF(INTRO!$E$50="","",ROUND($D168*INTRO!$E$50,0)) -> 158262 | H168: 0 | I168: 1 | J168: 3 | K168: 2 | L168: 1 | M168: =IF(INTRO!$E$37="Endemic",IF($H168>0,IF($H168=4,"Unknown",IF($H168=99,"Stopped",$D168)),0),"Not required") -> 0 | N168: =IF(INTRO!$E$39="Endemic", IF($I168>0, IF($I168=4,"Unknown",IF($I168=99,"Stopped",$D168)), 0),"Not required") -> 274904 | O168: =IF(INTRO!$E$41="Endemic", IF($J168>1, IF($J168=4, "Unknown", IF($J168=99, "Surveillance", E168)), 0),"Not required") -> 54025.056 | P168: =IF(INTRO!$E$41="Endemic", IF($J168>1, IF($J168=4, "Unknown", IF($J168=99, "Surveillance", F168)), 0),"Not required") -> 72712 | Q168: =IF(INTRO!$E$41="Endemic", IF($J168>1, IF($J168=4, "Unknown", IF($J168=99, "Surveillance", ROUND(D168*INTRO!$E$51,0))), 0),"Not required") -> 10171 | R168: =IF(INTRO!$E$41="Endemic", IF($J168>1, IF($J168=4, "Unknown", IF($J168=99, "Surveillance", SUM($O168:$Q168))), 0),"Not required") -> 136908.056 | S168: =IF(INTRO!$E$43="Endemic", IF($K168>1, IF($K168=4, "Unknown", IF($K168=99, "Surveillance", ROUND(E168*0.75,0))), 0),"Not required") -> 40519 | T168: =IF(INTRO!$E$43="Endemic", IF($K168>1, IF($K168=4, "Unknown", IF($K168=99, "Surveillance", F168)), 0),"Not required") -> 72712 | U168: =IF(INTRO!$E$43="Endemic", IF($K168>1, IF($K168=4, "Unknown", IF($K168=99, "Surveillance", G168)), 0),"Not required") -> 158262 | V168: =IF(INTRO!$E$43="Endemic", IF($K168>1, IF($K168=4, "Unknown", IF($K168=99, "Surveillance", SUM($S168:$U168))), 0),"Not required") -> 271493 | W168: 0 | X168: 1 | Y168: 1 | Z168: 1 | AB168: Yes | AH168: 7570 | AI168: FOUMBAN
A169: =IF(INTRO!$E$33<>0,INTRO!$E$33, " ") -> Cameroun | B169: Ouest | C169: Foumbot | D169: 146045 | E169: 25259.094 | F169: =IF(INTRO!$E$49="","",ROUND($D169*INTRO!$E$49,0)) -> 38629 | G169: =IF(INTRO!$E$50="","",ROUND($D169*INTRO!$E$50,0)) -> 84078 | H169: 0 | I169: 1 | J169: 3 | K169: 2 | L169: 1 | M169: =IF(INTRO!$E$37="Endemic",IF($H169>0,IF($H169=4,"Unknown",IF($H169=99,"Stopped",$D169)),0),"Not required") -> 0 | N169: =IF(INTRO!$E$39="Endemic", IF($I169>0, IF($I169=4,"Unknown",IF($I169=99,"Stopped",$D169)), 0),"Not required") -> 146045 | O169: =IF(INTRO!$E$41="Endemic", IF($J169>1, IF($J169=4, "Unknown", IF($J169=99, "Surveillance", E169)), 0),"Not required") -> 25259.094 | P169: =IF(INTRO!$E$41="Endemic", IF($J169>1, IF($J169=4, "Unknown", IF($J169=99, "Surveillance", F169)), 0),"Not required") -> 38629 | Q169: =IF(INTRO!$E$41="Endemic", IF($J169>1, IF($J169=4, "Unknown", IF($J169=99, "Surveillance", ROUND(D169*INTRO!$E$51,0))), 0),"Not required") -> 5404 | R169: =IF(INTRO!$E$41="Endemic", IF($J169>1, IF($J169=4, "Unknown", IF($J169=99, "Surveillance", SUM($O169:$Q169))), 0),"Not required") -> 69292.094 | S169: =IF(INTRO!$E$43="Endemic", IF($K169>1, IF($K169=4, "Unknown", IF($K169=99, "Surveillance", ROUND(E169*0.75,0))), 0),"Not required") -> 18944 | T169: =IF(INTRO!$E$43="Endemic", IF($K169>1, IF($K169=4, "Unknown", IF($K169=99, "Surveillance", F169)), 0),"Not required") -> 38629 | U169: =IF(INTRO!$E$43="Endemic", IF($K169>1, IF($K169=4, "Unknown", IF($K169=99, "Surveillance", G169)), 0),"Not required") -> 84078 | V169: =IF(INTRO!$E$43="Endemic", IF($K169>1, IF($K169=4, "Unknown", IF($K169=99, "Surveillance", SUM($S169:$U169))), 0),"Not required") -> 141651 | W169: 0 | X169: 1 | Y169: 1 | Z169: 1 | AB169: Yes | AH169: 7571 | AI169: FOUMBOT
A170: =IF(INTRO!$E$33<>0,INTRO!$E$33, " ") -> Cameroun | B170: Ouest | C170: Galim | D170: 71924 | E170: 12460.77 | F170: =IF(INTRO!$E$49="","",ROUND($D170*INTRO!$E$49,0)) -> 19024 | G170: =IF(INTRO!$E$50="","",ROUND($D170*INTRO!$E$50,0)) -> 41407 | H170: 99 | I170: 1 | J170: 3 | K170: 1 | L170: 1 | M170: =IF(INTRO!$E$37="Endemic",IF($H170>0,IF($H170=4,"Unknown",IF($H170=99,"Stopped",$D170)),0),"Not required") -> Stopped | N170: =IF(INTRO!$E$39="Endemic", IF($I170>0, IF($I170=4,"Unknown",IF($I170=99,"Stopped",$D170)), 0),"Not required") -> 71924 | O170: =IF(INTRO!$E$41="Endemic", IF($J170>1, IF($J170=4, "Unknown", IF($J170=99, "Surveillance", E170)), 0),"Not required") -> 12460.77 | P170: =IF(INTRO!$E$41="Endemic", IF($J170>1, IF($J170=4, "Unknown", IF($J170=99, "Surveillance", F170)), 0),"Not required") -> 19024 | Q170: =IF(INTRO!$E$41="Endemic", IF($J170>1, IF($J170=4, "Unknown", IF($J170=99, "Surveillance", ROUND(D170*INTRO!$E$51,0))), 0),"Not required") -> 2661 | R170: =IF(INTRO!$E$41="Endemic", IF($J170>1, IF($J170=4, "Unknown", IF($J170=99, "Surveillance", SUM($O170:$Q170))), 0),"Not required") -> 34145.77 | S170: =IF(INTRO!$E$43="Endemic", IF($K170>1, IF($K170=4, "Unknown", IF($K170=99, "Surveillance", ROUND(E170*0.75,0))), 0),"Not required") -> 0 | T170: =IF(INTRO!$E$43="Endemic", IF($K170>1, IF($K170=4, "Unknown", IF($K170=99, "Surveillance", F170)), 0),"Not required") -> 0 | U170: =IF(INTRO!$E$43="Endemic", IF($K170>1, IF($K170=4, "Unknown", IF($K170=99, "Surveillance", G170)), 0),"Not required") -> 0 | V170: =IF(INTRO!$E$43="Endemic", IF($K170>1, IF($K170=4, "Unknown", IF($K170=99, "Surveillance", SUM($S170:$U170))), 0),"Not required") -> 0 | W170: 0 | X170: 1 | Y170: 1 | Z170: 0 | AB170: Yes | AH170: 7572 | AI170: GALIM
A171: =IF(INTRO!$E$33<>0,INTRO!$E$33, " ") -> Cameroun | B171: Ouest | C171: Kekem | D171: 51900 | E171: 6225.768 | F171: =IF(INTRO!$E$49="","",ROUND($D171*INTRO!$E$49,0)) -> 13728 | G171: =IF(INTRO!$E$50="","",ROUND($D171*INTRO!$E$50,0)) -> 29879 | H171: 99 | I171: 1 | J171: 3 | K171: 1 | L171: 1 | M171: =IF(INTRO!$E$37="Endemic",IF($H171>0,IF($H171=4,"Unknown",IF($H171=99,"Stopped",$D171)),0),"Not required") -> Stopped | N171: =IF(INTRO!$E$39="Endemic", IF($I171>0, IF($I171=4,"Unknown",IF($I171=99,"Stopped",$D171)), 0),"Not required") -> 51900 | O171: =IF(INTRO!$E$41="Endemic", IF($J171>1, IF($J171=4, "Unknown", IF($J171=99, "Surveillance", E171)), 0),"Not required") -> 6225.768 | P171: =IF(INTRO!$E$41="Endemic", IF($J171>1, IF($J171=4, "Unknown", IF($J171=99, "Surveillance", F171)), 0),"Not required") -> 13728 | Q171: =IF(INTRO!$E$41="Endemic", IF($J171>1, IF($J171=4, "Unknown", IF($J171=99, "Surveillance", ROUND(D171*INTRO!$E$51,0))), 0),"Not required") -> 1920 | R171: =IF(INTRO!$E$41="Endemic", IF($J171>1, IF($J171=4, "Unknown", IF($J171=99, "Surveillance", SUM($O171:$Q171))), 0),"Not required") -> 21873.768 | S171: =IF(INTRO!$E$43="Endemic", IF($K171>1, IF($K171=4, "Unknown", IF($K171=99, "Surveillance", ROUND(E171*0.75,0))), 0),"Not required") -> 0 | T171: =IF(INTRO!$E$43="Endemic", IF($K171>1, IF($K171=4, "Unknown", IF($K171=99, "Surveillance", F171)), 0),"Not required") -> 0 | U171: =IF(INTRO!$E$43="Endemic", IF($K171>1, IF($K171=4, "Unknown", IF($K171=99, "Surveillance", G171)), 0),"Not required") -> 0 | V171: =IF(INTRO!$E$43="Endemic", IF($K171>1, IF($K171=4, "Unknown", IF($K171=99, "Surveillance", SUM($S171:$U171))), 0),"Not required") -> 0 | W171: 0 | X171: 1 | Y171: 1 | Z171: 0 | AB171: Yes | AH171: 7573 | AI171: KEKEM
A172: =IF(INTRO!$E$33<>0,INTRO!$E$33, " ") -> Cameroun | B172: Ouest | C172: Kouoptamo | D172: 75892 | E172: 13424.184 | F172: =IF(INTRO!$E$49="","",ROUND($D172*INTRO!$E$49,0)) -> 20073 | G172: =IF(INTRO!$E$50="","",ROUND($D172*INTRO!$E$50,0)) -> 43691 | H172: 0 | I172: 1 | J172: 2 | K172: 2 | L172: 1 | M172: =IF(INTRO!$E$37="Endemic",IF($H172>0,IF($H172=4,"Unknown",IF($H172=99,"Stopped",$D172)),0),"Not required") -> 0 | N172: =IF(INTRO!$E$39="Endemic", IF($I172>0, IF($I172=4,"Unknown",IF($I172=99,"Stopped",$D172)), 0),"Not required") -> 75892 | O172: =IF(INTRO!$E$41="Endemic", IF($J172>1, IF($J172=4, "Unknown", IF($J172=99, "Surveillance", E172)), 0),"Not required") -> 13424.184 | P172: =IF(INTRO!$E$41="Endemic", IF($J172>1, IF($J172=4, "Unknown", IF($J172=99, "Surveillance", F172)), 0),"Not required") -> 20073 | Q172: =IF(INTRO!$E$41="Endemic", IF($J172>1, IF($J172=4, "Unknown", IF($J172=99, "Surveillance", ROUND(D172*INTRO!$E$51,0))), 0),"Not required") -> 2808 | R172: =IF(INTRO!$E$41="Endemic", IF($J172>1, IF($J172=4, "Unknown", IF($J172=99, "Surveillance", SUM($O172:$Q172))), 0),"Not required") -> 36305.184 | S172: =IF(INTRO!$E$43="Endemic", IF($K172>1, IF($K172=4, "Unknown", IF($K172=99, "Surveillance", ROUND(E172*0.75,0))), 0),"Not required") -> 10068 | T172: =IF(INTRO!$E$43="Endemic", IF($K172>1, IF($K172=4, "Unknown", IF($K172=99, "Surveillance", F172)), 0),"Not required") -> 20073 | U172: =IF(INTRO!$E$43="Endemic", IF($K172>1, IF($K172=4, "Unknown", IF($K172=99, "Surveillance", G172)), 0),"Not required") -> 43691 | V172: =IF(INTRO!$E$43="Endemic", IF($K172>1, IF($K172=4, "Unknown", IF($K172=99, "Surveillance", SUM($S172:$U172))), 0),"Not required") -> 73832 | W172: 0 | X172: 1 | Y172: 1 | Z172: 1 | AB172: Yes | AH172: 7574 | AI172: KOUOPTAMO
A173: =IF(INTRO!$E$33<>0,INTRO!$E$33, " ") -> Cameroun | B173: Ouest | C173: Malantouen | D173: 161864 | E173: 31468.446 | F173: =IF(INTRO!$E$49="","",ROUND($D173*INTRO!$E$49,0)) -> 42813 | G173: =IF(INTRO!$E$50="","",ROUND($D173*INTRO!$E$50,0)) -> 93185 | H173: 99 | I173: 1 | J173: 3 | K173: 3 | L173: 1 | M173: =IF(INTRO!$E$37="Endemic",IF($H173>0,IF($H173=4,"Unknown",IF($H173=99,"Stopped",$D173)),0),"Not required") -> Stopped | N173: =IF(INTRO!$E$39="Endemic", IF($I173>0, IF($I173=4,"Unknown",IF($I173=99,"Stopped",$D173)), 0),"Not required") -> 161864 | O173: =IF(INTRO!$E$41="Endemic", IF($J173>1, IF($J173=4, "Unknown", IF($J173=99, "Surveillance", E173)), 0),"Not required") -> 31468.446 | P173: =IF(INTRO!$E$41="Endemic", IF($J173>1, IF($J173=4, "Unknown", IF($J173=99, "Surveillance", F173)), 0),"Not required") -> 42813 | Q173: =IF(INTRO!$E$41="Endemic", IF($J173>1, IF($J173=4, "Unknown", IF($J173=99, "Surveillance", ROUND(D173*INTRO!$E$51,0))), 0),"Not required") -> 5989 | R173: =IF(INTRO!$E$41="Endemic", IF($J173>1, IF($J173=4, "Unknown", IF($J173=99, "Surveillance", SUM($O173:$Q173))), 0),"Not required") -> 80270.446 | S173: =IF(INTRO!$E$43="Endemic", IF($K173>1, IF($K173=4, "Unknown", IF($K173=99, "Surveillance", ROUND(E173*0.75,0))), 0),"Not required") -> 23601 | T173: =IF(INTRO!$E$43="Endemic", IF($K173>1, IF($K173=4, "Unknown", IF($K173=99, "Surveillance", F173)), 0),"Not required") -> 42813 | U173: =IF(INTRO!$E$43="Endemic", IF($K173>1, IF($K173=4, "Unknown", IF($K173=99, "Surveillance", G173)), 0),"Not required") -> 93185 | V173: =IF(INTRO!$E$43="Endemic", IF($K173>1, IF($K173=4, "Unknown", IF($K173=99, "Surveillance", SUM($S173:$U173))), 0),"Not required") -> 159599 | W173: 0 | X173: 1 | Y173: 1 | Z173: 1 | AB173: Yes | AH173: 7575 | AI173: MALENTOUEN
A174: =IF(INTRO!$E$33<>0,INTRO!$E$33, " ") -> Cameroun | B174: Ouest | C174: Massangam | D174: 54416 | E174: 9714.168 | F174: =IF(INTRO!$E$49="","",ROUND($D174*INTRO!$E$49,0)) -> 14393 | G174: =IF(INTRO!$E$50="","",ROUND($D174*INTRO!$E$50,0)) -> 31327 | H174: 99 | I174: 1 | J174: 2 | K174: 1 | L174: 1 | M174: =IF(INTRO!$E$37="Endemic",IF($H174>0,IF($H174=4,"Unknown",IF($H174=99,"Stopped",$D174)),0),"Not required") -> Stopped | N174: =IF(INTRO!$E$39="Endemic", IF($I174>0, IF($I174=4,"Unknown",IF($I174=99,"Stopped",$D174)), 0),"Not required") -> 54416 | O174: =IF(INTRO!$E$41="Endemic", IF($J174>1, IF($J174=4, "Unknown", IF($J174=99, "Surveillance", E174)), 0),"Not required") -> 9714.168 | P174: =IF(INTRO!$E$41="Endemic", IF($J174>1, IF($J174=4, "Unknown", IF($J174=99, "Surveillance", F174)), 0),"Not required") -> 14393 | Q174: =IF(INTRO!$E$41="Endemic", IF($J174>1, IF($J174=4, "Unknown", IF($J174=99, "Surveillance", ROUND(D174*INTRO!$E$51,0))), 0),"Not required") -> 2013 | R174: =IF(INTRO!$E$41="Endemic", IF($J174>1, IF($J174=4, "Unknown", IF($J174=99, "Surveillance", SUM($O174:$Q174))), 0),"Not required") -> 26120.168 | S174: =IF(INTRO!$E$43="Endemic", IF($K174>1, IF($K174=4, "Unknown", IF($K174=99, "Surveillance", ROUND(E174*0.75,0))), 0),"Not required") -> 0 | T174: =IF(INTRO!$E$43="Endemic", IF($K174>1, IF($K174=4, "Unknown", IF($K174=99, "Surveillance", F174)), 0),"Not required") -> 0 | U174: =IF(INTRO!$E$43="Endemic", IF($K174>1, IF($K174=4, "Unknown", IF($K174=99, "Surveillance", G174)), 0),"Not required") -> 0 | V174: =IF(INTRO!$E$43="Endemic", IF($K174>1, IF($K174=4, "Unknown", IF($K174=99, "Surveillance", SUM($S174:$U174))), 0),"Not required") -> 0 | W174: 0 | X174: 1 | Y174: 1 | Z174: 0 | AB174: Yes | AH174: 7576 | AI174: MASSANGAM
A175: =IF(INTRO!$E$33<>0,INTRO!$E$33, " ") -> Cameroun | B175: Ouest | C175: Mbouda | D175: 208164 | E175: 30839.508 | F175: =IF(INTRO!$E$49="","",ROUND($D175*INTRO!$E$49,0)) -> 55059 | G175: =IF(INTRO!$E$50="","",ROUND($D175*INTRO!$E$50,0)) -> 119840 | H175: 99 | I175: 1 | J175: 3 | K175: 1 | L175: 1 | M175: =IF(INTRO!$E$37="Endemic",IF($H175>0,IF($H175=4,"Unknown",IF($H175=99,"Stopped",$D175)),0),"Not required") -> Stopped | N175: =IF(INTRO!$E$39="Endemic", IF($I175>0, IF($I175=4,"Unknown",IF($I175=99,"Stopped",$D175)), 0),"Not required") -> 208164 | O175: =IF(INTRO!$E$41="Endemic", IF($J175>1, IF($J175=4, "Unknown", IF($J175=99, "Surveillance", E175)), 0),"Not required") -> 30839.508 | P175: =IF(INTRO!$E$41="Endemic", IF($J175>1, IF($J175=4, "Unknown", IF($J175=99, "Surveillance", F175)), 0),"Not required") -> 55059 | Q175: =IF(INTRO!$E$41="Endemic", IF($J175>1, IF($J175=4, "Unknown", IF($J175=99, "Surveillance", ROUND(D175*INTRO!$E$51,0))), 0),"Not required") -> 7702 | R175: =IF(INTRO!$E$41="Endemic", IF($J175>1, IF($J175=4, "Unknown", IF($J175=99, "Surveillance", SUM($O175:$Q175))), 0),"Not required") -> 93600.508 | S175: =IF(INTRO!$E$43="Endemic", IF($K175>1, IF($K175=4, "Unknown", IF($K175=99, "Surveillance", ROUND(E175*0.75,0))), 0),"Not required") -> 0 | T175: =IF(INTRO!$E$43="Endemic", IF($K175>1, IF($K175=4, "Unknown", IF($K175=99, "Surveillance", F175)), 0),"Not required") -> 0 | U175: =IF(INTRO!$E$43="Endemic", IF($K175>1, IF($K175=4, "Unknown", IF($K175=99, "Surveillance", G175)), 0),"Not required") -> 0 | V175: =IF(INTRO!$E$43="Endemic", IF($K175>1, IF($K175=4, "Unknown", IF($K175=99, "Surveillance", SUM($S175:$U175))), 0),"Not required") -> 0 | W175: 0 | X175: 1 | Y175: 1 | Z175: 0 | AB175: Yes | AH175: 7577 | AI175: MBOUDA
A176: =IF(INTRO!$E$33<>0,INTRO!$E$33, " ") -> Cameroun | B176: Ouest | C176: Mifi | D176: 476444 | E176: 80218.836 | F176: =IF(INTRO!$E$49="","",ROUND($D176*INTRO!$E$49,0)) -> 126019 | G176: =IF(INTRO!$E$50="","",ROUND($D176*INTRO!$E$50,0)) -> 274289 | H176: 99 | I176: 1 | J176: 3 | K176: 1 | L176: 1 | M176: =IF(INTRO!$E$37="Endemic",IF($H176>0,IF($H176=4,"Unknown",IF($H176=99,"Stopped",$D176)),0),"Not required") -> Stopped | N176: =IF(INTRO!$E$39="Endemic", IF($I176>0, IF($I176=4,"Unknown",IF($I176=99,"Stopped",$D176)), 0),"Not required") -> 476444 | O176: =IF(INTRO!$E$41="Endemic", IF($J176>1, IF($J176=4, "Unknown", IF($J176=99, "Surveillance", E176)), 0),"Not required") -> 80218.836 | P176: =IF(INTRO!$E$41="Endemic", IF($J176>1, IF($J176=4, "Unknown", IF($J176=99, "Surveillance", F176)), 0),"Not required") -> 126019 | Q176: =IF(INTRO!$E$41="Endemic", IF($J176>1, IF($J176=4, "Unknown", IF($J176=99, "Surveillance", ROUND(D176*INTRO!$E$51,0))), 0),"Not required") -> 17628 | R176: =IF(INTRO!$E$41="Endemic", IF($J176>1, IF($J176=4, "Unknown", IF($J176=99, "Surveillance", SUM($O176:$Q176))), 0),"Not required") -> 223865.836 | S176: =IF(INTRO!$E$43="Endemic", IF($K176>1, IF($K176=4, "Unknown", IF($K176=99, "Surveillance", ROUND(E176*0.75,0))), 0),"Not required") -> 0 | T176: =IF(INTRO!$E$43="Endemic", IF($K176>1, IF($K176=4, "Unknown", IF($K176=99, "Surveillance", F176)), 0),"Not required") -> 0 | U176: =IF(INTRO!$E$43="Endemic", IF($K176>1, IF($K176=4, "Unknown", IF($K176=99, "Surveillance", G176)), 0),"Not required") -> 0 | V176: =IF(INTRO!$E$43="Endemic", IF($K176>1, IF($K176=4, "Unknown", IF($K176=99, "Surveillance", SUM($S176:$U176))), 0),"Not required") -> 0 | W176: 0 | X176: 1 | Y176: 1 | Z176: 0 | AB176: Yes | AH176: 7578 | AI176: MIFI
A177: =IF(INTRO!$E$33<>0,INTRO!$E$33, " ") -> Cameroun | B177: Ouest | C177: Penka Michel | D177: 92904 | E177: 13622.202 | F177: =IF(INTRO!$E$49="","",ROUND($D177*INTRO!$E$49,0)) -> 24573 | G177: =IF(INTRO!$E$50="","",ROUND($D177*INTRO!$E$50,0)) -> 53485 | H177: 99 | I177: 1 | J177: 3 | K177: 1 | L177: 1 | M177: =IF(INTRO!$E$37="Endemic",IF($H177>0,IF($H177=4,"Unknown",IF($H177=99,"Stopped",$D177)),0),"Not required") -> Stopped | N177: =IF(INTRO!$E$39="Endemic", IF($I177>0, IF($I177=4,"Unknown",IF($I177=99,"Stopped",$D177)), 0),"Not required") -> 92904 | O177: =IF(INTRO!$E$41="Endemic", IF($J177>1, IF($J177=4, "Unknown", IF($J177=99, "Surveillance", E177)), 0),"Not required") -> 13622.202 | P177: =IF(INTRO!$E$41="Endemic", IF($J177>1, IF($J177=4, "Unknown", IF($J177=99, "Surveillance", F177)), 0),"Not required") -> 24573 | Q177: =IF(INTRO!$E$41="Endemic", IF($J177>1, IF($J177=4, "Unknown", IF($J177=99, "Surveillance", ROUND(D177*INTRO!$E$51,0))), 0),"Not required") -> 3437 | R177: =IF(INTRO!$E$41="Endemic", IF($J177>1, IF($J177=4, "Unknown", IF($J177=99, "Surveillance", SUM($O177:$Q177))), 0),"Not required") -> 41632.202 | S177: =IF(INTRO!$E$43="Endemic", IF($K177>1, IF($K177=4, "Unknown", IF($K177=99, "Surveillance", ROUND(E177*0.75,0))), 0),"Not required") -> 0 | T177: =IF(INTRO!$E$43="Endemic", IF($K177>1, IF($K177=4, "Unknown", IF($K177=99, "Surveillance", F177)), 0),"Not required") -> 0 | U177: =IF(INTRO!$E$43="Endemic", IF($K177>1, IF($K177=4, "Unknown", IF($K177=99, "Surveillance", G177)), 0),"Not required") -> 0 | V177: =IF(INTRO!$E$43="Endemic", IF($K177>1, IF($K177=4, "Unknown", IF($K177=99, "Surveillance", SUM($S177:$U177))), 0),"Not required") -> 0 | W177: 0 | X177: 1 | Y177: 1 | Z177: 0 | AB177: Yes | AH177: 7579 | AI177: PENKA MICHEL
A178: =IF(INTRO!$E$33<>0,INTRO!$E$33, " ") -> Cameroun | B178: Ouest | C178: Santchou | D178: 41125 | E178: 6219.612 | F178: =IF(INTRO!$E$49="","",ROUND($D178*INTRO!$E$49,0)) -> 10878 | G178: =IF(INTRO!$E$50="","",ROUND($D178*INTRO!$E$50,0)) -> 23676 | H178: 0 | I178: 1 | J178: 3 | K178: 0 | L178: 1 | M178: =IF(INTRO!$E$37="Endemic",IF($H178>0,IF($H178=4,"Unknown",IF($H178=99,"Stopped",$D178)),0),"Not required") -> 0 | N178: =IF(INTRO!$E$39="Endemic", IF($I178>0, IF($I178=4,"Unknown",IF($I178=99,"Stopped",$D178)), 0),"Not required") -> 41125 | O178: =IF(INTRO!$E$41="Endemic", IF($J178>1, IF($J178=4, "Unknown", IF($J178=99, "Surveillance", E178)), 0),"Not required") -> 6219.612 | P178: =IF(INTRO!$E$41="Endemic", IF($J178>1, IF($J178=4, "Unknown", IF($J178=99, "Surveillance", F178)), 0),"Not required") -> 10878 | Q178: =IF(INTRO!$E$41="Endemic", IF($J178>1, IF($J178=4, "Unknown", IF($J178=99, "Surveillance", ROUND(D178*INTRO!$E$51,0))), 0),"Not required") -> 1522 | R178: =IF(INTRO!$E$41="Endemic", IF($J178>1, IF($J178=4, "Unknown", IF($J178=99, "Surveillance", SUM($O178:$Q178))), 0),"Not required") -> 18619.612 | S178: =IF(INTRO!$E$43="Endemic", IF($K178>1, IF($K178=4, "Unknown", IF($K178=99, "Surveillance", ROUND(E178*0.75,0))), 0),"Not required") -> 0 | T178: =IF(INTRO!$E$43="Endemic", IF($K178>1, IF($K178=4, "Unknown", IF($K178=99, "Surveillance", F178)), 0),"Not required") -> 0 | U178: =IF(INTRO!$E$43="Endemic", IF($K178>1, IF($K178=4, "Unknown", IF($K178=99, "Surveillance", G178)), 0),"Not required") -> 0 | V178: =IF(INTRO!$E$43="Endemic", IF($K178>1, IF($K178=4, "Unknown", IF($K178=99, "Surveillance", SUM($S178:$U178))), 0),"Not required") -> 0 | W178: 0 | X178: 1 | Y178: 1 | Z178: 0 | AB178: Yes | AH178: 7580 | AI178: SANTCHOU
